Workbook

Sheet ACCUEIL
F7: 2020-05-24

Sheet Accueilagence
A1: Accueil
E7: =ACCUEIL!F7 -> 2020-05-24

Sheet Accueilsecteur
A1: Accueil
E7: =ACCUEIL!F7 -> 2020-05-24

Sheet AccueilDircom
A1: Accueil
E7: =ACCUEIL!F7 -> 2020-05-24

Sheet DC_FICHE
A1: Accueil
A2: BAROMETRE BDD
A4: UNITE: | B4: DIRECTION REGIONALE | E4: ETP perf : | F4: =VLOOKUP(A5,'RECAP DIRCOM'!$G$6:$I$12,3,FALSE) -> 260.84
A5: =VLOOKUP(B5,LISTES!$M$6:$N$12,2,FALSE) -> 262 | B5: BAS-RHIN
C6: Coefficient du critére | E6: Résultats | I6: Ecart au 1ier | M6: Evolution | O6: Rang
E7: du 1ier | G7: DIRECTION | I7: Du mois | K7: Au 31/12/2019
A9: RANG au CLASSEMENT GENERAL | K9: =VLOOKUP($A$5,'RECAP DIRCOM AN'!$G$6:$FS$312,168,FALSE) -> 6 | M9: =+K9-O9 -> 0 | O9: =VLOOKUP($A$5,'RECAP DIRCOM'!$G$6:$FS$312,168,FALSE) -> 6
A11: CRITERE CLIENTS | C11: 15% | O11: =VLOOKUP($A$5,'RECAP DIRCOM'!$G$6:$FS$312,23,FALSE) -> 7
B12: PNB Evolution nette Clients BP | C12: 4% | E12: ='RECAP DIRCOM'!K4 -> 0.1 | G12: =VLOOKUP($A$5,'RECAP DIRCOM'!$G$6:$FS$312,6,FALSE) -> -0.8 | I12: =VLOOKUP($A$5,'RECAP DIRCOM'!$G$6:$FS$312,7,FALSE) -> 84% | K12: =VLOOKUP($A$5,'RECAP DIRCOM AN'!$G$6:$FS$312,7,FALSE) -> 130% | M12: =+K12-I12 -> 46% | O12: =VLOOKUP($A$5,'RECAP DIRCOM'!$G$6:$FS$312,8,FALSE) -> 6
B13: PNB Evolution nette Clients PREMIUM | C13: 5% | E13: ='RECAP DIRCOM'!O4 -> 0.6 | G13: =VLOOKUP($A$5,'RECAP DIRCOM'!$G$6:$FS$312,10,FALSE) -> 0.4 | I13: =VLOOKUP($A$5,'RECAP DIRCOM'!$G$6:$FS$312,11,FALSE) -> 33% | K13: =VLOOKUP($A$5,'RECAP DIRCOM AN'!$G$6:$FS$312,11,FALSE) -> 1% | M13: =+K13-I13 -> -32% | O13: =VLOOKUP($A$5,'RECAP DIRCOM'!$G$6:$FS$312,12,FALSE) -> 6
B14: PNB Evolution nette Clients Jeunes Equipés | C14: 3% | E14: ='RECAP DIRCOM'!S4 -> -0.2 | G14: =VLOOKUP($A$5,'RECAP DIRCOM'!$G$6:$FS$312,14,FALSE) -> -0.3 | I14: =VLOOKUP($A$5,'RECAP DIRCOM'!$G$6:$FS$312,15,FALSE) -> 69% | K14: =VLOOKUP($A$5,'RECAP DIRCOM AN'!$G$6:$FS$312,15,FALSE) -> 69% | M14: =+K14-I14 -> 1% | O14: =VLOOKUP($A$5,'RECAP DIRCOM'!$G$6:$FS$312,16,FALSE) -> 3
B15: PNB Evolution nette Clients Pro Actifs Equipés | C15: 3% | E15: ='RECAP DIRCOM'!W4 -> 0.2 | G15: =VLOOKUP($A$5,'RECAP DIRCOM'!$G$6:$FS$312,18,FALSE) -> -0.1 | I15: =VLOOKUP($A$5,'RECAP DIRCOM'!$G$6:$FS$312,19,FALSE) -> 150% | K15: =VLOOKUP($A$5,'RECAP DIRCOM AN'!$G$6:$FS$312,19,FALSE) -> 0% | M15: =+K15-I15 -> -150% | O15: =VLOOKUP($A$5,'RECAP DIRCOM'!$G$6:$FS$312,20,FALSE) -> 7
A17: CRITERE BANCARISATION | C17: 15% | O17: =VLOOKUP($A$5,'RECAP DIRCOM'!$G$6:$FS$312,48,FALSE) -> 3
B18: PNB Ventes nettes forfaits | C18: 4% | E18: ='RECAP DIRCOM'!AJ4 -> 2.3 | G18: =VLOOKUP($A$5,'RECAP DIRCOM'!$G$6:$FS$312,31,FALSE) -> 0.9 | I18: =VLOOKUP($A$5,'RECAP DIRCOM'!$G$6:$FS$312,32,FALSE) -> 62% | K18: =VLOOKUP($A$5,'RECAP DIRCOM AN'!$G$6:$FS$312,32,FALSE) -> 126% | M18: =+K18-I18 -> 64% | O18: =VLOOKUP($A$5,'RECAP DIRCOM'!$G$6:$FS$312,33,FALSE) -> 4
B19: PNB Ventes nettes IZICARTES Débit Différé | C19: 4% | E19: ='RECAP DIRCOM'!AN4 -> 3.6 | G19: =VLOOKUP($A$5,'RECAP DIRCOM'!$G$6:$FS$312,35,FALSE) -> 3.3 | I19: =VLOOKUP($A$5,'RECAP DIRCOM'!$G$6:$FS$312,36,FALSE) -> 10% | K19: =VLOOKUP($A$5,'RECAP DIRCOM AN'!$G$6:$FS$312,36,FALSE) -> 0% | M19: =+K19-I19 -> -10% | O19: =VLOOKUP($A$5,'RECAP DIRCOM'!$G$6:$FS$312,37,FALSE) -> 3
B20: PNB Ventes nettes cartes HDG Débit Différé | C20: 4% | E20: ='RECAP DIRCOM'!AR4 -> 5.2 | G20: =VLOOKUP($A$5,'RECAP DIRCOM'!$G$6:$FS$312,39,FALSE) -> 5.2 | I20: =VLOOKUP($A$5,'RECAP DIRCOM'!$G$6:$FS$312,40,FALSE) -> 0% | K20: =VLOOKUP($A$5,'RECAP DIRCOM AN'!$G$6:$FS$312,40,FALSE) -> 0% | M20: =+K20-I20 -> 0% | O20: =VLOOKUP($A$5,'RECAP DIRCOM'!$G$6:$FS$312,41,FALSE) -> 1
B21: PNB Ventes nettes Forfaits Pro, Carte pro | C21: 3% | E21: ='RECAP DIRCOM'!AV4 -> 0.6 | G21: =VLOOKUP($A$5,'RECAP DIRCOM'!$G$6:$FS$312,43,FALSE) -> 0.2 | I21: =VLOOKUP($A$5,'RECAP DIRCOM'!$G$6:$FS$312,44,FALSE) -> 61% | K21: =VLOOKUP($A$5,'RECAP DIRCOM AN'!$G$6:$FS$312,44,FALSE) -> 44% | M21: =+K21-I21 -> -17% | O21: =VLOOKUP($A$5,'RECAP DIRCOM'!$G$6:$FS$312,45,FALSE) -> 5
A23: CRITERE EPARGNE | C23: 10% | O23: =VLOOKUP($A$5,'RECAP DIRCOM'!$G$6:$FS$312,69,FALSE) -> 3
B24: PNB Epargne Liquide | C24: 3% | E24: ='RECAP DIRCOM'!BI4 -> 6.8 | G24: =VLOOKUP($A$5,'RECAP DIRCOM'!$G$6:$FS$312,56,FALSE) -> 6.5 | I24: =VLOOKUP($A$5,'RECAP DIRCOM'!$G$6:$FS$312,57,FALSE) -> 5% | K24: =VLOOKUP($A$5,'RECAP DIRCOM AN'!$G$6:$FS$312,57,FALSE) -> 23% | M24: =+K24-I24 -> 18% | O24: =VLOOKUP($A$5,'RECAP DIRCOM'!$G$6:$FS$312,58,FALSE) -> 3
B25: PNB CA UC + arbitrage | C25: 4% | E25: ='RECAP DIRCOM'!BM4 -> 0.6 | G25: =VLOOKUP($A$5,'RECAP DIRCOM'!$G$6:$FS$312,60,FALSE) -> 0.6 | I25: =VLOOKUP($A$5,'RECAP DIRCOM'!$G$6:$FS$312,61,FALSE) -> 5% | K25: =VLOOKUP($A$5,'RECAP DIRCOM AN'!$G$6:$FS$312,61,FALSE) -> 0% | M25: =+K25-I25 -> -5% | O25: =VLOOKUP($A$5,'RECAP DIRCOM'!$G$6:$FS$312,62,FALSE) -> 3
B26: PNB Excédent assurance vie | C26: 3% | E26: ='RECAP DIRCOM'!BQ4 -> -0.3 | G26: =VLOOKUP($A$5,'RECAP DIRCOM'!$G$6:$FS$312,64,FALSE) -> -1.2 | I26: =VLOOKUP($A$5,'RECAP DIRCOM'!$G$6:$FS$312,65,FALSE) -> 46% | K26: =VLOOKUP($A$5,'RECAP DIRCOM AN'!$G$6:$FS$312,65,FALSE) -> 63% | M26: =+K26-I26 -> 18% | O26: =VLOOKUP($A$5,'RECAP DIRCOM'!$G$6:$FS$312,66,FALSE) -> 2
A28: CRITERE CREDITS | C28: 15% | O28: =VLOOKUP($A$5,'RECAP DIRCOM'!$G$6:$FS$312,102,FALSE) -> 6
B29: PNB crédit conso | C29: 4% | E29: ='RECAP DIRCOM'!CD4 -> 17.3 | G29: =VLOOKUP($A$5,'RECAP DIRCOM'!$G$6:$FS$312,77,FALSE) -> 13.1 | I29: =VLOOKUP($A$5,'RECAP DIRCOM'!$G$6:$FS$312,78,FALSE) -> 25% | K29: =VLOOKUP($A$5,'RECAP DIRCOM AN'!$G$6:$FS$312,78,FALSE) -> 29% | M29: =+K29-I29 -> 5% | O29: =VLOOKUP($A$5,'RECAP DIRCOM'!$G$6:$FS$312,79,FALSE) -> 6
B30: PNB ADE crédit conso | C30: 1% | E30: ='RECAP DIRCOM'!CH4 -> 3.8 | G30: =VLOOKUP($A$5,'RECAP DIRCOM'!$G$6:$FS$312,81,FALSE) -> 3.2 | I30: =VLOOKUP($A$5,'RECAP DIRCOM'!$G$6:$FS$312,82,FALSE) -> 16% | K30: =VLOOKUP($A$5,'RECAP DIRCOM AN'!$G$6:$FS$312,82,FALSE) -> 29% | M30: 13% | O30: =VLOOKUP($A$5,'RECAP DIRCOM'!$G$6:$FS$312,83,FALSE) -> 6
B31: PNB crédit immo | C31: 4% | E31: ='RECAP DIRCOM'!CL4 -> 30.6 | G31: =VLOOKUP($A$5,'RECAP DIRCOM'!$G$6:$FS$312,85,FALSE) -> 16.7 | I31: =VLOOKUP($A$5,'RECAP DIRCOM'!$G$6:$FS$312,86,FALSE) -> 45% | K31: =VLOOKUP($A$5,'RECAP DIRCOM AN'!$G$6:$FS$312,86,FALSE) -> 33% | M31: -12% | O31: =VLOOKUP($A$5,'RECAP DIRCOM'!$G$6:$FS$312,87,FALSE) -> 7
B32: PNB ADE crédit immo | C32: 2% | E32: ='RECAP DIRCOM'!CP4 -> 19.5 | G32: =VLOOKUP($A$5,'RECAP DIRCOM'!$G$6:$FS$312,89,FALSE) -> 10.2 | I32: =VLOOKUP($A$5,'RECAP DIRCOM'!$G$6:$FS$312,90,FALSE) -> 48% | K32: =VLOOKUP($A$5,'RECAP DIRCOM AN'!$G$6:$FS$312,90,FALSE) -> 47% | M32: -0% | O32: =VLOOKUP($A$5,'RECAP DIRCOM'!$G$6:$FS$312,91,FALSE) -> 4
B33: PNB SACCEF | C33: 2% | E33: ='RECAP DIRCOM'!CT4 -> 1.8 | G33: =VLOOKUP($A$5,'RECAP DIRCOM'!$G$6:$FS$312,93,FALSE) -> 1.0 | I33: =VLOOKUP($A$5,'RECAP DIRCOM'!$G$6:$FS$312,94,FALSE) -> 46% | K33: =VLOOKUP($A$5,'RECAP DIRCOM AN'!$G$6:$FS$312,94,FALSE) -> 36% | M33: -11% | O33: =VLOOKUP($A$5,'RECAP DIRCOM'!$G$6:$FS$312,95,FALSE) -> 4
B34: PNB Crédit MLT + Crédit Bail | C34: 2% | E34: ='RECAP DIRCOM'!CX4 -> 5.7 | G34: =VLOOKUP($A$5,'RECAP DIRCOM'!$G$6:$FS$312,97,FALSE) -> 3.6 | I34: =VLOOKUP($A$5,'RECAP DIRCOM'!$G$6:$FS$312,98,FALSE) -> 38% | K34: =VLOOKUP($A$5,'RECAP DIRCOM AN'!$G$6:$FS$312,98,FALSE) -> 0% | M34: -38% | O34: =VLOOKUP($A$5,'RECAP DIRCOM'!$G$6:$FS$312,99,FALSE) -> 3
A36: CRITERE IARD PREVOYANCE | C36: 15% | O36: =VLOOKUP($A$5,'RECAP DIRCOM'!$G$6:$FS$312,119,FALSE) -> 6
B37: PNB Ventes nettes IARD | C37: 9% | E37: ='RECAP DIRCOM'!DK4 -> 0.7 | G37: =VLOOKUP($A$5,'RECAP DIRCOM'!$G$6:$FS$312,110,FALSE) -> 0.2 | I37: =VLOOKUP($A$5,'RECAP DIRCOM'!$G$6:$FS$312,111,FALSE) -> 74% | K37: =VLOOKUP($A$5,'RECAP DIRCOM AN'!$G$6:$FS$312,111,FALSE) -> 69% | M37: =+K37-I37 -> -5% | O37: =VLOOKUP($A$5,'RECAP DIRCOM'!$G$6:$FS$312,112,FALSE) -> 6
B38: PNB Ventes nettes Prévoyance | C38: 6% | E38: ='RECAP DIRCOM'!DO4 -> 0.4 | G38: =VLOOKUP($A$5,'RECAP DIRCOM'!$G$6:$FS$312,114,FALSE) -> 0.4 | I38: =VLOOKUP($A$5,'RECAP DIRCOM'!$G$6:$FS$312,115,FALSE) -> 7% | K38: =VLOOKUP($A$5,'RECAP DIRCOM AN'!$G$6:$FS$312,115,FALSE) -> 42% | M38: =+K38-I38 -> 35% | O38: =VLOOKUP($A$5,'RECAP DIRCOM'!$G$6:$FS$312,116,FALSE) -> 3
A40: CRITERE ACCELERATEURS PNB | C40: 15% | O40: =VLOOKUP($A$5,'RECAP DIRCOM'!$G$6:$FS$312,144,FALSE) -> 3
B41: PNB Ventes brutes SED Finalisées | C41: 6% | E41: ='RECAP DIRCOM'!EB4 -> 0.2 | G41: =VLOOKUP($A$5,'RECAP DIRCOM'!$G$6:$FS$312,127,FALSE) -> 0.2 | I41: =VLOOKUP($A$5,'RECAP DIRCOM'!$G$6:$FS$312,128,FALSE) -> 24% | K41: =VLOOKUP($A$5,'RECAP DIRCOM AN'!$G$6:$FS$312,128,FALSE) -> 11% | M41: =+K41-I41 -> -12% | O41: =VLOOKUP($A$5,'RECAP DIRCOM'!$G$6:$FS$312,129,FALSE) -> 4
B42: PNB clients équipés E documents | C42: 3% | E42: ='RECAP DIRCOM'!EF4 -> 0.6 | G42: =VLOOKUP($A$5,'RECAP DIRCOM'!$G$6:$FS$312,131,FALSE) -> 0.5 | I42: =VLOOKUP($A$5,'RECAP DIRCOM'!$G$6:$FS$312,132,FALSE) -> 13% | K42: =VLOOKUP($A$5,'RECAP DIRCOM AN'!$G$6:$FS$312,132,FALSE) -> 0% | M42: =+K42-I42 -> -13% | O42: =VLOOKUP($A$5,'RECAP DIRCOM'!$G$6:$FS$312,133,FALSE) -> 3
B43: Economie opt'in | C43: 3% | E43: ='RECAP DIRCOM'!EJ4 -> 0.3 | G43: =VLOOKUP($A$5,'RECAP DIRCOM'!$G$6:$FS$312,135,FALSE) -> 0.3 | I43: =VLOOKUP($A$5,'RECAP DIRCOM'!$G$6:$FS$312,136,FALSE) -> 0% | K43: =VLOOKUP($A$5,'RECAP DIRCOM AN'!$G$6:$FS$312,136,FALSE) -> 2% | M43: =+K43-I43 -> 2% | O43: =VLOOKUP($A$5,'RECAP DIRCOM'!$G$6:$FS$312,137,FALSE) -> 1
B44: Remises commerciales | C44: 3% | E44: ='RECAP DIRCOM'!EN4 -> -0.8 | G44: =VLOOKUP($A$5,'RECAP DIRCOM'!$G$6:$FS$312,139,FALSE) -> -1.0 | I44: =VLOOKUP($A$5,'RECAP DIRCOM'!$G$6:$FS$312,140,FALSE) -> 24% | K44: =VLOOKUP($A$5,'RECAP DIRCOM AN'!$G$6:$FS$312,140,FALSE) -> 17% | M44: =+K44-I44 -> -7% | O44: =VLOOKUP($A$5,'RECAP DIRCOM'!$G$6:$FS$312,141,FALSE) -> 4
A46: CRITERE Qualité-Satisfaction Clients | C46: 15% | O46: =VLOOKUP($A$5,'RECAP DIRCOM'!$G$6:$FS$312,159,FALSE) -> 6
B47: Objectifs NPS* | C47: 8% | E47: ='RECAP DIRCOM'!FA4 -> -9 | G47: =VLOOKUP($A$5,'RECAP DIRCOM'!$G$6:$FS$312,137,FALSE) -> 1 | I47: =VLOOKUP($A$5,'RECAP DIRCOM'!$G$6:$FS$312,152,FALSE) -> 133% | K47: =VLOOKUP($A$5,'RECAP DIRCOM AN'!$G$6:$FS$312,152,FALSE) -> 150% | M47: =+K47-I47 -> 17% | O47: =VLOOKUP($A$5,'RECAP DIRCOM'!$G$6:$FS$312,153,FALSE) -> 6
B48: Enquête Qualité Haute Définition | C48: 7% | E48: ='RECAP DIRCOM'!FD4 -> 57% | G48: =VLOOKUP($A$5,'RECAP DIRCOM'!$G$6:$FS$312,140,FALSE) -> 24% | I48: =VLOOKUP($A$5,'RECAP DIRCOM'!$G$6:$FS$312,155,FALSE) -> 32% | K48: =VLOOKUP($A$5,'RECAP DIRCOM AN'!$G$6:$FS$312,155,FALSE) -> 8% | M48: =+K48-I48 -> -24% | O48: =VLOOKUP($A$5,'RECAP DIRCOM'!$G$6:$FS$312,156,FALSE) -> 6

Sheet DC_TOTAL
B1: Accueil | D1: BAROMETRE BDD - DIRECTIONS REGIONALES
D2: TOTAL GENERAL
D3: =ACCUEIL!F7 -> 2020-05-24
D7: TOTAL GENERAL | G7: Total Clients | J7: Total Bancarisation | M7: Total Epargne | P7: Total Crédits | S7: Total IARD Prévoyance | V7: Total Accélérateurs PNB | Y7: Total Qualité-Satisfaction Clients
E8: coef | F8: 100% | H8: coef | I8: ='RECAP DIRCOM'!$AC$4 -> 15% | K8: coef | L8: ='RECAP DIRCOM'!$BB$4 -> 15% | N8: coef | O8: ='RECAP DIRCOM'!$BW$4 -> 10% | Q8: coef | R8: ='RECAP DIRCOM'!$DD$4 -> 15% | T8: coef | U8: ='RECAP DIRCOM'!$DU$4 -> 15% | W8: coef | X8: ='RECAP DIRCOM'!$ET$4 -> 15% | Z8: coef | AA8: ='RECAP DIRCOM'!$FI$4 -> 15%
A9: eds | B9: Direction | C9: ETP perf | D9: Moyenne ecart au 1er | E9: % Ecart au 1er | F9: Rang CEGEE | G9: Moyenne ecart au 1er | H9: % Ecart au 1er | I9: Rang CEGEE | J9: Moyenne ecart au 1er | K9: % Ecart au 1er | L9: Rang CEGEE | M9: Moyenne ecart au 1er | N9: % Ecart au 1er | O9: Rang CEGEE | P9: Moyenne ecart au 1er | Q9: % Ecart au 1er | R9: Rang CEGEE | S9: Moyenne ecart au 1er | T9: % Ecart au 1er | U9: Rang CEGEE | V9: Moyenne ecart au 1er | W9: % Ecart au 1er | X9: Rang CEGEE | Y9: Moyenne ecart au 1er | Z9: % Ecart au 1er | AA9: Rang CEGEE
A10: 110 | B10: Meurthe et Moselle Meuse | C10: 230 | D10: 2% | E10: 0% | F10: 1 | G10: 19% | H10: 0% | I10: 1 | J10: 2% | K10: 0% | L10: 1 | M10: 16% | N10: 4% | O10: 2 | P10: 10% | Q10: 0% | R10: 2 | S10: 2% | T10: 0% | U10: 1 | V10: 14% | W10: 0% | X10: 1 | Y10: 12% | Z10: 12% | AA10: 2
A11: 30 | B11: Marne-Ardennes | C11: 224 | D11: 8% | E11: 6% | F11: 2 | G11: 40% | H11: 21% | I11: 2 | J11: 10% | K11: 8% | L11: 2 | M11: 22% | N11: 10% | O11: 4 | P11: 10% | Q11: 0% | R11: 1 | S11: 17% | T11: 15% | U11: 2 | V11: 16% | W11: 2% | X11: 2 | Y11: 0% | Z11: 0% | AA11: 1
A12: 50 | B12: Aube Haute Marne | C12: 126 | D12: 27% | E12: 24% | F12: 3 | G12: 44% | H12: 25% | I12: 3 | J12: 49% | K12: 47% | L12: 5 | M12: 40% | N12: 27% | O12: 6 | P12: 27% | Q12: 17% | R12: 4 | S12: 46% | T12: 44% | U12: 4 | V12: 24% | W12: 11% | X12: 4 | Y12: 16% | Z12: 16% | AA12: 3
A13: 80 | B13: Vosges | C13: 131 | D13: 28% | E13: 26% | F13: 4 | G13: 57% | H13: 38% | I13: 5 | J13: 37% | K13: 34% | L13: 4 | M13: 12% | N13: 0% | O13: 1 | P13: 33% | Q13: 23% | R13: 5 | S13: 47% | T13: 45% | U13: 5 | V13: 43% | W13: 29% | X13: 7 | Y13: 18% | Z13: 18% | AA13: 4
A14: 160 | B14: Moselle | C14: 270 | D14: 30% | E14: 28% | F14: 5 | G14: 52% | H14: 34% | I14: 4 | J14: 50% | K14: 47% | L14: 6 | M14: 37% | N14: 24% | O14: 5 | P14: 26% | Q14: 17% | R14: 3 | S14: 39% | T14: 37% | U14: 3 | V14: 29% | W14: 15% | X14: 5 | Y14: 37% | Z14: 37% | AA14: 5
A15: 262 | B15: Bas-Rhin | C15: 261 | D15: 38% | E15: 36% | F15: 6 | G15: 77% | H15: 59% | I15: 7 | J15: 31% | K15: 29% | L15: 3 | M15: 17% | N15: 5% | O15: 3 | P15: 37% | Q15: 27% | R15: 6 | S15: 47% | T15: 45% | U15: 6 | V15: 17% | W15: 3% | X15: 3 | Y15: 86% | Z15: 86% | AA15: 6
A16: 264 | B16: Haut-Rhin | C16: 157 | D16: 59% | E16: 57% | F16: 7 | G16: 71% | H16: 52% | I16: 6 | J16: 80% | K16: 77% | L16: 7 | M16: 50% | N16: 38% | O16: 7 | P16: 41% | Q16: 31% | R16: 7 | S16: 87% | T16: 85% | U16: 7 | V16: 42% | W16: 29% | X16: 6 | Y16: 94% | Z16: 94% | AA16: 7
B17: Total CEGEE Directions Régionales | C17: =SUM(C10:C16) -> 1400

Sheet DC_BANCA
B1: Accueil | D1: BAROMETRE BDD - DIRECTIONS REGIONALES
D2: BANCARISATION
D3: =ACCUEIL!F7 -> 2020-05-24
D7: Ventes nettes FORFAITS | H7: Ventes nettes IZICARTES débit différé | L7: Ventes nettes Cartes HDG débit différé | P7: Ventes nettes Forfaits Pro Cartes Pro | T7: Total Bancarisation
F8: coef | G8: ='RECAP DIRCOM'!AM4 -> 4% | J8: coef | K8: ='RECAP DIRCOM'!AQ4 -> 4% | N8: coef | O8: ='RECAP DIRCOM'!AU4 -> 4% | R8: coef | S8: ='RECAP DIRCOM'!AY4 -> 3% | U8: coef | V8: ='RECAP DIRCOM'!BB4 -> 15%
B9: Direction | C9: ETP perf | D9: Nb / ETP | E9: PNB / ETP | F9: % Ecart au 1er | G9: Rang | H9: Nb / ETP | I9: PNB / ETP | J9: % Ecart au 1er | K9: Rang | L9: Nb / ETP | M9: PNB / ETP | N9: % Ecart au 1er | O9: Rang | P9: Nb / ETP | Q9: PNB / ETP | R9: % Ecart au 1er | S9: Rang | T9: Moyenne ecart au 1er | U9: % Ecart au 1er | V9: Rang CEGEE
A10: 50 | B10: Aube Haute Marne | C10: =VLOOKUP($A10,'RECAP DIRCOM'!$G$6:$FJ$12,3,FALSE) -> 126 | D10: =VLOOKUP($A10,'RECAP DIRCOM'!$G$6:$FJ$12,30,FALSE) -> 0.67 | E10: =VLOOKUP($A10,'RECAP DIRCOM'!$G$6:$FJ$12,31,FALSE) -> -0.06 | F10: =VLOOKUP($A10,'RECAP DIRCOM'!$G$6:$FJ$12,32,FALSE) -> 102% | G10: =VLOOKUP($A10,'RECAP DIRCOM'!$G$6:$FJ$12,33,FALSE) -> 6 | H10: =VLOOKUP($A10,'RECAP DIRCOM'!$G$6:$FJ$12,34,FALSE) -> 3.91 | I10: =VLOOKUP($A10,'RECAP DIRCOM'!$G$6:$FJ$12,35,FALSE) -> 2.34 | J10: =VLOOKUP($A10,'RECAP DIRCOM'!$G$6:$FJ$12,36,FALSE) -> 36% | K10: =VLOOKUP($A10,'RECAP DIRCOM'!$G$6:$FJ$12,37,FALSE) -> 6 | L10: =VLOOKUP($A10,'RECAP DIRCOM'!$G$6:$FJ$12,38,FALSE) -> 4.45 | M10: =VLOOKUP($A10,'RECAP DIRCOM'!$G$6:$FJ$12,39,FALSE) -> 2.99 | N10: =VLOOKUP($A10,'RECAP DIRCOM'!$G$6:$FJ$12,40,FALSE) -> 42% | O10: =VLOOKUP($A10,'RECAP DIRCOM'!$G$6:$FJ$12,41,FALSE) -> 6 | P10: =VLOOKUP($A10,'RECAP DIRCOM'!$G$6:$FJ$12,42,FALSE) -> 0.71 | Q10: =VLOOKUP($A10,'RECAP DIRCOM'!$G$6:$FJ$12,43,FALSE) -> 0.53 | R10: =VLOOKUP($A10,'RECAP DIRCOM'!$G$6:$FJ$12,44,FALSE) -> 7% | S10: =VLOOKUP($A10,'RECAP DIRCOM'!$G$6:$FJ$12,45,FALSE) -> 2 | T10: =VLOOKUP($A10,'RECAP DIRCOM'!$G$6:$FJ$12,46,FALSE) -> 49% | U10: =VLOOKUP($A10,'RECAP DIRCOM'!$G$6:$FJ$12,47,FALSE) -> 47% | V10: =VLOOKUP($A10,'RECAP DIRCOM'!$G$6:$FJ$12,48,FALSE) -> 5
A11: 262 | B11: Bas-Rhin | C11: =VLOOKUP($A11,'RECAP DIRCOM'!$G$6:$FJ$12,3,FALSE) -> 261 | D11: =VLOOKUP($A11,'RECAP DIRCOM'!$G$6:$FJ$12,30,FALSE) -> 2.69 | E11: =VLOOKUP($A11,'RECAP DIRCOM'!$G$6:$FJ$12,31,FALSE) -> 0.88 | F11: =VLOOKUP($A11,'RECAP DIRCOM'!$G$6:$FJ$12,32,FALSE) -> 62% | G11: =VLOOKUP($A11,'RECAP DIRCOM'!$G$6:$FJ$12,33,FALSE) -> 4 | H11: =VLOOKUP($A11,'RECAP DIRCOM'!$G$6:$FJ$12,34,FALSE) -> 4.88 | I11: =VLOOKUP($A11,'RECAP DIRCOM'!$G$6:$FJ$12,35,FALSE) -> 3.27 | J11: =VLOOKUP($A11,'RECAP DIRCOM'!$G$6:$FJ$12,36,FALSE) -> 10% | K11: =VLOOKUP($A11,'RECAP DIRCOM'!$G$6:$FJ$12,37,FALSE) -> 3 | L11: =VLOOKUP($A11,'RECAP DIRCOM'!$G$6:$FJ$12,38,FALSE) -> 7.72 | M11: =VLOOKUP($A11,'RECAP DIRCOM'!$G$6:$FJ$12,39,FALSE) -> 5.15 | N11: =VLOOKUP($A11,'RECAP DIRCOM'!$G$6:$FJ$12,40,FALSE) -> 0% | O11: =VLOOKUP($A11,'RECAP DIRCOM'!$G$6:$FJ$12,41,FALSE) -> 1 | P11: =VLOOKUP($A11,'RECAP DIRCOM'!$G$6:$FJ$12,42,FALSE) -> 0.40 | Q11: =VLOOKUP($A11,'RECAP DIRCOM'!$G$6:$FJ$12,43,FALSE) -> 0.22 | R11: =VLOOKUP($A11,'RECAP DIRCOM'!$G$6:$FJ$12,44,FALSE) -> 61% | S11: =VLOOKUP($A11,'RECAP DIRCOM'!$G$6:$FJ$12,45,FALSE) -> 5 | T11: =VLOOKUP($A11,'RECAP DIRCOM'!$G$6:$FJ$12,46,FALSE) -> 31% | U11: =VLOOKUP($A11,'RECAP DIRCOM'!$G$6:$FJ$12,47,FALSE) -> 29% | V11: =VLOOKUP($A11,'RECAP DIRCOM'!$G$6:$FJ$12,48,FALSE) -> 3
A12: 264 | B12: Haut-Rhin | C12: =VLOOKUP($A12,'RECAP DIRCOM'!$G$6:$FJ$12,3,FALSE) -> 157 | D12: =VLOOKUP($A12,'RECAP DIRCOM'!$G$6:$FJ$12,30,FALSE) -> -0.74 | E12: =VLOOKUP($A12,'RECAP DIRCOM'!$G$6:$FJ$12,31,FALSE) -> -0.59 | F12: =VLOOKUP($A12,'RECAP DIRCOM'!$G$6:$FJ$12,32,FALSE) -> 126% | G12: =VLOOKUP($A12,'RECAP DIRCOM'!$G$6:$FJ$12,33,FALSE) -> 7 | H12: =VLOOKUP($A12,'RECAP DIRCOM'!$G$6:$FJ$12,34,FALSE) -> 2.33 | I12: =VLOOKUP($A12,'RECAP DIRCOM'!$G$6:$FJ$12,35,FALSE) -> 1.63 | J12: =VLOOKUP($A12,'RECAP DIRCOM'!$G$6:$FJ$12,36,FALSE) -> 55% | K12: =VLOOKUP($A12,'RECAP DIRCOM'!$G$6:$FJ$12,37,FALSE) -> 7 | L12: =VLOOKUP($A12,'RECAP DIRCOM'!$G$6:$FJ$12,38,FALSE) -> 3.94 | M12: =VLOOKUP($A12,'RECAP DIRCOM'!$G$6:$FJ$12,39,FALSE) -> 2.76 | N12: =VLOOKUP($A12,'RECAP DIRCOM'!$G$6:$FJ$12,40,FALSE) -> 46% | O12: =VLOOKUP($A12,'RECAP DIRCOM'!$G$6:$FJ$12,41,FALSE) -> 7 | P12: =VLOOKUP($A12,'RECAP DIRCOM'!$G$6:$FJ$12,42,FALSE) -> 0.10 | Q12: =VLOOKUP($A12,'RECAP DIRCOM'!$G$6:$FJ$12,43,FALSE) -> 0.03 | R12: =VLOOKUP($A12,'RECAP DIRCOM'!$G$6:$FJ$12,44,FALSE) -> 94% | S12: =VLOOKUP($A12,'RECAP DIRCOM'!$G$6:$FJ$12,45,FALSE) -> 6 | T12: =VLOOKUP($A12,'RECAP DIRCOM'!$G$6:$FJ$12,46,FALSE) -> 80% | U12: =VLOOKUP($A12,'RECAP DIRCOM'!$G$6:$FJ$12,47,FALSE) -> 77% | V12: =VLOOKUP($A12,'RECAP DIRCOM'!$G$6:$FJ$12,48,FALSE) -> 7
A13: 30 | B13: Marne-Ardennes | C13: =VLOOKUP($A13,'RECAP DIRCOM'!$G$6:$FJ$12,3,FALSE) -> 224 | D13: =VLOOKUP($A13,'RECAP DIRCOM'!$G$6:$FJ$12,30,FALSE) -> 4.76 | E13: =VLOOKUP($A13,'RECAP DIRCOM'!$G$6:$FJ$12,31,FALSE) -> 2.30 | F13: =VLOOKUP($A13,'RECAP DIRCOM'!$G$6:$FJ$12,32,FALSE) -> 0% | G13: =VLOOKUP($A13,'RECAP DIRCOM'!$G$6:$FJ$12,33,FALSE) -> 1 | H13: =VLOOKUP($A13,'RECAP DIRCOM'!$G$6:$FJ$12,34,FALSE) -> 5.15 | I13: =VLOOKUP($A13,'RECAP DIRCOM'!$G$6:$FJ$12,35,FALSE) -> 3.44 | J13: =VLOOKUP($A13,'RECAP DIRCOM'!$G$6:$FJ$12,36,FALSE) -> 5% | K13: =VLOOKUP($A13,'RECAP DIRCOM'!$G$6:$FJ$12,37,FALSE) -> 2 | L13: =VLOOKUP($A13,'RECAP DIRCOM'!$G$6:$FJ$12,38,FALSE) -> 5.91 | M13: =VLOOKUP($A13,'RECAP DIRCOM'!$G$6:$FJ$12,39,FALSE) -> 4.04 | N13: =VLOOKUP($A13,'RECAP DIRCOM'!$G$6:$FJ$12,40,FALSE) -> 22% | O13: =VLOOKUP($A13,'RECAP DIRCOM'!$G$6:$FJ$12,41,FALSE) -> 4 | P13: =VLOOKUP($A13,'RECAP DIRCOM'!$G$6:$FJ$12,42,FALSE) -> 0.67 | Q13: =VLOOKUP($A13,'RECAP DIRCOM'!$G$6:$FJ$12,43,FALSE) -> 0.49 | R13: =VLOOKUP($A13,'RECAP DIRCOM'!$G$6:$FJ$12,44,FALSE) -> 14% | S13: =VLOOKUP($A13,'RECAP DIRCOM'!$G$6:$FJ$12,45,FALSE) -> 3 | T13: =VLOOKUP($A13,'RECAP DIRCOM'!$G$6:$FJ$12,46,FALSE) -> 10% | U13: =VLOOKUP($A13,'RECAP DIRCOM'!$G$6:$FJ$12,47,FALSE) -> 8% | V13: =VLOOKUP($A13,'RECAP DIRCOM'!$G$6:$FJ$12,48,FALSE) -> 2
A14: 110 | B14: Meurthe et Moselle Meuse | C14: =VLOOKUP($A14,'RECAP DIRCOM'!$G$6:$FJ$12,3,FALSE) -> 230 | D14: =VLOOKUP($A14,'RECAP DIRCOM'!$G$6:$FJ$12,30,FALSE) -> 4.89 | E14: =VLOOKUP($A14,'RECAP DIRCOM'!$G$6:$FJ$12,31,FALSE) -> 2.14 | F14: =VLOOKUP($A14,'RECAP DIRCOM'!$G$6:$FJ$12,32,FALSE) -> 7% | G14: =VLOOKUP($A14,'RECAP DIRCOM'!$G$6:$FJ$12,33,FALSE) -> 2 | H14: =VLOOKUP($A14,'RECAP DIRCOM'!$G$6:$FJ$12,34,FALSE) -> 5.60 | I14: =VLOOKUP($A14,'RECAP DIRCOM'!$G$6:$FJ$12,35,FALSE) -> 3.64 | J14: =VLOOKUP($A14,'RECAP DIRCOM'!$G$6:$FJ$12,36,FALSE) -> 0% | K14: =VLOOKUP($A14,'RECAP DIRCOM'!$G$6:$FJ$12,37,FALSE) -> 1 | L14: =VLOOKUP($A14,'RECAP DIRCOM'!$G$6:$FJ$12,38,FALSE) -> 7.51 | M14: =VLOOKUP($A14,'RECAP DIRCOM'!$G$6:$FJ$12,39,FALSE) -> 5.03 | N14: =VLOOKUP($A14,'RECAP DIRCOM'!$G$6:$FJ$12,40,FALSE) -> 2% | O14: =VLOOKUP($A14,'RECAP DIRCOM'!$G$6:$FJ$12,41,FALSE) -> 2 | P14: =VLOOKUP($A14,'RECAP DIRCOM'!$G$6:$FJ$12,42,FALSE) -> 0.83 | Q14: =VLOOKUP($A14,'RECAP DIRCOM'!$G$6:$FJ$12,43,FALSE) -> 0.57 | R14: =VLOOKUP($A14,'RECAP DIRCOM'!$G$6:$FJ$12,44,FALSE) -> 0% | S14: =VLOOKUP($A14,'RECAP DIRCOM'!$G$6:$FJ$12,45,FALSE) -> 1 | T14: =VLOOKUP($A14,'RECAP DIRCOM'!$G$6:$FJ$12,46,FALSE) -> 2% | U14: =VLOOKUP($A14,'RECAP DIRCOM'!$G$6:$FJ$12,47,FALSE) -> 0% | V14: =VLOOKUP($A14,'RECAP DIRCOM'!$G$6:$FJ$12,48,FALSE) -> 1
A15: 160 | B15: Moselle | C15: =VLOOKUP($A15,'RECAP DIRCOM'!$G$6:$FJ$12,3,FALSE) -> 270 | D15: =VLOOKUP($A15,'RECAP DIRCOM'!$G$6:$FJ$12,30,FALSE) -> 3.07 | E15: =VLOOKUP($A15,'RECAP DIRCOM'!$G$6:$FJ$12,31,FALSE) -> 1.42 | F15: =VLOOKUP($A15,'RECAP DIRCOM'!$G$6:$FJ$12,32,FALSE) -> 38% | G15: =VLOOKUP($A15,'RECAP DIRCOM'!$G$6:$FJ$12,33,FALSE) -> 3 | H15: =VLOOKUP($A15,'RECAP DIRCOM'!$G$6:$FJ$12,34,FALSE) -> 3.53 | I15: =VLOOKUP($A15,'RECAP DIRCOM'!$G$6:$FJ$12,35,FALSE) -> 2.42 | J15: =VLOOKUP($A15,'RECAP DIRCOM'!$G$6:$FJ$12,36,FALSE) -> 34% | K15: =VLOOKUP($A15,'RECAP DIRCOM'!$G$6:$FJ$12,37,FALSE) -> 5 | L15: =VLOOKUP($A15,'RECAP DIRCOM'!$G$6:$FJ$12,38,FALSE) -> 4.95 | M15: =VLOOKUP($A15,'RECAP DIRCOM'!$G$6:$FJ$12,39,FALSE) -> 3.46 | N15: =VLOOKUP($A15,'RECAP DIRCOM'!$G$6:$FJ$12,40,FALSE) -> 33% | O15: =VLOOKUP($A15,'RECAP DIRCOM'!$G$6:$FJ$12,41,FALSE) -> 5 | P15: =VLOOKUP($A15,'RECAP DIRCOM'!$G$6:$FJ$12,42,FALSE) -> 0.11 | Q15: =VLOOKUP($A15,'RECAP DIRCOM'!$G$6:$FJ$12,43,FALSE) -> -0.05 | R15: =VLOOKUP($A15,'RECAP DIRCOM'!$G$6:$FJ$12,44,FALSE) -> 109% | S15: =VLOOKUP($A15,'RECAP DIRCOM'!$G$6:$FJ$12,45,FALSE) -> 7 | T15: =VLOOKUP($A15,'RECAP DIRCOM'!$G$6:$FJ$12,46,FALSE) -> 50% | U15: =VLOOKUP($A15,'RECAP DIRCOM'!$G$6:$FJ$12,47,FALSE) -> 47% | V15: =VLOOKUP($A15,'RECAP DIRCOM'!$G$6:$FJ$12,48,FALSE) -> 6
A16: 80 | B16: Vosges | C16: =VLOOKUP($A16,'RECAP DIRCOM'!$G$6:$FJ$12,3,FALSE) -> 131 | D16: =VLOOKUP($A16,'RECAP DIRCOM'!$G$6:$FJ$12,30,FALSE) -> 2.69 | E16: =VLOOKUP($A16,'RECAP DIRCOM'!$G$6:$FJ$12,31,FALSE) -> 0.61 | F16: =VLOOKUP($A16,'RECAP DIRCOM'!$G$6:$FJ$12,32,FALSE) -> 73% | G16: =VLOOKUP($A16,'RECAP DIRCOM'!$G$6:$FJ$12,33,FALSE) -> 5 | H16: =VLOOKUP($A16,'RECAP DIRCOM'!$G$6:$FJ$12,34,FALSE) -> 4.16 | I16: =VLOOKUP($A16,'RECAP DIRCOM'!$G$6:$FJ$12,35,FALSE) -> 2.73 | J16: =VLOOKUP($A16,'RECAP DIRCOM'!$G$6:$FJ$12,36,FALSE) -> 25% | K16: =VLOOKUP($A16,'RECAP DIRCOM'!$G$6:$FJ$12,37,FALSE) -> 4 | L16: =VLOOKUP($A16,'RECAP DIRCOM'!$G$6:$FJ$12,38,FALSE) -> 6.57 | M16: =VLOOKUP($A16,'RECAP DIRCOM'!$G$6:$FJ$12,39,FALSE) -> 4.36 | N16: =VLOOKUP($A16,'RECAP DIRCOM'!$G$6:$FJ$12,40,FALSE) -> 15% | O16: =VLOOKUP($A16,'RECAP DIRCOM'!$G$6:$FJ$12,41,FALSE) -> 3 | P16: =VLOOKUP($A16,'RECAP DIRCOM'!$G$6:$FJ$12,42,FALSE) -> 0.54 | Q16: =VLOOKUP($A16,'RECAP DIRCOM'!$G$6:$FJ$12,43,FALSE) -> 0.39 | R16: =VLOOKUP($A16,'RECAP DIRCOM'!$G$6:$FJ$12,44,FALSE) -> 32% | S16: =VLOOKUP($A16,'RECAP DIRCOM'!$G$6:$FJ$12,45,FALSE) -> 4 | T16: =VLOOKUP($A16,'RECAP DIRCOM'!$G$6:$FJ$12,46,FALSE) -> 37% | U16: =VLOOKUP($A16,'RECAP DIRCOM'!$G$6:$FJ$12,47,FALSE) -> 34% | V16: =VLOOKUP($A16,'RECAP DIRCOM'!$G$6:$FJ$12,48,FALSE) -> 4
B17: Total CEGEE Directions Régionales | C17: =SUM(C10:C16) -> 1400

Sheet DC_EPARGNE
B1: Accueil | D1: BAROMETRE BDD - DIRECTIONS REGIONALES
D2: EPARGNE
D3: =ACCUEIL!F7 -> 2020-05-24
D7: Excédent Epargne Liquide | H7: CA UC + arbitrage | L7: Excédent Assurance Vie | P7: Total Epargne
F8: coef | G8: ='RECAP DIRCOM'!BL4 -> 3% | J8: coef | K8: ='RECAP DIRCOM'!BP4 -> 4% | N8: coef | O8: ='RECAP DIRCOM'!BT4 -> 3% | Q8: coef | R8: ='RECAP DIRCOM'!BW4 -> 10%
B9: Direction | C9: ETP perf | D9: Réal / ETP | E9: PNB / ETP | F9: % Ecart au 1er | G9: Rang | H9: Réal / ETP | I9: PNB / ETP | J9: % Ecart au 1er | K9: Rang | L9: Réal / ETP | M9: PNB / ETP | N9: % Ecart au 1er | O9: Rang | P9: Moyenne ecart au 1er | Q9: % Ecart au 1er | R9: Rang CEGEE
A10: 50 | B10: Aube Haute Marne | C10: =VLOOKUP($A10,'RECAP DIRCOM'!$G$6:$FJ$12,3,FALSE) -> 126 | D10: =VLOOKUP($A10,'RECAP DIRCOM'!$G$6:$FJ$12,55,FALSE) -> 259.22 | E10: =VLOOKUP($A10,'RECAP DIRCOM'!$G$6:$FJ$12,56,FALSE) -> 5.58 | F10: =VLOOKUP($A10,'RECAP DIRCOM'!$G$6:$FJ$12,57,FALSE) -> 18% | G10: =VLOOKUP($A10,'RECAP DIRCOM'!$G$6:$FJ$12,58,FALSE) -> 5 | H10: =VLOOKUP($A10,'RECAP DIRCOM'!$G$6:$FJ$12,59,FALSE) -> 64.15 | I10: =VLOOKUP($A10,'RECAP DIRCOM'!$G$6:$FJ$12,60,FALSE) -> 0.56 | J10: =VLOOKUP($A10,'RECAP DIRCOM'!$G$6:$FJ$12,61,FALSE) -> 10% | K10: =VLOOKUP($A10,'RECAP DIRCOM'!$G$6:$FJ$12,62,FALSE) -> 4 | L10: =VLOOKUP($A10,'RECAP DIRCOM'!$G$6:$FJ$12,63,FALSE) -> -60 | M10: =VLOOKUP($A10,'RECAP DIRCOM'!$G$6:$FJ$12,64,FALSE) -> -2.15 | N10: =VLOOKUP($A10,'RECAP DIRCOM'!$G$6:$FJ$12,65,FALSE) -> 101% | O10: =VLOOKUP($A10,'RECAP DIRCOM'!$G$6:$FJ$12,66,FALSE) -> 6 | P10: =VLOOKUP($A10,'RECAP DIRCOM'!$G$6:$FJ$12,67,FALSE) -> 40% | Q10: =VLOOKUP($A10,'RECAP DIRCOM'!$G$6:$FJ$12,68,FALSE) -> 27% | R10: =VLOOKUP($A10,'RECAP DIRCOM'!$G$6:$FJ$12,69,FALSE) -> 6
A11: 262 | B11: Bas-Rhin | C11: =VLOOKUP($A11,'RECAP DIRCOM'!$G$6:$FJ$12,3,FALSE) -> 261 | D11: =VLOOKUP($A11,'RECAP DIRCOM'!$G$6:$FJ$12,55,FALSE) -> 291.05 | E11: =VLOOKUP($A11,'RECAP DIRCOM'!$G$6:$FJ$12,56,FALSE) -> 6.47 | F11: =VLOOKUP($A11,'RECAP DIRCOM'!$G$6:$FJ$12,57,FALSE) -> 5% | G11: =VLOOKUP($A11,'RECAP DIRCOM'!$G$6:$FJ$12,58,FALSE) -> 3 | H11: =VLOOKUP($A11,'RECAP DIRCOM'!$G$6:$FJ$12,59,FALSE) -> 75.13 | I11: =VLOOKUP($A11,'RECAP DIRCOM'!$G$6:$FJ$12,60,FALSE) -> 0.60 | J11: =VLOOKUP($A11,'RECAP DIRCOM'!$G$6:$FJ$12,61,FALSE) -> 5% | K11: =VLOOKUP($A11,'RECAP DIRCOM'!$G$6:$FJ$12,62,FALSE) -> 3 | L11: =VLOOKUP($A11,'RECAP DIRCOM'!$G$6:$FJ$12,63,FALSE) -> -32 | M11: =VLOOKUP($A11,'RECAP DIRCOM'!$G$6:$FJ$12,64,FALSE) -> -1.16 | N11: =VLOOKUP($A11,'RECAP DIRCOM'!$G$6:$FJ$12,65,FALSE) -> 46% | O11: =VLOOKUP($A11,'RECAP DIRCOM'!$G$6:$FJ$12,66,FALSE) -> 2 | P11: =VLOOKUP($A11,'RECAP DIRCOM'!$G$6:$FJ$12,67,FALSE) -> 17% | Q11: =VLOOKUP($A11,'RECAP DIRCOM'!$G$6:$FJ$12,68,FALSE) -> 5% | R11: =VLOOKUP($A11,'RECAP DIRCOM'!$G$6:$FJ$12,69,FALSE) -> 3
A12: 264 | B12: Haut-Rhin | C12: =VLOOKUP($A12,'RECAP DIRCOM'!$G$6:$FJ$12,3,FALSE) -> 157 | D12: =VLOOKUP($A12,'RECAP DIRCOM'!$G$6:$FJ$12,55,FALSE) -> 262.26 | E12: =VLOOKUP($A12,'RECAP DIRCOM'!$G$6:$FJ$12,56,FALSE) -> 5.67 | F12: =VLOOKUP($A12,'RECAP DIRCOM'!$G$6:$FJ$12,57,FALSE) -> 17% | G12: =VLOOKUP($A12,'RECAP DIRCOM'!$G$6:$FJ$12,58,FALSE) -> 4 | H12: =VLOOKUP($A12,'RECAP DIRCOM'!$G$6:$FJ$12,59,FALSE) -> 63.52 | I12: =VLOOKUP($A12,'RECAP DIRCOM'!$G$6:$FJ$12,60,FALSE) -> 0.62 | J12: =VLOOKUP($A12,'RECAP DIRCOM'!$G$6:$FJ$12,61,FALSE) -> 0% | K12: =VLOOKUP($A12,'RECAP DIRCOM'!$G$6:$FJ$12,62,FALSE) -> 1 | L12: =VLOOKUP($A12,'RECAP DIRCOM'!$G$6:$FJ$12,63,FALSE) -> -84 | M12: =VLOOKUP($A12,'RECAP DIRCOM'!$G$6:$FJ$12,64,FALSE) -> -3.03 | N12: =VLOOKUP($A12,'RECAP DIRCOM'!$G$6:$FJ$12,65,FALSE) -> 150% | O12: =VLOOKUP($A12,'RECAP DIRCOM'!$G$6:$FJ$12,66,FALSE) -> 7 | P12: =VLOOKUP($A12,'RECAP DIRCOM'!$G$6:$FJ$12,67,FALSE) -> 50% | Q12: =VLOOKUP($A12,'RECAP DIRCOM'!$G$6:$FJ$12,68,FALSE) -> 38% | R12: =VLOOKUP($A12,'RECAP DIRCOM'!$G$6:$FJ$12,69,FALSE) -> 7
A13: 30 | B13: Marne-Ardennes | C13: =VLOOKUP($A13,'RECAP DIRCOM'!$G$6:$FJ$12,3,FALSE) -> 224 | D13: =VLOOKUP($A13,'RECAP DIRCOM'!$G$6:$FJ$12,55,FALSE) -> 305.73 | E13: =VLOOKUP($A13,'RECAP DIRCOM'!$G$6:$FJ$12,56,FALSE) -> 6.81 | F13: =VLOOKUP($A13,'RECAP DIRCOM'!$G$6:$FJ$12,57,FALSE) -> 0% | G13: =VLOOKUP($A13,'RECAP DIRCOM'!$G$6:$FJ$12,58,FALSE) -> 1 | H13: =VLOOKUP($A13,'RECAP DIRCOM'!$G$6:$FJ$12,59,FALSE) -> 73.29 | I13: =VLOOKUP($A13,'RECAP DIRCOM'!$G$6:$FJ$12,60,FALSE) -> 0.55 | J13: =VLOOKUP($A13,'RECAP DIRCOM'!$G$6:$FJ$12,61,FALSE) -> 12% | K13: =VLOOKUP($A13,'RECAP DIRCOM'!$G$6:$FJ$12,62,FALSE) -> 6 | L13: =VLOOKUP($A13,'RECAP DIRCOM'!$G$6:$FJ$12,63,FALSE) -> -38 | M13: =VLOOKUP($A13,'RECAP DIRCOM'!$G$6:$FJ$12,64,FALSE) -> -1.38 | N13: =VLOOKUP($A13,'RECAP DIRCOM'!$G$6:$FJ$12,65,FALSE) -> 58% | O13: =VLOOKUP($A13,'RECAP DIRCOM'!$G$6:$FJ$12,66,FALSE) -> 4 | P13: =VLOOKUP($A13,'RECAP DIRCOM'!$G$6:$FJ$12,67,FALSE) -> 22% | Q13: =VLOOKUP($A13,'RECAP DIRCOM'!$G$6:$FJ$12,68,FALSE) -> 10% | R13: =VLOOKUP($A13,'RECAP DIRCOM'!$G$6:$FJ$12,69,FALSE) -> 4
A14: 110 | B14: Meurthe et Moselle Meuse | C14: =VLOOKUP($A14,'RECAP DIRCOM'!$G$6:$FJ$12,3,FALSE) -> 230 | D14: =VLOOKUP($A14,'RECAP DIRCOM'!$G$6:$FJ$12,55,FALSE) -> 297.35 | E14: =VLOOKUP($A14,'RECAP DIRCOM'!$G$6:$FJ$12,56,FALSE) -> 6.58 | F14: =VLOOKUP($A14,'RECAP DIRCOM'!$G$6:$FJ$12,57,FALSE) -> 3% | G14: =VLOOKUP($A14,'RECAP DIRCOM'!$G$6:$FJ$12,58,FALSE) -> 2 | H14: =VLOOKUP($A14,'RECAP DIRCOM'!$G$6:$FJ$12,59,FALSE) -> 80.75 | I14: =VLOOKUP($A14,'RECAP DIRCOM'!$G$6:$FJ$12,60,FALSE) -> 0.61 | J14: =VLOOKUP($A14,'RECAP DIRCOM'!$G$6:$FJ$12,61,FALSE) -> 2% | K14: =VLOOKUP($A14,'RECAP DIRCOM'!$G$6:$FJ$12,62,FALSE) -> 2 | L14: =VLOOKUP($A14,'RECAP DIRCOM'!$G$6:$FJ$12,63,FALSE) -> -34 | M14: =VLOOKUP($A14,'RECAP DIRCOM'!$G$6:$FJ$12,64,FALSE) -> -1.21 | N14: =VLOOKUP($A14,'RECAP DIRCOM'!$G$6:$FJ$12,65,FALSE) -> 49% | O14: =VLOOKUP($A14,'RECAP DIRCOM'!$G$6:$FJ$12,66,FALSE) -> 3 | P14: =VLOOKUP($A14,'RECAP DIRCOM'!$G$6:$FJ$12,67,FALSE) -> 16% | Q14: =VLOOKUP($A14,'RECAP DIRCOM'!$G$6:$FJ$12,68,FALSE) -> 4% | R14: =VLOOKUP($A14,'RECAP DIRCOM'!$G$6:$FJ$12,69,FALSE) -> 2
A15: 160 | B15: Moselle | C15: =VLOOKUP($A15,'RECAP DIRCOM'!$G$6:$FJ$12,3,FALSE) -> 270 | D15: =VLOOKUP($A15,'RECAP DIRCOM'!$G$6:$FJ$12,55,FALSE) -> 246.72 | E15: =VLOOKUP($A15,'RECAP DIRCOM'!$G$6:$FJ$12,56,FALSE) -> 5.38 | F15: =VLOOKUP($A15,'RECAP DIRCOM'!$G$6:$FJ$12,57,FALSE) -> 21% | G15: =VLOOKUP($A15,'RECAP DIRCOM'!$G$6:$FJ$12,58,FALSE) -> 7 | H15: =VLOOKUP($A15,'RECAP DIRCOM'!$G$6:$FJ$12,59,FALSE) -> 70.25 | I15: =VLOOKUP($A15,'RECAP DIRCOM'!$G$6:$FJ$12,60,FALSE) -> 0.56 | J15: =VLOOKUP($A15,'RECAP DIRCOM'!$G$6:$FJ$12,61,FALSE) -> 11% | K15: =VLOOKUP($A15,'RECAP DIRCOM'!$G$6:$FJ$12,62,FALSE) -> 5 | L15: =VLOOKUP($A15,'RECAP DIRCOM'!$G$6:$FJ$12,63,FALSE) -> -53 | M15: =VLOOKUP($A15,'RECAP DIRCOM'!$G$6:$FJ$12,64,FALSE) -> -1.89 | N15: =VLOOKUP($A15,'RECAP DIRCOM'!$G$6:$FJ$12,65,FALSE) -> 87% | O15: =VLOOKUP($A15,'RECAP DIRCOM'!$G$6:$FJ$12,66,FALSE) -> 5 | P15: =VLOOKUP($A15,'RECAP DIRCOM'!$G$6:$FJ$12,67,FALSE) -> 37% | Q15: =VLOOKUP($A15,'RECAP DIRCOM'!$G$6:$FJ$12,68,FALSE) -> 24% | R15: =VLOOKUP($A15,'RECAP DIRCOM'!$G$6:$FJ$12,69,FALSE) -> 5
A16: 80 | B16: Vosges | C16: =VLOOKUP($A16,'RECAP DIRCOM'!$G$6:$FJ$12,3,FALSE) -> 131 | D16: =VLOOKUP($A16,'RECAP DIRCOM'!$G$6:$FJ$12,55,FALSE) -> 224.69 | E16: =VLOOKUP($A16,'RECAP DIRCOM'!$G$6:$FJ$12,56,FALSE) -> 5.43 | F16: =VLOOKUP($A16,'RECAP DIRCOM'!$G$6:$FJ$12,57,FALSE) -> 20% | G16: =VLOOKUP($A16,'RECAP DIRCOM'!$G$6:$FJ$12,58,FALSE) -> 6 | H16: =VLOOKUP($A16,'RECAP DIRCOM'!$G$6:$FJ$12,59,FALSE) -> 81.15 | I16: =VLOOKUP($A16,'RECAP DIRCOM'!$G$6:$FJ$12,60,FALSE) -> 0.53 | J16: =VLOOKUP($A16,'RECAP DIRCOM'!$G$6:$FJ$12,61,FALSE) -> 15% | K16: =VLOOKUP($A16,'RECAP DIRCOM'!$G$6:$FJ$12,62,FALSE) -> 7 | L16: =VLOOKUP($A16,'RECAP DIRCOM'!$G$6:$FJ$12,63,FALSE) -> -9 | M16: =VLOOKUP($A16,'RECAP DIRCOM'!$G$6:$FJ$12,64,FALSE) -> -0.34 | N16: =VLOOKUP($A16,'RECAP DIRCOM'!$G$6:$FJ$12,65,FALSE) -> 0% | O16: =VLOOKUP($A16,'RECAP DIRCOM'!$G$6:$FJ$12,66,FALSE) -> 1 | P16: =VLOOKUP($A16,'RECAP DIRCOM'!$G$6:$FJ$12,67,FALSE) -> 12% | Q16: =VLOOKUP($A16,'RECAP DIRCOM'!$G$6:$FJ$12,68,FALSE) -> 0% | R16: =VLOOKUP($A16,'RECAP DIRCOM'!$G$6:$FJ$12,69,FALSE) -> 1
B17: Total CEGEE Directions Régionales | C17: =SUM(C10:C16) -> 1400

Sheet DC_CREDIT
B1: Accueil | D1: BAROMETRE BDD - DIRECTIONS REGIONALES
D2: CREDITS
D3: =ACCUEIL!F7 -> 2020-05-24
D7: Engagements crédits conso | H7: ADE crédits conso | L7: Engagements crédits immo | P7: ADE crédits immo | T7: SACCEF | X7: Engagement Crédits MLT + Crédits Bail | AB7: Total Crédits
F8: coef | G8: ='RECAP DIRCOM'!CG4 -> 4% | J8: coef | K8: ='RECAP DIRCOM'!CK4 -> 1% | N8: coef | O8: ='RECAP DIRCOM'!CO4 -> 4% | R8: coef | S8: ='RECAP DIRCOM'!CS4 -> 2% | V8: coef | W8: ='RECAP DIRCOM'!CW4 -> 2% | Z8: coef | AA8: ='RECAP DIRCOM'!DA4 -> 2% | AC8: coef | AD8: ='RECAP DIRCOM'!DD4 -> 15%
B9: Direction | C9: ETP perf | D9: Réal / ETP | E9: PNB / ETP | F9: % Ecart au 1er | G9: Rang | I9: PNB / ETP | J9: % Ecart au 1er | K9: Rang | L9: Réal / ETP | M9: PNB / ETP | N9: % Ecart au 1er | O9: Rang | Q9: PNB / ETP | R9: % Ecart au 1er | S9: Rang | U9: PNB / ETP | V9: % Ecart au 1er | W9: Rang | X9: Réal / ETP | Y9: PNB / ETP | Z9: % Ecart au 1er | AA9: Rang | AB9: Moyenne ecart au 1er | AC9: % Ecart au 1er | AD9: Rang CEGEE
A10: 50 | B10: Aube Haute Marne | C10: =VLOOKUP($A10,'RECAP DIRCOM'!$G$6:$FJ$12,3,FALSE) -> 126 | D10: =VLOOKUP($A10,'RECAP DIRCOM'!$G$6:$FJ$12,76,FALSE) -> 175.97 | E10: =VLOOKUP($A10,'RECAP DIRCOM'!$G$6:$FJ$12,77,FALSE) -> 17.34 | F10: =VLOOKUP($A10,'RECAP DIRCOM'!$G$6:$FJ$12,78,FALSE) -> 0% | G10: =VLOOKUP($A10,'RECAP DIRCOM'!$G$6:$FJ$12,79,FALSE) -> 1 | I10: =VLOOKUP($A10,'RECAP DIRCOM'!$G$6:$FJ$12,81,FALSE) -> 3.42 | J10: =VLOOKUP($A10,'RECAP DIRCOM'!$G$6:$FJ$12,82,FALSE) -> 10% | K10: =VLOOKUP($A10,'RECAP DIRCOM'!$G$6:$FJ$12,83,FALSE) -> 2 | L10: =VLOOKUP($A10,'RECAP DIRCOM'!$G$6:$FJ$12,84,FALSE) -> 410.67 | M10: =VLOOKUP($A10,'RECAP DIRCOM'!$G$6:$FJ$12,85,FALSE) -> 17.22 | N10: =VLOOKUP($A10,'RECAP DIRCOM'!$G$6:$FJ$12,86,FALSE) -> 44% | O10: =VLOOKUP($A10,'RECAP DIRCOM'!$G$6:$FJ$12,87,FALSE) -> 6 | Q10: =VLOOKUP($A10,'RECAP DIRCOM'!$G$6:$FJ$12,89,FALSE) -> 7.38 | R10: =VLOOKUP($A10,'RECAP DIRCOM'!$G$6:$FJ$12,90,FALSE) -> 62% | S10: =VLOOKUP($A10,'RECAP DIRCOM'!$G$6:$FJ$12,91,FALSE) -> 7 | U10: =VLOOKUP($A10,'RECAP DIRCOM'!$G$6:$FJ$12,93,FALSE) -> 0.94 | V10: =VLOOKUP($A10,'RECAP DIRCOM'!$G$6:$FJ$12,94,FALSE) -> 48% | W10: =VLOOKUP($A10,'RECAP DIRCOM'!$G$6:$FJ$12,95,FALSE) -> 5 | X10: =VLOOKUP($A10,'RECAP DIRCOM'!$G$6:$FJ$12,96,FALSE) -> 130.97 | Y10: =VLOOKUP($A10,'RECAP DIRCOM'!$G$6:$FJ$12,97,FALSE) -> 5.70 | Z10: =VLOOKUP($A10,'RECAP DIRCOM'!$G$6:$FJ$12,98,FALSE) -> 0% | AA10: =VLOOKUP($A10,'RECAP DIRCOM'!$G$6:$FJ$12,99,FALSE) -> 1 | AB10: =VLOOKUP($A10,'RECAP DIRCOM'!$G$6:$FJ$12,100,FALSE) -> 27% | AC10: =VLOOKUP($A10,'RECAP DIRCOM'!$G$6:$FJ$12,101,FALSE) -> 17% | AD10: =VLOOKUP($A10,'RECAP DIRCOM'!$G$6:$FJ$12,102,FALSE) -> 4
A11: 262 | B11: Bas-Rhin | C11: =VLOOKUP($A11,'RECAP DIRCOM'!$G$6:$FJ$12,3,FALSE) -> 261 | D11: =VLOOKUP($A11,'RECAP DIRCOM'!$G$6:$FJ$12,76,FALSE) -> 146.02 | E11: =VLOOKUP($A11,'RECAP DIRCOM'!$G$6:$FJ$12,77,FALSE) -> 13.08 | F11: =VLOOKUP($A11,'RECAP DIRCOM'!$G$6:$FJ$12,78,FALSE) -> 25% | G11: =VLOOKUP($A11,'RECAP DIRCOM'!$G$6:$FJ$12,79,FALSE) -> 6 | I11: =VLOOKUP($A11,'RECAP DIRCOM'!$G$6:$FJ$12,81,FALSE) -> 3.21 | J11: =VLOOKUP($A11,'RECAP DIRCOM'!$G$6:$FJ$12,82,FALSE) -> 16% | K11: =VLOOKUP($A11,'RECAP DIRCOM'!$G$6:$FJ$12,83,FALSE) -> 6 | L11: =VLOOKUP($A11,'RECAP DIRCOM'!$G$6:$FJ$12,84,FALSE) -> 517.14 | M11: =VLOOKUP($A11,'RECAP DIRCOM'!$G$6:$FJ$12,85,FALSE) -> 16.72 | N11: =VLOOKUP($A11,'RECAP DIRCOM'!$G$6:$FJ$12,86,FALSE) -> 45% | O11: =VLOOKUP($A11,'RECAP DIRCOM'!$G$6:$FJ$12,87,FALSE) -> 7 | Q11: =VLOOKUP($A11,'RECAP DIRCOM'!$G$6:$FJ$12,89,FALSE) -> 10.21 | R11: =VLOOKUP($A11,'RECAP DIRCOM'!$G$6:$FJ$12,90,FALSE) -> 48% | S11: =VLOOKUP($A11,'RECAP DIRCOM'!$G$6:$FJ$12,91,FALSE) -> 4 | U11: =VLOOKUP($A11,'RECAP DIRCOM'!$G$6:$FJ$12,93,FALSE) -> 0.98 | V11: =VLOOKUP($A11,'RECAP DIRCOM'!$G$6:$FJ$12,94,FALSE) -> 46% | W11: =VLOOKUP($A11,'RECAP DIRCOM'!$G$6:$FJ$12,95,FALSE) -> 4 | X11: =VLOOKUP($A11,'RECAP DIRCOM'!$G$6:$FJ$12,96,FALSE) -> 89.80 | Y11: =VLOOKUP($A11,'RECAP DIRCOM'!$G$6:$FJ$12,97,FALSE) -> 3.56 | Z11: =VLOOKUP($A11,'RECAP DIRCOM'!$G$6:$FJ$12,98,FALSE) -> 38% | AA11: =VLOOKUP($A11,'RECAP DIRCOM'!$G$6:$FJ$12,99,FALSE) -> 3 | AB11: =VLOOKUP($A11,'RECAP DIRCOM'!$G$6:$FJ$12,100,FALSE) -> 37% | AC11: =VLOOKUP($A11,'RECAP DIRCOM'!$G$6:$FJ$12,101,FALSE) -> 27% | AD11: =VLOOKUP($A11,'RECAP DIRCOM'!$G$6:$FJ$12,102,FALSE) -> 6
A12: 264 | B12: Haut-Rhin | C12: =VLOOKUP($A12,'RECAP DIRCOM'!$G$6:$FJ$12,3,FALSE) -> 157 | D12: =VLOOKUP($A12,'RECAP DIRCOM'!$G$6:$FJ$12,76,FALSE) -> 141.72 | E12: =VLOOKUP($A12,'RECAP DIRCOM'!$G$6:$FJ$12,77,FALSE) -> 12.88 | F12: =VLOOKUP($A12,'RECAP DIRCOM'!$G$6:$FJ$12,78,FALSE) -> 26% | G12: =VLOOKUP($A12,'RECAP DIRCOM'!$G$6:$FJ$12,79,FALSE) -> 7 | I12: =VLOOKUP($A12,'RECAP DIRCOM'!$G$6:$FJ$12,81,FALSE) -> 2.83 | J12: =VLOOKUP($A12,'RECAP DIRCOM'!$G$6:$FJ$12,82,FALSE) -> 26% | K12: =VLOOKUP($A12,'RECAP DIRCOM'!$G$6:$FJ$12,83,FALSE) -> 7 | L12: =VLOOKUP($A12,'RECAP DIRCOM'!$G$6:$FJ$12,84,FALSE) -> 488.16 | M12: =VLOOKUP($A12,'RECAP DIRCOM'!$G$6:$FJ$12,85,FALSE) -> 17.44 | N12: =VLOOKUP($A12,'RECAP DIRCOM'!$G$6:$FJ$12,86,FALSE) -> 43% | O12: =VLOOKUP($A12,'RECAP DIRCOM'!$G$6:$FJ$12,87,FALSE) -> 5 | Q12: =VLOOKUP($A12,'RECAP DIRCOM'!$G$6:$FJ$12,89,FALSE) -> 9.31 | R12: =VLOOKUP($A12,'RECAP DIRCOM'!$G$6:$FJ$12,90,FALSE) -> 52% | S12: =VLOOKUP($A12,'RECAP DIRCOM'!$G$6:$FJ$12,91,FALSE) -> 6 | U12: =VLOOKUP($A12,'RECAP DIRCOM'!$G$6:$FJ$12,93,FALSE) -> 0.82 | V12: =VLOOKUP($A12,'RECAP DIRCOM'!$G$6:$FJ$12,94,FALSE) -> 55% | W12: =VLOOKUP($A12,'RECAP DIRCOM'!$G$6:$FJ$12,95,FALSE) -> 7 | X12: =VLOOKUP($A12,'RECAP DIRCOM'!$G$6:$FJ$12,96,FALSE) -> 91.90 | Y12: =VLOOKUP($A12,'RECAP DIRCOM'!$G$6:$FJ$12,97,FALSE) -> 3.05 | Z12: =VLOOKUP($A12,'RECAP DIRCOM'!$G$6:$FJ$12,98,FALSE) -> 46% | AA12: =VLOOKUP($A12,'RECAP DIRCOM'!$G$6:$FJ$12,99,FALSE) -> 5 | AB12: =VLOOKUP($A12,'RECAP DIRCOM'!$G$6:$FJ$12,100,FALSE) -> 41% | AC12: =VLOOKUP($A12,'RECAP DIRCOM'!$G$6:$FJ$12,101,FALSE) -> 31% | AD12: =VLOOKUP($A12,'RECAP DIRCOM'!$G$6:$FJ$12,102,FALSE) -> 7
A13: 30 | B13: Marne-Ardennes | C13: =VLOOKUP($A13,'RECAP DIRCOM'!$G$6:$FJ$12,3,FALSE) -> 224 | D13: =VLOOKUP($A13,'RECAP DIRCOM'!$G$6:$FJ$12,76,FALSE) -> 155.78 | E13: =VLOOKUP($A13,'RECAP DIRCOM'!$G$6:$FJ$12,77,FALSE) -> 14.30 | F13: =VLOOKUP($A13,'RECAP DIRCOM'!$G$6:$FJ$12,78,FALSE) -> 18% | G13: =VLOOKUP($A13,'RECAP DIRCOM'!$G$6:$FJ$12,79,FALSE) -> 5 | I13: =VLOOKUP($A13,'RECAP DIRCOM'!$G$6:$FJ$12,81,FALSE) -> 3.23 | J13: =VLOOKUP($A13,'RECAP DIRCOM'!$G$6:$FJ$12,82,FALSE) -> 15% | K13: =VLOOKUP($A13,'RECAP DIRCOM'!$G$6:$FJ$12,83,FALSE) -> 5 | L13: =VLOOKUP($A13,'RECAP DIRCOM'!$G$6:$FJ$12,84,FALSE) -> 748.08 | M13: =VLOOKUP($A13,'RECAP DIRCOM'!$G$6:$FJ$12,85,FALSE) -> 30.07 | N13: =VLOOKUP($A13,'RECAP DIRCOM'!$G$6:$FJ$12,86,FALSE) -> 2% | O13: =VLOOKUP($A13,'RECAP DIRCOM'!$G$6:$FJ$12,87,FALSE) -> 2 | Q13: =VLOOKUP($A13,'RECAP DIRCOM'!$G$6:$FJ$12,89,FALSE) -> 19.48 | R13: =VLOOKUP($A13,'RECAP DIRCOM'!$G$6:$FJ$12,90,FALSE) -> 0% | S13: =VLOOKUP($A13,'RECAP DIRCOM'!$G$6:$FJ$12,91,FALSE) -> 1 | U13: =VLOOKUP($A13,'RECAP DIRCOM'!$G$6:$FJ$12,93,FALSE) -> 1.68 | V13: =VLOOKUP($A13,'RECAP DIRCOM'!$G$6:$FJ$12,94,FALSE) -> 8% | W13: =VLOOKUP($A13,'RECAP DIRCOM'!$G$6:$FJ$12,95,FALSE) -> 2 | X13: =VLOOKUP($A13,'RECAP DIRCOM'!$G$6:$FJ$12,96,FALSE) -> 156.54 | Y13: =VLOOKUP($A13,'RECAP DIRCOM'!$G$6:$FJ$12,97,FALSE) -> 4.53 | Z13: =VLOOKUP($A13,'RECAP DIRCOM'!$G$6:$FJ$12,98,FALSE) -> 21% | AA13: =VLOOKUP($A13,'RECAP DIRCOM'!$G$6:$FJ$12,99,FALSE) -> 2 | AB13: =VLOOKUP($A13,'RECAP DIRCOM'!$G$6:$FJ$12,100,FALSE) -> 10% | AC13: =VLOOKUP($A13,'RECAP DIRCOM'!$G$6:$FJ$12,101,FALSE) -> 0% | AD13: =VLOOKUP($A13,'RECAP DIRCOM'!$G$6:$FJ$12,102,FALSE) -> 1
A14: 110 | B14: Meurthe et Moselle Meuse | C14: =VLOOKUP($A14,'RECAP DIRCOM'!$G$6:$FJ$12,3,FALSE) -> 230 | D14: =VLOOKUP($A14,'RECAP DIRCOM'!$G$6:$FJ$12,76,FALSE) -> 177.80 | E14: =VLOOKUP($A14,'RECAP DIRCOM'!$G$6:$FJ$12,77,FALSE) -> 17.06 | F14: =VLOOKUP($A14,'RECAP DIRCOM'!$G$6:$FJ$12,78,FALSE) -> 2% | G14: =VLOOKUP($A14,'RECAP DIRCOM'!$G$6:$FJ$12,79,FALSE) -> 2 | I14: =VLOOKUP($A14,'RECAP DIRCOM'!$G$6:$FJ$12,81,FALSE) -> 3.81 | J14: =VLOOKUP($A14,'RECAP DIRCOM'!$G$6:$FJ$12,82,FALSE) -> 0% | K14: =VLOOKUP($A14,'RECAP DIRCOM'!$G$6:$FJ$12,83,FALSE) -> 1 | L14: =VLOOKUP($A14,'RECAP DIRCOM'!$G$6:$FJ$12,84,FALSE) -> 781.06 | M14: =VLOOKUP($A14,'RECAP DIRCOM'!$G$6:$FJ$12,85,FALSE) -> 30.56 | N14: =VLOOKUP($A14,'RECAP DIRCOM'!$G$6:$FJ$12,86,FALSE) -> 0% | O14: =VLOOKUP($A14,'RECAP DIRCOM'!$G$6:$FJ$12,87,FALSE) -> 1 | Q14: =VLOOKUP($A14,'RECAP DIRCOM'!$G$6:$FJ$12,89,FALSE) -> 17.66 | R14: =VLOOKUP($A14,'RECAP DIRCOM'!$G$6:$FJ$12,90,FALSE) -> 9% | S14: =VLOOKUP($A14,'RECAP DIRCOM'!$G$6:$FJ$12,91,FALSE) -> 2 | U14: =VLOOKUP($A14,'RECAP DIRCOM'!$G$6:$FJ$12,93,FALSE) -> 1.82 | V14: =VLOOKUP($A14,'RECAP DIRCOM'!$G$6:$FJ$12,94,FALSE) -> 0% | W14: =VLOOKUP($A14,'RECAP DIRCOM'!$G$6:$FJ$12,95,FALSE) -> 1 | X14: =VLOOKUP($A14,'RECAP DIRCOM'!$G$6:$FJ$12,96,FALSE) -> 45.72 | Y14: =VLOOKUP($A14,'RECAP DIRCOM'!$G$6:$FJ$12,97,FALSE) -> 2.06 | Z14: =VLOOKUP($A14,'RECAP DIRCOM'!$G$6:$FJ$12,98,FALSE) -> 64% | AA14: =VLOOKUP($A14,'RECAP DIRCOM'!$G$6:$FJ$12,99,FALSE) -> 6 | AB14: =VLOOKUP($A14,'RECAP DIRCOM'!$G$6:$FJ$12,100,FALSE) -> 10% | AC14: =VLOOKUP($A14,'RECAP DIRCOM'!$G$6:$FJ$12,101,FALSE) -> 0% | AD14: =VLOOKUP($A14,'RECAP DIRCOM'!$G$6:$FJ$12,102,FALSE) -> 2
A15: 160 | B15: Moselle | C15: =VLOOKUP($A15,'RECAP DIRCOM'!$G$6:$FJ$12,3,FALSE) -> 270 | D15: =VLOOKUP($A15,'RECAP DIRCOM'!$G$6:$FJ$12,76,FALSE) -> 167.06 | E15: =VLOOKUP($A15,'RECAP DIRCOM'!$G$6:$FJ$12,77,FALSE) -> 15.80 | F15: =VLOOKUP($A15,'RECAP DIRCOM'!$G$6:$FJ$12,78,FALSE) -> 9% | G15: =VLOOKUP($A15,'RECAP DIRCOM'!$G$6:$FJ$12,79,FALSE) -> 3 | I15: =VLOOKUP($A15,'RECAP DIRCOM'!$G$6:$FJ$12,81,FALSE) -> 3.27 | J15: =VLOOKUP($A15,'RECAP DIRCOM'!$G$6:$FJ$12,82,FALSE) -> 14% | K15: =VLOOKUP($A15,'RECAP DIRCOM'!$G$6:$FJ$12,83,FALSE) -> 4 | L15: =VLOOKUP($A15,'RECAP DIRCOM'!$G$6:$FJ$12,84,FALSE) -> 665.28 | M15: =VLOOKUP($A15,'RECAP DIRCOM'!$G$6:$FJ$12,85,FALSE) -> 25.62 | N15: =VLOOKUP($A15,'RECAP DIRCOM'!$G$6:$FJ$12,86,FALSE) -> 16% | O15: =VLOOKUP($A15,'RECAP DIRCOM'!$G$6:$FJ$12,87,FALSE) -> 3 | Q15: =VLOOKUP($A15,'RECAP DIRCOM'!$G$6:$FJ$12,89,FALSE) -> 11.41 | R15: =VLOOKUP($A15,'RECAP DIRCOM'!$G$6:$FJ$12,90,FALSE) -> 41% | S15: =VLOOKUP($A15,'RECAP DIRCOM'!$G$6:$FJ$12,91,FALSE) -> 3 | U15: =VLOOKUP($A15,'RECAP DIRCOM'!$G$6:$FJ$12,93,FALSE) -> 1.40 | V15: =VLOOKUP($A15,'RECAP DIRCOM'!$G$6:$FJ$12,94,FALSE) -> 23% | W15: =VLOOKUP($A15,'RECAP DIRCOM'!$G$6:$FJ$12,95,FALSE) -> 3 | X15: =VLOOKUP($A15,'RECAP DIRCOM'!$G$6:$FJ$12,96,FALSE) -> 37.14 | Y15: =VLOOKUP($A15,'RECAP DIRCOM'!$G$6:$FJ$12,97,FALSE) -> 1.30 | Z15: =VLOOKUP($A15,'RECAP DIRCOM'!$G$6:$FJ$12,98,FALSE) -> 77% | AA15: =VLOOKUP($A15,'RECAP DIRCOM'!$G$6:$FJ$12,99,FALSE) -> 7 | AB15: =VLOOKUP($A15,'RECAP DIRCOM'!$G$6:$FJ$12,100,FALSE) -> 26% | AC15: =VLOOKUP($A15,'RECAP DIRCOM'!$G$6:$FJ$12,101,FALSE) -> 17% | AD15: =VLOOKUP($A15,'RECAP DIRCOM'!$G$6:$FJ$12,102,FALSE) -> 3
A16: 80 | B16: Vosges | C16: =VLOOKUP($A16,'RECAP DIRCOM'!$G$6:$FJ$12,3,FALSE) -> 131 | D16: =VLOOKUP($A16,'RECAP DIRCOM'!$G$6:$FJ$12,76,FALSE) -> 164.17 | E16: =VLOOKUP($A16,'RECAP DIRCOM'!$G$6:$FJ$12,77,FALSE) -> 15.13 | F16: =VLOOKUP($A16,'RECAP DIRCOM'!$G$6:$FJ$12,78,FALSE) -> 13% | G16: =VLOOKUP($A16,'RECAP DIRCOM'!$G$6:$FJ$12,79,FALSE) -> 4 | I16: =VLOOKUP($A16,'RECAP DIRCOM'!$G$6:$FJ$12,81,FALSE) -> 3.34 | J16: =VLOOKUP($A16,'RECAP DIRCOM'!$G$6:$FJ$12,82,FALSE) -> 12% | K16: =VLOOKUP($A16,'RECAP DIRCOM'!$G$6:$FJ$12,83,FALSE) -> 3 | L16: =VLOOKUP($A16,'RECAP DIRCOM'!$G$6:$FJ$12,84,FALSE) -> 423.20 | M16: =VLOOKUP($A16,'RECAP DIRCOM'!$G$6:$FJ$12,85,FALSE) -> 19.34 | N16: =VLOOKUP($A16,'RECAP DIRCOM'!$G$6:$FJ$12,86,FALSE) -> 37% | O16: =VLOOKUP($A16,'RECAP DIRCOM'!$G$6:$FJ$12,87,FALSE) -> 4 | Q16: =VLOOKUP($A16,'RECAP DIRCOM'!$G$6:$FJ$12,89,FALSE) -> 9.98 | R16: =VLOOKUP($A16,'RECAP DIRCOM'!$G$6:$FJ$12,90,FALSE) -> 49% | S16: =VLOOKUP($A16,'RECAP DIRCOM'!$G$6:$FJ$12,91,FALSE) -> 5 | U16: =VLOOKUP($A16,'RECAP DIRCOM'!$G$6:$FJ$12,93,FALSE) -> 0.92 | V16: =VLOOKUP($A16,'RECAP DIRCOM'!$G$6:$FJ$12,94,FALSE) -> 49% | W16: =VLOOKUP($A16,'RECAP DIRCOM'!$G$6:$FJ$12,95,FALSE) -> 6 | X16: =VLOOKUP($A16,'RECAP DIRCOM'!$G$6:$FJ$12,96,FALSE) -> 65.35 | Y16: =VLOOKUP($A16,'RECAP DIRCOM'!$G$6:$FJ$12,97,FALSE) -> 3.08 | Z16: =VLOOKUP($A16,'RECAP DIRCOM'!$G$6:$FJ$12,98,FALSE) -> 46% | AA16: =VLOOKUP($A16,'RECAP DIRCOM'!$G$6:$FJ$12,99,FALSE) -> 4 | AB16: =VLOOKUP($A16,'RECAP DIRCOM'!$G$6:$FJ$12,100,FALSE) -> 33% | AC16: =VLOOKUP($A16,'RECAP DIRCOM'!$G$6:$FJ$12,101,FALSE) -> 23% | AD16: =VLOOKUP($A16,'RECAP DIRCOM'!$G$6:$FJ$12,102,FALSE) -> 5
B17: Total CEGEE Directions Régionales | C17: =SUM(C10:C16) -> 1400

Sheet DC_IARD
B1: Accueil | D1: BAROMETRE BDD - DIRECTIONS REGIONALES
D2: IARD ET PREVOYANCE
D3: =ACCUEIL!F7 -> 2020-05-24
D7: Ventes nettes IARD | H7: Ventes nettes Prévoyance | L7: Total IARD Prévoyance
F8: coef | G8: ='RECAP DIRCOM'!DN4 -> 9% | J8: coef | K8: ='RECAP DIRCOM'!DR4 -> 6% | M8: coef | N8: ='RECAP DIRCOM'!DU4 -> 15%
B9: Direction | C9: ETP perf | D9: Nb / ETP | E9: PNB / ETP | F9: % Ecart au 1er | G9: Rang | H9: Nb / ETP | I9: PNB / ETP | J9: % Ecart au 1er | K9: Rang | L9: Moyenne ecart au 1er | M9: % Ecart au 1er | N9: Rang CEGEE
A10: 50 | B10: Aube Haute Marne | C10: =VLOOKUP($A10,'RECAP DIRCOM'!$G$6:$FJ$12,3,FALSE) -> 126 | D10: =VLOOKUP($A10,'RECAP DIRCOM'!$G$6:$FJ$12,109,FALSE) -> 3.02 | E10: =VLOOKUP($A10,'RECAP DIRCOM'!$G$6:$FJ$12,110,FALSE) -> 0.31 | F10: =VLOOKUP($A10,'RECAP DIRCOM'!$G$6:$FJ$12,111,FALSE) -> 58% | G10: =VLOOKUP($A10,'RECAP DIRCOM'!$G$6:$FJ$12,112,FALSE) -> 5 | H10: =VLOOKUP($A10,'RECAP DIRCOM'!$G$6:$FJ$12,113,FALSE) -> 1.53 | I10: =VLOOKUP($A10,'RECAP DIRCOM'!$G$6:$FJ$12,114,FALSE) -> 0.29 | J10: =VLOOKUP($A10,'RECAP DIRCOM'!$G$6:$FJ$12,115,FALSE) -> 30% | K10: =VLOOKUP($A10,'RECAP DIRCOM'!$G$6:$FJ$12,116,FALSE) -> 4 | L10: =VLOOKUP($A10,'RECAP DIRCOM'!$G$6:$FJ$12,117,FALSE) -> 46% | M10: =VLOOKUP($A10,'RECAP DIRCOM'!$G$6:$FJ$12,118,FALSE) -> 44% | N10: =VLOOKUP($A10,'RECAP DIRCOM'!$G$6:$FJ$12,119,FALSE) -> 4
A11: 262 | B11: Bas-Rhin | C11: =VLOOKUP($A11,'RECAP DIRCOM'!$G$6:$FJ$12,3,FALSE) -> 261 | D11: =VLOOKUP($A11,'RECAP DIRCOM'!$G$6:$FJ$12,109,FALSE) -> 2.02 | E11: =VLOOKUP($A11,'RECAP DIRCOM'!$G$6:$FJ$12,110,FALSE) -> 0.19 | F11: =VLOOKUP($A11,'RECAP DIRCOM'!$G$6:$FJ$12,111,FALSE) -> 74% | G11: =VLOOKUP($A11,'RECAP DIRCOM'!$G$6:$FJ$12,112,FALSE) -> 6 | H11: =VLOOKUP($A11,'RECAP DIRCOM'!$G$6:$FJ$12,113,FALSE) -> 2.15 | I11: =VLOOKUP($A11,'RECAP DIRCOM'!$G$6:$FJ$12,114,FALSE) -> 0.38 | J11: =VLOOKUP($A11,'RECAP DIRCOM'!$G$6:$FJ$12,115,FALSE) -> 7% | K11: =VLOOKUP($A11,'RECAP DIRCOM'!$G$6:$FJ$12,116,FALSE) -> 3 | L11: =VLOOKUP($A11,'RECAP DIRCOM'!$G$6:$FJ$12,117,FALSE) -> 47% | M11: =VLOOKUP($A11,'RECAP DIRCOM'!$G$6:$FJ$12,118,FALSE) -> 45% | N11: =VLOOKUP($A11,'RECAP DIRCOM'!$G$6:$FJ$12,119,FALSE) -> 6
A12: 264 | B12: Haut-Rhin | C12: =VLOOKUP($A12,'RECAP DIRCOM'!$G$6:$FJ$12,3,FALSE) -> 157 | D12: =VLOOKUP($A12,'RECAP DIRCOM'!$G$6:$FJ$12,109,FALSE) -> 0.47 | E12: =VLOOKUP($A12,'RECAP DIRCOM'!$G$6:$FJ$12,110,FALSE) -> 0.04 | F12: =VLOOKUP($A12,'RECAP DIRCOM'!$G$6:$FJ$12,111,FALSE) -> 94% | G12: =VLOOKUP($A12,'RECAP DIRCOM'!$G$6:$FJ$12,112,FALSE) -> 7 | H12: =VLOOKUP($A12,'RECAP DIRCOM'!$G$6:$FJ$12,113,FALSE) -> -0.83 | I12: =VLOOKUP($A12,'RECAP DIRCOM'!$G$6:$FJ$12,114,FALSE) -> 0.09 | J12: =VLOOKUP($A12,'RECAP DIRCOM'!$G$6:$FJ$12,115,FALSE) -> 78% | K12: =VLOOKUP($A12,'RECAP DIRCOM'!$G$6:$FJ$12,116,FALSE) -> 7 | L12: =VLOOKUP($A12,'RECAP DIRCOM'!$G$6:$FJ$12,117,FALSE) -> 87% | M12: =VLOOKUP($A12,'RECAP DIRCOM'!$G$6:$FJ$12,118,FALSE) -> 85% | N12: =VLOOKUP($A12,'RECAP DIRCOM'!$G$6:$FJ$12,119,FALSE) -> 7
A13: 30 | B13: Marne-Ardennes | C13: =VLOOKUP($A13,'RECAP DIRCOM'!$G$6:$FJ$12,3,FALSE) -> 224 | D13: =VLOOKUP($A13,'RECAP DIRCOM'!$G$6:$FJ$12,109,FALSE) -> 5.04 | E13: =VLOOKUP($A13,'RECAP DIRCOM'!$G$6:$FJ$12,110,FALSE) -> 0.53 | F13: =VLOOKUP($A13,'RECAP DIRCOM'!$G$6:$FJ$12,111,FALSE) -> 28% | G13: =VLOOKUP($A13,'RECAP DIRCOM'!$G$6:$FJ$12,112,FALSE) -> 2 | H13: =VLOOKUP($A13,'RECAP DIRCOM'!$G$6:$FJ$12,113,FALSE) -> 2.32 | I13: =VLOOKUP($A13,'RECAP DIRCOM'!$G$6:$FJ$12,114,FALSE) -> 0.41 | J13: =VLOOKUP($A13,'RECAP DIRCOM'!$G$6:$FJ$12,115,FALSE) -> 0% | K13: =VLOOKUP($A13,'RECAP DIRCOM'!$G$6:$FJ$12,116,FALSE) -> 1 | L13: =VLOOKUP($A13,'RECAP DIRCOM'!$G$6:$FJ$12,117,FALSE) -> 17% | M13: =VLOOKUP($A13,'RECAP DIRCOM'!$G$6:$FJ$12,118,FALSE) -> 15% | N13: =VLOOKUP($A13,'RECAP DIRCOM'!$G$6:$FJ$12,119,FALSE) -> 2
A14: 110 | B14: Meurthe et Moselle Meuse | C14: =VLOOKUP($A14,'RECAP DIRCOM'!$G$6:$FJ$12,3,FALSE) -> 230 | D14: =VLOOKUP($A14,'RECAP DIRCOM'!$G$6:$FJ$12,109,FALSE) -> 7.46 | E14: =VLOOKUP($A14,'RECAP DIRCOM'!$G$6:$FJ$12,110,FALSE) -> 0.73 | F14: =VLOOKUP($A14,'RECAP DIRCOM'!$G$6:$FJ$12,111,FALSE) -> 0% | G14: =VLOOKUP($A14,'RECAP DIRCOM'!$G$6:$FJ$12,112,FALSE) -> 1 | H14: =VLOOKUP($A14,'RECAP DIRCOM'!$G$6:$FJ$12,113,FALSE) -> 2.95 | I14: =VLOOKUP($A14,'RECAP DIRCOM'!$G$6:$FJ$12,114,FALSE) -> 0.38 | J14: =VLOOKUP($A14,'RECAP DIRCOM'!$G$6:$FJ$12,115,FALSE) -> 6% | K14: =VLOOKUP($A14,'RECAP DIRCOM'!$G$6:$FJ$12,116,FALSE) -> 2 | L14: =VLOOKUP($A14,'RECAP DIRCOM'!$G$6:$FJ$12,117,FALSE) -> 2% | M14: =VLOOKUP($A14,'RECAP DIRCOM'!$G$6:$FJ$12,118,FALSE) -> 0% | N14: =VLOOKUP($A14,'RECAP DIRCOM'!$G$6:$FJ$12,119,FALSE) -> 1
A15: 160 | B15: Moselle | C15: =VLOOKUP($A15,'RECAP DIRCOM'!$G$6:$FJ$12,3,FALSE) -> 270 | D15: =VLOOKUP($A15,'RECAP DIRCOM'!$G$6:$FJ$12,109,FALSE) -> 4.08 | E15: =VLOOKUP($A15,'RECAP DIRCOM'!$G$6:$FJ$12,110,FALSE) -> 0.42 | F15: =VLOOKUP($A15,'RECAP DIRCOM'!$G$6:$FJ$12,111,FALSE) -> 43% | G15: =VLOOKUP($A15,'RECAP DIRCOM'!$G$6:$FJ$12,112,FALSE) -> 3 | H15: =VLOOKUP($A15,'RECAP DIRCOM'!$G$6:$FJ$12,113,FALSE) -> 1.16 | I15: =VLOOKUP($A15,'RECAP DIRCOM'!$G$6:$FJ$12,114,FALSE) -> 0.27 | J15: =VLOOKUP($A15,'RECAP DIRCOM'!$G$6:$FJ$12,115,FALSE) -> 34% | K15: =VLOOKUP($A15,'RECAP DIRCOM'!$G$6:$FJ$12,116,FALSE) -> 6 | L15: =VLOOKUP($A15,'RECAP DIRCOM'!$G$6:$FJ$12,117,FALSE) -> 39% | M15: =VLOOKUP($A15,'RECAP DIRCOM'!$G$6:$FJ$12,118,FALSE) -> 37% | N15: =VLOOKUP($A15,'RECAP DIRCOM'!$G$6:$FJ$12,119,FALSE) -> 3
A16: 80 | B16: Vosges | C16: =VLOOKUP($A16,'RECAP DIRCOM'!$G$6:$FJ$12,3,FALSE) -> 131 | D16: =VLOOKUP($A16,'RECAP DIRCOM'!$G$6:$FJ$12,109,FALSE) -> 2.97 | E16: =VLOOKUP($A16,'RECAP DIRCOM'!$G$6:$FJ$12,110,FALSE) -> 0.32 | F16: =VLOOKUP($A16,'RECAP DIRCOM'!$G$6:$FJ$12,111,FALSE) -> 56% | G16: =VLOOKUP($A16,'RECAP DIRCOM'!$G$6:$FJ$12,112,FALSE) -> 4 | H16: =VLOOKUP($A16,'RECAP DIRCOM'!$G$6:$FJ$12,113,FALSE) -> 1.06 | I16: =VLOOKUP($A16,'RECAP DIRCOM'!$G$6:$FJ$12,114,FALSE) -> 0.27 | J16: =VLOOKUP($A16,'RECAP DIRCOM'!$G$6:$FJ$12,115,FALSE) -> 34% | K16: =VLOOKUP($A16,'RECAP DIRCOM'!$G$6:$FJ$12,116,FALSE) -> 5 | L16: =VLOOKUP($A16,'RECAP DIRCOM'!$G$6:$FJ$12,117,FALSE) -> 47% | M16: =VLOOKUP($A16,'RECAP DIRCOM'!$G$6:$FJ$12,118,FALSE) -> 45% | N16: =VLOOKUP($A16,'RECAP DIRCOM'!$G$6:$FJ$12,119,FALSE) -> 5
B17: Total CEGEE Directions Régionales | C17: =SUM(C10:C16) -> 1400

Sheet DC_CONQUETE
B1: Accueil | D1: BAROMETRE BDD - DIRECTIONS REGIONALES
D2: CLIENTS
D3: =ACCUEIL!F7 -> 2020-05-24
D7: Evolution nette clients Bancarisés Principaux | H7: Evolution nette relations PREMIUM | L7: Evolution nette clients Jeunes équipés | P7: Evolution nette clients Pro actif équipés | T7: Total Clients
F8: coef | G8: ='RECAP DIRCOM'!N4 -> 4% | J8: coef | K8: ='RECAP DIRCOM'!R4 -> 5% | N8: coef | O8: ='RECAP DIRCOM'!V4 -> 3% | R8: coef | S8: ='RECAP DIRCOM'!Z4 -> 3% | U8: coef | V8: ='RECAP DIRCOM'!AC4 -> 15%
B9: Direction | C9: ETP perf | D9: Nb / ETP | E9: PNB / ETP | F9: % Ecart au 1er | G9: Rang | H9: Nb / ETP | I9: PNB / ETP | J9: % Ecart au 1er | K9: Rang | L9: Nb / ETP | M9: PNB / ETP | N9: % Ecart au 1er | O9: Rang | P9: Nb / ETP | Q9: PNB / ETP | R9: % Ecart au 1er | S9: Rang | T9: Moyenne ecart au 1er | U9: % Ecart au 1er | V9: Rang CEGEE
A10: 50 | B10: Aube Haute Marne | C10: =VLOOKUP($A10,'RECAP DIRCOM'!$G$6:$FJ$12,3,FALSE) -> 126 | D10: =VLOOKUP($A10,'RECAP DIRCOM'!$G$6:$FJ$12,5,FALSE) -> -0.79 | E10: =VLOOKUP($A10,'RECAP DIRCOM'!$G$6:$FJ$12,6,FALSE) -> -0.40 | F10: =VLOOKUP($A10,'RECAP DIRCOM'!$G$6:$FJ$12,7,FALSE) -> 45% | G10: =VLOOKUP($A10,'RECAP DIRCOM'!$G$6:$FJ$12,8,FALSE) -> 3 | H10: =VLOOKUP($A10,'RECAP DIRCOM'!$G$6:$FJ$12,9,FALSE) -> 0.82 | I10: =VLOOKUP($A10,'RECAP DIRCOM'!$G$6:$FJ$12,10,FALSE) -> 0.57 | J10: =VLOOKUP($A10,'RECAP DIRCOM'!$G$6:$FJ$12,11,FALSE) -> 0% | K10: =VLOOKUP($A10,'RECAP DIRCOM'!$G$6:$FJ$12,12,FALSE) -> 1 | L10: =VLOOKUP($A10,'RECAP DIRCOM'!$G$6:$FJ$12,13,FALSE) -> -2.52 | M10: =VLOOKUP($A10,'RECAP DIRCOM'!$G$6:$FJ$12,14,FALSE) -> -0.38 | N10: =VLOOKUP($A10,'RECAP DIRCOM'!$G$6:$FJ$12,15,FALSE) -> 98% | O10: =VLOOKUP($A10,'RECAP DIRCOM'!$G$6:$FJ$12,16,FALSE) -> 6 | P10: =VLOOKUP($A10,'RECAP DIRCOM'!$G$6:$FJ$12,17,FALSE) -> 0.02 | Q10: =VLOOKUP($A10,'RECAP DIRCOM'!$G$6:$FJ$12,18,FALSE) -> 0.06 | R10: =VLOOKUP($A10,'RECAP DIRCOM'!$G$6:$FJ$12,19,FALSE) -> 60% | S10: =VLOOKUP($A10,'RECAP DIRCOM'!$G$6:$FJ$12,20,FALSE) -> 3 | T10: =VLOOKUP($A10,'RECAP DIRCOM'!$G$6:$FJ$12,21,FALSE) -> 44% | U10: =VLOOKUP($A10,'RECAP DIRCOM'!$G$6:$FJ$12,22,FALSE) -> 25% | V10: =VLOOKUP($A10,'RECAP DIRCOM'!$G$6:$FJ$12,23,FALSE) -> 3
A11: 262 | B11: Bas-Rhin | C11: =VLOOKUP($A11,'RECAP DIRCOM'!$G$6:$FJ$12,3,FALSE) -> 261 | D11: =VLOOKUP($A11,'RECAP DIRCOM'!$G$6:$FJ$12,5,FALSE) -> -1.64 | E11: =VLOOKUP($A11,'RECAP DIRCOM'!$G$6:$FJ$12,6,FALSE) -> -0.82 | F11: =VLOOKUP($A11,'RECAP DIRCOM'!$G$6:$FJ$12,7,FALSE) -> 84% | G11: =VLOOKUP($A11,'RECAP DIRCOM'!$G$6:$FJ$12,8,FALSE) -> 6 | H11: =VLOOKUP($A11,'RECAP DIRCOM'!$G$6:$FJ$12,9,FALSE) -> 0.55 | I11: =VLOOKUP($A11,'RECAP DIRCOM'!$G$6:$FJ$12,10,FALSE) -> 0.38 | J11: =VLOOKUP($A11,'RECAP DIRCOM'!$G$6:$FJ$12,11,FALSE) -> 33% | K11: =VLOOKUP($A11,'RECAP DIRCOM'!$G$6:$FJ$12,12,FALSE) -> 6 | L11: =VLOOKUP($A11,'RECAP DIRCOM'!$G$6:$FJ$12,13,FALSE) -> -2.15 | M11: =VLOOKUP($A11,'RECAP DIRCOM'!$G$6:$FJ$12,14,FALSE) -> -0.32 | N11: =VLOOKUP($A11,'RECAP DIRCOM'!$G$6:$FJ$12,15,FALSE) -> 69% | O11: =VLOOKUP($A11,'RECAP DIRCOM'!$G$6:$FJ$12,16,FALSE) -> 3 | P11: =VLOOKUP($A11,'RECAP DIRCOM'!$G$6:$FJ$12,17,FALSE) -> -0.05 | Q11: =VLOOKUP($A11,'RECAP DIRCOM'!$G$6:$FJ$12,18,FALSE) -> -0.12 | R11: =VLOOKUP($A11,'RECAP DIRCOM'!$G$6:$FJ$12,19,FALSE) -> 150% | S11: =VLOOKUP($A11,'RECAP DIRCOM'!$G$6:$FJ$12,20,FALSE) -> 7 | T11: =VLOOKUP($A11,'RECAP DIRCOM'!$G$6:$FJ$12,21,FALSE) -> 77% | U11: =VLOOKUP($A11,'RECAP DIRCOM'!$G$6:$FJ$12,22,FALSE) -> 59% | V11: =VLOOKUP($A11,'RECAP DIRCOM'!$G$6:$FJ$12,23,FALSE) -> 7
A12: 264 | B12: Haut-Rhin | C12: =VLOOKUP($A12,'RECAP DIRCOM'!$G$6:$FJ$12,3,FALSE) -> 157 | D12: =VLOOKUP($A12,'RECAP DIRCOM'!$G$6:$FJ$12,5,FALSE) -> -3.09 | E12: =VLOOKUP($A12,'RECAP DIRCOM'!$G$6:$FJ$12,6,FALSE) -> -1.55 | F12: =VLOOKUP($A12,'RECAP DIRCOM'!$G$6:$FJ$12,7,FALSE) -> 150% | G12: =VLOOKUP($A12,'RECAP DIRCOM'!$G$6:$FJ$12,8,FALSE) -> 7 | H12: =VLOOKUP($A12,'RECAP DIRCOM'!$G$6:$FJ$12,9,FALSE) -> 0.73 | I12: =VLOOKUP($A12,'RECAP DIRCOM'!$G$6:$FJ$12,10,FALSE) -> 0.51 | J12: =VLOOKUP($A12,'RECAP DIRCOM'!$G$6:$FJ$12,11,FALSE) -> 11% | K12: =VLOOKUP($A12,'RECAP DIRCOM'!$G$6:$FJ$12,12,FALSE) -> 4 | L12: =VLOOKUP($A12,'RECAP DIRCOM'!$G$6:$FJ$12,13,FALSE) -> -2.98 | M12: =VLOOKUP($A12,'RECAP DIRCOM'!$G$6:$FJ$12,14,FALSE) -> -0.45 | N12: =VLOOKUP($A12,'RECAP DIRCOM'!$G$6:$FJ$12,15,FALSE) -> 134% | O12: =VLOOKUP($A12,'RECAP DIRCOM'!$G$6:$FJ$12,16,FALSE) -> 7 | P12: =VLOOKUP($A12,'RECAP DIRCOM'!$G$6:$FJ$12,17,FALSE) -> 0.07 | Q12: =VLOOKUP($A12,'RECAP DIRCOM'!$G$6:$FJ$12,18,FALSE) -> 0.18 | R12: =VLOOKUP($A12,'RECAP DIRCOM'!$G$6:$FJ$12,19,FALSE) -> 0% | S12: =VLOOKUP($A12,'RECAP DIRCOM'!$G$6:$FJ$12,20,FALSE) -> 1 | T12: =VLOOKUP($A12,'RECAP DIRCOM'!$G$6:$FJ$12,21,FALSE) -> 71% | U12: =VLOOKUP($A12,'RECAP DIRCOM'!$G$6:$FJ$12,22,FALSE) -> 52% | V12: =VLOOKUP($A12,'RECAP DIRCOM'!$G$6:$FJ$12,23,FALSE) -> 6
A13: 30 | B13: Marne-Ardennes | C13: =VLOOKUP($A13,'RECAP DIRCOM'!$G$6:$FJ$12,3,FALSE) -> 224 | D13: =VLOOKUP($A13,'RECAP DIRCOM'!$G$6:$FJ$12,5,FALSE) -> 0.19 | E13: =VLOOKUP($A13,'RECAP DIRCOM'!$G$6:$FJ$12,6,FALSE) -> 0.10 | F13: =VLOOKUP($A13,'RECAP DIRCOM'!$G$6:$FJ$12,7,FALSE) -> 0% | G13: =VLOOKUP($A13,'RECAP DIRCOM'!$G$6:$FJ$12,8,FALSE) -> 1 | H13: =VLOOKUP($A13,'RECAP DIRCOM'!$G$6:$FJ$12,9,FALSE) -> 0.41 | I13: =VLOOKUP($A13,'RECAP DIRCOM'!$G$6:$FJ$12,10,FALSE) -> 0.28 | J13: =VLOOKUP($A13,'RECAP DIRCOM'!$G$6:$FJ$12,11,FALSE) -> 50% | K13: =VLOOKUP($A13,'RECAP DIRCOM'!$G$6:$FJ$12,12,FALSE) -> 7 | L13: =VLOOKUP($A13,'RECAP DIRCOM'!$G$6:$FJ$12,13,FALSE) -> -1.43 | M13: =VLOOKUP($A13,'RECAP DIRCOM'!$G$6:$FJ$12,14,FALSE) -> -0.21 | N13: =VLOOKUP($A13,'RECAP DIRCOM'!$G$6:$FJ$12,15,FALSE) -> 12% | O13: =VLOOKUP($A13,'RECAP DIRCOM'!$G$6:$FJ$12,16,FALSE) -> 2 | P13: =VLOOKUP($A13,'RECAP DIRCOM'!$G$6:$FJ$12,17,FALSE) -> -0.01 | Q13: =VLOOKUP($A13,'RECAP DIRCOM'!$G$6:$FJ$12,18,FALSE) -> -0.02 | R13: =VLOOKUP($A13,'RECAP DIRCOM'!$G$6:$FJ$12,19,FALSE) -> 102% | S13: =VLOOKUP($A13,'RECAP DIRCOM'!$G$6:$FJ$12,20,FALSE) -> 6 | T13: =VLOOKUP($A13,'RECAP DIRCOM'!$G$6:$FJ$12,21,FALSE) -> 40% | U13: =VLOOKUP($A13,'RECAP DIRCOM'!$G$6:$FJ$12,22,FALSE) -> 21% | V13: =VLOOKUP($A13,'RECAP DIRCOM'!$G$6:$FJ$12,23,FALSE) -> 2
A14: 110 | B14: Meurthe et Moselle Meuse | C14: =VLOOKUP($A14,'RECAP DIRCOM'!$G$6:$FJ$12,3,FALSE) -> 230 | D14: =VLOOKUP($A14,'RECAP DIRCOM'!$G$6:$FJ$12,5,FALSE) -> -0.25 | E14: =VLOOKUP($A14,'RECAP DIRCOM'!$G$6:$FJ$12,6,FALSE) -> -0.13 | F14: =VLOOKUP($A14,'RECAP DIRCOM'!$G$6:$FJ$12,7,FALSE) -> 20% | G14: =VLOOKUP($A14,'RECAP DIRCOM'!$G$6:$FJ$12,8,FALSE) -> 2 | H14: =VLOOKUP($A14,'RECAP DIRCOM'!$G$6:$FJ$12,9,FALSE) -> 0.75 | I14: =VLOOKUP($A14,'RECAP DIRCOM'!$G$6:$FJ$12,10,FALSE) -> 0.52 | J14: =VLOOKUP($A14,'RECAP DIRCOM'!$G$6:$FJ$12,11,FALSE) -> 9% | K14: =VLOOKUP($A14,'RECAP DIRCOM'!$G$6:$FJ$12,12,FALSE) -> 2 | L14: =VLOOKUP($A14,'RECAP DIRCOM'!$G$6:$FJ$12,13,FALSE) -> -1.27 | M14: =VLOOKUP($A14,'RECAP DIRCOM'!$G$6:$FJ$12,14,FALSE) -> -0.19 | N14: =VLOOKUP($A14,'RECAP DIRCOM'!$G$6:$FJ$12,15,FALSE) -> 0% | O14: =VLOOKUP($A14,'RECAP DIRCOM'!$G$6:$FJ$12,16,FALSE) -> 1 | P14: =VLOOKUP($A14,'RECAP DIRCOM'!$G$6:$FJ$12,17,FALSE) -> 0.03 | Q14: =VLOOKUP($A14,'RECAP DIRCOM'!$G$6:$FJ$12,18,FALSE) -> 0.08 | R14: =VLOOKUP($A14,'RECAP DIRCOM'!$G$6:$FJ$12,19,FALSE) -> 51% | S14: =VLOOKUP($A14,'RECAP DIRCOM'!$G$6:$FJ$12,20,FALSE) -> 2 | T14: =VLOOKUP($A14,'RECAP DIRCOM'!$G$6:$FJ$12,21,FALSE) -> 19% | U14: =VLOOKUP($A14,'RECAP DIRCOM'!$G$6:$FJ$12,22,FALSE) -> 0% | V14: =VLOOKUP($A14,'RECAP DIRCOM'!$G$6:$FJ$12,23,FALSE) -> 1
A15: 160 | B15: Moselle | C15: =VLOOKUP($A15,'RECAP DIRCOM'!$G$6:$FJ$12,3,FALSE) -> 270 | D15: =VLOOKUP($A15,'RECAP DIRCOM'!$G$6:$FJ$12,5,FALSE) -> -1.17 | E15: =VLOOKUP($A15,'RECAP DIRCOM'!$G$6:$FJ$12,6,FALSE) -> -0.59 | F15: =VLOOKUP($A15,'RECAP DIRCOM'!$G$6:$FJ$12,7,FALSE) -> 62% | G15: =VLOOKUP($A15,'RECAP DIRCOM'!$G$6:$FJ$12,8,FALSE) -> 4 | H15: =VLOOKUP($A15,'RECAP DIRCOM'!$G$6:$FJ$12,9,FALSE) -> 0.74 | I15: =VLOOKUP($A15,'RECAP DIRCOM'!$G$6:$FJ$12,10,FALSE) -> 0.52 | J15: =VLOOKUP($A15,'RECAP DIRCOM'!$G$6:$FJ$12,11,FALSE) -> 9% | K15: =VLOOKUP($A15,'RECAP DIRCOM'!$G$6:$FJ$12,12,FALSE) -> 3 | L15: =VLOOKUP($A15,'RECAP DIRCOM'!$G$6:$FJ$12,13,FALSE) -> -2.30 | M15: =VLOOKUP($A15,'RECAP DIRCOM'!$G$6:$FJ$12,14,FALSE) -> -0.35 | N15: =VLOOKUP($A15,'RECAP DIRCOM'!$G$6:$FJ$12,15,FALSE) -> 81% | O15: =VLOOKUP($A15,'RECAP DIRCOM'!$G$6:$FJ$12,16,FALSE) -> 4 | P15: =VLOOKUP($A15,'RECAP DIRCOM'!$G$6:$FJ$12,17,FALSE) -> 0.01 | Q15: =VLOOKUP($A15,'RECAP DIRCOM'!$G$6:$FJ$12,18,FALSE) -> 0.02 | R15: =VLOOKUP($A15,'RECAP DIRCOM'!$G$6:$FJ$12,19,FALSE) -> 81% | S15: =VLOOKUP($A15,'RECAP DIRCOM'!$G$6:$FJ$12,20,FALSE) -> 5 | T15: =VLOOKUP($A15,'RECAP DIRCOM'!$G$6:$FJ$12,21,FALSE) -> 52% | U15: =VLOOKUP($A15,'RECAP DIRCOM'!$G$6:$FJ$12,22,FALSE) -> 34% | V15: =VLOOKUP($A15,'RECAP DIRCOM'!$G$6:$FJ$12,23,FALSE) -> 4
A16: 80 | B16: Vosges | C16: =VLOOKUP($A16,'RECAP DIRCOM'!$G$6:$FJ$12,3,FALSE) -> 131 | D16: =VLOOKUP($A16,'RECAP DIRCOM'!$G$6:$FJ$12,5,FALSE) -> -1.27 | E16: =VLOOKUP($A16,'RECAP DIRCOM'!$G$6:$FJ$12,6,FALSE) -> -0.64 | F16: =VLOOKUP($A16,'RECAP DIRCOM'!$G$6:$FJ$12,7,FALSE) -> 67% | G16: =VLOOKUP($A16,'RECAP DIRCOM'!$G$6:$FJ$12,8,FALSE) -> 5 | H16: =VLOOKUP($A16,'RECAP DIRCOM'!$G$6:$FJ$12,9,FALSE) -> 0.66 | I16: =VLOOKUP($A16,'RECAP DIRCOM'!$G$6:$FJ$12,10,FALSE) -> 0.46 | J16: =VLOOKUP($A16,'RECAP DIRCOM'!$G$6:$FJ$12,11,FALSE) -> 19% | K16: =VLOOKUP($A16,'RECAP DIRCOM'!$G$6:$FJ$12,12,FALSE) -> 5 | L16: =VLOOKUP($A16,'RECAP DIRCOM'!$G$6:$FJ$12,13,FALSE) -> -2.30 | M16: =VLOOKUP($A16,'RECAP DIRCOM'!$G$6:$FJ$12,14,FALSE) -> -0.35 | N16: =VLOOKUP($A16,'RECAP DIRCOM'!$G$6:$FJ$12,15,FALSE) -> 81% | O16: =VLOOKUP($A16,'RECAP DIRCOM'!$G$6:$FJ$12,16,FALSE) -> 5 | P16: =VLOOKUP($A16,'RECAP DIRCOM'!$G$6:$FJ$12,17,FALSE) -> 0.01 | Q16: =VLOOKUP($A16,'RECAP DIRCOM'!$G$6:$FJ$12,18,FALSE) -> 0.02 | R16: =VLOOKUP($A16,'RECAP DIRCOM'!$G$6:$FJ$12,19,FALSE) -> 81% | S16: =VLOOKUP($A16,'RECAP DIRCOM'!$G$6:$FJ$12,20,FALSE) -> 4 | T16: =VLOOKUP($A16,'RECAP DIRCOM'!$G$6:$FJ$12,21,FALSE) -> 57% | U16: =VLOOKUP($A16,'RECAP DIRCOM'!$G$6:$FJ$12,22,FALSE) -> 38% | V16: =VLOOKUP($A16,'RECAP DIRCOM'!$G$6:$FJ$12,23,FALSE) -> 5
B17: Total CEGEE Directions Régionales | C17: =SUM(C10:C16) -> 1400

Sheet DC_ACCELER
B1: Accueil | D1: BAROMETRE BDD - DIRECTIONS REGIONALES
D2: ACCELERATEURS DE PNB
D3: =ACCUEIL!F7 -> 2020-05-24
D7: Ventes brutes SED finalisées | H7: Clients Equipés E documents | L7: Economie Opt'in | P7: Remises Commerciales | T7: Total Accélérateurs PNB
F8: coef | G8: ='RECAP DIRCOM'!EE4 -> 6% | J8: coef | K8: ='RECAP DIRCOM'!EI4 -> 3% | N8: coef | O8: ='RECAP DIRCOM'!EM4 -> 3% | R8: coef | S8: ='RECAP DIRCOM'!EQ4 -> 3% | U8: coef | V8: ='RECAP DIRCOM'!ET4 -> 15%
B9: Direction | C9: ETP perf | D9: Nb / ETP | E9: PNB / ETP | F9: % Ecart au 1er | G9: Rang | H9: Nb / ETP | I9: PNB / ETP | J9: % Ecart au 1er | K9: Rang | L9: Nb / ETP | M9: PNB / ETP | N9: % Ecart au 1er | O9: Rang | P9: Rem / ETP | Q9: PNB / ETP | R9: % Ecart au 1er | S9: Rang | T9: Moyenne ecart au 1er | U9: % Ecart au 1er | V9: Rang CEGEE
A10: 50 | B10: Aube Haute Marne | C10: =VLOOKUP($A10,'RECAP DIRCOM'!$G$6:$FJ$12,3,FALSE) -> 126 | D10: =VLOOKUP($A10,'RECAP DIRCOM'!$G$6:$FJ$12,126,FALSE) -> 15.36 | E10: =VLOOKUP($A10,'RECAP DIRCOM'!$G$6:$FJ$12,127,FALSE) -> 0.15 | F10: =VLOOKUP($A10,'RECAP DIRCOM'!$G$6:$FJ$12,128,FALSE) -> 31% | G10: =VLOOKUP($A10,'RECAP DIRCOM'!$G$6:$FJ$12,129,FALSE) -> 5 | H10: =VLOOKUP($A10,'RECAP DIRCOM'!$G$6:$FJ$12,130,FALSE) -> 9.02 | I10: =VLOOKUP($A10,'RECAP DIRCOM'!$G$6:$FJ$12,131,FALSE) -> 0.45 | J10: =VLOOKUP($A10,'RECAP DIRCOM'!$G$6:$FJ$12,132,FALSE) -> 22% | K10: =VLOOKUP($A10,'RECAP DIRCOM'!$G$6:$FJ$12,133,FALSE) -> 5 | L10: =VLOOKUP($A10,'RECAP DIRCOM'!$G$6:$FJ$12,134,FALSE) -> 11.18 | M10: =VLOOKUP($A10,'RECAP DIRCOM'!$G$6:$FJ$12,135,FALSE) -> 0.17 | N10: =VLOOKUP($A10,'RECAP DIRCOM'!$G$6:$FJ$12,136,FALSE) -> 37% | O10: =VLOOKUP($A10,'RECAP DIRCOM'!$G$6:$FJ$12,137,FALSE) -> 2 | P10: =VLOOKUP($A10,'RECAP DIRCOM'!$G$6:$FJ$12,138,FALSE) -> -100.07 | Q10: =VLOOKUP($A10,'RECAP DIRCOM'!$G$6:$FJ$12,139,FALSE) -> -0.79 | R10: =VLOOKUP($A10,'RECAP DIRCOM'!$G$6:$FJ$12,140,FALSE) -> 0% | S10: =VLOOKUP($A10,'RECAP DIRCOM'!$G$6:$FJ$12,141,FALSE) -> 1 | T10: =VLOOKUP($A10,'RECAP DIRCOM'!$G$6:$FJ$12,142,FALSE) -> 24% | U10: =VLOOKUP($A10,'RECAP DIRCOM'!$G$6:$FJ$12,143,FALSE) -> 11% | V10: =VLOOKUP($A10,'RECAP DIRCOM'!$G$6:$FJ$12,144,FALSE) -> 4
A11: 262 | B11: Bas-Rhin | C11: =VLOOKUP($A11,'RECAP DIRCOM'!$G$6:$FJ$12,3,FALSE) -> 261 | D11: =VLOOKUP($A11,'RECAP DIRCOM'!$G$6:$FJ$12,126,FALSE) -> 17.06 | E11: =VLOOKUP($A11,'RECAP DIRCOM'!$G$6:$FJ$12,127,FALSE) -> 0.17 | F11: =VLOOKUP($A11,'RECAP DIRCOM'!$G$6:$FJ$12,128,FALSE) -> 24% | G11: =VLOOKUP($A11,'RECAP DIRCOM'!$G$6:$FJ$12,129,FALSE) -> 4 | H11: =VLOOKUP($A11,'RECAP DIRCOM'!$G$6:$FJ$12,130,FALSE) -> 10.06 | I11: =VLOOKUP($A11,'RECAP DIRCOM'!$G$6:$FJ$12,131,FALSE) -> 0.50 | J11: =VLOOKUP($A11,'RECAP DIRCOM'!$G$6:$FJ$12,132,FALSE) -> 13% | K11: =VLOOKUP($A11,'RECAP DIRCOM'!$G$6:$FJ$12,133,FALSE) -> 3 | L11: =VLOOKUP($A11,'RECAP DIRCOM'!$G$6:$FJ$12,134,FALSE) -> 17.70 | M11: =VLOOKUP($A11,'RECAP DIRCOM'!$G$6:$FJ$12,135,FALSE) -> 0.27 | N11: =VLOOKUP($A11,'RECAP DIRCOM'!$G$6:$FJ$12,136,FALSE) -> 0% | O11: =VLOOKUP($A11,'RECAP DIRCOM'!$G$6:$FJ$12,137,FALSE) -> 1 | P11: =VLOOKUP($A11,'RECAP DIRCOM'!$G$6:$FJ$12,138,FALSE) -> -257.03 | Q11: =VLOOKUP($A11,'RECAP DIRCOM'!$G$6:$FJ$12,139,FALSE) -> -0.99 | R11: =VLOOKUP($A11,'RECAP DIRCOM'!$G$6:$FJ$12,140,FALSE) -> 24% | S11: =VLOOKUP($A11,'RECAP DIRCOM'!$G$6:$FJ$12,141,FALSE) -> 4 | T11: =VLOOKUP($A11,'RECAP DIRCOM'!$G$6:$FJ$12,142,FALSE) -> 17% | U11: =VLOOKUP($A11,'RECAP DIRCOM'!$G$6:$FJ$12,143,FALSE) -> 3% | V11: =VLOOKUP($A11,'RECAP DIRCOM'!$G$6:$FJ$12,144,FALSE) -> 3
A12: 264 | B12: Haut-Rhin | C12: =VLOOKUP($A12,'RECAP DIRCOM'!$G$6:$FJ$12,3,FALSE) -> 157 | D12: =VLOOKUP($A12,'RECAP DIRCOM'!$G$6:$FJ$12,126,FALSE) -> 11.93 | E12: =VLOOKUP($A12,'RECAP DIRCOM'!$G$6:$FJ$12,127,FALSE) -> 0.12 | F12: =VLOOKUP($A12,'RECAP DIRCOM'!$G$6:$FJ$12,128,FALSE) -> 47% | G12: =VLOOKUP($A12,'RECAP DIRCOM'!$G$6:$FJ$12,129,FALSE) -> 7 | H12: =VLOOKUP($A12,'RECAP DIRCOM'!$G$6:$FJ$12,130,FALSE) -> 8.41 | I12: =VLOOKUP($A12,'RECAP DIRCOM'!$G$6:$FJ$12,131,FALSE) -> 0.42 | J12: =VLOOKUP($A12,'RECAP DIRCOM'!$G$6:$FJ$12,132,FALSE) -> 27% | K12: =VLOOKUP($A12,'RECAP DIRCOM'!$G$6:$FJ$12,133,FALSE) -> 6 | L12: =VLOOKUP($A12,'RECAP DIRCOM'!$G$6:$FJ$12,134,FALSE) -> 6.65 | M12: =VLOOKUP($A12,'RECAP DIRCOM'!$G$6:$FJ$12,135,FALSE) -> 0.10 | N12: =VLOOKUP($A12,'RECAP DIRCOM'!$G$6:$FJ$12,136,FALSE) -> 62% | O12: =VLOOKUP($A12,'RECAP DIRCOM'!$G$6:$FJ$12,137,FALSE) -> 5 | P12: =VLOOKUP($A12,'RECAP DIRCOM'!$G$6:$FJ$12,138,FALSE) -> -161.70 | Q12: =VLOOKUP($A12,'RECAP DIRCOM'!$G$6:$FJ$12,139,FALSE) -> -1.03 | R12: =VLOOKUP($A12,'RECAP DIRCOM'!$G$6:$FJ$12,140,FALSE) -> 30% | S12: =VLOOKUP($A12,'RECAP DIRCOM'!$G$6:$FJ$12,141,FALSE) -> 7 | T12: =VLOOKUP($A12,'RECAP DIRCOM'!$G$6:$FJ$12,142,FALSE) -> 42% | U12: =VLOOKUP($A12,'RECAP DIRCOM'!$G$6:$FJ$12,143,FALSE) -> 29% | V12: =VLOOKUP($A12,'RECAP DIRCOM'!$G$6:$FJ$12,144,FALSE) -> 6
A13: 30 | B13: Marne-Ardennes | C13: =VLOOKUP($A13,'RECAP DIRCOM'!$G$6:$FJ$12,3,FALSE) -> 224 | D13: =VLOOKUP($A13,'RECAP DIRCOM'!$G$6:$FJ$12,126,FALSE) -> 21.19 | E13: =VLOOKUP($A13,'RECAP DIRCOM'!$G$6:$FJ$12,127,FALSE) -> 0.21 | F13: =VLOOKUP($A13,'RECAP DIRCOM'!$G$6:$FJ$12,128,FALSE) -> 5% | G13: =VLOOKUP($A13,'RECAP DIRCOM'!$G$6:$FJ$12,129,FALSE) -> 2 | H13: =VLOOKUP($A13,'RECAP DIRCOM'!$G$6:$FJ$12,130,FALSE) -> 11.52 | I13: =VLOOKUP($A13,'RECAP DIRCOM'!$G$6:$FJ$12,131,FALSE) -> 0.58 | J13: =VLOOKUP($A13,'RECAP DIRCOM'!$G$6:$FJ$12,132,FALSE) -> 0% | K13: =VLOOKUP($A13,'RECAP DIRCOM'!$G$6:$FJ$12,133,FALSE) -> 1 | L13: =VLOOKUP($A13,'RECAP DIRCOM'!$G$6:$FJ$12,134,FALSE) -> 6.85 | M13: =VLOOKUP($A13,'RECAP DIRCOM'!$G$6:$FJ$12,135,FALSE) -> 0.10 | N13: =VLOOKUP($A13,'RECAP DIRCOM'!$G$6:$FJ$12,136,FALSE) -> 61% | O13: =VLOOKUP($A13,'RECAP DIRCOM'!$G$6:$FJ$12,137,FALSE) -> 4 | P13: =VLOOKUP($A13,'RECAP DIRCOM'!$G$6:$FJ$12,138,FALSE) -> -191.46 | Q13: =VLOOKUP($A13,'RECAP DIRCOM'!$G$6:$FJ$12,139,FALSE) -> -0.86 | R13: =VLOOKUP($A13,'RECAP DIRCOM'!$G$6:$FJ$12,140,FALSE) -> 8% | S13: =VLOOKUP($A13,'RECAP DIRCOM'!$G$6:$FJ$12,141,FALSE) -> 2 | T13: =VLOOKUP($A13,'RECAP DIRCOM'!$G$6:$FJ$12,142,FALSE) -> 16% | U13: =VLOOKUP($A13,'RECAP DIRCOM'!$G$6:$FJ$12,143,FALSE) -> 2% | V13: =VLOOKUP($A13,'RECAP DIRCOM'!$G$6:$FJ$12,144,FALSE) -> 2
A14: 110 | B14: Meurthe et Moselle Meuse | C14: =VLOOKUP($A14,'RECAP DIRCOM'!$G$6:$FJ$12,3,FALSE) -> 230 | D14: =VLOOKUP($A14,'RECAP DIRCOM'!$G$6:$FJ$12,126,FALSE) -> 22.39 | E14: =VLOOKUP($A14,'RECAP DIRCOM'!$G$6:$FJ$12,127,FALSE) -> 0.22 | F14: =VLOOKUP($A14,'RECAP DIRCOM'!$G$6:$FJ$12,128,FALSE) -> 0% | G14: =VLOOKUP($A14,'RECAP DIRCOM'!$G$6:$FJ$12,129,FALSE) -> 1 | H14: =VLOOKUP($A14,'RECAP DIRCOM'!$G$6:$FJ$12,130,FALSE) -> 11.42 | I14: =VLOOKUP($A14,'RECAP DIRCOM'!$G$6:$FJ$12,131,FALSE) -> 0.57 | J14: =VLOOKUP($A14,'RECAP DIRCOM'!$G$6:$FJ$12,132,FALSE) -> 1% | K14: =VLOOKUP($A14,'RECAP DIRCOM'!$G$6:$FJ$12,133,FALSE) -> 2 | L14: =VLOOKUP($A14,'RECAP DIRCOM'!$G$6:$FJ$12,134,FALSE) -> 10.18 | M14: =VLOOKUP($A14,'RECAP DIRCOM'!$G$6:$FJ$12,135,FALSE) -> 0.15 | N14: =VLOOKUP($A14,'RECAP DIRCOM'!$G$6:$FJ$12,136,FALSE) -> 42% | O14: =VLOOKUP($A14,'RECAP DIRCOM'!$G$6:$FJ$12,137,FALSE) -> 3 | P14: =VLOOKUP($A14,'RECAP DIRCOM'!$G$6:$FJ$12,138,FALSE) -> -229.39 | Q14: =VLOOKUP($A14,'RECAP DIRCOM'!$G$6:$FJ$12,139,FALSE) -> -1.00 | R14: =VLOOKUP($A14,'RECAP DIRCOM'!$G$6:$FJ$12,140,FALSE) -> 25% | S14: =VLOOKUP($A14,'RECAP DIRCOM'!$G$6:$FJ$12,141,FALSE) -> 5 | T14: =VLOOKUP($A14,'RECAP DIRCOM'!$G$6:$FJ$12,142,FALSE) -> 14% | U14: =VLOOKUP($A14,'RECAP DIRCOM'!$G$6:$FJ$12,143,FALSE) -> 0% | V14: =VLOOKUP($A14,'RECAP DIRCOM'!$G$6:$FJ$12,144,FALSE) -> 1
A15: 160 | B15: Moselle | C15: =VLOOKUP($A15,'RECAP DIRCOM'!$G$6:$FJ$12,3,FALSE) -> 270 | D15: =VLOOKUP($A15,'RECAP DIRCOM'!$G$6:$FJ$12,126,FALSE) -> 19.19 | E15: =VLOOKUP($A15,'RECAP DIRCOM'!$G$6:$FJ$12,127,FALSE) -> 0.19 | F15: =VLOOKUP($A15,'RECAP DIRCOM'!$G$6:$FJ$12,128,FALSE) -> 14% | G15: =VLOOKUP($A15,'RECAP DIRCOM'!$G$6:$FJ$12,129,FALSE) -> 3 | H15: =VLOOKUP($A15,'RECAP DIRCOM'!$G$6:$FJ$12,130,FALSE) -> 9.12 | I15: =VLOOKUP($A15,'RECAP DIRCOM'!$G$6:$FJ$12,131,FALSE) -> 0.46 | J15: =VLOOKUP($A15,'RECAP DIRCOM'!$G$6:$FJ$12,132,FALSE) -> 21% | K15: =VLOOKUP($A15,'RECAP DIRCOM'!$G$6:$FJ$12,133,FALSE) -> 4 | L15: =VLOOKUP($A15,'RECAP DIRCOM'!$G$6:$FJ$12,134,FALSE) -> 4.42 | M15: =VLOOKUP($A15,'RECAP DIRCOM'!$G$6:$FJ$12,135,FALSE) -> 0.07 | N15: =VLOOKUP($A15,'RECAP DIRCOM'!$G$6:$FJ$12,136,FALSE) -> 75% | O15: =VLOOKUP($A15,'RECAP DIRCOM'!$G$6:$FJ$12,137,FALSE) -> 7 | P15: =VLOOKUP($A15,'RECAP DIRCOM'!$G$6:$FJ$12,138,FALSE) -> -253.58 | Q15: =VLOOKUP($A15,'RECAP DIRCOM'!$G$6:$FJ$12,139,FALSE) -> -0.94 | R15: =VLOOKUP($A15,'RECAP DIRCOM'!$G$6:$FJ$12,140,FALSE) -> 18% | S15: =VLOOKUP($A15,'RECAP DIRCOM'!$G$6:$FJ$12,141,FALSE) -> 3 | T15: =VLOOKUP($A15,'RECAP DIRCOM'!$G$6:$FJ$12,142,FALSE) -> 29% | U15: =VLOOKUP($A15,'RECAP DIRCOM'!$G$6:$FJ$12,143,FALSE) -> 15% | V15: =VLOOKUP($A15,'RECAP DIRCOM'!$G$6:$FJ$12,144,FALSE) -> 5
A16: 80 | B16: Vosges | C16: =VLOOKUP($A16,'RECAP DIRCOM'!$G$6:$FJ$12,3,FALSE) -> 131 | D16: =VLOOKUP($A16,'RECAP DIRCOM'!$G$6:$FJ$12,126,FALSE) -> 13.60 | E16: =VLOOKUP($A16,'RECAP DIRCOM'!$G$6:$FJ$12,127,FALSE) -> 0.14 | F16: =VLOOKUP($A16,'RECAP DIRCOM'!$G$6:$FJ$12,128,FALSE) -> 39% | G16: =VLOOKUP($A16,'RECAP DIRCOM'!$G$6:$FJ$12,129,FALSE) -> 6 | H16: =VLOOKUP($A16,'RECAP DIRCOM'!$G$6:$FJ$12,130,FALSE) -> 7.17 | I16: =VLOOKUP($A16,'RECAP DIRCOM'!$G$6:$FJ$12,131,FALSE) -> 0.36 | J16: =VLOOKUP($A16,'RECAP DIRCOM'!$G$6:$FJ$12,132,FALSE) -> 38% | K16: =VLOOKUP($A16,'RECAP DIRCOM'!$G$6:$FJ$12,133,FALSE) -> 7 | L16: =VLOOKUP($A16,'RECAP DIRCOM'!$G$6:$FJ$12,134,FALSE) -> 5.62 | M16: =VLOOKUP($A16,'RECAP DIRCOM'!$G$6:$FJ$12,135,FALSE) -> 0.08 | N16: =VLOOKUP($A16,'RECAP DIRCOM'!$G$6:$FJ$12,136,FALSE) -> 68% | O16: =VLOOKUP($A16,'RECAP DIRCOM'!$G$6:$FJ$12,137,FALSE) -> 6 | P16: =VLOOKUP($A16,'RECAP DIRCOM'!$G$6:$FJ$12,138,FALSE) -> -134.50 | Q16: =VLOOKUP($A16,'RECAP DIRCOM'!$G$6:$FJ$12,139,FALSE) -> -1.02 | R16: =VLOOKUP($A16,'RECAP DIRCOM'!$G$6:$FJ$12,140,FALSE) -> 29% | S16: =VLOOKUP($A16,'RECAP DIRCOM'!$G$6:$FJ$12,141,FALSE) -> 6 | T16: =VLOOKUP($A16,'RECAP DIRCOM'!$G$6:$FJ$12,142,FALSE) -> 43% | U16: =VLOOKUP($A16,'RECAP DIRCOM'!$G$6:$FJ$12,143,FALSE) -> 29% | V16: =VLOOKUP($A16,'RECAP DIRCOM'!$G$6:$FJ$12,144,FALSE) -> 7
B17: Total CEGEE Directions Régionales | C17: =SUM(C10:C16) -> 1400

Sheet DC_SATISFACTION
B1: Accueil | D1: BAROMETRE BDD - DIRECTIONS REGIONALES
D2: QUALITE / SATISFACTION
D3: =ACCUEIL!F7 -> 2020-05-24
D7: N P S | G7: Enquête Qualité Haute Définition | J7: Total Satisfaction Clients
E8: coef | F8: ='RECAP DIRCOM'!FC4 -> 8% | H8: coef | I8: ='RECAP DIRCOM'!FF4 -> 7% | K8: coef | L8: ='RECAP DIRCOM'!FI4 -> 15%
B9: Direction | C9: ETP perf | E9: % Ecart au 1er | F9: Rang | H9: % Ecart au 1er | I9: Rang | J9: Moyenne ecart au 1er | K9: % Ecart au 1er | L9: Rang CEGEE
A10: 50 | B10: Aube Haute Marne | C10: =VLOOKUP($A10,'RECAP DIRCOM'!$G$6:$FJ$12,3,FALSE) -> 126 | D10: =VLOOKUP($A10,'RECAP DIRCOM'!$G$6:$FJ$12,151,FALSE) -> -10 | E10: =VLOOKUP($A10,'RECAP DIRCOM'!$G$6:$FJ$12,152,FALSE) -> 11% | F10: =VLOOKUP($A10,'RECAP DIRCOM'!$G$6:$FJ$12,153,FALSE) -> 2 | G10: =VLOOKUP($A10,'RECAP DIRCOM'!$G$6:$FJ$12,154,FALSE) -> 45% | H10: =VLOOKUP($A10,'RECAP DIRCOM'!$G$6:$FJ$12,155,FALSE) -> 21% | I10: =VLOOKUP($A10,'RECAP DIRCOM'!$G$6:$FJ$12,156,FALSE) -> 5 | J10: =VLOOKUP($A10,'RECAP DIRCOM'!$G$6:$FJ$12,157,FALSE) -> 16% | K10: =VLOOKUP($A10,'RECAP DIRCOM'!$G$6:$FJ$12,158,FALSE) -> 16% | L10: =VLOOKUP($A10,'RECAP DIRCOM'!$G$6:$FJ$12,159,FALSE) -> 3
A11: 262 | B11: Bas-Rhin | C11: =VLOOKUP($A11,'RECAP DIRCOM'!$G$6:$FJ$12,3,FALSE) -> 261 | D11: =VLOOKUP($A11,'RECAP DIRCOM'!$G$6:$FJ$12,151,FALSE) -> -21 | E11: =VLOOKUP($A11,'RECAP DIRCOM'!$G$6:$FJ$12,152,FALSE) -> 133% | F11: =VLOOKUP($A11,'RECAP DIRCOM'!$G$6:$FJ$12,153,FALSE) -> 6 | G11: =VLOOKUP($A11,'RECAP DIRCOM'!$G$6:$FJ$12,154,FALSE) -> 39% | H11: =VLOOKUP($A11,'RECAP DIRCOM'!$G$6:$FJ$12,155,FALSE) -> 32% | I11: =VLOOKUP($A11,'RECAP DIRCOM'!$G$6:$FJ$12,156,FALSE) -> 6 | J11: =VLOOKUP($A11,'RECAP DIRCOM'!$G$6:$FJ$12,157,FALSE) -> 86% | K11: =VLOOKUP($A11,'RECAP DIRCOM'!$G$6:$FJ$12,158,FALSE) -> 86% | L11: =VLOOKUP($A11,'RECAP DIRCOM'!$G$6:$FJ$12,159,FALSE) -> 6
A12: 264 | B12: Haut-Rhin | C12: =VLOOKUP($A12,'RECAP DIRCOM'!$G$6:$FJ$12,3,FALSE) -> 157 | D12: =VLOOKUP($A12,'RECAP DIRCOM'!$G$6:$FJ$12,151,FALSE) -> -22 | E12: =VLOOKUP($A12,'RECAP DIRCOM'!$G$6:$FJ$12,152,FALSE) -> 144% | F12: =VLOOKUP($A12,'RECAP DIRCOM'!$G$6:$FJ$12,153,FALSE) -> 7 | G12: =VLOOKUP($A12,'RECAP DIRCOM'!$G$6:$FJ$12,154,FALSE) -> 36% | H12: =VLOOKUP($A12,'RECAP DIRCOM'!$G$6:$FJ$12,155,FALSE) -> 37% | I12: =VLOOKUP($A12,'RECAP DIRCOM'!$G$6:$FJ$12,156,FALSE) -> 7 | J12: =VLOOKUP($A12,'RECAP DIRCOM'!$G$6:$FJ$12,157,FALSE) -> 94% | K12: =VLOOKUP($A12,'RECAP DIRCOM'!$G$6:$FJ$12,158,FALSE) -> 94% | L12: =VLOOKUP($A12,'RECAP DIRCOM'!$G$6:$FJ$12,159,FALSE) -> 7
A13: 30 | B13: Marne-Ardennes | C13: =VLOOKUP($A13,'RECAP DIRCOM'!$G$6:$FJ$12,3,FALSE) -> 224 | D13: =VLOOKUP($A13,'RECAP DIRCOM'!$G$6:$FJ$12,151,FALSE) -> -9 | E13: =VLOOKUP($A13,'RECAP DIRCOM'!$G$6:$FJ$12,152,FALSE) -> 0% | F13: =VLOOKUP($A13,'RECAP DIRCOM'!$G$6:$FJ$12,153,FALSE) -> 1 | G13: =VLOOKUP($A13,'RECAP DIRCOM'!$G$6:$FJ$12,154,FALSE) -> 57% | H13: =VLOOKUP($A13,'RECAP DIRCOM'!$G$6:$FJ$12,155,FALSE) -> 0% | I13: =VLOOKUP($A13,'RECAP DIRCOM'!$G$6:$FJ$12,156,FALSE) -> 1 | J13: =VLOOKUP($A13,'RECAP DIRCOM'!$G$6:$FJ$12,157,FALSE) -> 0% | K13: =VLOOKUP($A13,'RECAP DIRCOM'!$G$6:$FJ$12,158,FALSE) -> 0% | L13: =VLOOKUP($A13,'RECAP DIRCOM'!$G$6:$FJ$12,159,FALSE) -> 1
A14: 110 | B14: Meurthe et Moselle Meuse | C14: =VLOOKUP($A14,'RECAP DIRCOM'!$G$6:$FJ$12,3,FALSE) -> 230 | D14: =VLOOKUP($A14,'RECAP DIRCOM'!$G$6:$FJ$12,151,FALSE) -> -10 | E14: =VLOOKUP($A14,'RECAP DIRCOM'!$G$6:$FJ$12,152,FALSE) -> 11% | F14: =VLOOKUP($A14,'RECAP DIRCOM'!$G$6:$FJ$12,153,FALSE) -> 2 | G14: =VLOOKUP($A14,'RECAP DIRCOM'!$G$6:$FJ$12,154,FALSE) -> 50% | H14: =VLOOKUP($A14,'RECAP DIRCOM'!$G$6:$FJ$12,155,FALSE) -> 13% | I14: =VLOOKUP($A14,'RECAP DIRCOM'!$G$6:$FJ$12,156,FALSE) -> 3 | J14: =VLOOKUP($A14,'RECAP DIRCOM'!$G$6:$FJ$12,157,FALSE) -> 12% | K14: =VLOOKUP($A14,'RECAP DIRCOM'!$G$6:$FJ$12,158,FALSE) -> 12% | L14: =VLOOKUP($A14,'RECAP DIRCOM'!$G$6:$FJ$12,159,FALSE) -> 2
A15: 160 | B15: Moselle | C15: =VLOOKUP($A15,'RECAP DIRCOM'!$G$6:$FJ$12,3,FALSE) -> 270 | D15: =VLOOKUP($A15,'RECAP DIRCOM'!$G$6:$FJ$12,151,FALSE) -> -14 | E15: =VLOOKUP($A15,'RECAP DIRCOM'!$G$6:$FJ$12,152,FALSE) -> 56% | F15: =VLOOKUP($A15,'RECAP DIRCOM'!$G$6:$FJ$12,153,FALSE) -> 5 | G15: =VLOOKUP($A15,'RECAP DIRCOM'!$G$6:$FJ$12,154,FALSE) -> 48% | H15: =VLOOKUP($A15,'RECAP DIRCOM'!$G$6:$FJ$12,155,FALSE) -> 16% | I15: =VLOOKUP($A15,'RECAP DIRCOM'!$G$6:$FJ$12,156,FALSE) -> 4 | J15: =VLOOKUP($A15,'RECAP DIRCOM'!$G$6:$FJ$12,157,FALSE) -> 37% | K15: =VLOOKUP($A15,'RECAP DIRCOM'!$G$6:$FJ$12,158,FALSE) -> 37% | L15: =VLOOKUP($A15,'RECAP DIRCOM'!$G$6:$FJ$12,159,FALSE) -> 5
A16: 80 | B16: Vosges | C16: =VLOOKUP($A16,'RECAP DIRCOM'!$G$6:$FJ$12,3,FALSE) -> 131 | D16: =VLOOKUP($A16,'RECAP DIRCOM'!$G$6:$FJ$12,151,FALSE) -> -11 | E16: =VLOOKUP($A16,'RECAP DIRCOM'!$G$6:$FJ$12,152,FALSE) -> 22% | F16: =VLOOKUP($A16,'RECAP DIRCOM'!$G$6:$FJ$12,153,FALSE) -> 4 | G16: =VLOOKUP($A16,'RECAP DIRCOM'!$G$6:$FJ$12,154,FALSE) -> 50% | H16: =VLOOKUP($A16,'RECAP DIRCOM'!$G$6:$FJ$12,155,FALSE) -> 12% | I16: =VLOOKUP($A16,'RECAP DIRCOM'!$G$6:$FJ$12,156,FALSE) -> 2 | J16: =VLOOKUP($A16,'RECAP DIRCOM'!$G$6:$FJ$12,157,FALSE) -> 18% | K16: =VLOOKUP($A16,'RECAP DIRCOM'!$G$6:$FJ$12,158,FALSE) -> 18% | L16: =VLOOKUP($A16,'RECAP DIRCOM'!$G$6:$FJ$12,159,FALSE) -> 4
B17: Total CEGEE Directions Régionales | C17: =SUM(C10:C16) -> 1400

Sheet SE_FICHE
A1: Accueil
A2: BAROMETRE BDD
A4: UNITE: | B4: TERRITOIRE | E4: ETP perf : | F4: =VLOOKUP(A5,'RECAP SECT'!$G$6:$I$23,3,FALSE) -> 64.73
A5: =VLOOKUP(B5,LISTES!$H$6:$I$23,2,FALSE) -> 5130 | B5: COLMAR
C6: Coefficient du critére | E6: Résultats | I6: Ecart au 1ier | M6: Evolution | O6: Rang
E7: du 1ier | G7: du territoire | I7: Du mois | K7: Au 31/12/2019
A9: RANG au CLASSEMENT GENERAL | K9: =VLOOKUP($A$5,'RECAP SECT AN'!$G$6:$FS$312,168,FALSE) -> 17 | M9: =+K9-O9 -> 1 | O9: =VLOOKUP($A$5,'RECAP SECT'!$G$6:$FS$312,168,FALSE) -> 16 | S9: =VLOOKUP($A$5,'RECAP SECT AN'!$G$6:$FE$312,154,FALSE) -> 1 | U9: =+S9-O9 -> -15
A11: CRITERE CONQUETE | C11: 15% | O11: =VLOOKUP($A$5,'RECAP SECT'!$G$6:$FS$312,23,FALSE) -> 14
B12: PNB Evolution nette Clients BP | C12: 4% | E12: ='RECAP SECT'!K4 -> 0.4 | G12: =VLOOKUP($A$5,'RECAP SECT'!$G$6:$FS$312,6,FALSE) -> -1.6 | I12: =VLOOKUP($A$5,'RECAP SECT'!$G$6:$FS$312,7,FALSE) -> 116% | K12: =VLOOKUP($A$5,'RECAP SECT AN'!$G$6:$FS$312,7,FALSE) -> 134% | M12: =+K12-I12 -> 18% | O12: =VLOOKUP($A$5,'RECAP SECT'!$G$6:$FS$312,8,FALSE) -> 16 | S12: =VLOOKUP($A$5,'RECAP SECT AN'!$G$6:$FE$312,6,FALSE) -> -181% | U12: =+S12-I12 -> -297%
B13: PNB Evolution nette Clients PREMIUM | C13: 5% | E13: ='RECAP SECT'!O4 -> 1.0 | G13: =VLOOKUP($A$5,'RECAP SECT'!$G$6:$FS$312,10,FALSE) -> 0.7 | I13: =VLOOKUP($A$5,'RECAP SECT'!$G$6:$FS$312,11,FALSE) -> 28% | K13: =VLOOKUP($A$5,'RECAP SECT AN'!$G$6:$FS$312,11,FALSE) -> 20% | M13: =+K13-I13 -> -8% | O13: =VLOOKUP($A$5,'RECAP SECT'!$G$6:$FS$312,12,FALSE) -> 7 | S13: =VLOOKUP($A$5,'RECAP SECT AN'!$G$6:$FE$312,9,FALSE) -> 287% | U13: =+S13-I13 -> 259%
B14: PNB Evolution nette Clients Jeunes Equipés | C14: 3% | E14: ='RECAP SECT'!S4 -> -0.1 | G14: =VLOOKUP($A$5,'RECAP SECT'!$G$6:$FS$312,14,FALSE) -> -0.5 | I14: =VLOOKUP($A$5,'RECAP SECT'!$G$6:$FS$312,15,FALSE) -> 124% | K14: =VLOOKUP($A$5,'RECAP SECT AN'!$G$6:$FS$312,15,FALSE) -> -99% | M14: =+K14-I14 -> -222% | O14: =VLOOKUP($A$5,'RECAP SECT'!$G$6:$FS$312,16,FALSE) -> 16 | S14: =VLOOKUP($A$5,'RECAP SECT AN'!$G$6:$FE$312,12,FALSE) -> 1300% | U14: =+S14-I14 -> 1176%
B15: PNB Evolution nette Clients Pro Actifs Equipés | C15: 3% | E15: ='RECAP SECT'!W4 -> 0.4 | G15: =VLOOKUP($A$5,'RECAP SECT'!$G$6:$FS$312,18,FALSE) -> 0.3 | I15: =VLOOKUP($A$5,'RECAP SECT'!$G$6:$FS$312,19,FALSE) -> 34% | K15: =VLOOKUP($A$5,'RECAP SECT AN'!$G$6:$FS$312,19,FALSE) -> 54% | M15: =+K15-I15 -> 20% | O15: =VLOOKUP($A$5,'RECAP SECT'!$G$6:$FS$312,20,FALSE) -> 2 | S15: =VLOOKUP($A$5,'RECAP SECT AN'!$G$6:$FE$312,15,FALSE) -> -99% | U15: =+S15-I15 -> -133%
A17: CRITERE BANCARISATION | C17: 15% | O17: =VLOOKUP($A$5,'RECAP SECT'!$G$6:$FS$312,48,FALSE) -> 11
B18: PNB Ventes nettes forfaits | C18: 4% | E18: ='RECAP SECT'!AJ4 -> 4.9 | G18: =VLOOKUP($A$5,'RECAP SECT'!$G$6:$FS$312,31,FALSE) -> 1.0 | I18: =VLOOKUP($A$5,'RECAP SECT'!$G$6:$FS$312,32,FALSE) -> 79% | K18: =VLOOKUP($A$5,'RECAP SECT AN'!$G$6:$FS$312,32,FALSE) -> 117% | M18: =+K18-I18 -> 37% | O18: =VLOOKUP($A$5,'RECAP SECT'!$G$6:$FS$312,33,FALSE) -> 11 | S18: =VLOOKUP($A$5,'RECAP SECT AN'!$G$6:$FE$312,27,FALSE) -> 0% | U18: =+S18-I18 -> -79%
B19: PNB Ventes nettes IZICARTES Débit Différé | C19: 4% | E19: ='RECAP SECT'!AN4 -> 6.8 | G19: =VLOOKUP($A$5,'RECAP SECT'!$G$6:$FS$312,35,FALSE) -> 2.6 | I19: =VLOOKUP($A$5,'RECAP SECT'!$G$6:$FS$312,36,FALSE) -> 62% | K19: =VLOOKUP($A$5,'RECAP SECT AN'!$G$6:$FS$312,36,FALSE) -> 27% | M19: =+K19-I19 -> -35% | O19: =VLOOKUP($A$5,'RECAP SECT'!$G$6:$FS$312,37,FALSE) -> 15 | S19: =VLOOKUP($A$5,'RECAP SECT AN'!$G$6:$FE$312,30,FALSE) -> 430% | U19: =+S19-I19 -> 368%
B20: PNB Ventes nettes cartes HDG Débit Différé | C20: 4% | E20: ='RECAP SECT'!AR4 -> 10.4 | G20: =VLOOKUP($A$5,'RECAP SECT'!$G$6:$FS$312,39,FALSE) -> 4.2 | I20: =VLOOKUP($A$5,'RECAP SECT'!$G$6:$FS$312,40,FALSE) -> 60% | K20: =VLOOKUP($A$5,'RECAP SECT AN'!$G$6:$FS$312,40,FALSE) -> 35% | M20: =+K20-I20 -> -25% | O20: =VLOOKUP($A$5,'RECAP SECT'!$G$6:$FS$312,41,FALSE) -> 12 | S20: =VLOOKUP($A$5,'RECAP SECT AN'!$G$6:$FE$312,33,FALSE) -> 1600% | U20: =+S20-I20 -> 1540%
B21: PNB Ventes nettes Forfaits Pro, Carte pro | C21: 3% | E21: ='RECAP SECT'!AV4 -> 0.9 | G21: =VLOOKUP($A$5,'RECAP SECT'!$G$6:$FS$312,43,FALSE) -> 0.3 | I21: =VLOOKUP($A$5,'RECAP SECT'!$G$6:$FS$312,44,FALSE) -> 65% | K21: =VLOOKUP($A$5,'RECAP SECT AN'!$G$6:$FS$312,44,FALSE) -> 87% | M21: =+K21-I21 -> 22% | O21: =VLOOKUP($A$5,'RECAP SECT'!$G$6:$FS$312,45,FALSE) -> 10 | S21: =VLOOKUP($A$5,'RECAP SECT AN'!$G$6:$FE$312,39,FALSE) -> 467% | U21: =+S21-I21 -> 402%
A23: CRITERE EPARGNE | C23: 10% | O23: =VLOOKUP($A$5,'RECAP SECT'!$G$6:$FS$312,69,FALSE) -> 10
B24: PNB Epargne Liquide | C24: 3% | E24: ='RECAP SECT'!BI4 -> 10.8 | G24: =VLOOKUP($A$5,'RECAP SECT'!$G$6:$FS$312,56,FALSE) -> 7.4 | I24: =VLOOKUP($A$5,'RECAP SECT'!$G$6:$FS$312,57,FALSE) -> 31% | K24: =VLOOKUP($A$5,'RECAP SECT AN'!$G$6:$FS$312,57,FALSE) -> 25% | M24: =+K24-I24 -> -6% | O24: =VLOOKUP($A$5,'RECAP SECT'!$G$6:$FS$312,58,FALSE) -> 8 | S24: =VLOOKUP($A$5,'RECAP SECT AN'!$G$6:$FE$312,51,FALSE) -> 0% | U24: =+S24-I24 -> -31%
B25: PNB CA UC + arbitrage | C25: 4% | E25: ='RECAP SECT'!BM4 -> 1.2 | G25: =VLOOKUP($A$5,'RECAP SECT'!$G$6:$FS$312,60,FALSE) -> 1.2 | I25: =VLOOKUP($A$5,'RECAP SECT'!$G$6:$FS$312,61,FALSE) -> 0% | K25: =VLOOKUP($A$5,'RECAP SECT AN'!$G$6:$FS$312,61,FALSE) -> 23% | M25: =+K25-I25 -> 23% | O25: =VLOOKUP($A$5,'RECAP SECT'!$G$6:$FS$312,62,FALSE) -> 1 | S25: =VLOOKUP($A$5,'RECAP SECT AN'!$G$6:$FE$312,57,FALSE) -> 25% | U25: =+S25-I25 -> 25%
B26: PNB Excédent assurance vie | C26: 3% | E26: ='RECAP SECT'!BQ4 -> 0.9 | G26: =VLOOKUP($A$5,'RECAP SECT'!$G$6:$FS$312,64,FALSE) -> -3.9 | I26: =VLOOKUP($A$5,'RECAP SECT'!$G$6:$FS$312,65,FALSE) -> 147% | K26: =VLOOKUP($A$5,'RECAP SECT AN'!$G$6:$FS$312,65,FALSE) -> 114% | M26: =+K26-I26 -> -34% | O26: =VLOOKUP($A$5,'RECAP SECT'!$G$6:$FS$312,66,FALSE) -> 17 | S26: =VLOOKUP($A$5,'RECAP SECT AN'!$G$6:$FE$312,60,FALSE) -> 107% | U26: =+S26-I26 -> -41%
A28: CRITERE CREDITS | C28: 15% | O28: =VLOOKUP($A$5,'RECAP SECT'!$G$6:$FS$312,102,FALSE) -> 17
B29: PNB crédit conso | C29: 4% | E29: ='RECAP SECT'!CD4 -> 25.1 | G29: =VLOOKUP($A$5,'RECAP SECT'!$G$6:$FS$312,77,FALSE) -> 13.6 | I29: =VLOOKUP($A$5,'RECAP SECT'!$G$6:$FS$312,78,FALSE) -> 46% | K29: =VLOOKUP($A$5,'RECAP SECT AN'!$G$6:$FS$312,78,FALSE) -> 37% | M29: =+K29-I29 -> -9% | O29: =VLOOKUP($A$5,'RECAP SECT'!$G$6:$FS$312,79,FALSE) -> 18 | S29: =VLOOKUP($A$5,'RECAP SECT AN'!$G$6:$FE$312,75,FALSE) -> 0% | U29: =+S29-I29 -> -46%
B30: PNB ADE crédit conso | C30: 1% | E30: ='RECAP SECT'!CH4 -> 5.7 | G30: =VLOOKUP($A$5,'RECAP SECT'!$G$6:$FS$312,81,FALSE) -> 2.9 | I30: =VLOOKUP($A$5,'RECAP SECT'!$G$6:$FS$312,82,FALSE) -> 49% | K30: =VLOOKUP($A$5,'RECAP SECT AN'!$G$6:$FS$312,82,FALSE) -> 44% | M30: -5% | O30: =VLOOKUP($A$5,'RECAP SECT'!$G$6:$FS$312,83,FALSE) -> 18 | S30: =VLOOKUP($A$5,'RECAP SECT AN'!$G$6:$FE$312,78,FALSE) -> 37% | U30: -11%
B31: PNB crédit immo | C31: 4% | E31: ='RECAP SECT'!CL4 -> 43.8 | G31: =VLOOKUP($A$5,'RECAP SECT'!$G$6:$FS$312,85,FALSE) -> 19.9 | I31: =VLOOKUP($A$5,'RECAP SECT'!$G$6:$FS$312,86,FALSE) -> 55% | K31: =VLOOKUP($A$5,'RECAP SECT AN'!$G$6:$FS$312,86,FALSE) -> 38% | M31: -17% | O31: =VLOOKUP($A$5,'RECAP SECT'!$G$6:$FS$312,87,FALSE) -> 17 | S31: =VLOOKUP($A$5,'RECAP SECT AN'!$G$6:$FE$312,81,FALSE) -> 782% | U31: 728%
B32: PNB ADE crédit immo | C32: 2% | E32: ='RECAP SECT'!CP4 -> 27.6 | G32: =VLOOKUP($A$5,'RECAP SECT'!$G$6:$FS$312,89,FALSE) -> 8.7 | I32: =VLOOKUP($A$5,'RECAP SECT'!$G$6:$FS$312,90,FALSE) -> 68% | K32: =VLOOKUP($A$5,'RECAP SECT AN'!$G$6:$FS$312,90,FALSE) -> 49% | M32: -20% | O32: =VLOOKUP($A$5,'RECAP SECT'!$G$6:$FS$312,91,FALSE) -> 18 | S32: =VLOOKUP($A$5,'RECAP SECT AN'!$G$6:$FE$312,84,FALSE) -> 139312% | U32: 139243%
B33: PNB SACCEF | C33: 2% | E33: ='RECAP SECT'!CT4 -> 2.6 | G33: =VLOOKUP($A$5,'RECAP SECT'!$G$6:$FS$312,93,FALSE) -> 1.1 | I33: =VLOOKUP($A$5,'RECAP SECT'!$G$6:$FS$312,94,FALSE) -> 57% | K33: =VLOOKUP($A$5,'RECAP SECT AN'!$G$6:$FS$312,94,FALSE) -> 51% | M33: -6% | O33: =VLOOKUP($A$5,'RECAP SECT'!$G$6:$FS$312,95,FALSE) -> 15 | S33: =VLOOKUP($A$5,'RECAP SECT AN'!$G$6:$FE$312,87,FALSE) -> 1100% | U33: 1043%
B34: PNB Crédit MLT + Crédit Bail | C34: 2% | E34: ='RECAP SECT'!CX4 -> 10.9 | G34: =VLOOKUP($A$5,'RECAP SECT'!$G$6:$FS$312,97,FALSE) -> 3.9 | I34: =VLOOKUP($A$5,'RECAP SECT'!$G$6:$FS$312,98,FALSE) -> 64% | K34: =VLOOKUP($A$5,'RECAP SECT AN'!$G$6:$FS$312,98,FALSE) -> 74% | M34: 10% | O34: =VLOOKUP($A$5,'RECAP SECT'!$G$6:$FS$312,99,FALSE) -> 6 | S34: =VLOOKUP($A$5,'RECAP SECT AN'!$G$6:$FE$312,90,FALSE) -> 49% | U34: -15%
A36: CRITERE IARD PREVOYANCE | C36: 15% | O36: =VLOOKUP($A$5,'RECAP SECT'!$G$6:$FS$312,119,FALSE) -> 17
B37: PNB Ventes nettes IARD | C37: 9% | E37: ='RECAP SECT'!DK4 -> 1.3 | G37: =VLOOKUP($A$5,'RECAP SECT'!$G$6:$FS$312,110,FALSE) -> 0.1 | I37: =VLOOKUP($A$5,'RECAP SECT'!$G$6:$FS$312,111,FALSE) -> 90% | K37: =VLOOKUP($A$5,'RECAP SECT AN'!$G$6:$FS$312,111,FALSE) -> 75% | M37: =+K37-I37 -> -15% | O37: =VLOOKUP($A$5,'RECAP SECT'!$G$6:$FS$312,112,FALSE) -> 16 | S37: =VLOOKUP($A$5,'RECAP SECT AN'!$G$6:$FE$312,102,FALSE) -> 1800% | U37: =+S37-I37 -> 1710%
B38: PNB Ventes nettes Prévoyance | C38: 6% | E38: ='RECAP SECT'!DO4 -> 0.8 | G38: =VLOOKUP($A$5,'RECAP SECT'!$G$6:$FS$312,114,FALSE) -> 0.2 | I38: =VLOOKUP($A$5,'RECAP SECT'!$G$6:$FS$312,115,FALSE) -> 78% | K38: =VLOOKUP($A$5,'RECAP SECT AN'!$G$6:$FS$312,115,FALSE) -> 62% | M38: =+K38-I38 -> -16% | O38: =VLOOKUP($A$5,'RECAP SECT'!$G$6:$FS$312,116,FALSE) -> 17 | S38: =VLOOKUP($A$5,'RECAP SECT AN'!$G$6:$FE$312,105,FALSE) -> 0% | U38: =+S38-I38 -> -78%
A40: CRITERE ACCELERATEURS PNB | C40: 15% | O40: =VLOOKUP($A$5,'RECAP SECT'!$G$6:$FS$312,144,FALSE) -> 16
B41: PNB Ventes brutes SED Finalisées | C41: 6% | E41: ='RECAP SECT'!EB4 -> 0.3 | G41: =VLOOKUP($A$5,'RECAP SECT'!$G$6:$FS$312,127,FALSE) -> 0.2 | I41: =VLOOKUP($A$5,'RECAP SECT'!$G$6:$FS$312,128,FALSE) -> 50% | K41: =VLOOKUP($A$5,'RECAP SECT AN'!$G$6:$FS$312,128,FALSE) -> 45% | M41: =+K41-I41 -> -6% | O41: =VLOOKUP($A$5,'RECAP SECT'!$G$6:$FS$312,129,FALSE) -> 16 | S41: =VLOOKUP($A$5,'RECAP SECT AN'!$G$6:$FE$312,120,FALSE) -> 0% | U41: =+S41-I41 -> -50%
B42: PNB clients équipés E documents | C42: 3% | E42: ='RECAP SECT'!EF4 -> 0.8 | G42: =VLOOKUP($A$5,'RECAP SECT'!$G$6:$FS$312,131,FALSE) -> 0.5 | I42: =VLOOKUP($A$5,'RECAP SECT'!$G$6:$FS$312,132,FALSE) -> 40% | K42: =VLOOKUP($A$5,'RECAP SECT AN'!$G$6:$FS$312,132,FALSE) -> 43% | M42: =+K42-I42 -> 3% | O42: =VLOOKUP($A$5,'RECAP SECT'!$G$6:$FS$312,133,FALSE) -> 13 | S42: =VLOOKUP($A$5,'RECAP SECT AN'!$G$6:$FE$312,123,FALSE) -> 0% | U42: =+S42-I42 -> -40%
B43: Economie opt'in | C43: 3% | E43: ='RECAP SECT'!EJ4 -> 0.5 | G43: =VLOOKUP($A$5,'RECAP SECT'!$G$6:$FS$312,135,FALSE) -> 0.1 | I43: =VLOOKUP($A$5,'RECAP SECT'!$G$6:$FS$312,136,FALSE) -> 70% | K43: =VLOOKUP($A$5,'RECAP SECT AN'!$G$6:$FS$312,136,FALSE) -> 55% | M43: =+K43-I43 -> -15% | O43: =VLOOKUP($A$5,'RECAP SECT'!$G$6:$FS$312,137,FALSE) -> 10
B44: Remises commerciales | C44: 3% | E44: ='RECAP SECT'!EN4 -> -0.7 | G44: =VLOOKUP($A$5,'RECAP SECT'!$G$6:$FS$312,139,FALSE) -> -1.3 | I44: =VLOOKUP($A$5,'RECAP SECT'!$G$6:$FS$312,140,FALSE) -> 74% | K44: =VLOOKUP($A$5,'RECAP SECT AN'!$G$6:$FS$312,140,FALSE) -> 45% | M44: =+K44-I44 -> -29% | O44: =VLOOKUP($A$5,'RECAP SECT'!$G$6:$FS$312,141,FALSE) -> 15 | S44: =VLOOKUP($A$5,'RECAP SECT AN'!$G$6:$FE$312,126,FALSE) -> 2124% | U44: =+S44-I44 -> 2050%
A46: CRITERE Satisfaction Clients | C46: 15% | O46: =VLOOKUP($A$5,'RECAP SECT'!$G$6:$FS$312,159,FALSE) -> 14
B47: Objectifs NPS* | C47: 8% | E47: ='RECAP SECT'!FA4 -> -2 | G47: =VLOOKUP($A$5,'RECAP SECT'!$G$6:$FS$312,137,FALSE) -> 10 | I47: =VLOOKUP($A$5,'RECAP SECT'!$G$6:$FS$312,152,FALSE) -> 86% | K47: =VLOOKUP($A$5,'RECAP SECT AN'!$G$6:$FS$312,152,FALSE) -> 110% | M47: =+K47-I47 -> 24% | O47: =VLOOKUP($A$5,'RECAP SECT'!$G$6:$FS$312,153,FALSE) -> 13 | S47: =VLOOKUP($A$5,'RECAP SECT AN'!$G$6:$FE$312,138,FALSE) -> -33048% | U47: =+S47-I47 -> -33134%
B48: Enquête Qualité Haute Définition | C48: 7% | E48: ='RECAP SECT'!FD4 -> 64% | G48: =VLOOKUP($A$5,'RECAP SECT'!$G$6:$FS$312,140,FALSE) -> 74% | I48: =VLOOKUP($A$5,'RECAP SECT'!$G$6:$FS$312,155,FALSE) -> 36% | K48: =VLOOKUP($A$5,'RECAP SECT AN'!$G$6:$FS$312,155,FALSE) -> 7% | M48: =+K48-I48 -> -30% | O48: =VLOOKUP($A$5,'RECAP SECT'!$G$6:$FS$312,156,FALSE) -> 14 | S48: =VLOOKUP($A$5,'RECAP SECT AN'!$G$6:$FE$312,141,FALSE) -> 1000% | U48: =+S48-I48 -> 964%

Sheet SE_TOTAL
B1: Accueil | F1: BAROMETRE BDD - TERRITOIRES
F2: TOTAL GENERAL
F3: =ACCUEIL!F7 -> 2020-05-24
F7: TOTAL GENERAL | I7: Total Clients | L7: Total Bancarisation | O7: Total Epargne | R7: Total Crédits | U7: Total IARD Prévoyance | X7: Total Accélérateurs PNB | AA7: Total Qualité-Satisfaction Clients
G8: coef | H8: 100% | J8: coef | K8: ='RECAP DIRCOM'!$AC$4 -> 15% | M8: coef | N8: ='RECAP DIRCOM'!$BB$4 -> 15% | P8: coef | Q8: ='RECAP DIRCOM'!$BW$4 -> 10% | S8: coef | T8: ='RECAP DIRCOM'!$DD$4 -> 15% | V8: coef | W8: ='RECAP DIRCOM'!$DU$4 -> 15% | Y8: coef | Z8: ='RECAP DIRCOM'!$ET$4 -> 15% | AB8: coef | AC8: ='RECAP DIRCOM'!$FI$4 -> 15%
B9: Direction | C9: eds | D9: Territoire | E9: ETP perf | F9: Moyenne ecart au 1er | G9: % Ecart au 1er | H9: Rang CEGEE | I9: Moyenne ecart au 1er | J9: % Ecart au 1er | K9: Rang CEGEE | L9: Moyenne ecart au 1er | M9: % Ecart au 1er | N9: Rang CEGEE | O9: Moyenne ecart au 1er | P9: % Ecart au 1er | Q9: Rang CEGEE | R9: Moyenne ecart au 1er | S9: % Ecart au 1er | T9: Rang CEGEE | U9: Moyenne ecart au 1er | V9: % Ecart au 1er | W9: Rang CEGEE | X9: Moyenne ecart au 1er | Y9: % Ecart au 1er | Z9: Rang CEGEE | AA9: Moyenne ecart au 1er | AB9: % Ecart au 1er | AC9: Rang CEGEE
A10: 110 | B10: MEURTHE ET MOSELLE MEUSE | C10: 27 | D10: PONT A MOUSSON | E10: 72.4 | F10: 11% | G10: 0% | H10: 1 | I10: 11% | J10: 0% | K10: 1 | L10: 17% | M10: 0% | N10: 1 | O10: 31% | P10: 8% | Q10: 2 | R10: 12% | S10: 0% | T10: 1 | U10: 6% | V10: 0% | W10: 1 | X10: 29% | Y10: 14% | Z10: 3 | AA10: 60% | AB10: 54% | AC10: 13
A11: 30 | B11: MARNE-ARDENNES | C11: 2 | D11: CHARLEVILLE MEZIERES | E11: 54.9 | F11: 24% | G11: 13% | H11: 2 | I11: 68% | J11: 57% | K11: 10 | L11: 28% | M11: 11% | N11: 3 | O11: 46% | P11: 22% | Q11: 5 | R11: 27% | S11: 15% | T11: 3 | U11: 37% | V11: 31% | W11: 2 | X11: 15% | Y11: 0% | Z11: 1 | AA11: 34% | AB11: 28% | AC11: 8
A12: 30 | B12: MARNE-ARDENNES | C12: 11 | D12: REIMS | E12: 78.2 | F12: 24% | G12: 13% | H12: 3 | I12: 44% | J12: 33% | K12: 2 | L12: 41% | M12: 24% | N12: 5 | O12: 47% | P12: 24% | Q12: 6 | R12: 15% | S12: 3% | T12: 2 | U12: 46% | V12: 40% | W12: 5 | X12: 49% | Y12: 33% | Z12: 12 | AA12: 19% | AB12: 13% | AC12: 3
A13: 110 | B13: MEURTHE ET MOSELLE MEUSE | C13: 26 | D13: NANCY | E13: 63.5 | F13: 25% | G13: 14% | H13: 4 | I13: 51% | J13: 40% | K13: 4 | L13: 35% | M13: 18% | N13: 4 | O13: 56% | P13: 32% | Q13: 12 | R13: 27% | S13: 15% | T13: 4 | U13: 51% | V13: 45% | W13: 6 | X13: 30% | Y13: 15% | Z13: 4 | AA13: 21% | AB13: 14% | AC13: 4
A14: 30 | B14: MARNE-ARDENNES | C14: 6 | D14: CHALONS EN CHAMPAGNE | E14: 44.9 | F14: 30% | G14: 19% | H14: 5 | I14: 54% | J14: 43% | K14: 7 | L14: 58% | M14: 41% | N14: 7 | O14: 50% | P14: 27% | Q14: 9 | R14: 35% | S14: 23% | T14: 5 | U14: 44% | V14: 38% | W14: 3 | X14: 31% | Y14: 16% | Z14: 5 | AA14: 26% | AB14: 19% | AC14: 6
A15: 50 | B15: AUBE HAUTE MARNE | C15: 21 | D15: CHAUMONT | E15: 34.6 | F15: 34% | G15: 23% | H15: 6 | I15: 50% | J15: 39% | K15: 3 | L15: 66% | M15: 49% | N15: 10 | O15: 57% | P15: 34% | Q15: 13 | R15: 37% | S15: 25% | T15: 7 | U15: 61% | V15: 55% | W15: 10 | X15: 36% | Y15: 21% | Z15: 6 | AA15: 19% | AB15: 13% | AC15: 2
A16: 262 | B16: BAS-RHIN | C16: 5006 | D16: STRASBOURG | E16: 74.4 | F16: 35% | G16: 24% | H16: 7 | I16: 53% | J16: 42% | K16: 5 | L16: 24% | M16: 7% | N16: 2 | O16: 34% | P16: 11% | Q16: 3 | R16: 41% | S16: 29% | T16: 11 | U16: 44% | V16: 38% | W16: 4 | X16: 27% | Y16: 12% | Z16: 2 | AA16: 105% | AB16: 98% | AC16: 18
A17: 110 | B17: MEURTHE ET MOSELLE MEUSE | C17: 31 | D17: VERDUN | E17: 51.9 | F17: 36% | G17: 25% | H17: 8 | I17: 71% | J17: 60% | K17: 12 | L17: 68% | M17: 51% | N17: 13 | O17: 50% | P17: 27% | Q17: 8 | R17: 39% | S17: 27% | T17: 9 | U17: 53% | V17: 47% | W17: 8 | X17: 49% | Y17: 34% | Z17: 13 | AA17: 6% | AB17: 0% | AC17: 1
A18: 80 | B18: VOSGES | C18: 55 | D18: SAINT DIE | E18: 48.1 | F18: 37% | G18: 26% | H18: 9 | I18: 82% | J18: 71% | K18: 16 | L18: 49% | M18: 32% | N18: 6 | O18: 23% | P18: 0% | Q18: 1 | R18: 45% | S18: 33% | T18: 14 | U18: 58% | V18: 52% | W18: 9 | X18: 55% | Y18: 39% | Z18: 15 | AA18: 23% | AB18: 16% | AC18: 5
A19: 160 | B19: MOSELLE | C19: 45 | D19: METZ | E19: 86.5 | F19: 39% | G19: 28% | H19: 10 | I19: 53% | J19: 42% | K19: 6 | L19: 75% | M19: 58% | N19: 17 | O19: 49% | P19: 25% | Q19: 7 | R19: 38% | S19: 26% | T19: 8 | U19: 61% | V19: 55% | W19: 11 | X19: 46% | Y19: 31% | Z19: 10 | AA19: 36% | AB19: 30% | AC19: 10
A20: 50 | B20: AUBE HAUTE MARNE | C20: 14 | D20: TROYES | E20: 65.2 | F20: 43% | G20: 31% | H20: 11 | I20: 65% | J20: 54% | K20: 9 | L20: 63% | M20: 46% | N20: 8 | O20: 61% | P20: 38% | Q20: 16 | R20: 40% | S20: 28% | T20: 10 | U20: 64% | V20: 58% | W20: 12 | X20: 44% | Y20: 28% | Z20: 9 | AA20: 49% | AB20: 43% | AC20: 12
A21: 160 | B21: MOSELLE | C21: 44 | D21: MOSELLE NORD | E21: 69.0 | F21: 44% | G21: 33% | H21: 12 | I21: 70% | J21: 60% | K21: 11 | L21: 65% | M21: 48% | N21: 9 | O21: 55% | P21: 32% | Q21: 11 | R21: 36% | S21: 24% | T21: 6 | U21: 52% | V21: 46% | W21: 7 | X21: 40% | Y21: 25% | Z21: 7 | AA21: 77% | AB21: 71% | AC21: 15
A22: 80 | B22: VOSGES | C22: 57 | D22: EPINAL | E22: 59.6 | F22: 45% | G22: 34% | H22: 13 | I22: 57% | J22: 46% | K22: 8 | L22: 67% | M22: 50% | N22: 12 | O22: 58% | P22: 35% | Q22: 14 | R22: 45% | S22: 33% | T22: 12 | U22: 70% | V22: 64% | W22: 15 | X22: 62% | Y22: 47% | Z22: 18 | AA22: 44% | AB22: 38% | AC22: 11
A23: 262 | B23: BAS-RHIN | C23: 5060 | D23: HAGUENAU | E23: 75.3 | F23: 46% | G23: 35% | H23: 14 | I23: 78% | J23: 68% | K23: 15 | L23: 74% | M23: 57% | N23: 16 | O23: 59% | P23: 36% | Q23: 15 | R23: 56% | S23: 44% | T23: 18 | U23: 69% | V23: 63% | W23: 14 | X23: 42% | Y23: 27% | Z23: 8 | AA23: 29% | AB23: 23% | AC23: 7
A24: 160 | B24: MOSELLE | C24: 42 | D24: MOSELLE EST | E24: 72.3 | F24: 46% | G24: 35% | H24: 15 | I24: 71% | J24: 61% | K24: 13 | L24: 70% | M24: 53% | N24: 14 | O24: 75% | P24: 52% | Q24: 17 | R24: 46% | S24: 34% | T24: 15 | U24: 68% | V24: 62% | W24: 13 | X24: 51% | Y24: 36% | Z24: 14 | AA24: 35% | AB24: 29% | AC24: 9
A25: 264 | B25: HAUT-RHIN | C25: 5130 | D25: COLMAR | E25: 64.7 | F25: 53% | G25: 42% | H25: 16 | I25: 72% | J25: 61% | K25: 14 | L25: 67% | M25: 50% | N25: 11 | O25: 54% | P25: 30% | Q25: 10 | R25: 55% | S25: 43% | T25: 17 | U25: 85% | V25: 79% | W25: 17 | X25: 57% | Y25: 42% | Z25: 16 | AA25: 63% | AB25: 56% | AC25: 14
A26: 262 | B26: BAS-RHIN | C26: 5101 | D26: SELESTAT | E26: 62.3 | F26: 59% | G26: 48% | H26: 17 | I26: 114% | J26: 103% | K26: 18 | L26: 72% | M26: 55% | N26: 15 | O26: 41% | P26: 18% | Q26: 4 | R26: 48% | S26: 36% | T26: 16 | U26: 83% | V26: 77% | W26: 16 | X26: 48% | Y26: 33% | Z26: 11 | AA26: 84% | AB26: 77% | AC26: 16
A27: 264 | B27: HAUT-RHIN | C27: 5169 | D27: MULHOUSE | E27: 61.6 | F27: 70% | G27: 59% | H27: 18 | I27: 95% | J27: 84% | K27: 17 | L27: 106% | M27: 89% | N27: 18 | O27: 81% | P27: 58% | Q27: 18 | R27: 45% | S27: 33% | T27: 13 | U27: 98% | V27: 92% | W27: 18 | X27: 60% | Y27: 45% | Z27: 17 | AA27: 93% | AB27: 87% | AC27: 17
A28: Total CEGEE Directions Régionales | E28: =SUM(E10:E27) -> 1140

Sheet SE_BANCA
B1: Accueil | F1: BAROMETRE BDD - TERRITOIRES
F2: BANCARISATION
F3: =ACCUEIL!F7 -> 2020-05-24
F7: Ventes nettes FORFAITS | J7: Ventes nettes IZICARTES débit différé | N7: Ventes nettes Cartes HDG débit différé | R7: Ventes nettes Forfaits Pro Cartes Pro | V7: Total Bancarisation
H8: coef | I8: ='RECAP DIRCOM'!AM4 -> 4% | L8: coef | M8: ='RECAP DIRCOM'!AQ4 -> 4% | P8: coef | Q8: ='RECAP DIRCOM'!AU4 -> 4% | T8: coef | U8: ='RECAP DIRCOM'!AY4 -> 3% | W8: coef | X8: ='RECAP DIRCOM'!BB4 -> 15%
B9: Direction | C9: eds | D9: Territoire | E9: ETP perf | F9: Nb / ETP | G9: PNB / ETP | H9: % Ecart au 1er | I9: Rang | J9: Nb / ETP | K9: PNB / ETP | L9: % Ecart au 1er | M9: Rang | N9: Nb / ETP | O9: PNB / ETP | P9: % Ecart au 1er | Q9: Rang | R9: Nb / ETP | S9: PNB / ETP | T9: % Ecart au 1er | U9: Rang | V9: Moyenne ecart au 1er | W9: % Ecart au 1er | X9: Rang CEGEE
A10: 50 | B10: AUBE HAUTE MARNE | C10: 21 | D10: CHAUMONT | E10: =VLOOKUP($C10,'RECAP SECT'!$G$6:$FJ$253,3,FALSE) -> 34.6 | F10: =VLOOKUP($C10,'RECAP SECT'!$G$6:$FJ$253,30,FALSE) -> 0.64 | G10: =VLOOKUP($C10,'RECAP SECT'!$G$6:$FJ$253,31,FALSE) -> -0.39 | H10: =VLOOKUP($C10,'RECAP SECT'!$G$6:$FJ$253,32,FALSE) -> 107% | I10: =VLOOKUP($C10,'RECAP SECT'!$G$6:$FJ$253,33,FALSE) -> 17 | J10: =VLOOKUP($C10,'RECAP SECT'!$G$6:$FJ$253,34,FALSE) -> 5.55 | K10: =VLOOKUP($C10,'RECAP SECT'!$G$6:$FJ$253,35,FALSE) -> 3.38 | L10: =VLOOKUP($C10,'RECAP SECT'!$G$6:$FJ$253,36,FALSE) -> 50% | M10: =VLOOKUP($C10,'RECAP SECT'!$G$6:$FJ$253,37,FALSE) -> 9 | N10: =VLOOKUP($C10,'RECAP SECT'!$G$6:$FJ$253,38,FALSE) -> 5.87 | O10: =VLOOKUP($C10,'RECAP SECT'!$G$6:$FJ$253,39,FALSE) -> 3.96 | P10: =VLOOKUP($C10,'RECAP SECT'!$G$6:$FJ$253,40,FALSE) -> 62% | Q10: =VLOOKUP($C10,'RECAP SECT'!$G$6:$FJ$253,41,FALSE) -> 13 | R10: =VLOOKUP($C10,'RECAP SECT'!$G$6:$FJ$253,42,FALSE) -> 0.75 | S10: =VLOOKUP($C10,'RECAP SECT'!$G$6:$FJ$253,43,FALSE) -> 0.56 | T10: =VLOOKUP($C10,'RECAP SECT'!$G$6:$FJ$253,44,FALSE) -> 40% | U10: =VLOOKUP($C10,'RECAP SECT'!$G$6:$FJ$253,45,FALSE) -> 7 | V10: =VLOOKUP($C10,'RECAP SECT'!$G$6:$FJ$253,46,FALSE) -> 66% | W10: =VLOOKUP($C10,'RECAP SECT'!$G$6:$FJ$253,47,FALSE) -> 49% | X10: =VLOOKUP($C10,'RECAP SECT'!$G$6:$FJ$253,48,FALSE) -> 10
A11: 50 | B11: AUBE HAUTE MARNE | C11: 14 | D11: TROYES | E11: =VLOOKUP($C11,'RECAP SECT'!$G$6:$FJ$253,3,FALSE) -> 65.2 | F11: =VLOOKUP($C11,'RECAP SECT'!$G$6:$FJ$253,30,FALSE) -> 0.95 | G11: =VLOOKUP($C11,'RECAP SECT'!$G$6:$FJ$253,31,FALSE) -> 0.10 | H11: =VLOOKUP($C11,'RECAP SECT'!$G$6:$FJ$253,32,FALSE) -> 97% | I11: =VLOOKUP($C11,'RECAP SECT'!$G$6:$FJ$253,33,FALSE) -> 15 | J11: =VLOOKUP($C11,'RECAP SECT'!$G$6:$FJ$253,34,FALSE) -> 4.60 | K11: =VLOOKUP($C11,'RECAP SECT'!$G$6:$FJ$253,35,FALSE) -> 2.74 | L11: =VLOOKUP($C11,'RECAP SECT'!$G$6:$FJ$253,36,FALSE) -> 60% | M11: =VLOOKUP($C11,'RECAP SECT'!$G$6:$FJ$253,37,FALSE) -> 13 | N11: =VLOOKUP($C11,'RECAP SECT'!$G$6:$FJ$253,38,FALSE) -> 5.49 | O11: =VLOOKUP($C11,'RECAP SECT'!$G$6:$FJ$253,39,FALSE) -> 3.68 | P11: =VLOOKUP($C11,'RECAP SECT'!$G$6:$FJ$253,40,FALSE) -> 65% | Q11: =VLOOKUP($C11,'RECAP SECT'!$G$6:$FJ$253,41,FALSE) -> 17 | R11: =VLOOKUP($C11,'RECAP SECT'!$G$6:$FJ$253,42,FALSE) -> 0.98 | S11: =VLOOKUP($C11,'RECAP SECT'!$G$6:$FJ$253,43,FALSE) -> 0.73 | T11: =VLOOKUP($C11,'RECAP SECT'!$G$6:$FJ$253,44,FALSE) -> 22% | U11: =VLOOKUP($C11,'RECAP SECT'!$G$6:$FJ$253,45,FALSE) -> 4 | V11: =VLOOKUP($C11,'RECAP SECT'!$G$6:$FJ$253,46,FALSE) -> 63% | W11: =VLOOKUP($C11,'RECAP SECT'!$G$6:$FJ$253,47,FALSE) -> 46% | X11: =VLOOKUP($C11,'RECAP SECT'!$G$6:$FJ$253,48,FALSE) -> 8
A12: 262 | B12: BAS-RHIN | C12: 5060 | D12: HAGUENAU | E12: =VLOOKUP($C12,'RECAP SECT'!$G$6:$FJ$253,3,FALSE) -> 75.3 | F12: =VLOOKUP($C12,'RECAP SECT'!$G$6:$FJ$253,30,FALSE) -> 2.84 | G12: =VLOOKUP($C12,'RECAP SECT'!$G$6:$FJ$253,31,FALSE) -> 0.77 | H12: =VLOOKUP($C12,'RECAP SECT'!$G$6:$FJ$253,32,FALSE) -> 83% | I12: =VLOOKUP($C12,'RECAP SECT'!$G$6:$FJ$253,33,FALSE) -> 13 | J12: =VLOOKUP($C12,'RECAP SECT'!$G$6:$FJ$253,34,FALSE) -> 3.44 | K12: =VLOOKUP($C12,'RECAP SECT'!$G$6:$FJ$253,35,FALSE) -> 2.26 | L12: =VLOOKUP($C12,'RECAP SECT'!$G$6:$FJ$253,36,FALSE) -> 67% | M12: =VLOOKUP($C12,'RECAP SECT'!$G$6:$FJ$253,37,FALSE) -> 17 | N12: =VLOOKUP($C12,'RECAP SECT'!$G$6:$FJ$253,38,FALSE) -> 5.55 | O12: =VLOOKUP($C12,'RECAP SECT'!$G$6:$FJ$253,39,FALSE) -> 3.70 | P12: =VLOOKUP($C12,'RECAP SECT'!$G$6:$FJ$253,40,FALSE) -> 65% | Q12: =VLOOKUP($C12,'RECAP SECT'!$G$6:$FJ$253,41,FALSE) -> 16 | R12: =VLOOKUP($C12,'RECAP SECT'!$G$6:$FJ$253,42,FALSE) -> 0.53 | S12: =VLOOKUP($C12,'RECAP SECT'!$G$6:$FJ$253,43,FALSE) -> 0.15 | T12: =VLOOKUP($C12,'RECAP SECT'!$G$6:$FJ$253,44,FALSE) -> 84% | U12: =VLOOKUP($C12,'RECAP SECT'!$G$6:$FJ$253,45,FALSE) -> 13 | V12: =VLOOKUP($C12,'RECAP SECT'!$G$6:$FJ$253,46,FALSE) -> 74% | W12: =VLOOKUP($C12,'RECAP SECT'!$G$6:$FJ$253,47,FALSE) -> 57% | X12: =VLOOKUP($C12,'RECAP SECT'!$G$6:$FJ$253,48,FALSE) -> 16
A13: 262 | B13: BAS-RHIN | C13: 5101 | D13: SELESTAT | E13: =VLOOKUP($C13,'RECAP SECT'!$G$6:$FJ$253,3,FALSE) -> 62.3 | F13: =VLOOKUP($C13,'RECAP SECT'!$G$6:$FJ$253,30,FALSE) -> 2.15 | G13: =VLOOKUP($C13,'RECAP SECT'!$G$6:$FJ$253,31,FALSE) -> 0.89 | H13: =VLOOKUP($C13,'RECAP SECT'!$G$6:$FJ$253,32,FALSE) -> 81% | I13: =VLOOKUP($C13,'RECAP SECT'!$G$6:$FJ$253,33,FALSE) -> 12 | J13: =VLOOKUP($C13,'RECAP SECT'!$G$6:$FJ$253,34,FALSE) -> 4.01 | K13: =VLOOKUP($C13,'RECAP SECT'!$G$6:$FJ$253,35,FALSE) -> 2.82 | L13: =VLOOKUP($C13,'RECAP SECT'!$G$6:$FJ$253,36,FALSE) -> 58% | M13: =VLOOKUP($C13,'RECAP SECT'!$G$6:$FJ$253,37,FALSE) -> 11 | N13: =VLOOKUP($C13,'RECAP SECT'!$G$6:$FJ$253,38,FALSE) -> 6.91 | O13: =VLOOKUP($C13,'RECAP SECT'!$G$6:$FJ$253,39,FALSE) -> 4.65 | P13: =VLOOKUP($C13,'RECAP SECT'!$G$6:$FJ$253,40,FALSE) -> 55% | Q13: =VLOOKUP($C13,'RECAP SECT'!$G$6:$FJ$253,41,FALSE) -> 8 | R13: =VLOOKUP($C13,'RECAP SECT'!$G$6:$FJ$253,42,FALSE) -> 0.00 | S13: =VLOOKUP($C13,'RECAP SECT'!$G$6:$FJ$253,43,FALSE) -> -0.02 | T13: =VLOOKUP($C13,'RECAP SECT'!$G$6:$FJ$253,44,FALSE) -> 102% | U13: =VLOOKUP($C13,'RECAP SECT'!$G$6:$FJ$253,45,FALSE) -> 15 | V13: =VLOOKUP($C13,'RECAP SECT'!$G$6:$FJ$253,46,FALSE) -> 72% | W13: =VLOOKUP($C13,'RECAP SECT'!$G$6:$FJ$253,47,FALSE) -> 55% | X13: =VLOOKUP($C13,'RECAP SECT'!$G$6:$FJ$253,48,FALSE) -> 15
A14: 262 | B14: BAS-RHIN | C14: 5006 | D14: STRASBOURG | E14: =VLOOKUP($C14,'RECAP SECT'!$G$6:$FJ$253,3,FALSE) -> 74.4 | F14: =VLOOKUP($C14,'RECAP SECT'!$G$6:$FJ$253,30,FALSE) -> 4.76 | G14: =VLOOKUP($C14,'RECAP SECT'!$G$6:$FJ$253,31,FALSE) -> 1.56 | H14: =VLOOKUP($C14,'RECAP SECT'!$G$6:$FJ$253,32,FALSE) -> 67% | I14: =VLOOKUP($C14,'RECAP SECT'!$G$6:$FJ$253,33,FALSE) -> 7 | J14: =VLOOKUP($C14,'RECAP SECT'!$G$6:$FJ$253,34,FALSE) -> 10.26 | K14: =VLOOKUP($C14,'RECAP SECT'!$G$6:$FJ$253,35,FALSE) -> 6.79 | L14: =VLOOKUP($C14,'RECAP SECT'!$G$6:$FJ$253,36,FALSE) -> 0% | M14: =VLOOKUP($C14,'RECAP SECT'!$G$6:$FJ$253,37,FALSE) -> 1 | N14: =VLOOKUP($C14,'RECAP SECT'!$G$6:$FJ$253,38,FALSE) -> 15.65 | O14: =VLOOKUP($C14,'RECAP SECT'!$G$6:$FJ$253,39,FALSE) -> 10.42 | P14: =VLOOKUP($C14,'RECAP SECT'!$G$6:$FJ$253,40,FALSE) -> 0% | Q14: =VLOOKUP($C14,'RECAP SECT'!$G$6:$FJ$253,41,FALSE) -> 1 | R14: =VLOOKUP($C14,'RECAP SECT'!$G$6:$FJ$253,42,FALSE) -> 0.86 | S14: =VLOOKUP($C14,'RECAP SECT'!$G$6:$FJ$253,43,FALSE) -> 0.64 | T14: =VLOOKUP($C14,'RECAP SECT'!$G$6:$FJ$253,44,FALSE) -> 30% | U14: =VLOOKUP($C14,'RECAP SECT'!$G$6:$FJ$253,45,FALSE) -> 6 | V14: =VLOOKUP($C14,'RECAP SECT'!$G$6:$FJ$253,46,FALSE) -> 24% | W14: =VLOOKUP($C14,'RECAP SECT'!$G$6:$FJ$253,47,FALSE) -> 7% | X14: =VLOOKUP($C14,'RECAP SECT'!$G$6:$FJ$253,48,FALSE) -> 2
A15: 264 | B15: HAUT-RHIN | C15: 5130 | D15: COLMAR | E15: =VLOOKUP($C15,'RECAP SECT'!$G$6:$FJ$253,3,FALSE) -> 64.7 | F15: =VLOOKUP($C15,'RECAP SECT'!$G$6:$FJ$253,30,FALSE) -> 0.71 | G15: =VLOOKUP($C15,'RECAP SECT'!$G$6:$FJ$253,31,FALSE) -> 0.97 | H15: =VLOOKUP($C15,'RECAP SECT'!$G$6:$FJ$253,32,FALSE) -> 79% | I15: =VLOOKUP($C15,'RECAP SECT'!$G$6:$FJ$253,33,FALSE) -> 11 | J15: =VLOOKUP($C15,'RECAP SECT'!$G$6:$FJ$253,34,FALSE) -> 3.51 | K15: =VLOOKUP($C15,'RECAP SECT'!$G$6:$FJ$253,35,FALSE) -> 2.60 | L15: =VLOOKUP($C15,'RECAP SECT'!$G$6:$FJ$253,36,FALSE) -> 62% | M15: =VLOOKUP($C15,'RECAP SECT'!$G$6:$FJ$253,37,FALSE) -> 15 | N15: =VLOOKUP($C15,'RECAP SECT'!$G$6:$FJ$253,38,FALSE) -> 5.93 | O15: =VLOOKUP($C15,'RECAP SECT'!$G$6:$FJ$253,39,FALSE) -> 4.15 | P15: =VLOOKUP($C15,'RECAP SECT'!$G$6:$FJ$253,40,FALSE) -> 60% | Q15: =VLOOKUP($C15,'RECAP SECT'!$G$6:$FJ$253,41,FALSE) -> 12 | R15: =VLOOKUP($C15,'RECAP SECT'!$G$6:$FJ$253,42,FALSE) -> 0.57 | S15: =VLOOKUP($C15,'RECAP SECT'!$G$6:$FJ$253,43,FALSE) -> 0.32 | T15: =VLOOKUP($C15,'RECAP SECT'!$G$6:$FJ$253,44,FALSE) -> 65% | U15: =VLOOKUP($C15,'RECAP SECT'!$G$6:$FJ$253,45,FALSE) -> 10 | V15: =VLOOKUP($C15,'RECAP SECT'!$G$6:$FJ$253,46,FALSE) -> 67% | W15: =VLOOKUP($C15,'RECAP SECT'!$G$6:$FJ$253,47,FALSE) -> 50% | X15: =VLOOKUP($C15,'RECAP SECT'!$G$6:$FJ$253,48,FALSE) -> 11
A16: 264 | B16: HAUT-RHIN | C16: 5169 | D16: MULHOUSE | E16: =VLOOKUP($C16,'RECAP SECT'!$G$6:$FJ$253,3,FALSE) -> 61.6 | F16: =VLOOKUP($C16,'RECAP SECT'!$G$6:$FJ$253,30,FALSE) -> -2.63 | G16: =VLOOKUP($C16,'RECAP SECT'!$G$6:$FJ$253,31,FALSE) -> -2.52 | H16: =VLOOKUP($C16,'RECAP SECT'!$G$6:$FJ$253,32,FALSE) -> 150% | I16: =VLOOKUP($C16,'RECAP SECT'!$G$6:$FJ$253,33,FALSE) -> 18 | J16: =VLOOKUP($C16,'RECAP SECT'!$G$6:$FJ$253,34,FALSE) -> 2.26 | K16: =VLOOKUP($C16,'RECAP SECT'!$G$6:$FJ$253,35,FALSE) -> 1.42 | L16: =VLOOKUP($C16,'RECAP SECT'!$G$6:$FJ$253,36,FALSE) -> 79% | M16: =VLOOKUP($C16,'RECAP SECT'!$G$6:$FJ$253,37,FALSE) -> 18 | N16: =VLOOKUP($C16,'RECAP SECT'!$G$6:$FJ$253,38,FALSE) -> 3.81 | O16: =VLOOKUP($C16,'RECAP SECT'!$G$6:$FJ$253,39,FALSE) -> 2.67 | P16: =VLOOKUP($C16,'RECAP SECT'!$G$6:$FJ$253,40,FALSE) -> 74% | Q16: =VLOOKUP($C16,'RECAP SECT'!$G$6:$FJ$253,41,FALSE) -> 18 | R16: =VLOOKUP($C16,'RECAP SECT'!$G$6:$FJ$253,42,FALSE) -> -0.34 | S16: =VLOOKUP($C16,'RECAP SECT'!$G$6:$FJ$253,43,FALSE) -> -0.26 | T16: =VLOOKUP($C16,'RECAP SECT'!$G$6:$FJ$253,44,FALSE) -> 128% | U16: =VLOOKUP($C16,'RECAP SECT'!$G$6:$FJ$253,45,FALSE) -> 18 | V16: =VLOOKUP($C16,'RECAP SECT'!$G$6:$FJ$253,46,FALSE) -> 106% | W16: =VLOOKUP($C16,'RECAP SECT'!$G$6:$FJ$253,47,FALSE) -> 89% | X16: =VLOOKUP($C16,'RECAP SECT'!$G$6:$FJ$253,48,FALSE) -> 18
A17: 30 | B17: MARNE-ARDENNES | C17: 6 | D17: CHALONS EN CHAMPAGNE | E17: =VLOOKUP($C17,'RECAP SECT'!$G$6:$FJ$253,3,FALSE) -> 44.9 | F17: =VLOOKUP($C17,'RECAP SECT'!$G$6:$FJ$253,30,FALSE) -> 6.45 | G17: =VLOOKUP($C17,'RECAP SECT'!$G$6:$FJ$253,31,FALSE) -> 2.26 | H17: =VLOOKUP($C17,'RECAP SECT'!$G$6:$FJ$253,32,FALSE) -> 53% | I17: =VLOOKUP($C17,'RECAP SECT'!$G$6:$FJ$253,33,FALSE) -> 4 | J17: =VLOOKUP($C17,'RECAP SECT'!$G$6:$FJ$253,34,FALSE) -> 5.14 | K17: =VLOOKUP($C17,'RECAP SECT'!$G$6:$FJ$253,35,FALSE) -> 3.46 | L17: =VLOOKUP($C17,'RECAP SECT'!$G$6:$FJ$253,36,FALSE) -> 49% | M17: =VLOOKUP($C17,'RECAP SECT'!$G$6:$FJ$253,37,FALSE) -> 8 | N17: =VLOOKUP($C17,'RECAP SECT'!$G$6:$FJ$253,38,FALSE) -> 6.96 | O17: =VLOOKUP($C17,'RECAP SECT'!$G$6:$FJ$253,39,FALSE) -> 4.62 | P17: =VLOOKUP($C17,'RECAP SECT'!$G$6:$FJ$253,40,FALSE) -> 56% | Q17: =VLOOKUP($C17,'RECAP SECT'!$G$6:$FJ$253,41,FALSE) -> 9 | R17: =VLOOKUP($C17,'RECAP SECT'!$G$6:$FJ$253,42,FALSE) -> 0.45 | S17: =VLOOKUP($C17,'RECAP SECT'!$G$6:$FJ$253,43,FALSE) -> 0.21 | T17: =VLOOKUP($C17,'RECAP SECT'!$G$6:$FJ$253,44,FALSE) -> 78% | U17: =VLOOKUP($C17,'RECAP SECT'!$G$6:$FJ$253,45,FALSE) -> 12 | V17: =VLOOKUP($C17,'RECAP SECT'!$G$6:$FJ$253,46,FALSE) -> 58% | W17: =VLOOKUP($C17,'RECAP SECT'!$G$6:$FJ$253,47,FALSE) -> 41% | X17: =VLOOKUP($C17,'RECAP SECT'!$G$6:$FJ$253,48,FALSE) -> 7
A18: 30 | B18: MARNE-ARDENNES | C18: 2 | D18: CHARLEVILLE MEZIERES | E18: =VLOOKUP($C18,'RECAP SECT'!$G$6:$FJ$253,3,FALSE) -> 54.9 | F18: =VLOOKUP($C18,'RECAP SECT'!$G$6:$FJ$253,30,FALSE) -> 6.34 | G18: =VLOOKUP($C18,'RECAP SECT'!$G$6:$FJ$253,31,FALSE) -> 3.61 | H18: =VLOOKUP($C18,'RECAP SECT'!$G$6:$FJ$253,32,FALSE) -> 26% | I18: =VLOOKUP($C18,'RECAP SECT'!$G$6:$FJ$253,33,FALSE) -> 2 | J18: =VLOOKUP($C18,'RECAP SECT'!$G$6:$FJ$253,34,FALSE) -> 7.93 | K18: =VLOOKUP($C18,'RECAP SECT'!$G$6:$FJ$253,35,FALSE) -> 5.27 | L18: =VLOOKUP($C18,'RECAP SECT'!$G$6:$FJ$253,36,FALSE) -> 22% | M18: =VLOOKUP($C18,'RECAP SECT'!$G$6:$FJ$253,37,FALSE) -> 3 | N18: =VLOOKUP($C18,'RECAP SECT'!$G$6:$FJ$253,38,FALSE) -> 9.40 | O18: =VLOOKUP($C18,'RECAP SECT'!$G$6:$FJ$253,39,FALSE) -> 6.48 | P18: =VLOOKUP($C18,'RECAP SECT'!$G$6:$FJ$253,40,FALSE) -> 38% | Q18: =VLOOKUP($C18,'RECAP SECT'!$G$6:$FJ$253,41,FALSE) -> 3 | R18: =VLOOKUP($C18,'RECAP SECT'!$G$6:$FJ$253,42,FALSE) -> 1.24 | S18: =VLOOKUP($C18,'RECAP SECT'!$G$6:$FJ$253,43,FALSE) -> 0.71 | T18: =VLOOKUP($C18,'RECAP SECT'!$G$6:$FJ$253,44,FALSE) -> 23% | U18: =VLOOKUP($C18,'RECAP SECT'!$G$6:$FJ$253,45,FALSE) -> 5 | V18: =VLOOKUP($C18,'RECAP SECT'!$G$6:$FJ$253,46,FALSE) -> 28% | W18: =VLOOKUP($C18,'RECAP SECT'!$G$6:$FJ$253,47,FALSE) -> 11% | X18: =VLOOKUP($C18,'RECAP SECT'!$G$6:$FJ$253,48,FALSE) -> 3
A19: 30 | B19: MARNE-ARDENNES | C19: 11 | D19: REIMS | E19: =VLOOKUP($C19,'RECAP SECT'!$G$6:$FJ$253,3,FALSE) -> 78.2 | F19: =VLOOKUP($C19,'RECAP SECT'!$G$6:$FJ$253,30,FALSE) -> 5.45 | G19: =VLOOKUP($C19,'RECAP SECT'!$G$6:$FJ$253,31,FALSE) -> 2.74 | H19: =VLOOKUP($C19,'RECAP SECT'!$G$6:$FJ$253,32,FALSE) -> 44% | I19: =VLOOKUP($C19,'RECAP SECT'!$G$6:$FJ$253,33,FALSE) -> 3 | J19: =VLOOKUP($C19,'RECAP SECT'!$G$6:$FJ$253,34,FALSE) -> 6.20 | K19: =VLOOKUP($C19,'RECAP SECT'!$G$6:$FJ$253,35,FALSE) -> 4.17 | L19: =VLOOKUP($C19,'RECAP SECT'!$G$6:$FJ$253,36,FALSE) -> 39% | M19: =VLOOKUP($C19,'RECAP SECT'!$G$6:$FJ$253,37,FALSE) -> 5 | N19: =VLOOKUP($C19,'RECAP SECT'!$G$6:$FJ$253,38,FALSE) -> 6.32 | O19: =VLOOKUP($C19,'RECAP SECT'!$G$6:$FJ$253,39,FALSE) -> 4.35 | P19: =VLOOKUP($C19,'RECAP SECT'!$G$6:$FJ$253,40,FALSE) -> 58% | Q19: =VLOOKUP($C19,'RECAP SECT'!$G$6:$FJ$253,41,FALSE) -> 11 | R19: =VLOOKUP($C19,'RECAP SECT'!$G$6:$FJ$253,42,FALSE) -> 0.79 | S19: =VLOOKUP($C19,'RECAP SECT'!$G$6:$FJ$253,43,FALSE) -> 0.78 | T19: =VLOOKUP($C19,'RECAP SECT'!$G$6:$FJ$253,44,FALSE) -> 16% | U19: =VLOOKUP($C19,'RECAP SECT'!$G$6:$FJ$253,45,FALSE) -> 3 | V19: =VLOOKUP($C19,'RECAP SECT'!$G$6:$FJ$253,46,FALSE) -> 41% | W19: =VLOOKUP($C19,'RECAP SECT'!$G$6:$FJ$253,47,FALSE) -> 24% | X19: =VLOOKUP($C19,'RECAP SECT'!$G$6:$FJ$253,48,FALSE) -> 5
A20: 110 | B20: MEURTHE ET MOSELLE MEUSE | C20: 26 | D20: NANCY | E20: =VLOOKUP($C20,'RECAP SECT'!$G$6:$FJ$253,3,FALSE) -> 63.5 | F20: =VLOOKUP($C20,'RECAP SECT'!$G$6:$FJ$253,30,FALSE) -> 5.43 | G20: =VLOOKUP($C20,'RECAP SECT'!$G$6:$FJ$253,31,FALSE) -> 2.24 | H20: =VLOOKUP($C20,'RECAP SECT'!$G$6:$FJ$253,32,FALSE) -> 54% | I20: =VLOOKUP($C20,'RECAP SECT'!$G$6:$FJ$253,33,FALSE) -> 5 | J20: =VLOOKUP($C20,'RECAP SECT'!$G$6:$FJ$253,34,FALSE) -> 6.69 | K20: =VLOOKUP($C20,'RECAP SECT'!$G$6:$FJ$253,35,FALSE) -> 4.36 | L20: =VLOOKUP($C20,'RECAP SECT'!$G$6:$FJ$253,36,FALSE) -> 36% | M20: =VLOOKUP($C20,'RECAP SECT'!$G$6:$FJ$253,37,FALSE) -> 4 | N20: =VLOOKUP($C20,'RECAP SECT'!$G$6:$FJ$253,38,FALSE) -> 8.87 | O20: =VLOOKUP($C20,'RECAP SECT'!$G$6:$FJ$253,39,FALSE) -> 5.90 | P20: =VLOOKUP($C20,'RECAP SECT'!$G$6:$FJ$253,40,FALSE) -> 43% | Q20: =VLOOKUP($C20,'RECAP SECT'!$G$6:$FJ$253,41,FALSE) -> 5 | R20: =VLOOKUP($C20,'RECAP SECT'!$G$6:$FJ$253,42,FALSE) -> 1.70 | S20: =VLOOKUP($C20,'RECAP SECT'!$G$6:$FJ$253,43,FALSE) -> 0.93 | T20: =VLOOKUP($C20,'RECAP SECT'!$G$6:$FJ$253,44,FALSE) -> 0% | U20: =VLOOKUP($C20,'RECAP SECT'!$G$6:$FJ$253,45,FALSE) -> 1 | V20: =VLOOKUP($C20,'RECAP SECT'!$G$6:$FJ$253,46,FALSE) -> 35% | W20: =VLOOKUP($C20,'RECAP SECT'!$G$6:$FJ$253,47,FALSE) -> 18% | X20: =VLOOKUP($C20,'RECAP SECT'!$G$6:$FJ$253,48,FALSE) -> 4
A21: 110 | B21: MEURTHE ET MOSELLE MEUSE | C21: 27 | D21: PONT A MOUSSON | E21: =VLOOKUP($C21,'RECAP SECT'!$G$6:$FJ$253,3,FALSE) -> 72.4 | F21: =VLOOKUP($C21,'RECAP SECT'!$G$6:$FJ$253,30,FALSE) -> 9.73 | G21: =VLOOKUP($C21,'RECAP SECT'!$G$6:$FJ$253,31,FALSE) -> 4.89 | H21: =VLOOKUP($C21,'RECAP SECT'!$G$6:$FJ$253,32,FALSE) -> 0% | I21: =VLOOKUP($C21,'RECAP SECT'!$G$6:$FJ$253,33,FALSE) -> 1 | J21: =VLOOKUP($C21,'RECAP SECT'!$G$6:$FJ$253,34,FALSE) -> 8.20 | K21: =VLOOKUP($C21,'RECAP SECT'!$G$6:$FJ$253,35,FALSE) -> 5.33 | L21: =VLOOKUP($C21,'RECAP SECT'!$G$6:$FJ$253,36,FALSE) -> 21% | M21: =VLOOKUP($C21,'RECAP SECT'!$G$6:$FJ$253,37,FALSE) -> 2 | N21: =VLOOKUP($C21,'RECAP SECT'!$G$6:$FJ$253,38,FALSE) -> 10.52 | O21: =VLOOKUP($C21,'RECAP SECT'!$G$6:$FJ$253,39,FALSE) -> 7.07 | P21: =VLOOKUP($C21,'RECAP SECT'!$G$6:$FJ$253,40,FALSE) -> 32% | Q21: =VLOOKUP($C21,'RECAP SECT'!$G$6:$FJ$253,41,FALSE) -> 2 | R21: =VLOOKUP($C21,'RECAP SECT'!$G$6:$FJ$253,42,FALSE) -> 0.90 | S21: =VLOOKUP($C21,'RECAP SECT'!$G$6:$FJ$253,43,FALSE) -> 0.80 | T21: =VLOOKUP($C21,'RECAP SECT'!$G$6:$FJ$253,44,FALSE) -> 14% | U21: =VLOOKUP($C21,'RECAP SECT'!$G$6:$FJ$253,45,FALSE) -> 2 | V21: =VLOOKUP($C21,'RECAP SECT'!$G$6:$FJ$253,46,FALSE) -> 17% | W21: =VLOOKUP($C21,'RECAP SECT'!$G$6:$FJ$253,47,FALSE) -> 0% | X21: =VLOOKUP($C21,'RECAP SECT'!$G$6:$FJ$253,48,FALSE) -> 1
A22: 110 | B22: MEURTHE ET MOSELLE MEUSE | C22: 31 | D22: VERDUN | E22: =VLOOKUP($C22,'RECAP SECT'!$G$6:$FJ$253,3,FALSE) -> 51.9 | F22: =VLOOKUP($C22,'RECAP SECT'!$G$6:$FJ$253,30,FALSE) -> 1.47 | G22: =VLOOKUP($C22,'RECAP SECT'!$G$6:$FJ$253,31,FALSE) -> -0.08 | H22: =VLOOKUP($C22,'RECAP SECT'!$G$6:$FJ$253,32,FALSE) -> 100% | I22: =VLOOKUP($C22,'RECAP SECT'!$G$6:$FJ$253,33,FALSE) -> 16 | J22: =VLOOKUP($C22,'RECAP SECT'!$G$6:$FJ$253,34,FALSE) -> 5.19 | K22: =VLOOKUP($C22,'RECAP SECT'!$G$6:$FJ$253,35,FALSE) -> 3.38 | L22: =VLOOKUP($C22,'RECAP SECT'!$G$6:$FJ$253,36,FALSE) -> 50% | M22: =VLOOKUP($C22,'RECAP SECT'!$G$6:$FJ$253,37,FALSE) -> 10 | N22: =VLOOKUP($C22,'RECAP SECT'!$G$6:$FJ$253,38,FALSE) -> 7.79 | O22: =VLOOKUP($C22,'RECAP SECT'!$G$6:$FJ$253,39,FALSE) -> 5.24 | P22: =VLOOKUP($C22,'RECAP SECT'!$G$6:$FJ$253,40,FALSE) -> 50% | Q22: =VLOOKUP($C22,'RECAP SECT'!$G$6:$FJ$253,41,FALSE) -> 6 | R22: =VLOOKUP($C22,'RECAP SECT'!$G$6:$FJ$253,42,FALSE) -> 0.33 | S22: =VLOOKUP($C22,'RECAP SECT'!$G$6:$FJ$253,43,FALSE) -> 0.27 | T22: =VLOOKUP($C22,'RECAP SECT'!$G$6:$FJ$253,44,FALSE) -> 71% | U22: =VLOOKUP($C22,'RECAP SECT'!$G$6:$FJ$253,45,FALSE) -> 11 | V22: =VLOOKUP($C22,'RECAP SECT'!$G$6:$FJ$253,46,FALSE) -> 68% | W22: =VLOOKUP($C22,'RECAP SECT'!$G$6:$FJ$253,47,FALSE) -> 51% | X22: =VLOOKUP($C22,'RECAP SECT'!$G$6:$FJ$253,48,FALSE) -> 13
A23: 160 | B23: MOSELLE | C23: 45 | D23: METZ | E23: =VLOOKUP($C23,'RECAP SECT'!$G$6:$FJ$253,3,FALSE) -> 86.5 | F23: =VLOOKUP($C23,'RECAP SECT'!$G$6:$FJ$253,30,FALSE) -> 3.48 | G23: =VLOOKUP($C23,'RECAP SECT'!$G$6:$FJ$253,31,FALSE) -> 1.52 | H23: =VLOOKUP($C23,'RECAP SECT'!$G$6:$FJ$253,32,FALSE) -> 68% | I23: =VLOOKUP($C23,'RECAP SECT'!$G$6:$FJ$253,33,FALSE) -> 9 | J23: =VLOOKUP($C23,'RECAP SECT'!$G$6:$FJ$253,34,FALSE) -> 3.59 | K23: =VLOOKUP($C23,'RECAP SECT'!$G$6:$FJ$253,35,FALSE) -> 2.49 | L23: =VLOOKUP($C23,'RECAP SECT'!$G$6:$FJ$253,36,FALSE) -> 63% | M23: =VLOOKUP($C23,'RECAP SECT'!$G$6:$FJ$253,37,FALSE) -> 16 | N23: =VLOOKUP($C23,'RECAP SECT'!$G$6:$FJ$253,38,FALSE) -> 5.61 | O23: =VLOOKUP($C23,'RECAP SECT'!$G$6:$FJ$253,39,FALSE) -> 3.96 | P23: =VLOOKUP($C23,'RECAP SECT'!$G$6:$FJ$253,40,FALSE) -> 62% | Q23: =VLOOKUP($C23,'RECAP SECT'!$G$6:$FJ$253,41,FALSE) -> 14 | R23: =VLOOKUP($C23,'RECAP SECT'!$G$6:$FJ$253,42,FALSE) -> 0.18 | S23: =VLOOKUP($C23,'RECAP SECT'!$G$6:$FJ$253,43,FALSE) -> -0.14 | T23: =VLOOKUP($C23,'RECAP SECT'!$G$6:$FJ$253,44,FALSE) -> 115% | U23: =VLOOKUP($C23,'RECAP SECT'!$G$6:$FJ$253,45,FALSE) -> 17 | V23: =VLOOKUP($C23,'RECAP SECT'!$G$6:$FJ$253,46,FALSE) -> 75% | W23: =VLOOKUP($C23,'RECAP SECT'!$G$6:$FJ$253,47,FALSE) -> 58% | X23: =VLOOKUP($C23,'RECAP SECT'!$G$6:$FJ$253,48,FALSE) -> 17
A24: 160 | B24: MOSELLE | C24: 42 | D24: MOSELLE EST | E24: =VLOOKUP($C24,'RECAP SECT'!$G$6:$FJ$253,3,FALSE) -> 72.3 | F24: =VLOOKUP($C24,'RECAP SECT'!$G$6:$FJ$253,30,FALSE) -> 3.69 | G24: =VLOOKUP($C24,'RECAP SECT'!$G$6:$FJ$253,31,FALSE) -> 1.54 | H24: =VLOOKUP($C24,'RECAP SECT'!$G$6:$FJ$253,32,FALSE) -> 68% | I24: =VLOOKUP($C24,'RECAP SECT'!$G$6:$FJ$253,33,FALSE) -> 8 | J24: =VLOOKUP($C24,'RECAP SECT'!$G$6:$FJ$253,34,FALSE) -> 3.87 | K24: =VLOOKUP($C24,'RECAP SECT'!$G$6:$FJ$253,35,FALSE) -> 2.73 | L24: =VLOOKUP($C24,'RECAP SECT'!$G$6:$FJ$253,36,FALSE) -> 60% | M24: =VLOOKUP($C24,'RECAP SECT'!$G$6:$FJ$253,37,FALSE) -> 14 | N24: =VLOOKUP($C24,'RECAP SECT'!$G$6:$FJ$253,38,FALSE) -> 5.25 | O24: =VLOOKUP($C24,'RECAP SECT'!$G$6:$FJ$253,39,FALSE) -> 3.70 | P24: =VLOOKUP($C24,'RECAP SECT'!$G$6:$FJ$253,40,FALSE) -> 64% | Q24: =VLOOKUP($C24,'RECAP SECT'!$G$6:$FJ$253,41,FALSE) -> 15 | R24: =VLOOKUP($C24,'RECAP SECT'!$G$6:$FJ$253,42,FALSE) -> 0.17 | S24: =VLOOKUP($C24,'RECAP SECT'!$G$6:$FJ$253,43,FALSE) -> 0.05 | T24: =VLOOKUP($C24,'RECAP SECT'!$G$6:$FJ$253,44,FALSE) -> 94% | U24: =VLOOKUP($C24,'RECAP SECT'!$G$6:$FJ$253,45,FALSE) -> 14 | V24: =VLOOKUP($C24,'RECAP SECT'!$G$6:$FJ$253,46,FALSE) -> 70% | W24: =VLOOKUP($C24,'RECAP SECT'!$G$6:$FJ$253,47,FALSE) -> 53% | X24: =VLOOKUP($C24,'RECAP SECT'!$G$6:$FJ$253,48,FALSE) -> 14
A25: 160 | B25: MOSELLE | C25: 44 | D25: MOSELLE NORD | E25: =VLOOKUP($C25,'RECAP SECT'!$G$6:$FJ$253,3,FALSE) -> 69.0 | F25: =VLOOKUP($C25,'RECAP SECT'!$G$6:$FJ$253,30,FALSE) -> 3.78 | G25: =VLOOKUP($C25,'RECAP SECT'!$G$6:$FJ$253,31,FALSE) -> 2.02 | H25: =VLOOKUP($C25,'RECAP SECT'!$G$6:$FJ$253,32,FALSE) -> 58% | I25: =VLOOKUP($C25,'RECAP SECT'!$G$6:$FJ$253,33,FALSE) -> 6 | J25: =VLOOKUP($C25,'RECAP SECT'!$G$6:$FJ$253,34,FALSE) -> 5.27 | K25: =VLOOKUP($C25,'RECAP SECT'!$G$6:$FJ$253,35,FALSE) -> 3.50 | L25: =VLOOKUP($C25,'RECAP SECT'!$G$6:$FJ$253,36,FALSE) -> 48% | M25: =VLOOKUP($C25,'RECAP SECT'!$G$6:$FJ$253,37,FALSE) -> 7 | N25: =VLOOKUP($C25,'RECAP SECT'!$G$6:$FJ$253,38,FALSE) -> 6.87 | O25: =VLOOKUP($C25,'RECAP SECT'!$G$6:$FJ$253,39,FALSE) -> 4.72 | P25: =VLOOKUP($C25,'RECAP SECT'!$G$6:$FJ$253,40,FALSE) -> 55% | Q25: =VLOOKUP($C25,'RECAP SECT'!$G$6:$FJ$253,41,FALSE) -> 7 | R25: =VLOOKUP($C25,'RECAP SECT'!$G$6:$FJ$253,42,FALSE) -> 0.04 | S25: =VLOOKUP($C25,'RECAP SECT'!$G$6:$FJ$253,43,FALSE) -> -0.07 | T25: =VLOOKUP($C25,'RECAP SECT'!$G$6:$FJ$253,44,FALSE) -> 108% | U25: =VLOOKUP($C25,'RECAP SECT'!$G$6:$FJ$253,45,FALSE) -> 16 | V25: =VLOOKUP($C25,'RECAP SECT'!$G$6:$FJ$253,46,FALSE) -> 65% | W25: =VLOOKUP($C25,'RECAP SECT'!$G$6:$FJ$253,47,FALSE) -> 48% | X25: =VLOOKUP($C25,'RECAP SECT'!$G$6:$FJ$253,48,FALSE) -> 9
A26: 80 | B26: VOSGES | C26: 57 | D26: EPINAL | E26: =VLOOKUP($C26,'RECAP SECT'!$G$6:$FJ$253,3,FALSE) -> 59.6 | F26: =VLOOKUP($C26,'RECAP SECT'!$G$6:$FJ$253,30,FALSE) -> 3.06 | G26: =VLOOKUP($C26,'RECAP SECT'!$G$6:$FJ$253,31,FALSE) -> 0.35 | H26: =VLOOKUP($C26,'RECAP SECT'!$G$6:$FJ$253,32,FALSE) -> 92% | I26: =VLOOKUP($C26,'RECAP SECT'!$G$6:$FJ$253,33,FALSE) -> 14 | J26: =VLOOKUP($C26,'RECAP SECT'!$G$6:$FJ$253,34,FALSE) -> 4.16 | K26: =VLOOKUP($C26,'RECAP SECT'!$G$6:$FJ$253,35,FALSE) -> 2.79 | L26: =VLOOKUP($C26,'RECAP SECT'!$G$6:$FJ$253,36,FALSE) -> 59% | M26: =VLOOKUP($C26,'RECAP SECT'!$G$6:$FJ$253,37,FALSE) -> 12 | N26: =VLOOKUP($C26,'RECAP SECT'!$G$6:$FJ$253,38,FALSE) -> 6.72 | O26: =VLOOKUP($C26,'RECAP SECT'!$G$6:$FJ$253,39,FALSE) -> 4.42 | P26: =VLOOKUP($C26,'RECAP SECT'!$G$6:$FJ$253,40,FALSE) -> 58% | Q26: =VLOOKUP($C26,'RECAP SECT'!$G$6:$FJ$253,41,FALSE) -> 10 | R26: =VLOOKUP($C26,'RECAP SECT'!$G$6:$FJ$253,42,FALSE) -> 0.54 | S26: =VLOOKUP($C26,'RECAP SECT'!$G$6:$FJ$253,43,FALSE) -> 0.41 | T26: =VLOOKUP($C26,'RECAP SECT'!$G$6:$FJ$253,44,FALSE) -> 56% | U26: =VLOOKUP($C26,'RECAP SECT'!$G$6:$FJ$253,45,FALSE) -> 9 | V26: =VLOOKUP($C26,'RECAP SECT'!$G$6:$FJ$253,46,FALSE) -> 67% | W26: =VLOOKUP($C26,'RECAP SECT'!$G$6:$FJ$253,47,FALSE) -> 50% | X26: =VLOOKUP($C26,'RECAP SECT'!$G$6:$FJ$253,48,FALSE) -> 12
A27: 80 | B27: VOSGES | C27: 55 | D27: SAINT DIE | E27: =VLOOKUP($C27,'RECAP SECT'!$G$6:$FJ$253,3,FALSE) -> 48.1 | F27: =VLOOKUP($C27,'RECAP SECT'!$G$6:$FJ$253,30,FALSE) -> 3.55 | G27: =VLOOKUP($C27,'RECAP SECT'!$G$6:$FJ$253,31,FALSE) -> 1.23 | H27: =VLOOKUP($C27,'RECAP SECT'!$G$6:$FJ$253,32,FALSE) -> 74% | I27: =VLOOKUP($C27,'RECAP SECT'!$G$6:$FJ$253,33,FALSE) -> 10 | J27: =VLOOKUP($C27,'RECAP SECT'!$G$6:$FJ$253,34,FALSE) -> 6.21 | K27: =VLOOKUP($C27,'RECAP SECT'!$G$6:$FJ$253,35,FALSE) -> 4.01 | L27: =VLOOKUP($C27,'RECAP SECT'!$G$6:$FJ$253,36,FALSE) -> 41% | M27: =VLOOKUP($C27,'RECAP SECT'!$G$6:$FJ$253,37,FALSE) -> 6 | N27: =VLOOKUP($C27,'RECAP SECT'!$G$6:$FJ$253,38,FALSE) -> 9.64 | O27: =VLOOKUP($C27,'RECAP SECT'!$G$6:$FJ$253,39,FALSE) -> 6.45 | P27: =VLOOKUP($C27,'RECAP SECT'!$G$6:$FJ$253,40,FALSE) -> 38% | Q27: =VLOOKUP($C27,'RECAP SECT'!$G$6:$FJ$253,41,FALSE) -> 4 | R27: =VLOOKUP($C27,'RECAP SECT'!$G$6:$FJ$253,42,FALSE) -> 0.81 | S27: =VLOOKUP($C27,'RECAP SECT'!$G$6:$FJ$253,43,FALSE) -> 0.55 | T27: =VLOOKUP($C27,'RECAP SECT'!$G$6:$FJ$253,44,FALSE) -> 41% | U27: =VLOOKUP($C27,'RECAP SECT'!$G$6:$FJ$253,45,FALSE) -> 8 | V27: =VLOOKUP($C27,'RECAP SECT'!$G$6:$FJ$253,46,FALSE) -> 49% | W27: =VLOOKUP($C27,'RECAP SECT'!$G$6:$FJ$253,47,FALSE) -> 32% | X27: =VLOOKUP($C27,'RECAP SECT'!$G$6:$FJ$253,48,FALSE) -> 6
A28: Total CEGEE Directions Régionales | E28: =SUM(E10:E27) -> 1140

Sheet SE_EPARGNE
B1: Accueil | F1: BAROMETRE BDD - TERRITOIRES
F2: EPARGNE
F3: =ACCUEIL!F7 -> 2020-05-24
F7: Excédent Epargne Liquide | J7: CA UC + arbitrage | N7: Excédent Assurance Vie | R7: Total Epargne
H8: coef | I8: ='RECAP DIRCOM'!BL4 -> 3% | L8: coef | M8: ='RECAP DIRCOM'!BP4 -> 4% | P8: coef | Q8: ='RECAP DIRCOM'!BT4 -> 3% | S8: coef | T8: ='RECAP DIRCOM'!BW4 -> 10%
A9: eds | B9: Direction | C9: eds | D9: Territoire | E9: ETP perf | F9: Réal / ETP | G9: PNB / ETP | H9: % Ecart au 1er | I9: Rang | J9: Réal / ETP | K9: PNB / ETP | L9: % Ecart au 1er | M9: Rang | N9: Réal / ETP | O9: PNB / ETP | P9: % Ecart au 1er | Q9: Rang | R9: Moyenne ecart au 1er | S9: % Ecart au 1er | T9: Rang CEGEE
A10: 50 | B10: AUBE HAUTE MARNE | C10: 21 | D10: CHAUMONT | E10: =VLOOKUP($C10,'RECAP SECT'!$G$6:$FJ$253,3,FALSE) -> 34.6 | F10: =VLOOKUP($C10,'RECAP SECT'!$G$6:$FJ$253,55,FALSE) -> 322.12 | G10: =VLOOKUP($C10,'RECAP SECT'!$G$6:$FJ$253,56,FALSE) -> 6.98 | H10: =VLOOKUP($C10,'RECAP SECT'!$G$6:$FJ$253,57,FALSE) -> 35% | I10: =VLOOKUP($C10,'RECAP SECT'!$G$6:$FJ$253,58,FALSE) -> 10 | J10: =VLOOKUP($C10,'RECAP SECT'!$G$6:$FJ$253,59,FALSE) -> 60.98 | K10: =VLOOKUP($C10,'RECAP SECT'!$G$6:$FJ$253,60,FALSE) -> 0.46 | L10: =VLOOKUP($C10,'RECAP SECT'!$G$6:$FJ$253,61,FALSE) -> 62% | M10: =VLOOKUP($C10,'RECAP SECT'!$G$6:$FJ$253,62,FALSE) -> 17 | N10: =VLOOKUP($C10,'RECAP SECT'!$G$6:$FJ$253,63,FALSE) -> -40.31 | O10: =VLOOKUP($C10,'RECAP SECT'!$G$6:$FJ$253,64,FALSE) -> -1.45 | P10: =VLOOKUP($C10,'RECAP SECT'!$G$6:$FJ$253,65,FALSE) -> 72% | Q10: =VLOOKUP($C10,'RECAP SECT'!$G$6:$FJ$253,66,FALSE) -> 9 | R10: =VLOOKUP($C10,'RECAP SECT'!$G$6:$FJ$253,67,FALSE) -> 57% | S10: =VLOOKUP($C10,'RECAP SECT'!$G$6:$FJ$253,68,FALSE) -> 34% | T10: =VLOOKUP($C10,'RECAP SECT'!$G$6:$FJ$253,69,FALSE) -> 13
A11: 50 | B11: AUBE HAUTE MARNE | C11: 14 | D11: TROYES | E11: =VLOOKUP($C11,'RECAP SECT'!$G$6:$FJ$253,3,FALSE) -> 65.2 | F11: =VLOOKUP($C11,'RECAP SECT'!$G$6:$FJ$253,55,FALSE) -> 330.05 | G11: =VLOOKUP($C11,'RECAP SECT'!$G$6:$FJ$253,56,FALSE) -> 7.08 | H11: =VLOOKUP($C11,'RECAP SECT'!$G$6:$FJ$253,57,FALSE) -> 34% | I11: =VLOOKUP($C11,'RECAP SECT'!$G$6:$FJ$253,58,FALSE) -> 9 | J11: =VLOOKUP($C11,'RECAP SECT'!$G$6:$FJ$253,59,FALSE) -> 91.62 | K11: =VLOOKUP($C11,'RECAP SECT'!$G$6:$FJ$253,60,FALSE) -> 0.85 | L11: =VLOOKUP($C11,'RECAP SECT'!$G$6:$FJ$253,61,FALSE) -> 30% | M11: =VLOOKUP($C11,'RECAP SECT'!$G$6:$FJ$253,62,FALSE) -> 4 | N11: =VLOOKUP($C11,'RECAP SECT'!$G$6:$FJ$253,63,FALSE) -> -94.25 | O11: =VLOOKUP($C11,'RECAP SECT'!$G$6:$FJ$253,64,FALSE) -> -3.39 | P11: =VLOOKUP($C11,'RECAP SECT'!$G$6:$FJ$253,65,FALSE) -> 131% | Q11: =VLOOKUP($C11,'RECAP SECT'!$G$6:$FJ$253,66,FALSE) -> 14 | R11: =VLOOKUP($C11,'RECAP SECT'!$G$6:$FJ$253,67,FALSE) -> 61% | S11: =VLOOKUP($C11,'RECAP SECT'!$G$6:$FJ$253,68,FALSE) -> 38% | T11: =VLOOKUP($C11,'RECAP SECT'!$G$6:$FJ$253,69,FALSE) -> 16
A12: 262 | B12: BAS-RHIN | C12: 5060 | D12: HAGUENAU | E12: =VLOOKUP($C12,'RECAP SECT'!$G$6:$FJ$253,3,FALSE) -> 75.3 | F12: =VLOOKUP($C12,'RECAP SECT'!$G$6:$FJ$253,55,FALSE) -> 239.31 | G12: =VLOOKUP($C12,'RECAP SECT'!$G$6:$FJ$253,56,FALSE) -> 5.38 | H12: =VLOOKUP($C12,'RECAP SECT'!$G$6:$FJ$253,57,FALSE) -> 50% | I12: =VLOOKUP($C12,'RECAP SECT'!$G$6:$FJ$253,58,FALSE) -> 17 | J12: =VLOOKUP($C12,'RECAP SECT'!$G$6:$FJ$253,59,FALSE) -> 73.06 | K12: =VLOOKUP($C12,'RECAP SECT'!$G$6:$FJ$253,60,FALSE) -> 0.48 | L12: =VLOOKUP($C12,'RECAP SECT'!$G$6:$FJ$253,61,FALSE) -> 61% | M12: =VLOOKUP($C12,'RECAP SECT'!$G$6:$FJ$253,62,FALSE) -> 16 | N12: =VLOOKUP($C12,'RECAP SECT'!$G$6:$FJ$253,63,FALSE) -> -34.77 | O12: =VLOOKUP($C12,'RECAP SECT'!$G$6:$FJ$253,64,FALSE) -> -1.25 | P12: =VLOOKUP($C12,'RECAP SECT'!$G$6:$FJ$253,65,FALSE) -> 66% | Q12: =VLOOKUP($C12,'RECAP SECT'!$G$6:$FJ$253,66,FALSE) -> 5 | R12: =VLOOKUP($C12,'RECAP SECT'!$G$6:$FJ$253,67,FALSE) -> 59% | S12: =VLOOKUP($C12,'RECAP SECT'!$G$6:$FJ$253,68,FALSE) -> 36% | T12: =VLOOKUP($C12,'RECAP SECT'!$G$6:$FJ$253,69,FALSE) -> 15
A13: 262 | B13: BAS-RHIN | C13: 5101 | D13: SELESTAT | E13: =VLOOKUP($C13,'RECAP SECT'!$G$6:$FJ$253,3,FALSE) -> 62.3 | F13: =VLOOKUP($C13,'RECAP SECT'!$G$6:$FJ$253,55,FALSE) -> 383.49 | G13: =VLOOKUP($C13,'RECAP SECT'!$G$6:$FJ$253,56,FALSE) -> 8.53 | H13: =VLOOKUP($C13,'RECAP SECT'!$G$6:$FJ$253,57,FALSE) -> 21% | I13: =VLOOKUP($C13,'RECAP SECT'!$G$6:$FJ$253,58,FALSE) -> 4 | J13: =VLOOKUP($C13,'RECAP SECT'!$G$6:$FJ$253,59,FALSE) -> 92.26 | K13: =VLOOKUP($C13,'RECAP SECT'!$G$6:$FJ$253,60,FALSE) -> 0.72 | L13: =VLOOKUP($C13,'RECAP SECT'!$G$6:$FJ$253,61,FALSE) -> 40% | M13: =VLOOKUP($C13,'RECAP SECT'!$G$6:$FJ$253,62,FALSE) -> 8 | N13: =VLOOKUP($C13,'RECAP SECT'!$G$6:$FJ$253,63,FALSE) -> -31.05 | O13: =VLOOKUP($C13,'RECAP SECT'!$G$6:$FJ$253,64,FALSE) -> -1.12 | P13: =VLOOKUP($C13,'RECAP SECT'!$G$6:$FJ$253,65,FALSE) -> 62% | Q13: =VLOOKUP($C13,'RECAP SECT'!$G$6:$FJ$253,66,FALSE) -> 4 | R13: =VLOOKUP($C13,'RECAP SECT'!$G$6:$FJ$253,67,FALSE) -> 41% | S13: =VLOOKUP($C13,'RECAP SECT'!$G$6:$FJ$253,68,FALSE) -> 18% | T13: =VLOOKUP($C13,'RECAP SECT'!$G$6:$FJ$253,69,FALSE) -> 4
A14: 262 | B14: BAS-RHIN | C14: 5006 | D14: STRASBOURG | E14: =VLOOKUP($C14,'RECAP SECT'!$G$6:$FJ$253,3,FALSE) -> 74.4 | F14: =VLOOKUP($C14,'RECAP SECT'!$G$6:$FJ$253,55,FALSE) -> 456.58 | G14: =VLOOKUP($C14,'RECAP SECT'!$G$6:$FJ$253,56,FALSE) -> 10.11 | H14: =VLOOKUP($C14,'RECAP SECT'!$G$6:$FJ$253,57,FALSE) -> 6% | I14: =VLOOKUP($C14,'RECAP SECT'!$G$6:$FJ$253,58,FALSE) -> 2 | J14: =VLOOKUP($C14,'RECAP SECT'!$G$6:$FJ$253,59,FALSE) -> 112.07 | K14: =VLOOKUP($C14,'RECAP SECT'!$G$6:$FJ$253,60,FALSE) -> 1.00 | L14: =VLOOKUP($C14,'RECAP SECT'!$G$6:$FJ$253,61,FALSE) -> 17% | M14: =VLOOKUP($C14,'RECAP SECT'!$G$6:$FJ$253,62,FALSE) -> 3 | N14: =VLOOKUP($C14,'RECAP SECT'!$G$6:$FJ$253,63,FALSE) -> -51.45 | O14: =VLOOKUP($C14,'RECAP SECT'!$G$6:$FJ$253,64,FALSE) -> -1.85 | P14: =VLOOKUP($C14,'RECAP SECT'!$G$6:$FJ$253,65,FALSE) -> 84% | Q14: =VLOOKUP($C14,'RECAP SECT'!$G$6:$FJ$253,66,FALSE) -> 11 | R14: =VLOOKUP($C14,'RECAP SECT'!$G$6:$FJ$253,67,FALSE) -> 34% | S14: =VLOOKUP($C14,'RECAP SECT'!$G$6:$FJ$253,68,FALSE) -> 11% | T14: =VLOOKUP($C14,'RECAP SECT'!$G$6:$FJ$253,69,FALSE) -> 3
A15: 264 | B15: HAUT-RHIN | C15: 5130 | D15: COLMAR | E15: =VLOOKUP($C15,'RECAP SECT'!$G$6:$FJ$253,3,FALSE) -> 64.7 | F15: =VLOOKUP($C15,'RECAP SECT'!$G$6:$FJ$253,55,FALSE) -> 338.74 | G15: =VLOOKUP($C15,'RECAP SECT'!$G$6:$FJ$253,56,FALSE) -> 7.38 | H15: =VLOOKUP($C15,'RECAP SECT'!$G$6:$FJ$253,57,FALSE) -> 31% | I15: =VLOOKUP($C15,'RECAP SECT'!$G$6:$FJ$253,58,FALSE) -> 8 | J15: =VLOOKUP($C15,'RECAP SECT'!$G$6:$FJ$253,59,FALSE) -> 109.40 | K15: =VLOOKUP($C15,'RECAP SECT'!$G$6:$FJ$253,60,FALSE) -> 1.21 | L15: =VLOOKUP($C15,'RECAP SECT'!$G$6:$FJ$253,61,FALSE) -> 0% | M15: =VLOOKUP($C15,'RECAP SECT'!$G$6:$FJ$253,62,FALSE) -> 1 | N15: =VLOOKUP($C15,'RECAP SECT'!$G$6:$FJ$253,63,FALSE) -> -109.52 | O15: =VLOOKUP($C15,'RECAP SECT'!$G$6:$FJ$253,64,FALSE) -> -3.94 | P15: =VLOOKUP($C15,'RECAP SECT'!$G$6:$FJ$253,65,FALSE) -> 147% | Q15: =VLOOKUP($C15,'RECAP SECT'!$G$6:$FJ$253,66,FALSE) -> 17 | R15: =VLOOKUP($C15,'RECAP SECT'!$G$6:$FJ$253,67,FALSE) -> 54% | S15: =VLOOKUP($C15,'RECAP SECT'!$G$6:$FJ$253,68,FALSE) -> 30% | T15: =VLOOKUP($C15,'RECAP SECT'!$G$6:$FJ$253,69,FALSE) -> 10
A16: 264 | B16: HAUT-RHIN | C16: 5169 | D16: MULHOUSE | E16: =VLOOKUP($C16,'RECAP SECT'!$G$6:$FJ$253,3,FALSE) -> 61.6 | F16: =VLOOKUP($C16,'RECAP SECT'!$G$6:$FJ$253,55,FALSE) -> 312.80 | G16: =VLOOKUP($C16,'RECAP SECT'!$G$6:$FJ$253,56,FALSE) -> 6.71 | H16: =VLOOKUP($C16,'RECAP SECT'!$G$6:$FJ$253,57,FALSE) -> 38% | I16: =VLOOKUP($C16,'RECAP SECT'!$G$6:$FJ$253,58,FALSE) -> 13 | J16: =VLOOKUP($C16,'RECAP SECT'!$G$6:$FJ$253,59,FALSE) -> 47.03 | K16: =VLOOKUP($C16,'RECAP SECT'!$G$6:$FJ$253,60,FALSE) -> 0.33 | L16: =VLOOKUP($C16,'RECAP SECT'!$G$6:$FJ$253,61,FALSE) -> 73% | M16: =VLOOKUP($C16,'RECAP SECT'!$G$6:$FJ$253,62,FALSE) -> 18 | N16: =VLOOKUP($C16,'RECAP SECT'!$G$6:$FJ$253,63,FALSE) -> -99.64 | O16: =VLOOKUP($C16,'RECAP SECT'!$G$6:$FJ$253,64,FALSE) -> -3.58 | P16: =VLOOKUP($C16,'RECAP SECT'!$G$6:$FJ$253,65,FALSE) -> 137% | Q16: =VLOOKUP($C16,'RECAP SECT'!$G$6:$FJ$253,66,FALSE) -> 15 | R16: =VLOOKUP($C16,'RECAP SECT'!$G$6:$FJ$253,67,FALSE) -> 81% | S16: =VLOOKUP($C16,'RECAP SECT'!$G$6:$FJ$253,68,FALSE) -> 58% | T16: =VLOOKUP($C16,'RECAP SECT'!$G$6:$FJ$253,69,FALSE) -> 18
A17: 30 | B17: MARNE-ARDENNES | C17: 6 | D17: CHALONS EN CHAMPAGNE | E17: =VLOOKUP($C17,'RECAP SECT'!$G$6:$FJ$253,3,FALSE) -> 44.9 | F17: =VLOOKUP($C17,'RECAP SECT'!$G$6:$FJ$253,55,FALSE) -> 429.60 | G17: =VLOOKUP($C17,'RECAP SECT'!$G$6:$FJ$253,56,FALSE) -> 9.16 | H17: =VLOOKUP($C17,'RECAP SECT'!$G$6:$FJ$253,57,FALSE) -> 15% | I17: =VLOOKUP($C17,'RECAP SECT'!$G$6:$FJ$253,58,FALSE) -> 3 | J17: =VLOOKUP($C17,'RECAP SECT'!$G$6:$FJ$253,59,FALSE) -> 98.13 | K17: =VLOOKUP($C17,'RECAP SECT'!$G$6:$FJ$253,60,FALSE) -> 0.79 | L17: =VLOOKUP($C17,'RECAP SECT'!$G$6:$FJ$253,61,FALSE) -> 34% | M17: =VLOOKUP($C17,'RECAP SECT'!$G$6:$FJ$253,62,FALSE) -> 6 | N17: =VLOOKUP($C17,'RECAP SECT'!$G$6:$FJ$253,63,FALSE) -> -72.99 | O17: =VLOOKUP($C17,'RECAP SECT'!$G$6:$FJ$253,64,FALSE) -> -2.62 | P17: =VLOOKUP($C17,'RECAP SECT'!$G$6:$FJ$253,65,FALSE) -> 108% | Q17: =VLOOKUP($C17,'RECAP SECT'!$G$6:$FJ$253,66,FALSE) -> 13 | R17: =VLOOKUP($C17,'RECAP SECT'!$G$6:$FJ$253,67,FALSE) -> 50% | S17: =VLOOKUP($C17,'RECAP SECT'!$G$6:$FJ$253,68,FALSE) -> 27% | T17: =VLOOKUP($C17,'RECAP SECT'!$G$6:$FJ$253,69,FALSE) -> 9
A18: 30 | B18: MARNE-ARDENNES | C18: 2 | D18: CHARLEVILLE MEZIERES | E18: =VLOOKUP($C18,'RECAP SECT'!$G$6:$FJ$253,3,FALSE) -> 54.9 | F18: =VLOOKUP($C18,'RECAP SECT'!$G$6:$FJ$253,55,FALSE) -> 213.02 | G18: =VLOOKUP($C18,'RECAP SECT'!$G$6:$FJ$253,56,FALSE) -> 4.93 | H18: =VLOOKUP($C18,'RECAP SECT'!$G$6:$FJ$253,57,FALSE) -> 54% | I18: =VLOOKUP($C18,'RECAP SECT'!$G$6:$FJ$253,58,FALSE) -> 18 | J18: =VLOOKUP($C18,'RECAP SECT'!$G$6:$FJ$253,59,FALSE) -> 84.03 | K18: =VLOOKUP($C18,'RECAP SECT'!$G$6:$FJ$253,60,FALSE) -> 0.67 | L18: =VLOOKUP($C18,'RECAP SECT'!$G$6:$FJ$253,61,FALSE) -> 44% | M18: =VLOOKUP($C18,'RECAP SECT'!$G$6:$FJ$253,62,FALSE) -> 10 | N18: =VLOOKUP($C18,'RECAP SECT'!$G$6:$FJ$253,63,FALSE) -> -9.64 | O18: =VLOOKUP($C18,'RECAP SECT'!$G$6:$FJ$253,64,FALSE) -> -0.35 | P18: =VLOOKUP($C18,'RECAP SECT'!$G$6:$FJ$253,65,FALSE) -> 39% | Q18: =VLOOKUP($C18,'RECAP SECT'!$G$6:$FJ$253,66,FALSE) -> 3 | R18: =VLOOKUP($C18,'RECAP SECT'!$G$6:$FJ$253,67,FALSE) -> 46% | S18: =VLOOKUP($C18,'RECAP SECT'!$G$6:$FJ$253,68,FALSE) -> 22% | T18: =VLOOKUP($C18,'RECAP SECT'!$G$6:$FJ$253,69,FALSE) -> 5
A19: 30 | B19: MARNE-ARDENNES | C19: 11 | D19: REIMS | E19: =VLOOKUP($C19,'RECAP SECT'!$G$6:$FJ$253,3,FALSE) -> 78.2 | F19: =VLOOKUP($C19,'RECAP SECT'!$G$6:$FJ$253,55,FALSE) -> 478.02 | G19: =VLOOKUP($C19,'RECAP SECT'!$G$6:$FJ$253,56,FALSE) -> 10.75 | H19: =VLOOKUP($C19,'RECAP SECT'!$G$6:$FJ$253,57,FALSE) -> 0% | I19: =VLOOKUP($C19,'RECAP SECT'!$G$6:$FJ$253,58,FALSE) -> 1 | J19: =VLOOKUP($C19,'RECAP SECT'!$G$6:$FJ$253,59,FALSE) -> 94.25 | K19: =VLOOKUP($C19,'RECAP SECT'!$G$6:$FJ$253,60,FALSE) -> 0.64 | L19: =VLOOKUP($C19,'RECAP SECT'!$G$6:$FJ$253,61,FALSE) -> 47% | M19: =VLOOKUP($C19,'RECAP SECT'!$G$6:$FJ$253,62,FALSE) -> 11 | N19: =VLOOKUP($C19,'RECAP SECT'!$G$6:$FJ$253,63,FALSE) -> -61.25 | O19: =VLOOKUP($C19,'RECAP SECT'!$G$6:$FJ$253,64,FALSE) -> -2.20 | P19: =VLOOKUP($C19,'RECAP SECT'!$G$6:$FJ$253,65,FALSE) -> 95% | Q19: =VLOOKUP($C19,'RECAP SECT'!$G$6:$FJ$253,66,FALSE) -> 12 | R19: =VLOOKUP($C19,'RECAP SECT'!$G$6:$FJ$253,67,FALSE) -> 47% | S19: =VLOOKUP($C19,'RECAP SECT'!$G$6:$FJ$253,68,FALSE) -> 24% | T19: =VLOOKUP($C19,'RECAP SECT'!$G$6:$FJ$253,69,FALSE) -> 6
A20: 110 | B20: MEURTHE ET MOSELLE MEUSE | C20: 26 | D20: NANCY | E20: =VLOOKUP($C20,'RECAP SECT'!$G$6:$FJ$253,3,FALSE) -> 63.5 | F20: =VLOOKUP($C20,'RECAP SECT'!$G$6:$FJ$253,55,FALSE) -> 392.17 | G20: =VLOOKUP($C20,'RECAP SECT'!$G$6:$FJ$253,56,FALSE) -> 8.51 | H20: =VLOOKUP($C20,'RECAP SECT'!$G$6:$FJ$253,57,FALSE) -> 21% | I20: =VLOOKUP($C20,'RECAP SECT'!$G$6:$FJ$253,58,FALSE) -> 5 | J20: =VLOOKUP($C20,'RECAP SECT'!$G$6:$FJ$253,59,FALSE) -> 112.70 | K20: =VLOOKUP($C20,'RECAP SECT'!$G$6:$FJ$253,60,FALSE) -> 1.01 | L20: =VLOOKUP($C20,'RECAP SECT'!$G$6:$FJ$253,61,FALSE) -> 16% | M20: =VLOOKUP($C20,'RECAP SECT'!$G$6:$FJ$253,62,FALSE) -> 2 | N20: =VLOOKUP($C20,'RECAP SECT'!$G$6:$FJ$253,63,FALSE) -> -106.12 | O20: =VLOOKUP($C20,'RECAP SECT'!$G$6:$FJ$253,64,FALSE) -> -3.81 | P20: =VLOOKUP($C20,'RECAP SECT'!$G$6:$FJ$253,65,FALSE) -> 144% | Q20: =VLOOKUP($C20,'RECAP SECT'!$G$6:$FJ$253,66,FALSE) -> 16 | R20: =VLOOKUP($C20,'RECAP SECT'!$G$6:$FJ$253,67,FALSE) -> 56% | S20: =VLOOKUP($C20,'RECAP SECT'!$G$6:$FJ$253,68,FALSE) -> 32% | T20: =VLOOKUP($C20,'RECAP SECT'!$G$6:$FJ$253,69,FALSE) -> 12
A21: 110 | B21: MEURTHE ET MOSELLE MEUSE | C21: 27 | D21: PONT A MOUSSON | E21: =VLOOKUP($C21,'RECAP SECT'!$G$6:$FJ$253,3,FALSE) -> 72.4 | F21: =VLOOKUP($C21,'RECAP SECT'!$G$6:$FJ$253,55,FALSE) -> 377.49 | G21: =VLOOKUP($C21,'RECAP SECT'!$G$6:$FJ$253,56,FALSE) -> 8.47 | H21: =VLOOKUP($C21,'RECAP SECT'!$G$6:$FJ$253,57,FALSE) -> 21% | I21: =VLOOKUP($C21,'RECAP SECT'!$G$6:$FJ$253,58,FALSE) -> 6 | J21: =VLOOKUP($C21,'RECAP SECT'!$G$6:$FJ$253,59,FALSE) -> 86.11 | K21: =VLOOKUP($C21,'RECAP SECT'!$G$6:$FJ$253,60,FALSE) -> 0.57 | L21: =VLOOKUP($C21,'RECAP SECT'!$G$6:$FJ$253,61,FALSE) -> 52% | M21: =VLOOKUP($C21,'RECAP SECT'!$G$6:$FJ$253,62,FALSE) -> 14 | N21: =VLOOKUP($C21,'RECAP SECT'!$G$6:$FJ$253,63,FALSE) -> 14.65 | O21: =VLOOKUP($C21,'RECAP SECT'!$G$6:$FJ$253,64,FALSE) -> 0.53 | P21: =VLOOKUP($C21,'RECAP SECT'!$G$6:$FJ$253,65,FALSE) -> 13% | Q21: =VLOOKUP($C21,'RECAP SECT'!$G$6:$FJ$253,66,FALSE) -> 2 | R21: =VLOOKUP($C21,'RECAP SECT'!$G$6:$FJ$253,67,FALSE) -> 31% | S21: =VLOOKUP($C21,'RECAP SECT'!$G$6:$FJ$253,68,FALSE) -> 8% | T21: =VLOOKUP($C21,'RECAP SECT'!$G$6:$FJ$253,69,FALSE) -> 2
A22: 110 | B22: MEURTHE ET MOSELLE MEUSE | C22: 31 | D22: VERDUN | E22: =VLOOKUP($C22,'RECAP SECT'!$G$6:$FJ$253,3,FALSE) -> 51.9 | F22: =VLOOKUP($C22,'RECAP SECT'!$G$6:$FJ$253,55,FALSE) -> 312.02 | G22: =VLOOKUP($C22,'RECAP SECT'!$G$6:$FJ$253,56,FALSE) -> 6.95 | H22: =VLOOKUP($C22,'RECAP SECT'!$G$6:$FJ$253,57,FALSE) -> 35% | I22: =VLOOKUP($C22,'RECAP SECT'!$G$6:$FJ$253,58,FALSE) -> 11 | J22: =VLOOKUP($C22,'RECAP SECT'!$G$6:$FJ$253,59,FALSE) -> 100.06 | K22: =VLOOKUP($C22,'RECAP SECT'!$G$6:$FJ$253,60,FALSE) -> 0.67 | L22: =VLOOKUP($C22,'RECAP SECT'!$G$6:$FJ$253,61,FALSE) -> 44% | M22: =VLOOKUP($C22,'RECAP SECT'!$G$6:$FJ$253,62,FALSE) -> 9 | N22: =VLOOKUP($C22,'RECAP SECT'!$G$6:$FJ$253,63,FALSE) -> -40.21 | O22: =VLOOKUP($C22,'RECAP SECT'!$G$6:$FJ$253,64,FALSE) -> -1.45 | P22: =VLOOKUP($C22,'RECAP SECT'!$G$6:$FJ$253,65,FALSE) -> 72% | Q22: =VLOOKUP($C22,'RECAP SECT'!$G$6:$FJ$253,66,FALSE) -> 8 | R22: =VLOOKUP($C22,'RECAP SECT'!$G$6:$FJ$253,67,FALSE) -> 50% | S22: =VLOOKUP($C22,'RECAP SECT'!$G$6:$FJ$253,68,FALSE) -> 27% | T22: =VLOOKUP($C22,'RECAP SECT'!$G$6:$FJ$253,69,FALSE) -> 8
A23: 160 | B23: MOSELLE | C23: 45 | D23: METZ | E23: =VLOOKUP($C23,'RECAP SECT'!$G$6:$FJ$253,3,FALSE) -> 86.5 | F23: =VLOOKUP($C23,'RECAP SECT'!$G$6:$FJ$253,55,FALSE) -> 366.28 | G23: =VLOOKUP($C23,'RECAP SECT'!$G$6:$FJ$253,56,FALSE) -> 7.86 | H23: =VLOOKUP($C23,'RECAP SECT'!$G$6:$FJ$253,57,FALSE) -> 27% | I23: =VLOOKUP($C23,'RECAP SECT'!$G$6:$FJ$253,58,FALSE) -> 7 | J23: =VLOOKUP($C23,'RECAP SECT'!$G$6:$FJ$253,59,FALSE) -> 87.06 | K23: =VLOOKUP($C23,'RECAP SECT'!$G$6:$FJ$253,60,FALSE) -> 0.62 | L23: =VLOOKUP($C23,'RECAP SECT'!$G$6:$FJ$253,61,FALSE) -> 48% | M23: =VLOOKUP($C23,'RECAP SECT'!$G$6:$FJ$253,62,FALSE) -> 12 | N23: =VLOOKUP($C23,'RECAP SECT'!$G$6:$FJ$253,63,FALSE) -> -39.32 | O23: =VLOOKUP($C23,'RECAP SECT'!$G$6:$FJ$253,64,FALSE) -> -1.41 | P23: =VLOOKUP($C23,'RECAP SECT'!$G$6:$FJ$253,65,FALSE) -> 71% | Q23: =VLOOKUP($C23,'RECAP SECT'!$G$6:$FJ$253,66,FALSE) -> 6 | R23: =VLOOKUP($C23,'RECAP SECT'!$G$6:$FJ$253,67,FALSE) -> 49% | S23: =VLOOKUP($C23,'RECAP SECT'!$G$6:$FJ$253,68,FALSE) -> 25% | T23: =VLOOKUP($C23,'RECAP SECT'!$G$6:$FJ$253,69,FALSE) -> 7
A24: 160 | B24: MOSELLE | C24: 42 | D24: MOSELLE EST | E24: =VLOOKUP($C24,'RECAP SECT'!$G$6:$FJ$253,3,FALSE) -> 72.3 | F24: =VLOOKUP($C24,'RECAP SECT'!$G$6:$FJ$253,55,FALSE) -> 240.55 | G24: =VLOOKUP($C24,'RECAP SECT'!$G$6:$FJ$253,56,FALSE) -> 5.40 | H24: =VLOOKUP($C24,'RECAP SECT'!$G$6:$FJ$253,57,FALSE) -> 50% | I24: =VLOOKUP($C24,'RECAP SECT'!$G$6:$FJ$253,58,FALSE) -> 16 | J24: =VLOOKUP($C24,'RECAP SECT'!$G$6:$FJ$253,59,FALSE) -> 81.18 | K24: =VLOOKUP($C24,'RECAP SECT'!$G$6:$FJ$253,60,FALSE) -> 0.75 | L24: =VLOOKUP($C24,'RECAP SECT'!$G$6:$FJ$253,61,FALSE) -> 38% | M24: =VLOOKUP($C24,'RECAP SECT'!$G$6:$FJ$253,62,FALSE) -> 7 | N24: =VLOOKUP($C24,'RECAP SECT'!$G$6:$FJ$253,63,FALSE) -> -112.06 | O24: =VLOOKUP($C24,'RECAP SECT'!$G$6:$FJ$253,64,FALSE) -> -4.03 | P24: =VLOOKUP($C24,'RECAP SECT'!$G$6:$FJ$253,65,FALSE) -> 150% | Q24: =VLOOKUP($C24,'RECAP SECT'!$G$6:$FJ$253,66,FALSE) -> 18 | R24: =VLOOKUP($C24,'RECAP SECT'!$G$6:$FJ$253,67,FALSE) -> 75% | S24: =VLOOKUP($C24,'RECAP SECT'!$G$6:$FJ$253,68,FALSE) -> 52% | T24: =VLOOKUP($C24,'RECAP SECT'!$G$6:$FJ$253,69,FALSE) -> 17
A25: 160 | B25: MOSELLE | C25: 44 | D25: MOSELLE NORD | E25: =VLOOKUP($C25,'RECAP SECT'!$G$6:$FJ$253,3,FALSE) -> 69.0 | F25: =VLOOKUP($C25,'RECAP SECT'!$G$6:$FJ$253,55,FALSE) -> 255.22 | G25: =VLOOKUP($C25,'RECAP SECT'!$G$6:$FJ$253,56,FALSE) -> 5.55 | H25: =VLOOKUP($C25,'RECAP SECT'!$G$6:$FJ$253,57,FALSE) -> 48% | I25: =VLOOKUP($C25,'RECAP SECT'!$G$6:$FJ$253,58,FALSE) -> 15 | J25: =VLOOKUP($C25,'RECAP SECT'!$G$6:$FJ$253,59,FALSE) -> 80.99 | K25: =VLOOKUP($C25,'RECAP SECT'!$G$6:$FJ$253,60,FALSE) -> 0.62 | L25: =VLOOKUP($C25,'RECAP SECT'!$G$6:$FJ$253,61,FALSE) -> 48% | M25: =VLOOKUP($C25,'RECAP SECT'!$G$6:$FJ$253,62,FALSE) -> 13 | N25: =VLOOKUP($C25,'RECAP SECT'!$G$6:$FJ$253,63,FALSE) -> -39.36 | O25: =VLOOKUP($C25,'RECAP SECT'!$G$6:$FJ$253,64,FALSE) -> -1.41 | P25: =VLOOKUP($C25,'RECAP SECT'!$G$6:$FJ$253,65,FALSE) -> 71% | Q25: =VLOOKUP($C25,'RECAP SECT'!$G$6:$FJ$253,66,FALSE) -> 7 | R25: =VLOOKUP($C25,'RECAP SECT'!$G$6:$FJ$253,67,FALSE) -> 55% | S25: =VLOOKUP($C25,'RECAP SECT'!$G$6:$FJ$253,68,FALSE) -> 32% | T25: =VLOOKUP($C25,'RECAP SECT'!$G$6:$FJ$253,69,FALSE) -> 11
A26: 80 | B26: VOSGES | C26: 57 | D26: EPINAL | E26: =VLOOKUP($C26,'RECAP SECT'!$G$6:$FJ$253,3,FALSE) -> 59.6 | F26: =VLOOKUP($C26,'RECAP SECT'!$G$6:$FJ$253,55,FALSE) -> 269.26 | G26: =VLOOKUP($C26,'RECAP SECT'!$G$6:$FJ$253,56,FALSE) -> 6.38 | H26: =VLOOKUP($C26,'RECAP SECT'!$G$6:$FJ$253,57,FALSE) -> 41% | I26: =VLOOKUP($C26,'RECAP SECT'!$G$6:$FJ$253,58,FALSE) -> 14 | J26: =VLOOKUP($C26,'RECAP SECT'!$G$6:$FJ$253,59,FALSE) -> 80.09 | K26: =VLOOKUP($C26,'RECAP SECT'!$G$6:$FJ$253,60,FALSE) -> 0.50 | L26: =VLOOKUP($C26,'RECAP SECT'!$G$6:$FJ$253,61,FALSE) -> 58% | M26: =VLOOKUP($C26,'RECAP SECT'!$G$6:$FJ$253,62,FALSE) -> 15 | N26: =VLOOKUP($C26,'RECAP SECT'!$G$6:$FJ$253,63,FALSE) -> -42.19 | O26: =VLOOKUP($C26,'RECAP SECT'!$G$6:$FJ$253,64,FALSE) -> -1.52 | P26: =VLOOKUP($C26,'RECAP SECT'!$G$6:$FJ$253,65,FALSE) -> 74% | Q26: =VLOOKUP($C26,'RECAP SECT'!$G$6:$FJ$253,66,FALSE) -> 10 | R26: =VLOOKUP($C26,'RECAP SECT'!$G$6:$FJ$253,67,FALSE) -> 58% | S26: =VLOOKUP($C26,'RECAP SECT'!$G$6:$FJ$253,68,FALSE) -> 35% | T26: =VLOOKUP($C26,'RECAP SECT'!$G$6:$FJ$253,69,FALSE) -> 14
A27: 80 | B27: VOSGES | C27: 55 | D27: SAINT DIE | E27: =VLOOKUP($C27,'RECAP SECT'!$G$6:$FJ$253,3,FALSE) -> 48.1 | F27: =VLOOKUP($C27,'RECAP SECT'!$G$6:$FJ$253,55,FALSE) -> 280.60 | G27: =VLOOKUP($C27,'RECAP SECT'!$G$6:$FJ$253,56,FALSE) -> 6.94 | H27: =VLOOKUP($C27,'RECAP SECT'!$G$6:$FJ$253,57,FALSE) -> 35% | I27: =VLOOKUP($C27,'RECAP SECT'!$G$6:$FJ$253,58,FALSE) -> 12 | J27: =VLOOKUP($C27,'RECAP SECT'!$G$6:$FJ$253,59,FALSE) -> 122.59 | K27: =VLOOKUP($C27,'RECAP SECT'!$G$6:$FJ$253,60,FALSE) -> 0.82 | L27: =VLOOKUP($C27,'RECAP SECT'!$G$6:$FJ$253,61,FALSE) -> 32% | M27: =VLOOKUP($C27,'RECAP SECT'!$G$6:$FJ$253,62,FALSE) -> 5 | N27: =VLOOKUP($C27,'RECAP SECT'!$G$6:$FJ$253,63,FALSE) -> 26.41 | O27: =VLOOKUP($C27,'RECAP SECT'!$G$6:$FJ$253,64,FALSE) -> 0.95 | P27: =VLOOKUP($C27,'RECAP SECT'!$G$6:$FJ$253,65,FALSE) -> 0% | Q27: =VLOOKUP($C27,'RECAP SECT'!$G$6:$FJ$253,66,FALSE) -> 1 | R27: =VLOOKUP($C27,'RECAP SECT'!$G$6:$FJ$253,67,FALSE) -> 23% | S27: =VLOOKUP($C27,'RECAP SECT'!$G$6:$FJ$253,68,FALSE) -> 0% | T27: =VLOOKUP($C27,'RECAP SECT'!$G$6:$FJ$253,69,FALSE) -> 1
A28: Total CEGEE Directions Régionales | E28: =SUM(E10:E27) -> 1140

Sheet SE_CREDIT
B1: Accueil | F1: BAROMETRE BDD - TERRITOIRES
F2: CREDITS
F3: =ACCUEIL!F7 -> 2020-05-24
F7: Engagements crédits conso | J7: ADE crédits conso | N7: Engagements crédits immo | R7: ADE crédits immo | V7: SACCEF | Z7: Engagement Crédits MLT + Crédits Bail | AD7: Total Crédits
H8: coef | I8: ='RECAP DIRCOM'!CG4 -> 4% | L8: coef | M8: ='RECAP DIRCOM'!CK4 -> 1% | P8: coef | Q8: ='RECAP DIRCOM'!CO4 -> 4% | T8: coef | U8: ='RECAP DIRCOM'!CS4 -> 2% | X8: coef | Y8: ='RECAP DIRCOM'!CW4 -> 2% | AB8: coef | AC8: ='RECAP DIRCOM'!DA4 -> 2% | AE8: coef | AF8: ='RECAP DIRCOM'!DD4 -> 15%
B9: Direction | C9: eds | D9: Territoire | E9: ETP perf | F9: Réal / ETP | G9: PNB / ETP | H9: % Ecart au 1er | I9: Rang | K9: PNB / ETP | L9: % Ecart au 1er | M9: Rang | N9: Réal / ETP | O9: PNB / ETP | P9: % Ecart au 1er | Q9: Rang | S9: PNB / ETP | T9: % Ecart au 1er | U9: Rang | W9: PNB / ETP | X9: % Ecart au 1er | Y9: Rang | Z9: Réal / ETP | AA9: PNB / ETP | AB9: % Ecart au 1er | AC9: Rang | AD9: Moyenne ecart au 1er | AE9: % Ecart au 1er | AF9: Rang CEGEE
A10: 50 | B10: AUBE HAUTE MARNE | C10: 21 | D10: CHAUMONT | E10: =VLOOKUP($C10,'RECAP SECT'!$G$6:$FJ$253,3,FALSE) -> 34.6 | F10: =VLOOKUP($C10,'RECAP SECT'!$G$6:$FJ$253,76,FALSE) -> 260.97 | G10: =VLOOKUP($C10,'RECAP SECT'!$G$6:$FJ$253,77,FALSE) -> 25.15 | H10: =VLOOKUP($C10,'RECAP SECT'!$G$6:$FJ$253,78,FALSE) -> 0% | I10: =VLOOKUP($C10,'RECAP SECT'!$G$6:$FJ$253,79,FALSE) -> 1 | K10: =VLOOKUP($C10,'RECAP SECT'!$G$6:$FJ$253,81,FALSE) -> 5.12 | L10: =VLOOKUP($C10,'RECAP SECT'!$G$6:$FJ$253,82,FALSE) -> 11% | M10: =VLOOKUP($C10,'RECAP SECT'!$G$6:$FJ$253,83,FALSE) -> 2 | N10: =VLOOKUP($C10,'RECAP SECT'!$G$6:$FJ$253,84,FALSE) -> 540.53 | O10: =VLOOKUP($C10,'RECAP SECT'!$G$6:$FJ$253,85,FALSE) -> 21.27 | P10: =VLOOKUP($C10,'RECAP SECT'!$G$6:$FJ$253,86,FALSE) -> 51% | Q10: =VLOOKUP($C10,'RECAP SECT'!$G$6:$FJ$253,87,FALSE) -> 16 | S10: =VLOOKUP($C10,'RECAP SECT'!$G$6:$FJ$253,89,FALSE) -> 9.65 | T10: =VLOOKUP($C10,'RECAP SECT'!$G$6:$FJ$253,90,FALSE) -> 65% | U10: =VLOOKUP($C10,'RECAP SECT'!$G$6:$FJ$253,91,FALSE) -> 16 | W10: =VLOOKUP($C10,'RECAP SECT'!$G$6:$FJ$253,93,FALSE) -> 1.14 | X10: =VLOOKUP($C10,'RECAP SECT'!$G$6:$FJ$253,94,FALSE) -> 56% | Y10: =VLOOKUP($C10,'RECAP SECT'!$G$6:$FJ$253,95,FALSE) -> 14 | Z10: =VLOOKUP($C10,'RECAP SECT'!$G$6:$FJ$253,96,FALSE) -> 111.15 | AA10: =VLOOKUP($C10,'RECAP SECT'!$G$6:$FJ$253,97,FALSE) -> 5.67 | AB10: =VLOOKUP($C10,'RECAP SECT'!$G$6:$FJ$253,98,FALSE) -> 48% | AC10: =VLOOKUP($C10,'RECAP SECT'!$G$6:$FJ$253,99,FALSE) -> 4 | AD10: =VLOOKUP($C10,'RECAP SECT'!$G$6:$FJ$253,100,FALSE) -> 37% | AE10: =VLOOKUP($C10,'RECAP SECT'!$G$6:$FJ$253,101,FALSE) -> 25% | AF10: =VLOOKUP($C10,'RECAP SECT'!$G$6:$FJ$253,102,FALSE) -> 7
A11: 50 | B11: AUBE HAUTE MARNE | C11: 14 | D11: TROYES | E11: =VLOOKUP($C11,'RECAP SECT'!$G$6:$FJ$253,3,FALSE) -> 65.2 | F11: =VLOOKUP($C11,'RECAP SECT'!$G$6:$FJ$253,76,FALSE) -> 201.62 | G11: =VLOOKUP($C11,'RECAP SECT'!$G$6:$FJ$253,77,FALSE) -> 20.17 | H11: =VLOOKUP($C11,'RECAP SECT'!$G$6:$FJ$253,78,FALSE) -> 20% | I11: =VLOOKUP($C11,'RECAP SECT'!$G$6:$FJ$253,79,FALSE) -> 4 | K11: =VLOOKUP($C11,'RECAP SECT'!$G$6:$FJ$253,81,FALSE) -> 3.90 | L11: =VLOOKUP($C11,'RECAP SECT'!$G$6:$FJ$253,82,FALSE) -> 32% | M11: =VLOOKUP($C11,'RECAP SECT'!$G$6:$FJ$253,83,FALSE) -> 11 | N11: =VLOOKUP($C11,'RECAP SECT'!$G$6:$FJ$253,84,FALSE) -> 506.87 | O11: =VLOOKUP($C11,'RECAP SECT'!$G$6:$FJ$253,85,FALSE) -> 22.00 | P11: =VLOOKUP($C11,'RECAP SECT'!$G$6:$FJ$253,86,FALSE) -> 50% | Q11: =VLOOKUP($C11,'RECAP SECT'!$G$6:$FJ$253,87,FALSE) -> 15 | S11: =VLOOKUP($C11,'RECAP SECT'!$G$6:$FJ$253,89,FALSE) -> 9.13 | T11: =VLOOKUP($C11,'RECAP SECT'!$G$6:$FJ$253,90,FALSE) -> 67% | U11: =VLOOKUP($C11,'RECAP SECT'!$G$6:$FJ$253,91,FALSE) -> 17 | W11: =VLOOKUP($C11,'RECAP SECT'!$G$6:$FJ$253,93,FALSE) -> 1.21 | X11: =VLOOKUP($C11,'RECAP SECT'!$G$6:$FJ$253,94,FALSE) -> 53% | Y11: =VLOOKUP($C11,'RECAP SECT'!$G$6:$FJ$253,95,FALSE) -> 11 | Z11: =VLOOKUP($C11,'RECAP SECT'!$G$6:$FJ$253,96,FALSE) -> 194.14 | AA11: =VLOOKUP($C11,'RECAP SECT'!$G$6:$FJ$253,97,FALSE) -> 8.02 | AB11: =VLOOKUP($C11,'RECAP SECT'!$G$6:$FJ$253,98,FALSE) -> 27% | AC11: =VLOOKUP($C11,'RECAP SECT'!$G$6:$FJ$253,99,FALSE) -> 2 | AD11: =VLOOKUP($C11,'RECAP SECT'!$G$6:$FJ$253,100,FALSE) -> 40% | AE11: =VLOOKUP($C11,'RECAP SECT'!$G$6:$FJ$253,101,FALSE) -> 28% | AF11: =VLOOKUP($C11,'RECAP SECT'!$G$6:$FJ$253,102,FALSE) -> 10
A12: 262 | B12: BAS-RHIN | C12: 5060 | D12: HAGUENAU | E12: =VLOOKUP($C12,'RECAP SECT'!$G$6:$FJ$253,3,FALSE) -> 75.3 | F12: =VLOOKUP($C12,'RECAP SECT'!$G$6:$FJ$253,76,FALSE) -> 182.23 | G12: =VLOOKUP($C12,'RECAP SECT'!$G$6:$FJ$253,77,FALSE) -> 16.07 | H12: =VLOOKUP($C12,'RECAP SECT'!$G$6:$FJ$253,78,FALSE) -> 36% | I12: =VLOOKUP($C12,'RECAP SECT'!$G$6:$FJ$253,79,FALSE) -> 17 | K12: =VLOOKUP($C12,'RECAP SECT'!$G$6:$FJ$253,81,FALSE) -> 4.00 | L12: =VLOOKUP($C12,'RECAP SECT'!$G$6:$FJ$253,82,FALSE) -> 30% | M12: =VLOOKUP($C12,'RECAP SECT'!$G$6:$FJ$253,83,FALSE) -> 9 | N12: =VLOOKUP($C12,'RECAP SECT'!$G$6:$FJ$253,84,FALSE) -> 448.37 | O12: =VLOOKUP($C12,'RECAP SECT'!$G$6:$FJ$253,85,FALSE) -> 16.68 | P12: =VLOOKUP($C12,'RECAP SECT'!$G$6:$FJ$253,86,FALSE) -> 62% | Q12: =VLOOKUP($C12,'RECAP SECT'!$G$6:$FJ$253,87,FALSE) -> 18 | S12: =VLOOKUP($C12,'RECAP SECT'!$G$6:$FJ$253,89,FALSE) -> 9.71 | T12: =VLOOKUP($C12,'RECAP SECT'!$G$6:$FJ$253,90,FALSE) -> 65% | U12: =VLOOKUP($C12,'RECAP SECT'!$G$6:$FJ$253,91,FALSE) -> 15 | W12: =VLOOKUP($C12,'RECAP SECT'!$G$6:$FJ$253,93,FALSE) -> 0.98 | X12: =VLOOKUP($C12,'RECAP SECT'!$G$6:$FJ$253,94,FALSE) -> 62% | Y12: =VLOOKUP($C12,'RECAP SECT'!$G$6:$FJ$253,95,FALSE) -> 17 | Z12: =VLOOKUP($C12,'RECAP SECT'!$G$6:$FJ$253,96,FALSE) -> 51.28 | AA12: =VLOOKUP($C12,'RECAP SECT'!$G$6:$FJ$253,97,FALSE) -> 2.07 | AB12: =VLOOKUP($C12,'RECAP SECT'!$G$6:$FJ$253,98,FALSE) -> 81% | AC12: =VLOOKUP($C12,'RECAP SECT'!$G$6:$FJ$253,99,FALSE) -> 13 | AD12: =VLOOKUP($C12,'RECAP SECT'!$G$6:$FJ$253,100,FALSE) -> 56% | AE12: =VLOOKUP($C12,'RECAP SECT'!$G$6:$FJ$253,101,FALSE) -> 44% | AF12: =VLOOKUP($C12,'RECAP SECT'!$G$6:$FJ$253,102,FALSE) -> 18
A13: 262 | B13: BAS-RHIN | C13: 5101 | D13: SELESTAT | E13: =VLOOKUP($C13,'RECAP SECT'!$G$6:$FJ$253,3,FALSE) -> 62.3 | F13: =VLOOKUP($C13,'RECAP SECT'!$G$6:$FJ$253,76,FALSE) -> 185.83 | G13: =VLOOKUP($C13,'RECAP SECT'!$G$6:$FJ$253,77,FALSE) -> 16.12 | H13: =VLOOKUP($C13,'RECAP SECT'!$G$6:$FJ$253,78,FALSE) -> 36% | I13: =VLOOKUP($C13,'RECAP SECT'!$G$6:$FJ$253,79,FALSE) -> 15 | K13: =VLOOKUP($C13,'RECAP SECT'!$G$6:$FJ$253,81,FALSE) -> 3.75 | L13: =VLOOKUP($C13,'RECAP SECT'!$G$6:$FJ$253,82,FALSE) -> 35% | M13: =VLOOKUP($C13,'RECAP SECT'!$G$6:$FJ$253,83,FALSE) -> 16 | N13: =VLOOKUP($C13,'RECAP SECT'!$G$6:$FJ$253,84,FALSE) -> 621.84 | O13: =VLOOKUP($C13,'RECAP SECT'!$G$6:$FJ$253,85,FALSE) -> 22.29 | P13: =VLOOKUP($C13,'RECAP SECT'!$G$6:$FJ$253,86,FALSE) -> 49% | Q13: =VLOOKUP($C13,'RECAP SECT'!$G$6:$FJ$253,87,FALSE) -> 14 | S13: =VLOOKUP($C13,'RECAP SECT'!$G$6:$FJ$253,89,FALSE) -> 14.53 | T13: =VLOOKUP($C13,'RECAP SECT'!$G$6:$FJ$253,90,FALSE) -> 47% | U13: =VLOOKUP($C13,'RECAP SECT'!$G$6:$FJ$253,91,FALSE) -> 7 | W13: =VLOOKUP($C13,'RECAP SECT'!$G$6:$FJ$253,93,FALSE) -> 1.17 | X13: =VLOOKUP($C13,'RECAP SECT'!$G$6:$FJ$253,94,FALSE) -> 55% | Y13: =VLOOKUP($C13,'RECAP SECT'!$G$6:$FJ$253,95,FALSE) -> 13 | Z13: =VLOOKUP($C13,'RECAP SECT'!$G$6:$FJ$253,96,FALSE) -> 76.74 | AA13: =VLOOKUP($C13,'RECAP SECT'!$G$6:$FJ$253,97,FALSE) -> 3.59 | AB13: =VLOOKUP($C13,'RECAP SECT'!$G$6:$FJ$253,98,FALSE) -> 67% | AC13: =VLOOKUP($C13,'RECAP SECT'!$G$6:$FJ$253,99,FALSE) -> 8 | AD13: =VLOOKUP($C13,'RECAP SECT'!$G$6:$FJ$253,100,FALSE) -> 48% | AE13: =VLOOKUP($C13,'RECAP SECT'!$G$6:$FJ$253,101,FALSE) -> 36% | AF13: =VLOOKUP($C13,'RECAP SECT'!$G$6:$FJ$253,102,FALSE) -> 16
A14: 262 | B14: BAS-RHIN | C14: 5006 | D14: STRASBOURG | E14: =VLOOKUP($C14,'RECAP SECT'!$G$6:$FJ$253,3,FALSE) -> 74.4 | F14: =VLOOKUP($C14,'RECAP SECT'!$G$6:$FJ$253,76,FALSE) -> 171.63 | G14: =VLOOKUP($C14,'RECAP SECT'!$G$6:$FJ$253,77,FALSE) -> 16.08 | H14: =VLOOKUP($C14,'RECAP SECT'!$G$6:$FJ$253,78,FALSE) -> 36% | I14: =VLOOKUP($C14,'RECAP SECT'!$G$6:$FJ$253,79,FALSE) -> 16 | K14: =VLOOKUP($C14,'RECAP SECT'!$G$6:$FJ$253,81,FALSE) -> 4.07 | L14: =VLOOKUP($C14,'RECAP SECT'!$G$6:$FJ$253,82,FALSE) -> 29% | M14: =VLOOKUP($C14,'RECAP SECT'!$G$6:$FJ$253,83,FALSE) -> 7 | N14: =VLOOKUP($C14,'RECAP SECT'!$G$6:$FJ$253,84,FALSE) -> 837.68 | O14: =VLOOKUP($C14,'RECAP SECT'!$G$6:$FJ$253,85,FALSE) -> 23.06 | P14: =VLOOKUP($C14,'RECAP SECT'!$G$6:$FJ$253,86,FALSE) -> 47% | Q14: =VLOOKUP($C14,'RECAP SECT'!$G$6:$FJ$253,87,FALSE) -> 12 | S14: =VLOOKUP($C14,'RECAP SECT'!$G$6:$FJ$253,89,FALSE) -> 13.80 | T14: =VLOOKUP($C14,'RECAP SECT'!$G$6:$FJ$253,90,FALSE) -> 50% | U14: =VLOOKUP($C14,'RECAP SECT'!$G$6:$FJ$253,91,FALSE) -> 10 | W14: =VLOOKUP($C14,'RECAP SECT'!$G$6:$FJ$253,93,FALSE) -> 1.45 | X14: =VLOOKUP($C14,'RECAP SECT'!$G$6:$FJ$253,94,FALSE) -> 44% | Y14: =VLOOKUP($C14,'RECAP SECT'!$G$6:$FJ$253,95,FALSE) -> 9 | Z14: =VLOOKUP($C14,'RECAP SECT'!$G$6:$FJ$253,96,FALSE) -> 198.53 | AA14: =VLOOKUP($C14,'RECAP SECT'!$G$6:$FJ$253,97,FALSE) -> 7.38 | AB14: =VLOOKUP($C14,'RECAP SECT'!$G$6:$FJ$253,98,FALSE) -> 32% | AC14: =VLOOKUP($C14,'RECAP SECT'!$G$6:$FJ$253,99,FALSE) -> 3 | AD14: =VLOOKUP($C14,'RECAP SECT'!$G$6:$FJ$253,100,FALSE) -> 41% | AE14: =VLOOKUP($C14,'RECAP SECT'!$G$6:$FJ$253,101,FALSE) -> 29% | AF14: =VLOOKUP($C14,'RECAP SECT'!$G$6:$FJ$253,102,FALSE) -> 11
A15: 264 | B15: HAUT-RHIN | C15: 5130 | D15: COLMAR | E15: =VLOOKUP($C15,'RECAP SECT'!$G$6:$FJ$253,3,FALSE) -> 64.7 | F15: =VLOOKUP($C15,'RECAP SECT'!$G$6:$FJ$253,76,FALSE) -> 154.80 | G15: =VLOOKUP($C15,'RECAP SECT'!$G$6:$FJ$253,77,FALSE) -> 13.55 | H15: =VLOOKUP($C15,'RECAP SECT'!$G$6:$FJ$253,78,FALSE) -> 46% | I15: =VLOOKUP($C15,'RECAP SECT'!$G$6:$FJ$253,79,FALSE) -> 18 | K15: =VLOOKUP($C15,'RECAP SECT'!$G$6:$FJ$253,81,FALSE) -> 2.95 | L15: =VLOOKUP($C15,'RECAP SECT'!$G$6:$FJ$253,82,FALSE) -> 49% | M15: =VLOOKUP($C15,'RECAP SECT'!$G$6:$FJ$253,83,FALSE) -> 18 | N15: =VLOOKUP($C15,'RECAP SECT'!$G$6:$FJ$253,84,FALSE) -> 586.50 | O15: =VLOOKUP($C15,'RECAP SECT'!$G$6:$FJ$253,85,FALSE) -> 19.91 | P15: =VLOOKUP($C15,'RECAP SECT'!$G$6:$FJ$253,86,FALSE) -> 55% | Q15: =VLOOKUP($C15,'RECAP SECT'!$G$6:$FJ$253,87,FALSE) -> 17 | S15: =VLOOKUP($C15,'RECAP SECT'!$G$6:$FJ$253,89,FALSE) -> 8.74 | T15: =VLOOKUP($C15,'RECAP SECT'!$G$6:$FJ$253,90,FALSE) -> 68% | U15: =VLOOKUP($C15,'RECAP SECT'!$G$6:$FJ$253,91,FALSE) -> 18 | W15: =VLOOKUP($C15,'RECAP SECT'!$G$6:$FJ$253,93,FALSE) -> 1.10 | X15: =VLOOKUP($C15,'RECAP SECT'!$G$6:$FJ$253,94,FALSE) -> 57% | Y15: =VLOOKUP($C15,'RECAP SECT'!$G$6:$FJ$253,95,FALSE) -> 15 | Z15: =VLOOKUP($C15,'RECAP SECT'!$G$6:$FJ$253,96,FALSE) -> 105.25 | AA15: =VLOOKUP($C15,'RECAP SECT'!$G$6:$FJ$253,97,FALSE) -> 3.94 | AB15: =VLOOKUP($C15,'RECAP SECT'!$G$6:$FJ$253,98,FALSE) -> 64% | AC15: =VLOOKUP($C15,'RECAP SECT'!$G$6:$FJ$253,99,FALSE) -> 6 | AD15: =VLOOKUP($C15,'RECAP SECT'!$G$6:$FJ$253,100,FALSE) -> 55% | AE15: =VLOOKUP($C15,'RECAP SECT'!$G$6:$FJ$253,101,FALSE) -> 43% | AF15: =VLOOKUP($C15,'RECAP SECT'!$G$6:$FJ$253,102,FALSE) -> 17
A16: 264 | B16: HAUT-RHIN | C16: 5169 | D16: MULHOUSE | E16: =VLOOKUP($C16,'RECAP SECT'!$G$6:$FJ$253,3,FALSE) -> 61.6 | F16: =VLOOKUP($C16,'RECAP SECT'!$G$6:$FJ$253,76,FALSE) -> 198.72 | G16: =VLOOKUP($C16,'RECAP SECT'!$G$6:$FJ$253,77,FALSE) -> 18.60 | H16: =VLOOKUP($C16,'RECAP SECT'!$G$6:$FJ$253,78,FALSE) -> 26% | I16: =VLOOKUP($C16,'RECAP SECT'!$G$6:$FJ$253,79,FALSE) -> 9 | K16: =VLOOKUP($C16,'RECAP SECT'!$G$6:$FJ$253,81,FALSE) -> 4.13 | L16: =VLOOKUP($C16,'RECAP SECT'!$G$6:$FJ$253,82,FALSE) -> 28% | M16: =VLOOKUP($C16,'RECAP SECT'!$G$6:$FJ$253,83,FALSE) -> 6 | N16: =VLOOKUP($C16,'RECAP SECT'!$G$6:$FJ$253,84,FALSE) -> 628.46 | O16: =VLOOKUP($C16,'RECAP SECT'!$G$6:$FJ$253,85,FALSE) -> 23.55 | P16: =VLOOKUP($C16,'RECAP SECT'!$G$6:$FJ$253,86,FALSE) -> 46% | Q16: =VLOOKUP($C16,'RECAP SECT'!$G$6:$FJ$253,87,FALSE) -> 11 | S16: =VLOOKUP($C16,'RECAP SECT'!$G$6:$FJ$253,89,FALSE) -> 14.55 | T16: =VLOOKUP($C16,'RECAP SECT'!$G$6:$FJ$253,90,FALSE) -> 47% | U16: =VLOOKUP($C16,'RECAP SECT'!$G$6:$FJ$253,91,FALSE) -> 6 | W16: =VLOOKUP($C16,'RECAP SECT'!$G$6:$FJ$253,93,FALSE) -> 0.94 | X16: =VLOOKUP($C16,'RECAP SECT'!$G$6:$FJ$253,94,FALSE) -> 64% | Y16: =VLOOKUP($C16,'RECAP SECT'!$G$6:$FJ$253,95,FALSE) -> 18 | Z16: =VLOOKUP($C16,'RECAP SECT'!$G$6:$FJ$253,96,FALSE) -> 123.74 | AA16: =VLOOKUP($C16,'RECAP SECT'!$G$6:$FJ$253,97,FALSE) -> 3.64 | AB16: =VLOOKUP($C16,'RECAP SECT'!$G$6:$FJ$253,98,FALSE) -> 67% | AC16: =VLOOKUP($C16,'RECAP SECT'!$G$6:$FJ$253,99,FALSE) -> 7 | AD16: =VLOOKUP($C16,'RECAP SECT'!$G$6:$FJ$253,100,FALSE) -> 45% | AE16: =VLOOKUP($C16,'RECAP SECT'!$G$6:$FJ$253,101,FALSE) -> 33% | AF16: =VLOOKUP($C16,'RECAP SECT'!$G$6:$FJ$253,102,FALSE) -> 13
A17: 30 | B17: MARNE-ARDENNES | C17: 6 | D17: CHALONS EN CHAMPAGNE | E17: =VLOOKUP($C17,'RECAP SECT'!$G$6:$FJ$253,3,FALSE) -> 44.9 | F17: =VLOOKUP($C17,'RECAP SECT'!$G$6:$FJ$253,76,FALSE) -> 178.18 | G17: =VLOOKUP($C17,'RECAP SECT'!$G$6:$FJ$253,77,FALSE) -> 16.50 | H17: =VLOOKUP($C17,'RECAP SECT'!$G$6:$FJ$253,78,FALSE) -> 34% | I17: =VLOOKUP($C17,'RECAP SECT'!$G$6:$FJ$253,79,FALSE) -> 14 | K17: =VLOOKUP($C17,'RECAP SECT'!$G$6:$FJ$253,81,FALSE) -> 3.84 | L17: =VLOOKUP($C17,'RECAP SECT'!$G$6:$FJ$253,82,FALSE) -> 33% | M17: =VLOOKUP($C17,'RECAP SECT'!$G$6:$FJ$253,83,FALSE) -> 14 | N17: =VLOOKUP($C17,'RECAP SECT'!$G$6:$FJ$253,84,FALSE) -> 826.91 | O17: =VLOOKUP($C17,'RECAP SECT'!$G$6:$FJ$253,85,FALSE) -> 35.59 | P17: =VLOOKUP($C17,'RECAP SECT'!$G$6:$FJ$253,86,FALSE) -> 19% | Q17: =VLOOKUP($C17,'RECAP SECT'!$G$6:$FJ$253,87,FALSE) -> 5 | S17: =VLOOKUP($C17,'RECAP SECT'!$G$6:$FJ$253,89,FALSE) -> 22.60 | T17: =VLOOKUP($C17,'RECAP SECT'!$G$6:$FJ$253,90,FALSE) -> 18% | U17: =VLOOKUP($C17,'RECAP SECT'!$G$6:$FJ$253,91,FALSE) -> 4 | W17: =VLOOKUP($C17,'RECAP SECT'!$G$6:$FJ$253,93,FALSE) -> 1.89 | X17: =VLOOKUP($C17,'RECAP SECT'!$G$6:$FJ$253,94,FALSE) -> 27% | Y17: =VLOOKUP($C17,'RECAP SECT'!$G$6:$FJ$253,95,FALSE) -> 6 | Z17: =VLOOKUP($C17,'RECAP SECT'!$G$6:$FJ$253,96,FALSE) -> 113.43 | AA17: =VLOOKUP($C17,'RECAP SECT'!$G$6:$FJ$253,97,FALSE) -> 0.70 | AB17: =VLOOKUP($C17,'RECAP SECT'!$G$6:$FJ$253,98,FALSE) -> 94% | AC17: =VLOOKUP($C17,'RECAP SECT'!$G$6:$FJ$253,99,FALSE) -> 18 | AD17: =VLOOKUP($C17,'RECAP SECT'!$G$6:$FJ$253,100,FALSE) -> 35% | AE17: =VLOOKUP($C17,'RECAP SECT'!$G$6:$FJ$253,101,FALSE) -> 23% | AF17: =VLOOKUP($C17,'RECAP SECT'!$G$6:$FJ$253,102,FALSE) -> 5
A18: 30 | B18: MARNE-ARDENNES | C18: 2 | D18: CHARLEVILLE MEZIERES | E18: =VLOOKUP($C18,'RECAP SECT'!$G$6:$FJ$253,3,FALSE) -> 54.9 | F18: =VLOOKUP($C18,'RECAP SECT'!$G$6:$FJ$253,76,FALSE) -> 204.20 | G18: =VLOOKUP($C18,'RECAP SECT'!$G$6:$FJ$253,77,FALSE) -> 19.98 | H18: =VLOOKUP($C18,'RECAP SECT'!$G$6:$FJ$253,78,FALSE) -> 21% | I18: =VLOOKUP($C18,'RECAP SECT'!$G$6:$FJ$253,79,FALSE) -> 6 | K18: =VLOOKUP($C18,'RECAP SECT'!$G$6:$FJ$253,81,FALSE) -> 4.46 | L18: =VLOOKUP($C18,'RECAP SECT'!$G$6:$FJ$253,82,FALSE) -> 22% | M18: =VLOOKUP($C18,'RECAP SECT'!$G$6:$FJ$253,83,FALSE) -> 4 | N18: =VLOOKUP($C18,'RECAP SECT'!$G$6:$FJ$253,84,FALSE) -> 790.95 | O18: =VLOOKUP($C18,'RECAP SECT'!$G$6:$FJ$253,85,FALSE) -> 38.32 | P18: =VLOOKUP($C18,'RECAP SECT'!$G$6:$FJ$253,86,FALSE) -> 13% | Q18: =VLOOKUP($C18,'RECAP SECT'!$G$6:$FJ$253,87,FALSE) -> 3 | S18: =VLOOKUP($C18,'RECAP SECT'!$G$6:$FJ$253,89,FALSE) -> 21.53 | T18: =VLOOKUP($C18,'RECAP SECT'!$G$6:$FJ$253,90,FALSE) -> 22% | U18: =VLOOKUP($C18,'RECAP SECT'!$G$6:$FJ$253,91,FALSE) -> 5 | W18: =VLOOKUP($C18,'RECAP SECT'!$G$6:$FJ$253,93,FALSE) -> 1.92 | X18: =VLOOKUP($C18,'RECAP SECT'!$G$6:$FJ$253,94,FALSE) -> 26% | Y18: =VLOOKUP($C18,'RECAP SECT'!$G$6:$FJ$253,95,FALSE) -> 5 | Z18: =VLOOKUP($C18,'RECAP SECT'!$G$6:$FJ$253,96,FALSE) -> 85.32 | AA18: =VLOOKUP($C18,'RECAP SECT'!$G$6:$FJ$253,97,FALSE) -> 2.33 | AB18: =VLOOKUP($C18,'RECAP SECT'!$G$6:$FJ$253,98,FALSE) -> 79% | AC18: =VLOOKUP($C18,'RECAP SECT'!$G$6:$FJ$253,99,FALSE) -> 11 | AD18: =VLOOKUP($C18,'RECAP SECT'!$G$6:$FJ$253,100,FALSE) -> 27% | AE18: =VLOOKUP($C18,'RECAP SECT'!$G$6:$FJ$253,101,FALSE) -> 15% | AF18: =VLOOKUP($C18,'RECAP SECT'!$G$6:$FJ$253,102,FALSE) -> 3
A19: 30 | B19: MARNE-ARDENNES | C19: 11 | D19: REIMS | E19: =VLOOKUP($C19,'RECAP SECT'!$G$6:$FJ$253,3,FALSE) -> 78.2 | F19: =VLOOKUP($C19,'RECAP SECT'!$G$6:$FJ$253,76,FALSE) -> 199.83 | G19: =VLOOKUP($C19,'RECAP SECT'!$G$6:$FJ$253,77,FALSE) -> 17.39 | H19: =VLOOKUP($C19,'RECAP SECT'!$G$6:$FJ$253,78,FALSE) -> 31% | I19: =VLOOKUP($C19,'RECAP SECT'!$G$6:$FJ$253,79,FALSE) -> 12 | K19: =VLOOKUP($C19,'RECAP SECT'!$G$6:$FJ$253,81,FALSE) -> 3.89 | L19: =VLOOKUP($C19,'RECAP SECT'!$G$6:$FJ$253,82,FALSE) -> 32% | M19: =VLOOKUP($C19,'RECAP SECT'!$G$6:$FJ$253,83,FALSE) -> 12 | N19: =VLOOKUP($C19,'RECAP SECT'!$G$6:$FJ$253,84,FALSE) -> 1109.22 | O19: =VLOOKUP($C19,'RECAP SECT'!$G$6:$FJ$253,85,FALSE) -> 38.66 | P19: =VLOOKUP($C19,'RECAP SECT'!$G$6:$FJ$253,86,FALSE) -> 12% | Q19: =VLOOKUP($C19,'RECAP SECT'!$G$6:$FJ$253,87,FALSE) -> 2 | S19: =VLOOKUP($C19,'RECAP SECT'!$G$6:$FJ$253,89,FALSE) -> 27.61 | T19: =VLOOKUP($C19,'RECAP SECT'!$G$6:$FJ$253,90,FALSE) -> 0% | U19: =VLOOKUP($C19,'RECAP SECT'!$G$6:$FJ$253,91,FALSE) -> 1 | W19: =VLOOKUP($C19,'RECAP SECT'!$G$6:$FJ$253,93,FALSE) -> 2.37 | X19: =VLOOKUP($C19,'RECAP SECT'!$G$6:$FJ$253,94,FALSE) -> 8% | Y19: =VLOOKUP($C19,'RECAP SECT'!$G$6:$FJ$253,95,FALSE) -> 3 | Z19: =VLOOKUP($C19,'RECAP SECT'!$G$6:$FJ$253,96,FALSE) -> 322.65 | AA19: =VLOOKUP($C19,'RECAP SECT'!$G$6:$FJ$253,97,FALSE) -> 10.92 | AB19: =VLOOKUP($C19,'RECAP SECT'!$G$6:$FJ$253,98,FALSE) -> 0% | AC19: =VLOOKUP($C19,'RECAP SECT'!$G$6:$FJ$253,99,FALSE) -> 1 | AD19: =VLOOKUP($C19,'RECAP SECT'!$G$6:$FJ$253,100,FALSE) -> 15% | AE19: =VLOOKUP($C19,'RECAP SECT'!$G$6:$FJ$253,101,FALSE) -> 3% | AF19: =VLOOKUP($C19,'RECAP SECT'!$G$6:$FJ$253,102,FALSE) -> 2
A20: 110 | B20: MEURTHE ET MOSELLE MEUSE | C20: 26 | D20: NANCY | E20: =VLOOKUP($C20,'RECAP SECT'!$G$6:$FJ$253,3,FALSE) -> 63.5 | F20: =VLOOKUP($C20,'RECAP SECT'!$G$6:$FJ$253,76,FALSE) -> 187.54 | G20: =VLOOKUP($C20,'RECAP SECT'!$G$6:$FJ$253,77,FALSE) -> 18.63 | H20: =VLOOKUP($C20,'RECAP SECT'!$G$6:$FJ$253,78,FALSE) -> 26% | I20: =VLOOKUP($C20,'RECAP SECT'!$G$6:$FJ$253,79,FALSE) -> 8 | K20: =VLOOKUP($C20,'RECAP SECT'!$G$6:$FJ$253,81,FALSE) -> 3.86 | L20: =VLOOKUP($C20,'RECAP SECT'!$G$6:$FJ$253,82,FALSE) -> 33% | M20: =VLOOKUP($C20,'RECAP SECT'!$G$6:$FJ$253,83,FALSE) -> 13 | N20: =VLOOKUP($C20,'RECAP SECT'!$G$6:$FJ$253,84,FALSE) -> 1056.83 | O20: =VLOOKUP($C20,'RECAP SECT'!$G$6:$FJ$253,85,FALSE) -> 36.48 | P20: =VLOOKUP($C20,'RECAP SECT'!$G$6:$FJ$253,86,FALSE) -> 17% | Q20: =VLOOKUP($C20,'RECAP SECT'!$G$6:$FJ$253,87,FALSE) -> 4 | S20: =VLOOKUP($C20,'RECAP SECT'!$G$6:$FJ$253,89,FALSE) -> 22.71 | T20: =VLOOKUP($C20,'RECAP SECT'!$G$6:$FJ$253,90,FALSE) -> 18% | U20: =VLOOKUP($C20,'RECAP SECT'!$G$6:$FJ$253,91,FALSE) -> 3 | W20: =VLOOKUP($C20,'RECAP SECT'!$G$6:$FJ$253,93,FALSE) -> 2.40 | X20: =VLOOKUP($C20,'RECAP SECT'!$G$6:$FJ$253,94,FALSE) -> 7% | Y20: =VLOOKUP($C20,'RECAP SECT'!$G$6:$FJ$253,95,FALSE) -> 2 | Z20: =VLOOKUP($C20,'RECAP SECT'!$G$6:$FJ$253,96,FALSE) -> 55.35 | AA20: =VLOOKUP($C20,'RECAP SECT'!$G$6:$FJ$253,97,FALSE) -> 2.45 | AB20: =VLOOKUP($C20,'RECAP SECT'!$G$6:$FJ$253,98,FALSE) -> 78% | AC20: =VLOOKUP($C20,'RECAP SECT'!$G$6:$FJ$253,99,FALSE) -> 10 | AD20: =VLOOKUP($C20,'RECAP SECT'!$G$6:$FJ$253,100,FALSE) -> 27% | AE20: =VLOOKUP($C20,'RECAP SECT'!$G$6:$FJ$253,101,FALSE) -> 15% | AF20: =VLOOKUP($C20,'RECAP SECT'!$G$6:$FJ$253,102,FALSE) -> 4
A21: 110 | B21: MEURTHE ET MOSELLE MEUSE | C21: 27 | D21: PONT A MOUSSON | E21: =VLOOKUP($C21,'RECAP SECT'!$G$6:$FJ$253,3,FALSE) -> 72.4 | F21: =VLOOKUP($C21,'RECAP SECT'!$G$6:$FJ$253,76,FALSE) -> 248.72 | G21: =VLOOKUP($C21,'RECAP SECT'!$G$6:$FJ$253,77,FALSE) -> 23.45 | H21: =VLOOKUP($C21,'RECAP SECT'!$G$6:$FJ$253,78,FALSE) -> 7% | I21: =VLOOKUP($C21,'RECAP SECT'!$G$6:$FJ$253,79,FALSE) -> 2 | K21: =VLOOKUP($C21,'RECAP SECT'!$G$6:$FJ$253,81,FALSE) -> 5.75 | L21: =VLOOKUP($C21,'RECAP SECT'!$G$6:$FJ$253,82,FALSE) -> 0% | M21: =VLOOKUP($C21,'RECAP SECT'!$G$6:$FJ$253,83,FALSE) -> 1 | N21: =VLOOKUP($C21,'RECAP SECT'!$G$6:$FJ$253,84,FALSE) -> 1110.77 | O21: =VLOOKUP($C21,'RECAP SECT'!$G$6:$FJ$253,85,FALSE) -> 43.79 | P21: =VLOOKUP($C21,'RECAP SECT'!$G$6:$FJ$253,86,FALSE) -> 0% | Q21: =VLOOKUP($C21,'RECAP SECT'!$G$6:$FJ$253,87,FALSE) -> 1 | S21: =VLOOKUP($C21,'RECAP SECT'!$G$6:$FJ$253,89,FALSE) -> 26.22 | T21: =VLOOKUP($C21,'RECAP SECT'!$G$6:$FJ$253,90,FALSE) -> 5% | U21: =VLOOKUP($C21,'RECAP SECT'!$G$6:$FJ$253,91,FALSE) -> 2 | W21: =VLOOKUP($C21,'RECAP SECT'!$G$6:$FJ$253,93,FALSE) -> 2.58 | X21: =VLOOKUP($C21,'RECAP SECT'!$G$6:$FJ$253,94,FALSE) -> 0% | Y21: =VLOOKUP($C21,'RECAP SECT'!$G$6:$FJ$253,95,FALSE) -> 1 | Z21: =VLOOKUP($C21,'RECAP SECT'!$G$6:$FJ$253,96,FALSE) -> 70.51 | AA21: =VLOOKUP($C21,'RECAP SECT'!$G$6:$FJ$253,97,FALSE) -> 3.11 | AB21: =VLOOKUP($C21,'RECAP SECT'!$G$6:$FJ$253,98,FALSE) -> 72% | AC21: =VLOOKUP($C21,'RECAP SECT'!$G$6:$FJ$253,99,FALSE) -> 9 | AD21: =VLOOKUP($C21,'RECAP SECT'!$G$6:$FJ$253,100,FALSE) -> 12% | AE21: =VLOOKUP($C21,'RECAP SECT'!$G$6:$FJ$253,101,FALSE) -> 0% | AF21: =VLOOKUP($C21,'RECAP SECT'!$G$6:$FJ$253,102,FALSE) -> 1
A22: 110 | B22: MEURTHE ET MOSELLE MEUSE | C22: 31 | D22: VERDUN | E22: =VLOOKUP($C22,'RECAP SECT'!$G$6:$FJ$253,3,FALSE) -> 51.9 | F22: =VLOOKUP($C22,'RECAP SECT'!$G$6:$FJ$253,76,FALSE) -> 211.98 | G22: =VLOOKUP($C22,'RECAP SECT'!$G$6:$FJ$253,77,FALSE) -> 20.14 | H22: =VLOOKUP($C22,'RECAP SECT'!$G$6:$FJ$253,78,FALSE) -> 20% | I22: =VLOOKUP($C22,'RECAP SECT'!$G$6:$FJ$253,79,FALSE) -> 5 | K22: =VLOOKUP($C22,'RECAP SECT'!$G$6:$FJ$253,81,FALSE) -> 4.14 | L22: =VLOOKUP($C22,'RECAP SECT'!$G$6:$FJ$253,82,FALSE) -> 28% | M22: =VLOOKUP($C22,'RECAP SECT'!$G$6:$FJ$253,83,FALSE) -> 5 | N22: =VLOOKUP($C22,'RECAP SECT'!$G$6:$FJ$253,84,FALSE) -> 620.54 | O22: =VLOOKUP($C22,'RECAP SECT'!$G$6:$FJ$253,85,FALSE) -> 29.76 | P22: =VLOOKUP($C22,'RECAP SECT'!$G$6:$FJ$253,86,FALSE) -> 32% | Q22: =VLOOKUP($C22,'RECAP SECT'!$G$6:$FJ$253,87,FALSE) -> 8 | S22: =VLOOKUP($C22,'RECAP SECT'!$G$6:$FJ$253,89,FALSE) -> 13.94 | T22: =VLOOKUP($C22,'RECAP SECT'!$G$6:$FJ$253,90,FALSE) -> 50% | U22: =VLOOKUP($C22,'RECAP SECT'!$G$6:$FJ$253,91,FALSE) -> 9 | W22: =VLOOKUP($C22,'RECAP SECT'!$G$6:$FJ$253,93,FALSE) -> 1.54 | X22: =VLOOKUP($C22,'RECAP SECT'!$G$6:$FJ$253,94,FALSE) -> 40% | Y22: =VLOOKUP($C22,'RECAP SECT'!$G$6:$FJ$253,95,FALSE) -> 8 | Z22: =VLOOKUP($C22,'RECAP SECT'!$G$6:$FJ$253,96,FALSE) -> 36.62 | AA22: =VLOOKUP($C22,'RECAP SECT'!$G$6:$FJ$253,97,FALSE) -> 1.80 | AB22: =VLOOKUP($C22,'RECAP SECT'!$G$6:$FJ$253,98,FALSE) -> 83% | AC22: =VLOOKUP($C22,'RECAP SECT'!$G$6:$FJ$253,99,FALSE) -> 15 | AD22: =VLOOKUP($C22,'RECAP SECT'!$G$6:$FJ$253,100,FALSE) -> 39% | AE22: =VLOOKUP($C22,'RECAP SECT'!$G$6:$FJ$253,101,FALSE) -> 27% | AF22: =VLOOKUP($C22,'RECAP SECT'!$G$6:$FJ$253,102,FALSE) -> 9
A23: 160 | B23: MOSELLE | C23: 45 | D23: METZ | E23: =VLOOKUP($C23,'RECAP SECT'!$G$6:$FJ$253,3,FALSE) -> 86.5 | F23: =VLOOKUP($C23,'RECAP SECT'!$G$6:$FJ$253,76,FALSE) -> 203.44 | G23: =VLOOKUP($C23,'RECAP SECT'!$G$6:$FJ$253,77,FALSE) -> 19.16 | H23: =VLOOKUP($C23,'RECAP SECT'!$G$6:$FJ$253,78,FALSE) -> 24% | I23: =VLOOKUP($C23,'RECAP SECT'!$G$6:$FJ$253,79,FALSE) -> 7 | K23: =VLOOKUP($C23,'RECAP SECT'!$G$6:$FJ$253,81,FALSE) -> 3.77 | L23: =VLOOKUP($C23,'RECAP SECT'!$G$6:$FJ$253,82,FALSE) -> 34% | M23: =VLOOKUP($C23,'RECAP SECT'!$G$6:$FJ$253,83,FALSE) -> 15 | N23: =VLOOKUP($C23,'RECAP SECT'!$G$6:$FJ$253,84,FALSE) -> 874.44 | O23: =VLOOKUP($C23,'RECAP SECT'!$G$6:$FJ$253,85,FALSE) -> 31.23 | P23: =VLOOKUP($C23,'RECAP SECT'!$G$6:$FJ$253,86,FALSE) -> 29% | Q23: =VLOOKUP($C23,'RECAP SECT'!$G$6:$FJ$253,87,FALSE) -> 7 | S23: =VLOOKUP($C23,'RECAP SECT'!$G$6:$FJ$253,89,FALSE) -> 13.97 | T23: =VLOOKUP($C23,'RECAP SECT'!$G$6:$FJ$253,90,FALSE) -> 49% | U23: =VLOOKUP($C23,'RECAP SECT'!$G$6:$FJ$253,91,FALSE) -> 8 | W23: =VLOOKUP($C23,'RECAP SECT'!$G$6:$FJ$253,93,FALSE) -> 1.77 | X23: =VLOOKUP($C23,'RECAP SECT'!$G$6:$FJ$253,94,FALSE) -> 32% | Y23: =VLOOKUP($C23,'RECAP SECT'!$G$6:$FJ$253,95,FALSE) -> 7 | Z23: =VLOOKUP($C23,'RECAP SECT'!$G$6:$FJ$253,96,FALSE) -> 53.36 | AA23: =VLOOKUP($C23,'RECAP SECT'!$G$6:$FJ$253,97,FALSE) -> 1.99 | AB23: =VLOOKUP($C23,'RECAP SECT'!$G$6:$FJ$253,98,FALSE) -> 82% | AC23: =VLOOKUP($C23,'RECAP SECT'!$G$6:$FJ$253,99,FALSE) -> 14 | AD23: =VLOOKUP($C23,'RECAP SECT'!$G$6:$FJ$253,100,FALSE) -> 38% | AE23: =VLOOKUP($C23,'RECAP SECT'!$G$6:$FJ$253,101,FALSE) -> 26% | AF23: =VLOOKUP($C23,'RECAP SECT'!$G$6:$FJ$253,102,FALSE) -> 8
A24: 160 | B24: MOSELLE | C24: 42 | D24: MOSELLE EST | E24: =VLOOKUP($C24,'RECAP SECT'!$G$6:$FJ$253,3,FALSE) -> 72.3 | F24: =VLOOKUP($C24,'RECAP SECT'!$G$6:$FJ$253,76,FALSE) -> 190.86 | G24: =VLOOKUP($C24,'RECAP SECT'!$G$6:$FJ$253,77,FALSE) -> 18.52 | H24: =VLOOKUP($C24,'RECAP SECT'!$G$6:$FJ$253,78,FALSE) -> 26% | I24: =VLOOKUP($C24,'RECAP SECT'!$G$6:$FJ$253,79,FALSE) -> 10 | K24: =VLOOKUP($C24,'RECAP SECT'!$G$6:$FJ$253,81,FALSE) -> 3.90 | L24: =VLOOKUP($C24,'RECAP SECT'!$G$6:$FJ$253,82,FALSE) -> 32% | M24: =VLOOKUP($C24,'RECAP SECT'!$G$6:$FJ$253,83,FALSE) -> 10 | N24: =VLOOKUP($C24,'RECAP SECT'!$G$6:$FJ$253,84,FALSE) -> 585.56 | O24: =VLOOKUP($C24,'RECAP SECT'!$G$6:$FJ$253,85,FALSE) -> 25.85 | P24: =VLOOKUP($C24,'RECAP SECT'!$G$6:$FJ$253,86,FALSE) -> 41% | Q24: =VLOOKUP($C24,'RECAP SECT'!$G$6:$FJ$253,87,FALSE) -> 9 | S24: =VLOOKUP($C24,'RECAP SECT'!$G$6:$FJ$253,89,FALSE) -> 12.79 | T24: =VLOOKUP($C24,'RECAP SECT'!$G$6:$FJ$253,90,FALSE) -> 54% | U24: =VLOOKUP($C24,'RECAP SECT'!$G$6:$FJ$253,91,FALSE) -> 12 | W24: =VLOOKUP($C24,'RECAP SECT'!$G$6:$FJ$253,93,FALSE) -> 1.23 | X24: =VLOOKUP($C24,'RECAP SECT'!$G$6:$FJ$253,94,FALSE) -> 53% | Y24: =VLOOKUP($C24,'RECAP SECT'!$G$6:$FJ$253,95,FALSE) -> 10 | Z24: =VLOOKUP($C24,'RECAP SECT'!$G$6:$FJ$253,96,FALSE) -> 39.66 | AA24: =VLOOKUP($C24,'RECAP SECT'!$G$6:$FJ$253,97,FALSE) -> 1.22 | AB24: =VLOOKUP($C24,'RECAP SECT'!$G$6:$FJ$253,98,FALSE) -> 89% | AC24: =VLOOKUP($C24,'RECAP SECT'!$G$6:$FJ$253,99,FALSE) -> 17 | AD24: =VLOOKUP($C24,'RECAP SECT'!$G$6:$FJ$253,100,FALSE) -> 46% | AE24: =VLOOKUP($C24,'RECAP SECT'!$G$6:$FJ$253,101,FALSE) -> 34% | AF24: =VLOOKUP($C24,'RECAP SECT'!$G$6:$FJ$253,102,FALSE) -> 15
A25: 160 | B25: MOSELLE | C25: 44 | D25: MOSELLE NORD | E25: =VLOOKUP($C25,'RECAP SECT'!$G$6:$FJ$253,3,FALSE) -> 69.0 | F25: =VLOOKUP($C25,'RECAP SECT'!$G$6:$FJ$253,76,FALSE) -> 199.38 | G25: =VLOOKUP($C25,'RECAP SECT'!$G$6:$FJ$253,77,FALSE) -> 18.45 | H25: =VLOOKUP($C25,'RECAP SECT'!$G$6:$FJ$253,78,FALSE) -> 27% | I25: =VLOOKUP($C25,'RECAP SECT'!$G$6:$FJ$253,79,FALSE) -> 11 | K25: =VLOOKUP($C25,'RECAP SECT'!$G$6:$FJ$253,81,FALSE) -> 4.01 | L25: =VLOOKUP($C25,'RECAP SECT'!$G$6:$FJ$253,82,FALSE) -> 30% | M25: =VLOOKUP($C25,'RECAP SECT'!$G$6:$FJ$253,83,FALSE) -> 8 | N25: =VLOOKUP($C25,'RECAP SECT'!$G$6:$FJ$253,84,FALSE) -> 896.21 | O25: =VLOOKUP($C25,'RECAP SECT'!$G$6:$FJ$253,85,FALSE) -> 34.11 | P25: =VLOOKUP($C25,'RECAP SECT'!$G$6:$FJ$253,86,FALSE) -> 22% | Q25: =VLOOKUP($C25,'RECAP SECT'!$G$6:$FJ$253,87,FALSE) -> 6 | S25: =VLOOKUP($C25,'RECAP SECT'!$G$6:$FJ$253,89,FALSE) -> 13.76 | T25: =VLOOKUP($C25,'RECAP SECT'!$G$6:$FJ$253,90,FALSE) -> 50% | U25: =VLOOKUP($C25,'RECAP SECT'!$G$6:$FJ$253,91,FALSE) -> 11 | W25: =VLOOKUP($C25,'RECAP SECT'!$G$6:$FJ$253,93,FALSE) -> 2.00 | X25: =VLOOKUP($C25,'RECAP SECT'!$G$6:$FJ$253,94,FALSE) -> 22% | Y25: =VLOOKUP($C25,'RECAP SECT'!$G$6:$FJ$253,95,FALSE) -> 4 | Z25: =VLOOKUP($C25,'RECAP SECT'!$G$6:$FJ$253,96,FALSE) -> 37.03 | AA25: =VLOOKUP($C25,'RECAP SECT'!$G$6:$FJ$253,97,FALSE) -> 1.33 | AB25: =VLOOKUP($C25,'RECAP SECT'!$G$6:$FJ$253,98,FALSE) -> 88% | AC25: =VLOOKUP($C25,'RECAP SECT'!$G$6:$FJ$253,99,FALSE) -> 16 | AD25: =VLOOKUP($C25,'RECAP SECT'!$G$6:$FJ$253,100,FALSE) -> 36% | AE25: =VLOOKUP($C25,'RECAP SECT'!$G$6:$FJ$253,101,FALSE) -> 24% | AF25: =VLOOKUP($C25,'RECAP SECT'!$G$6:$FJ$253,102,FALSE) -> 6
A26: 80 | B26: VOSGES | C26: 57 | D26: EPINAL | E26: =VLOOKUP($C26,'RECAP SECT'!$G$6:$FJ$253,3,FALSE) -> 59.6 | F26: =VLOOKUP($C26,'RECAP SECT'!$G$6:$FJ$253,76,FALSE) -> 185.59 | G26: =VLOOKUP($C26,'RECAP SECT'!$G$6:$FJ$253,77,FALSE) -> 17.06 | H26: =VLOOKUP($C26,'RECAP SECT'!$G$6:$FJ$253,78,FALSE) -> 32% | I26: =VLOOKUP($C26,'RECAP SECT'!$G$6:$FJ$253,79,FALSE) -> 13 | K26: =VLOOKUP($C26,'RECAP SECT'!$G$6:$FJ$253,81,FALSE) -> 3.68 | L26: =VLOOKUP($C26,'RECAP SECT'!$G$6:$FJ$253,82,FALSE) -> 36% | M26: =VLOOKUP($C26,'RECAP SECT'!$G$6:$FJ$253,83,FALSE) -> 17 | N26: =VLOOKUP($C26,'RECAP SECT'!$G$6:$FJ$253,84,FALSE) -> 551.73 | O26: =VLOOKUP($C26,'RECAP SECT'!$G$6:$FJ$253,85,FALSE) -> 24.62 | P26: =VLOOKUP($C26,'RECAP SECT'!$G$6:$FJ$253,86,FALSE) -> 44% | Q26: =VLOOKUP($C26,'RECAP SECT'!$G$6:$FJ$253,87,FALSE) -> 10 | S26: =VLOOKUP($C26,'RECAP SECT'!$G$6:$FJ$253,89,FALSE) -> 11.79 | T26: =VLOOKUP($C26,'RECAP SECT'!$G$6:$FJ$253,90,FALSE) -> 57% | U26: =VLOOKUP($C26,'RECAP SECT'!$G$6:$FJ$253,91,FALSE) -> 14 | W26: =VLOOKUP($C26,'RECAP SECT'!$G$6:$FJ$253,93,FALSE) -> 1.20 | X26: =VLOOKUP($C26,'RECAP SECT'!$G$6:$FJ$253,94,FALSE) -> 54% | Y26: =VLOOKUP($C26,'RECAP SECT'!$G$6:$FJ$253,95,FALSE) -> 12 | Z26: =VLOOKUP($C26,'RECAP SECT'!$G$6:$FJ$253,96,FALSE) -> 95.08 | AA26: =VLOOKUP($C26,'RECAP SECT'!$G$6:$FJ$253,97,FALSE) -> 5.03 | AB26: =VLOOKUP($C26,'RECAP SECT'!$G$6:$FJ$253,98,FALSE) -> 54% | AC26: =VLOOKUP($C26,'RECAP SECT'!$G$6:$FJ$253,99,FALSE) -> 5 | AD26: =VLOOKUP($C26,'RECAP SECT'!$G$6:$FJ$253,100,FALSE) -> 45% | AE26: =VLOOKUP($C26,'RECAP SECT'!$G$6:$FJ$253,101,FALSE) -> 33% | AF26: =VLOOKUP($C26,'RECAP SECT'!$G$6:$FJ$253,102,FALSE) -> 12
A27: 80 | B27: VOSGES | C27: 55 | D27: SAINT DIE | E27: =VLOOKUP($C27,'RECAP SECT'!$G$6:$FJ$253,3,FALSE) -> 48.1 | F27: =VLOOKUP($C27,'RECAP SECT'!$G$6:$FJ$253,76,FALSE) -> 218.81 | G27: =VLOOKUP($C27,'RECAP SECT'!$G$6:$FJ$253,77,FALSE) -> 20.22 | H27: =VLOOKUP($C27,'RECAP SECT'!$G$6:$FJ$253,78,FALSE) -> 20% | I27: =VLOOKUP($C27,'RECAP SECT'!$G$6:$FJ$253,79,FALSE) -> 3 | K27: =VLOOKUP($C27,'RECAP SECT'!$G$6:$FJ$253,81,FALSE) -> 4.57 | L27: =VLOOKUP($C27,'RECAP SECT'!$G$6:$FJ$253,82,FALSE) -> 20% | M27: =VLOOKUP($C27,'RECAP SECT'!$G$6:$FJ$253,83,FALSE) -> 3 | N27: =VLOOKUP($C27,'RECAP SECT'!$G$6:$FJ$253,84,FALSE) -> 473.33 | O27: =VLOOKUP($C27,'RECAP SECT'!$G$6:$FJ$253,85,FALSE) -> 22.36 | P27: =VLOOKUP($C27,'RECAP SECT'!$G$6:$FJ$253,86,FALSE) -> 49% | Q27: =VLOOKUP($C27,'RECAP SECT'!$G$6:$FJ$253,87,FALSE) -> 13 | S27: =VLOOKUP($C27,'RECAP SECT'!$G$6:$FJ$253,89,FALSE) -> 12.66 | T27: =VLOOKUP($C27,'RECAP SECT'!$G$6:$FJ$253,90,FALSE) -> 54% | U27: =VLOOKUP($C27,'RECAP SECT'!$G$6:$FJ$253,91,FALSE) -> 13 | W27: =VLOOKUP($C27,'RECAP SECT'!$G$6:$FJ$253,93,FALSE) -> 1.04 | X27: =VLOOKUP($C27,'RECAP SECT'!$G$6:$FJ$253,94,FALSE) -> 60% | Y27: =VLOOKUP($C27,'RECAP SECT'!$G$6:$FJ$253,95,FALSE) -> 16 | Z27: =VLOOKUP($C27,'RECAP SECT'!$G$6:$FJ$253,96,FALSE) -> 60.85 | AA27: =VLOOKUP($C27,'RECAP SECT'!$G$6:$FJ$253,97,FALSE) -> 2.18 | AB27: =VLOOKUP($C27,'RECAP SECT'!$G$6:$FJ$253,98,FALSE) -> 80% | AC27: =VLOOKUP($C27,'RECAP SECT'!$G$6:$FJ$253,99,FALSE) -> 12 | AD27: =VLOOKUP($C27,'RECAP SECT'!$G$6:$FJ$253,100,FALSE) -> 45% | AE27: =VLOOKUP($C27,'RECAP SECT'!$G$6:$FJ$253,101,FALSE) -> 33% | AF27: =VLOOKUP($C27,'RECAP SECT'!$G$6:$FJ$253,102,FALSE) -> 14
A28: Total CEGEE Directions Régionales | E28: =SUM(E10:E27) -> 1140

Sheet SE_IARD
B1: Accueil | F1: BAROMETRE BDD - TERRITOIRES
F2: IARD ET PREVOYANCE
F3: =ACCUEIL!F7 -> 2020-05-24
F7: Ventes nettes IARD | J7: Ventes nettes Prévoyance | N7: Total IARD Prévoyance
H8: coef | I8: ='RECAP DIRCOM'!DN4 -> 9% | L8: coef | M8: ='RECAP DIRCOM'!DR4 -> 6% | O8: coef | P8: ='RECAP DIRCOM'!DU4 -> 15%
B9: Direction | C9: eds | D9: Territoire | E9: ETP perf | F9: Nb / ETP | H9: % Ecart au 1er | I9: Rang | J9: Nb / ETP | L9: % Ecart au 1er | M9: Rang | N9: Moyenne ecart au 1er | O9: % Ecart au 1er | P9: Rang CEGEE
A10: 50 | B10: AUBE HAUTE MARNE | C10: 21 | D10: CHAUMONT | E10: =VLOOKUP($C10,'RECAP SECT'!$G$6:$FJ$253,3,FALSE) -> 34.6 | F10: =VLOOKUP($C10,'RECAP SECT'!$G$6:$FJ$253,109,FALSE) -> 5.58 | G10: =VLOOKUP($C10,'RECAP SECT'!$G$6:$FJ$253,110,FALSE) -> 0.53 | H10: =VLOOKUP($C10,'RECAP SECT'!$G$6:$FJ$253,111,FALSE) -> 60% | I10: =VLOOKUP($C10,'RECAP SECT'!$G$6:$FJ$253,112,FALSE) -> 8 | J10: =VLOOKUP($C10,'RECAP SECT'!$G$6:$FJ$253,113,FALSE) -> 1.56 | K10: =VLOOKUP($C10,'RECAP SECT'!$G$6:$FJ$253,114,FALSE) -> 0.28 | L10: =VLOOKUP($C10,'RECAP SECT'!$G$6:$FJ$253,115,FALSE) -> 63% | M10: =VLOOKUP($C10,'RECAP SECT'!$G$6:$FJ$253,116,FALSE) -> 13 | N10: =VLOOKUP($C10,'RECAP SECT'!$G$6:$FJ$253,117,FALSE) -> 61% | O10: =VLOOKUP($C10,'RECAP SECT'!$G$6:$FJ$253,118,FALSE) -> 55% | P10: =VLOOKUP($C10,'RECAP SECT'!$G$6:$FJ$253,119,FALSE) -> 10
A11: 50 | B11: AUBE HAUTE MARNE | C11: 14 | D11: TROYES | E11: =VLOOKUP($C11,'RECAP SECT'!$G$6:$FJ$253,3,FALSE) -> 65.2 | F11: =VLOOKUP($C11,'RECAP SECT'!$G$6:$FJ$253,109,FALSE) -> 2.87 | G11: =VLOOKUP($C11,'RECAP SECT'!$G$6:$FJ$253,110,FALSE) -> 0.32 | H11: =VLOOKUP($C11,'RECAP SECT'!$G$6:$FJ$253,111,FALSE) -> 76% | I11: =VLOOKUP($C11,'RECAP SECT'!$G$6:$FJ$253,112,FALSE) -> 14 | J11: =VLOOKUP($C11,'RECAP SECT'!$G$6:$FJ$253,113,FALSE) -> 2.13 | K11: =VLOOKUP($C11,'RECAP SECT'!$G$6:$FJ$253,114,FALSE) -> 0.40 | L11: =VLOOKUP($C11,'RECAP SECT'!$G$6:$FJ$253,115,FALSE) -> 46% | M11: =VLOOKUP($C11,'RECAP SECT'!$G$6:$FJ$253,116,FALSE) -> 8 | N11: =VLOOKUP($C11,'RECAP SECT'!$G$6:$FJ$253,117,FALSE) -> 64% | O11: =VLOOKUP($C11,'RECAP SECT'!$G$6:$FJ$253,118,FALSE) -> 58% | P11: =VLOOKUP($C11,'RECAP SECT'!$G$6:$FJ$253,119,FALSE) -> 12
A12: 262 | B12: BAS-RHIN | C12: 5060 | D12: HAGUENAU | E12: =VLOOKUP($C12,'RECAP SECT'!$G$6:$FJ$253,3,FALSE) -> 75.3 | F12: =VLOOKUP($C12,'RECAP SECT'!$G$6:$FJ$253,109,FALSE) -> 2.55 | G12: =VLOOKUP($C12,'RECAP SECT'!$G$6:$FJ$253,110,FALSE) -> 0.25 | H12: =VLOOKUP($C12,'RECAP SECT'!$G$6:$FJ$253,111,FALSE) -> 81% | I12: =VLOOKUP($C12,'RECAP SECT'!$G$6:$FJ$253,112,FALSE) -> 15 | J12: =VLOOKUP($C12,'RECAP SECT'!$G$6:$FJ$253,113,FALSE) -> 1.62 | K12: =VLOOKUP($C12,'RECAP SECT'!$G$6:$FJ$253,114,FALSE) -> 0.36 | L12: =VLOOKUP($C12,'RECAP SECT'!$G$6:$FJ$253,115,FALSE) -> 52% | M12: =VLOOKUP($C12,'RECAP SECT'!$G$6:$FJ$253,116,FALSE) -> 9 | N12: =VLOOKUP($C12,'RECAP SECT'!$G$6:$FJ$253,117,FALSE) -> 69% | O12: =VLOOKUP($C12,'RECAP SECT'!$G$6:$FJ$253,118,FALSE) -> 63% | P12: =VLOOKUP($C12,'RECAP SECT'!$G$6:$FJ$253,119,FALSE) -> 14
A13: 262 | B13: BAS-RHIN | C13: 5101 | D13: SELESTAT | E13: =VLOOKUP($C13,'RECAP SECT'!$G$6:$FJ$253,3,FALSE) -> 62.3 | F13: =VLOOKUP($C13,'RECAP SECT'!$G$6:$FJ$253,109,FALSE) -> 1.33 | G13: =VLOOKUP($C13,'RECAP SECT'!$G$6:$FJ$253,110,FALSE) -> 0.08 | H13: =VLOOKUP($C13,'RECAP SECT'!$G$6:$FJ$253,111,FALSE) -> 94% | I13: =VLOOKUP($C13,'RECAP SECT'!$G$6:$FJ$253,112,FALSE) -> 17 | J13: =VLOOKUP($C13,'RECAP SECT'!$G$6:$FJ$253,113,FALSE) -> 0.22 | K13: =VLOOKUP($C13,'RECAP SECT'!$G$6:$FJ$253,114,FALSE) -> 0.25 | L13: =VLOOKUP($C13,'RECAP SECT'!$G$6:$FJ$253,115,FALSE) -> 67% | M13: =VLOOKUP($C13,'RECAP SECT'!$G$6:$FJ$253,116,FALSE) -> 16 | N13: =VLOOKUP($C13,'RECAP SECT'!$G$6:$FJ$253,117,FALSE) -> 83% | O13: =VLOOKUP($C13,'RECAP SECT'!$G$6:$FJ$253,118,FALSE) -> 77% | P13: =VLOOKUP($C13,'RECAP SECT'!$G$6:$FJ$253,119,FALSE) -> 16
A14: 262 | B14: BAS-RHIN | C14: 5006 | D14: STRASBOURG | E14: =VLOOKUP($C14,'RECAP SECT'!$G$6:$FJ$253,3,FALSE) -> 74.4 | F14: =VLOOKUP($C14,'RECAP SECT'!$G$6:$FJ$253,109,FALSE) -> 3.39 | G14: =VLOOKUP($C14,'RECAP SECT'!$G$6:$FJ$253,110,FALSE) -> 0.35 | H14: =VLOOKUP($C14,'RECAP SECT'!$G$6:$FJ$253,111,FALSE) -> 74% | I14: =VLOOKUP($C14,'RECAP SECT'!$G$6:$FJ$253,112,FALSE) -> 13 | J14: =VLOOKUP($C14,'RECAP SECT'!$G$6:$FJ$253,113,FALSE) -> 5.70 | K14: =VLOOKUP($C14,'RECAP SECT'!$G$6:$FJ$253,114,FALSE) -> 0.75 | L14: =VLOOKUP($C14,'RECAP SECT'!$G$6:$FJ$253,115,FALSE) -> 0% | M14: =VLOOKUP($C14,'RECAP SECT'!$G$6:$FJ$253,116,FALSE) -> 1 | N14: =VLOOKUP($C14,'RECAP SECT'!$G$6:$FJ$253,117,FALSE) -> 44% | O14: =VLOOKUP($C14,'RECAP SECT'!$G$6:$FJ$253,118,FALSE) -> 38% | P14: =VLOOKUP($C14,'RECAP SECT'!$G$6:$FJ$253,119,FALSE) -> 4
A15: 264 | B15: HAUT-RHIN | C15: 5130 | D15: COLMAR | E15: =VLOOKUP($C15,'RECAP SECT'!$G$6:$FJ$253,3,FALSE) -> 64.7 | F15: =VLOOKUP($C15,'RECAP SECT'!$G$6:$FJ$253,109,FALSE) -> 1.44 | G15: =VLOOKUP($C15,'RECAP SECT'!$G$6:$FJ$253,110,FALSE) -> 0.14 | H15: =VLOOKUP($C15,'RECAP SECT'!$G$6:$FJ$253,111,FALSE) -> 90% | I15: =VLOOKUP($C15,'RECAP SECT'!$G$6:$FJ$253,112,FALSE) -> 16 | J15: =VLOOKUP($C15,'RECAP SECT'!$G$6:$FJ$253,113,FALSE) -> -0.97 | K15: =VLOOKUP($C15,'RECAP SECT'!$G$6:$FJ$253,114,FALSE) -> 0.16 | L15: =VLOOKUP($C15,'RECAP SECT'!$G$6:$FJ$253,115,FALSE) -> 78% | M15: =VLOOKUP($C15,'RECAP SECT'!$G$6:$FJ$253,116,FALSE) -> 17 | N15: =VLOOKUP($C15,'RECAP SECT'!$G$6:$FJ$253,117,FALSE) -> 85% | O15: =VLOOKUP($C15,'RECAP SECT'!$G$6:$FJ$253,118,FALSE) -> 79% | P15: =VLOOKUP($C15,'RECAP SECT'!$G$6:$FJ$253,119,FALSE) -> 17
A16: 264 | B16: HAUT-RHIN | C16: 5169 | D16: MULHOUSE | E16: =VLOOKUP($C16,'RECAP SECT'!$G$6:$FJ$253,3,FALSE) -> 61.6 | F16: =VLOOKUP($C16,'RECAP SECT'!$G$6:$FJ$253,109,FALSE) -> -0.31 | G16: =VLOOKUP($C16,'RECAP SECT'!$G$6:$FJ$253,110,FALSE) -> -0.03 | H16: =VLOOKUP($C16,'RECAP SECT'!$G$6:$FJ$253,111,FALSE) -> 102% | I16: =VLOOKUP($C16,'RECAP SECT'!$G$6:$FJ$253,112,FALSE) -> 18 | J16: =VLOOKUP($C16,'RECAP SECT'!$G$6:$FJ$253,113,FALSE) -> -1.10 | K16: =VLOOKUP($C16,'RECAP SECT'!$G$6:$FJ$253,114,FALSE) -> 0.06 | L16: =VLOOKUP($C16,'RECAP SECT'!$G$6:$FJ$253,115,FALSE) -> 92% | M16: =VLOOKUP($C16,'RECAP SECT'!$G$6:$FJ$253,116,FALSE) -> 18 | N16: =VLOOKUP($C16,'RECAP SECT'!$G$6:$FJ$253,117,FALSE) -> 98% | O16: =VLOOKUP($C16,'RECAP SECT'!$G$6:$FJ$253,118,FALSE) -> 92% | P16: =VLOOKUP($C16,'RECAP SECT'!$G$6:$FJ$253,119,FALSE) -> 18
A17: 30 | B17: MARNE-ARDENNES | C17: 6 | D17: CHALONS EN CHAMPAGNE | E17: =VLOOKUP($C17,'RECAP SECT'!$G$6:$FJ$253,3,FALSE) -> 44.9 | F17: =VLOOKUP($C17,'RECAP SECT'!$G$6:$FJ$253,109,FALSE) -> 5.61 | G17: =VLOOKUP($C17,'RECAP SECT'!$G$6:$FJ$253,110,FALSE) -> 0.59 | H17: =VLOOKUP($C17,'RECAP SECT'!$G$6:$FJ$253,111,FALSE) -> 56% | I17: =VLOOKUP($C17,'RECAP SECT'!$G$6:$FJ$253,112,FALSE) -> 6 | J17: =VLOOKUP($C17,'RECAP SECT'!$G$6:$FJ$253,113,FALSE) -> 3.76 | K17: =VLOOKUP($C17,'RECAP SECT'!$G$6:$FJ$253,114,FALSE) -> 0.55 | L17: =VLOOKUP($C17,'RECAP SECT'!$G$6:$FJ$253,115,FALSE) -> 26% | M17: =VLOOKUP($C17,'RECAP SECT'!$G$6:$FJ$253,116,FALSE) -> 3 | N17: =VLOOKUP($C17,'RECAP SECT'!$G$6:$FJ$253,117,FALSE) -> 44% | O17: =VLOOKUP($C17,'RECAP SECT'!$G$6:$FJ$253,118,FALSE) -> 38% | P17: =VLOOKUP($C17,'RECAP SECT'!$G$6:$FJ$253,119,FALSE) -> 3
A18: 30 | B18: MARNE-ARDENNES | C18: 2 | D18: CHARLEVILLE MEZIERES | E18: =VLOOKUP($C18,'RECAP SECT'!$G$6:$FJ$253,3,FALSE) -> 54.9 | F18: =VLOOKUP($C18,'RECAP SECT'!$G$6:$FJ$253,109,FALSE) -> 7.41 | G18: =VLOOKUP($C18,'RECAP SECT'!$G$6:$FJ$253,110,FALSE) -> 0.75 | H18: =VLOOKUP($C18,'RECAP SECT'!$G$6:$FJ$253,111,FALSE) -> 43% | I18: =VLOOKUP($C18,'RECAP SECT'!$G$6:$FJ$253,112,FALSE) -> 2 | J18: =VLOOKUP($C18,'RECAP SECT'!$G$6:$FJ$253,113,FALSE) -> 3.15 | K18: =VLOOKUP($C18,'RECAP SECT'!$G$6:$FJ$253,114,FALSE) -> 0.54 | L18: =VLOOKUP($C18,'RECAP SECT'!$G$6:$FJ$253,115,FALSE) -> 28% | M18: =VLOOKUP($C18,'RECAP SECT'!$G$6:$FJ$253,116,FALSE) -> 4 | N18: =VLOOKUP($C18,'RECAP SECT'!$G$6:$FJ$253,117,FALSE) -> 37% | O18: =VLOOKUP($C18,'RECAP SECT'!$G$6:$FJ$253,118,FALSE) -> 31% | P18: =VLOOKUP($C18,'RECAP SECT'!$G$6:$FJ$253,119,FALSE) -> 2
A19: 30 | B19: MARNE-ARDENNES | C19: 11 | D19: REIMS | E19: =VLOOKUP($C19,'RECAP SECT'!$G$6:$FJ$253,3,FALSE) -> 78.2 | F19: =VLOOKUP($C19,'RECAP SECT'!$G$6:$FJ$253,109,FALSE) -> 6.00 | G19: =VLOOKUP($C19,'RECAP SECT'!$G$6:$FJ$253,110,FALSE) -> 0.64 | H19: =VLOOKUP($C19,'RECAP SECT'!$G$6:$FJ$253,111,FALSE) -> 52% | I19: =VLOOKUP($C19,'RECAP SECT'!$G$6:$FJ$253,112,FALSE) -> 5 | J19: =VLOOKUP($C19,'RECAP SECT'!$G$6:$FJ$253,113,FALSE) -> 2.28 | K19: =VLOOKUP($C19,'RECAP SECT'!$G$6:$FJ$253,114,FALSE) -> 0.47 | L19: =VLOOKUP($C19,'RECAP SECT'!$G$6:$FJ$253,115,FALSE) -> 38% | M19: =VLOOKUP($C19,'RECAP SECT'!$G$6:$FJ$253,116,FALSE) -> 5 | N19: =VLOOKUP($C19,'RECAP SECT'!$G$6:$FJ$253,117,FALSE) -> 46% | O19: =VLOOKUP($C19,'RECAP SECT'!$G$6:$FJ$253,118,FALSE) -> 40% | P19: =VLOOKUP($C19,'RECAP SECT'!$G$6:$FJ$253,119,FALSE) -> 5
A20: 110 | B20: MEURTHE ET MOSELLE MEUSE | C20: 26 | D20: NANCY | E20: =VLOOKUP($C20,'RECAP SECT'!$G$6:$FJ$253,3,FALSE) -> 63.5 | F20: =VLOOKUP($C20,'RECAP SECT'!$G$6:$FJ$253,109,FALSE) -> 7.12 | G20: =VLOOKUP($C20,'RECAP SECT'!$G$6:$FJ$253,110,FALSE) -> 0.70 | H20: =VLOOKUP($C20,'RECAP SECT'!$G$6:$FJ$253,111,FALSE) -> 47% | I20: =VLOOKUP($C20,'RECAP SECT'!$G$6:$FJ$253,112,FALSE) -> 3 | J20: =VLOOKUP($C20,'RECAP SECT'!$G$6:$FJ$253,113,FALSE) -> 1.75 | K20: =VLOOKUP($C20,'RECAP SECT'!$G$6:$FJ$253,114,FALSE) -> 0.32 | L20: =VLOOKUP($C20,'RECAP SECT'!$G$6:$FJ$253,115,FALSE) -> 57% | M20: =VLOOKUP($C20,'RECAP SECT'!$G$6:$FJ$253,116,FALSE) -> 11 | N20: =VLOOKUP($C20,'RECAP SECT'!$G$6:$FJ$253,117,FALSE) -> 51% | O20: =VLOOKUP($C20,'RECAP SECT'!$G$6:$FJ$253,118,FALSE) -> 45% | P20: =VLOOKUP($C20,'RECAP SECT'!$G$6:$FJ$253,119,FALSE) -> 6
A21: 110 | B21: MEURTHE ET MOSELLE MEUSE | C21: 27 | D21: PONT A MOUSSON | E21: =VLOOKUP($C21,'RECAP SECT'!$G$6:$FJ$253,3,FALSE) -> 72.4 | F21: =VLOOKUP($C21,'RECAP SECT'!$G$6:$FJ$253,109,FALSE) -> 13.85 | G21: =VLOOKUP($C21,'RECAP SECT'!$G$6:$FJ$253,110,FALSE) -> 1.33 | H21: =VLOOKUP($C21,'RECAP SECT'!$G$6:$FJ$253,111,FALSE) -> 0% | I21: =VLOOKUP($C21,'RECAP SECT'!$G$6:$FJ$253,112,FALSE) -> 1 | J21: =VLOOKUP($C21,'RECAP SECT'!$G$6:$FJ$253,113,FALSE) -> 6.64 | K21: =VLOOKUP($C21,'RECAP SECT'!$G$6:$FJ$253,114,FALSE) -> 0.64 | L21: =VLOOKUP($C21,'RECAP SECT'!$G$6:$FJ$253,115,FALSE) -> 15% | M21: =VLOOKUP($C21,'RECAP SECT'!$G$6:$FJ$253,116,FALSE) -> 2 | N21: =VLOOKUP($C21,'RECAP SECT'!$G$6:$FJ$253,117,FALSE) -> 6% | O21: =VLOOKUP($C21,'RECAP SECT'!$G$6:$FJ$253,118,FALSE) -> 0% | P21: =VLOOKUP($C21,'RECAP SECT'!$G$6:$FJ$253,119,FALSE) -> 1
A22: 110 | B22: MEURTHE ET MOSELLE MEUSE | C22: 31 | D22: VERDUN | E22: =VLOOKUP($C22,'RECAP SECT'!$G$6:$FJ$253,3,FALSE) -> 51.9 | F22: =VLOOKUP($C22,'RECAP SECT'!$G$6:$FJ$253,109,FALSE) -> 5.03 | G22: =VLOOKUP($C22,'RECAP SECT'!$G$6:$FJ$253,110,FALSE) -> 0.54 | H22: =VLOOKUP($C22,'RECAP SECT'!$G$6:$FJ$253,111,FALSE) -> 60% | I22: =VLOOKUP($C22,'RECAP SECT'!$G$6:$FJ$253,112,FALSE) -> 7 | J22: =VLOOKUP($C22,'RECAP SECT'!$G$6:$FJ$253,113,FALSE) -> 1.66 | K22: =VLOOKUP($C22,'RECAP SECT'!$G$6:$FJ$253,114,FALSE) -> 0.42 | L22: =VLOOKUP($C22,'RECAP SECT'!$G$6:$FJ$253,115,FALSE) -> 44% | M22: =VLOOKUP($C22,'RECAP SECT'!$G$6:$FJ$253,116,FALSE) -> 7 | N22: =VLOOKUP($C22,'RECAP SECT'!$G$6:$FJ$253,117,FALSE) -> 53% | O22: =VLOOKUP($C22,'RECAP SECT'!$G$6:$FJ$253,118,FALSE) -> 47% | P22: =VLOOKUP($C22,'RECAP SECT'!$G$6:$FJ$253,119,FALSE) -> 8
A23: 160 | B23: MOSELLE | C23: 45 | D23: METZ | E23: =VLOOKUP($C23,'RECAP SECT'!$G$6:$FJ$253,3,FALSE) -> 86.5 | F23: =VLOOKUP($C23,'RECAP SECT'!$G$6:$FJ$253,109,FALSE) -> 4.31 | G23: =VLOOKUP($C23,'RECAP SECT'!$G$6:$FJ$253,110,FALSE) -> 0.45 | H23: =VLOOKUP($C23,'RECAP SECT'!$G$6:$FJ$253,111,FALSE) -> 66% | I23: =VLOOKUP($C23,'RECAP SECT'!$G$6:$FJ$253,112,FALSE) -> 9 | J23: =VLOOKUP($C23,'RECAP SECT'!$G$6:$FJ$253,113,FALSE) -> 1.68 | K23: =VLOOKUP($C23,'RECAP SECT'!$G$6:$FJ$253,114,FALSE) -> 0.35 | L23: =VLOOKUP($C23,'RECAP SECT'!$G$6:$FJ$253,115,FALSE) -> 53% | M23: =VLOOKUP($C23,'RECAP SECT'!$G$6:$FJ$253,116,FALSE) -> 10 | N23: =VLOOKUP($C23,'RECAP SECT'!$G$6:$FJ$253,117,FALSE) -> 61% | O23: =VLOOKUP($C23,'RECAP SECT'!$G$6:$FJ$253,118,FALSE) -> 55% | P23: =VLOOKUP($C23,'RECAP SECT'!$G$6:$FJ$253,119,FALSE) -> 11
A24: 160 | B24: MOSELLE | C24: 42 | D24: MOSELLE EST | E24: =VLOOKUP($C24,'RECAP SECT'!$G$6:$FJ$253,3,FALSE) -> 72.3 | F24: =VLOOKUP($C24,'RECAP SECT'!$G$6:$FJ$253,109,FALSE) -> 3.72 | G24: =VLOOKUP($C24,'RECAP SECT'!$G$6:$FJ$253,110,FALSE) -> 0.38 | H24: =VLOOKUP($C24,'RECAP SECT'!$G$6:$FJ$253,111,FALSE) -> 71% | I24: =VLOOKUP($C24,'RECAP SECT'!$G$6:$FJ$253,112,FALSE) -> 11 | J24: =VLOOKUP($C24,'RECAP SECT'!$G$6:$FJ$253,113,FALSE) -> 1.00 | K24: =VLOOKUP($C24,'RECAP SECT'!$G$6:$FJ$253,114,FALSE) -> 0.28 | L24: =VLOOKUP($C24,'RECAP SECT'!$G$6:$FJ$253,115,FALSE) -> 63% | M24: =VLOOKUP($C24,'RECAP SECT'!$G$6:$FJ$253,116,FALSE) -> 14 | N24: =VLOOKUP($C24,'RECAP SECT'!$G$6:$FJ$253,117,FALSE) -> 68% | O24: =VLOOKUP($C24,'RECAP SECT'!$G$6:$FJ$253,118,FALSE) -> 62% | P24: =VLOOKUP($C24,'RECAP SECT'!$G$6:$FJ$253,119,FALSE) -> 13
A25: 160 | B25: MOSELLE | C25: 44 | D25: MOSELLE NORD | E25: =VLOOKUP($C25,'RECAP SECT'!$G$6:$FJ$253,3,FALSE) -> 69.0 | F25: =VLOOKUP($C25,'RECAP SECT'!$G$6:$FJ$253,109,FALSE) -> 6.66 | G25: =VLOOKUP($C25,'RECAP SECT'!$G$6:$FJ$253,110,FALSE) -> 0.68 | H25: =VLOOKUP($C25,'RECAP SECT'!$G$6:$FJ$253,111,FALSE) -> 49% | I25: =VLOOKUP($C25,'RECAP SECT'!$G$6:$FJ$253,112,FALSE) -> 4 | J25: =VLOOKUP($C25,'RECAP SECT'!$G$6:$FJ$253,113,FALSE) -> 1.39 | K25: =VLOOKUP($C25,'RECAP SECT'!$G$6:$FJ$253,114,FALSE) -> 0.32 | L25: =VLOOKUP($C25,'RECAP SECT'!$G$6:$FJ$253,115,FALSE) -> 58% | M25: =VLOOKUP($C25,'RECAP SECT'!$G$6:$FJ$253,116,FALSE) -> 12 | N25: =VLOOKUP($C25,'RECAP SECT'!$G$6:$FJ$253,117,FALSE) -> 52% | O25: =VLOOKUP($C25,'RECAP SECT'!$G$6:$FJ$253,118,FALSE) -> 46% | P25: =VLOOKUP($C25,'RECAP SECT'!$G$6:$FJ$253,119,FALSE) -> 7
A26: 80 | B26: VOSGES | C26: 57 | D26: EPINAL | E26: =VLOOKUP($C26,'RECAP SECT'!$G$6:$FJ$253,3,FALSE) -> 59.6 | F26: =VLOOKUP($C26,'RECAP SECT'!$G$6:$FJ$253,109,FALSE) -> 3.24 | G26: =VLOOKUP($C26,'RECAP SECT'!$G$6:$FJ$253,110,FALSE) -> 0.37 | H26: =VLOOKUP($C26,'RECAP SECT'!$G$6:$FJ$253,111,FALSE) -> 72% | I26: =VLOOKUP($C26,'RECAP SECT'!$G$6:$FJ$253,112,FALSE) -> 12 | J26: =VLOOKUP($C26,'RECAP SECT'!$G$6:$FJ$253,113,FALSE) -> 0.57 | K26: =VLOOKUP($C26,'RECAP SECT'!$G$6:$FJ$253,114,FALSE) -> 0.25 | L26: =VLOOKUP($C26,'RECAP SECT'!$G$6:$FJ$253,115,FALSE) -> 67% | M26: =VLOOKUP($C26,'RECAP SECT'!$G$6:$FJ$253,116,FALSE) -> 15 | N26: =VLOOKUP($C26,'RECAP SECT'!$G$6:$FJ$253,117,FALSE) -> 70% | O26: =VLOOKUP($C26,'RECAP SECT'!$G$6:$FJ$253,118,FALSE) -> 64% | P26: =VLOOKUP($C26,'RECAP SECT'!$G$6:$FJ$253,119,FALSE) -> 15
A27: 80 | B27: VOSGES | C27: 55 | D27: SAINT DIE | E27: =VLOOKUP($C27,'RECAP SECT'!$G$6:$FJ$253,3,FALSE) -> 48.1 | F27: =VLOOKUP($C27,'RECAP SECT'!$G$6:$FJ$253,109,FALSE) -> 4.12 | G27: =VLOOKUP($C27,'RECAP SECT'!$G$6:$FJ$253,110,FALSE) -> 0.42 | H27: =VLOOKUP($C27,'RECAP SECT'!$G$6:$FJ$253,111,FALSE) -> 68% | I27: =VLOOKUP($C27,'RECAP SECT'!$G$6:$FJ$253,112,FALSE) -> 10 | J27: =VLOOKUP($C27,'RECAP SECT'!$G$6:$FJ$253,113,FALSE) -> 2.20 | K27: =VLOOKUP($C27,'RECAP SECT'!$G$6:$FJ$253,114,FALSE) -> 0.43 | L27: =VLOOKUP($C27,'RECAP SECT'!$G$6:$FJ$253,115,FALSE) -> 43% | M27: =VLOOKUP($C27,'RECAP SECT'!$G$6:$FJ$253,116,FALSE) -> 6 | N27: =VLOOKUP($C27,'RECAP SECT'!$G$6:$FJ$253,117,FALSE) -> 58% | O27: =VLOOKUP($C27,'RECAP SECT'!$G$6:$FJ$253,118,FALSE) -> 52% | P27: =VLOOKUP($C27,'RECAP SECT'!$G$6:$FJ$253,119,FALSE) -> 9
A28: Total CEGEE Directions Régionales | E28: =SUM(E10:E27) -> 1140

Sheet SE_CONQUETE
B1: Accueil | F1: BAROMETRE BDD - TERRITOIRES
F2: CLIENTS
F3: =ACCUEIL!F7 -> 2020-05-24
F7: Evolution nette clients Bancarisés Principaux | J7: Evolution nette relations PREMIUM | N7: Evolution nette clients Jeunes équipés | R7: Evolution nette clients Pro actif équipés | V7: Total Clients
H8: coef | I8: ='RECAP DIRCOM'!N4 -> 4% | L8: coef | M8: ='RECAP DIRCOM'!R4 -> 5% | P8: coef | Q8: ='RECAP DIRCOM'!V4 -> 3% | T8: coef | U8: ='RECAP DIRCOM'!Z4 -> 3% | W8: coef | X8: ='RECAP DIRCOM'!AC4 -> 15%
B9: Direction | C9: eds | D9: Territoire | E9: ETP perf | F9: Nb / ETP | G9: PNB / ETP | H9: % Ecart au 1er | I9: Rang | J9: Nb / ETP | K9: PNB / ETP | L9: % Ecart au 1er | M9: Rang | N9: Nb / ETP | O9: PNB / ETP | P9: % Ecart au 1er | Q9: Rang | R9: Nb / ETP | S9: PNB / ETP | T9: % Ecart au 1er | U9: Rang | V9: Moyenne ecart au 1er | W9: % Ecart au 1er | X9: Rang CEGEE
A10: 50 | B10: AUBE HAUTE MARNE | C10: 21 | D10: CHAUMONT | E10: =VLOOKUP($C10,'RECAP SECT'!$G$6:$FJ$253,3,FALSE) -> 34.6 | F10: =VLOOKUP($C10,'RECAP SECT'!$G$6:$FJ$253,5,FALSE) -> -0.12 | G10: =VLOOKUP($C10,'RECAP SECT'!$G$6:$FJ$253,6,FALSE) -> -0.06 | H10: =VLOOKUP($C10,'RECAP SECT'!$G$6:$FJ$253,7,FALSE) -> 28% | I10: =VLOOKUP($C10,'RECAP SECT'!$G$6:$FJ$253,8,FALSE) -> 4 | J10: =VLOOKUP($C10,'RECAP SECT'!$G$6:$FJ$253,9,FALSE) -> 0.35 | K10: =VLOOKUP($C10,'RECAP SECT'!$G$6:$FJ$253,10,FALSE) -> 0.24 | L10: =VLOOKUP($C10,'RECAP SECT'!$G$6:$FJ$253,11,FALSE) -> 75% | M10: =VLOOKUP($C10,'RECAP SECT'!$G$6:$FJ$253,12,FALSE) -> 15 | N10: =VLOOKUP($C10,'RECAP SECT'!$G$6:$FJ$253,13,FALSE) -> -2.72 | O10: =VLOOKUP($C10,'RECAP SECT'!$G$6:$FJ$253,14,FALSE) -> -0.41 | P10: =VLOOKUP($C10,'RECAP SECT'!$G$6:$FJ$253,15,FALSE) -> 88% | Q10: =VLOOKUP($C10,'RECAP SECT'!$G$6:$FJ$253,16,FALSE) -> 10 | R10: =VLOOKUP($C10,'RECAP SECT'!$G$6:$FJ$253,17,FALSE) -> 17% | S10: =VLOOKUP($C10,'RECAP SECT'!$G$6:$FJ$253,18,FALSE) -> 43% | T10: =VLOOKUP($C10,'RECAP SECT'!$G$6:$FJ$253,19,FALSE) -> 0% | U10: =VLOOKUP($C10,'RECAP SECT'!$G$6:$FJ$253,20,FALSE) -> 1 | V10: =VLOOKUP($C10,'RECAP SECT'!$G$6:$FJ$253,21,FALSE) -> 50% | W10: =VLOOKUP($C10,'RECAP SECT'!$G$6:$FJ$253,22,FALSE) -> 39% | X10: =VLOOKUP($C10,'RECAP SECT'!$G$6:$FJ$253,23,FALSE) -> 3
A11: 50 | B11: AUBE HAUTE MARNE | C11: 14 | D11: TROYES | E11: =VLOOKUP($C11,'RECAP SECT'!$G$6:$FJ$253,3,FALSE) -> 65.2 | F11: =VLOOKUP($C11,'RECAP SECT'!$G$6:$FJ$253,5,FALSE) -> -1.47 | G11: =VLOOKUP($C11,'RECAP SECT'!$G$6:$FJ$253,6,FALSE) -> -0.74 | H11: =VLOOKUP($C11,'RECAP SECT'!$G$6:$FJ$253,7,FALSE) -> 66% | I11: =VLOOKUP($C11,'RECAP SECT'!$G$6:$FJ$253,8,FALSE) -> 11 | J11: =VLOOKUP($C11,'RECAP SECT'!$G$6:$FJ$253,9,FALSE) -> 1.40 | K11: =VLOOKUP($C11,'RECAP SECT'!$G$6:$FJ$253,10,FALSE) -> 0.98 | L11: =VLOOKUP($C11,'RECAP SECT'!$G$6:$FJ$253,11,FALSE) -> 0% | M11: =VLOOKUP($C11,'RECAP SECT'!$G$6:$FJ$253,12,FALSE) -> 1 | N11: =VLOOKUP($C11,'RECAP SECT'!$G$6:$FJ$253,13,FALSE) -> -3.44 | O11: =VLOOKUP($C11,'RECAP SECT'!$G$6:$FJ$253,14,FALSE) -> -0.52 | P11: =VLOOKUP($C11,'RECAP SECT'!$G$6:$FJ$253,15,FALSE) -> 122% | Q11: =VLOOKUP($C11,'RECAP SECT'!$G$6:$FJ$253,16,FALSE) -> 15 | R11: =VLOOKUP($C11,'RECAP SECT'!$G$6:$FJ$253,17,FALSE) -> -5% | S11: =VLOOKUP($C11,'RECAP SECT'!$G$6:$FJ$253,18,FALSE) -> -12% | T11: =VLOOKUP($C11,'RECAP SECT'!$G$6:$FJ$253,19,FALSE) -> 115% | U11: =VLOOKUP($C11,'RECAP SECT'!$G$6:$FJ$253,20,FALSE) -> 13 | V11: =VLOOKUP($C11,'RECAP SECT'!$G$6:$FJ$253,21,FALSE) -> 65% | W11: =VLOOKUP($C11,'RECAP SECT'!$G$6:$FJ$253,22,FALSE) -> 54% | X11: =VLOOKUP($C11,'RECAP SECT'!$G$6:$FJ$253,23,FALSE) -> 9
A12: 262 | B12: BAS-RHIN | C12: 5060 | D12: HAGUENAU | E12: =VLOOKUP($C12,'RECAP SECT'!$G$6:$FJ$253,3,FALSE) -> 75.3 | F12: =VLOOKUP($C12,'RECAP SECT'!$G$6:$FJ$253,5,FALSE) -> -1.46 | G12: =VLOOKUP($C12,'RECAP SECT'!$G$6:$FJ$253,6,FALSE) -> -0.73 | H12: =VLOOKUP($C12,'RECAP SECT'!$G$6:$FJ$253,7,FALSE) -> 65% | I12: =VLOOKUP($C12,'RECAP SECT'!$G$6:$FJ$253,8,FALSE) -> 10 | J12: =VLOOKUP($C12,'RECAP SECT'!$G$6:$FJ$253,9,FALSE) -> 0.82 | K12: =VLOOKUP($C12,'RECAP SECT'!$G$6:$FJ$253,10,FALSE) -> 0.58 | L12: =VLOOKUP($C12,'RECAP SECT'!$G$6:$FJ$253,11,FALSE) -> 41% | M12: =VLOOKUP($C12,'RECAP SECT'!$G$6:$FJ$253,12,FALSE) -> 8 | N12: =VLOOKUP($C12,'RECAP SECT'!$G$6:$FJ$253,13,FALSE) -> -2.75 | O12: =VLOOKUP($C12,'RECAP SECT'!$G$6:$FJ$253,14,FALSE) -> -0.41 | P12: =VLOOKUP($C12,'RECAP SECT'!$G$6:$FJ$253,15,FALSE) -> 89% | Q12: =VLOOKUP($C12,'RECAP SECT'!$G$6:$FJ$253,16,FALSE) -> 11 | R12: =VLOOKUP($C12,'RECAP SECT'!$G$6:$FJ$253,17,FALSE) -> -11% | S12: =VLOOKUP($C12,'RECAP SECT'!$G$6:$FJ$253,18,FALSE) -> -27% | T12: =VLOOKUP($C12,'RECAP SECT'!$G$6:$FJ$253,19,FALSE) -> 147% | U12: =VLOOKUP($C12,'RECAP SECT'!$G$6:$FJ$253,20,FALSE) -> 17 | V12: =VLOOKUP($C12,'RECAP SECT'!$G$6:$FJ$253,21,FALSE) -> 78% | W12: =VLOOKUP($C12,'RECAP SECT'!$G$6:$FJ$253,22,FALSE) -> 68% | X12: =VLOOKUP($C12,'RECAP SECT'!$G$6:$FJ$253,23,FALSE) -> 15
A13: 262 | B13: BAS-RHIN | C13: 5101 | D13: SELESTAT | E13: =VLOOKUP($C13,'RECAP SECT'!$G$6:$FJ$253,3,FALSE) -> 62.3 | F13: =VLOOKUP($C13,'RECAP SECT'!$G$6:$FJ$253,5,FALSE) -> -3.32 | G13: =VLOOKUP($C13,'RECAP SECT'!$G$6:$FJ$253,6,FALSE) -> -1.66 | H13: =VLOOKUP($C13,'RECAP SECT'!$G$6:$FJ$253,7,FALSE) -> 118% | I13: =VLOOKUP($C13,'RECAP SECT'!$G$6:$FJ$253,8,FALSE) -> 17 | J13: =VLOOKUP($C13,'RECAP SECT'!$G$6:$FJ$253,9,FALSE) -> 0.45 | K13: =VLOOKUP($C13,'RECAP SECT'!$G$6:$FJ$253,10,FALSE) -> 0.31 | L13: =VLOOKUP($C13,'RECAP SECT'!$G$6:$FJ$253,11,FALSE) -> 68% | M13: =VLOOKUP($C13,'RECAP SECT'!$G$6:$FJ$253,12,FALSE) -> 13 | N13: =VLOOKUP($C13,'RECAP SECT'!$G$6:$FJ$253,13,FALSE) -> -4.01 | O13: =VLOOKUP($C13,'RECAP SECT'!$G$6:$FJ$253,14,FALSE) -> -0.60 | P13: =VLOOKUP($C13,'RECAP SECT'!$G$6:$FJ$253,15,FALSE) -> 150% | Q13: =VLOOKUP($C13,'RECAP SECT'!$G$6:$FJ$253,16,FALSE) -> 18 | R13: =VLOOKUP($C13,'RECAP SECT'!$G$6:$FJ$253,17,FALSE) -> -11% | S13: =VLOOKUP($C13,'RECAP SECT'!$G$6:$FJ$253,18,FALSE) -> -28% | T13: =VLOOKUP($C13,'RECAP SECT'!$G$6:$FJ$253,19,FALSE) -> 150% | U13: =VLOOKUP($C13,'RECAP SECT'!$G$6:$FJ$253,20,FALSE) -> 18 | V13: =VLOOKUP($C13,'RECAP SECT'!$G$6:$FJ$253,21,FALSE) -> 114% | W13: =VLOOKUP($C13,'RECAP SECT'!$G$6:$FJ$253,22,FALSE) -> 103% | X13: =VLOOKUP($C13,'RECAP SECT'!$G$6:$FJ$253,23,FALSE) -> 18
A14: 262 | B14: BAS-RHIN | C14: 5006 | D14: STRASBOURG | E14: =VLOOKUP($C14,'RECAP SECT'!$G$6:$FJ$253,3,FALSE) -> 74.4 | F14: =VLOOKUP($C14,'RECAP SECT'!$G$6:$FJ$253,5,FALSE) -> -1.50 | G14: =VLOOKUP($C14,'RECAP SECT'!$G$6:$FJ$253,6,FALSE) -> -0.75 | H14: =VLOOKUP($C14,'RECAP SECT'!$G$6:$FJ$253,7,FALSE) -> 67% | I14: =VLOOKUP($C14,'RECAP SECT'!$G$6:$FJ$253,8,FALSE) -> 12 | J14: =VLOOKUP($C14,'RECAP SECT'!$G$6:$FJ$253,9,FALSE) -> 0.71 | K14: =VLOOKUP($C14,'RECAP SECT'!$G$6:$FJ$253,10,FALSE) -> 0.50 | L14: =VLOOKUP($C14,'RECAP SECT'!$G$6:$FJ$253,11,FALSE) -> 49% | M14: =VLOOKUP($C14,'RECAP SECT'!$G$6:$FJ$253,12,FALSE) -> 11 | N14: =VLOOKUP($C14,'RECAP SECT'!$G$6:$FJ$253,13,FALSE) -> -1.38 | O14: =VLOOKUP($C14,'RECAP SECT'!$G$6:$FJ$253,14,FALSE) -> -0.21 | P14: =VLOOKUP($C14,'RECAP SECT'!$G$6:$FJ$253,15,FALSE) -> 24% | Q14: =VLOOKUP($C14,'RECAP SECT'!$G$6:$FJ$253,16,FALSE) -> 3 | R14: =VLOOKUP($C14,'RECAP SECT'!$G$6:$FJ$253,17,FALSE) -> 4% | S14: =VLOOKUP($C14,'RECAP SECT'!$G$6:$FJ$253,18,FALSE) -> 10% | T14: =VLOOKUP($C14,'RECAP SECT'!$G$6:$FJ$253,19,FALSE) -> 70% | U14: =VLOOKUP($C14,'RECAP SECT'!$G$6:$FJ$253,20,FALSE) -> 8 | V14: =VLOOKUP($C14,'RECAP SECT'!$G$6:$FJ$253,21,FALSE) -> 53% | W14: =VLOOKUP($C14,'RECAP SECT'!$G$6:$FJ$253,22,FALSE) -> 42% | X14: =VLOOKUP($C14,'RECAP SECT'!$G$6:$FJ$253,23,FALSE) -> 5
A15: 264 | B15: HAUT-RHIN | C15: 5130 | D15: COLMAR | E15: =VLOOKUP($C15,'RECAP SECT'!$G$6:$FJ$253,3,FALSE) -> 64.7 | F15: =VLOOKUP($C15,'RECAP SECT'!$G$6:$FJ$253,5,FALSE) -> -3.26 | G15: =VLOOKUP($C15,'RECAP SECT'!$G$6:$FJ$253,6,FALSE) -> -1.63 | H15: =VLOOKUP($C15,'RECAP SECT'!$G$6:$FJ$253,7,FALSE) -> 116% | I15: =VLOOKUP($C15,'RECAP SECT'!$G$6:$FJ$253,8,FALSE) -> 16 | J15: =VLOOKUP($C15,'RECAP SECT'!$G$6:$FJ$253,9,FALSE) -> 1.00 | K15: =VLOOKUP($C15,'RECAP SECT'!$G$6:$FJ$253,10,FALSE) -> 0.70 | L15: =VLOOKUP($C15,'RECAP SECT'!$G$6:$FJ$253,11,FALSE) -> 28% | M15: =VLOOKUP($C15,'RECAP SECT'!$G$6:$FJ$253,12,FALSE) -> 7 | N15: =VLOOKUP($C15,'RECAP SECT'!$G$6:$FJ$253,13,FALSE) -> -3.46 | O15: =VLOOKUP($C15,'RECAP SECT'!$G$6:$FJ$253,14,FALSE) -> -0.52 | P15: =VLOOKUP($C15,'RECAP SECT'!$G$6:$FJ$253,15,FALSE) -> 124% | Q15: =VLOOKUP($C15,'RECAP SECT'!$G$6:$FJ$253,16,FALSE) -> 16 | R15: =VLOOKUP($C15,'RECAP SECT'!$G$6:$FJ$253,17,FALSE) -> 11% | S15: =VLOOKUP($C15,'RECAP SECT'!$G$6:$FJ$253,18,FALSE) -> 27% | T15: =VLOOKUP($C15,'RECAP SECT'!$G$6:$FJ$253,19,FALSE) -> 34% | U15: =VLOOKUP($C15,'RECAP SECT'!$G$6:$FJ$253,20,FALSE) -> 2 | V15: =VLOOKUP($C15,'RECAP SECT'!$G$6:$FJ$253,21,FALSE) -> 72% | W15: =VLOOKUP($C15,'RECAP SECT'!$G$6:$FJ$253,22,FALSE) -> 61% | X15: =VLOOKUP($C15,'RECAP SECT'!$G$6:$FJ$253,23,FALSE) -> 14
A16: 264 | B16: HAUT-RHIN | C16: 5169 | D16: MULHOUSE | E16: =VLOOKUP($C16,'RECAP SECT'!$G$6:$FJ$253,3,FALSE) -> 61.6 | F16: =VLOOKUP($C16,'RECAP SECT'!$G$6:$FJ$253,5,FALSE) -> -4.46 | G16: =VLOOKUP($C16,'RECAP SECT'!$G$6:$FJ$253,6,FALSE) -> -2.23 | H16: =VLOOKUP($C16,'RECAP SECT'!$G$6:$FJ$253,7,FALSE) -> 150% | I16: =VLOOKUP($C16,'RECAP SECT'!$G$6:$FJ$253,8,FALSE) -> 18 | J16: =VLOOKUP($C16,'RECAP SECT'!$G$6:$FJ$253,9,FALSE) -> 0.80 | K16: =VLOOKUP($C16,'RECAP SECT'!$G$6:$FJ$253,10,FALSE) -> 0.56 | L16: =VLOOKUP($C16,'RECAP SECT'!$G$6:$FJ$253,11,FALSE) -> 43% | M16: =VLOOKUP($C16,'RECAP SECT'!$G$6:$FJ$253,12,FALSE) -> 9 | N16: =VLOOKUP($C16,'RECAP SECT'!$G$6:$FJ$253,13,FALSE) -> -3.96 | O16: =VLOOKUP($C16,'RECAP SECT'!$G$6:$FJ$253,14,FALSE) -> -0.59 | P16: =VLOOKUP($C16,'RECAP SECT'!$G$6:$FJ$253,15,FALSE) -> 148% | Q16: =VLOOKUP($C16,'RECAP SECT'!$G$6:$FJ$253,16,FALSE) -> 17 | R16: =VLOOKUP($C16,'RECAP SECT'!$G$6:$FJ$253,17,FALSE) -> 6% | S16: =VLOOKUP($C16,'RECAP SECT'!$G$6:$FJ$253,18,FALSE) -> 16% | T16: =VLOOKUP($C16,'RECAP SECT'!$G$6:$FJ$253,19,FALSE) -> 57% | U16: =VLOOKUP($C16,'RECAP SECT'!$G$6:$FJ$253,20,FALSE) -> 5 | V16: =VLOOKUP($C16,'RECAP SECT'!$G$6:$FJ$253,21,FALSE) -> 95% | W16: =VLOOKUP($C16,'RECAP SECT'!$G$6:$FJ$253,22,FALSE) -> 84% | X16: =VLOOKUP($C16,'RECAP SECT'!$G$6:$FJ$253,23,FALSE) -> 17
A17: 30 | B17: MARNE-ARDENNES | C17: 6 | D17: CHALONS EN CHAMPAGNE | E17: =VLOOKUP($C17,'RECAP SECT'!$G$6:$FJ$253,3,FALSE) -> 44.9 | F17: =VLOOKUP($C17,'RECAP SECT'!$G$6:$FJ$253,5,FALSE) -> 0.87 | G17: =VLOOKUP($C17,'RECAP SECT'!$G$6:$FJ$253,6,FALSE) -> 0.43 | H17: =VLOOKUP($C17,'RECAP SECT'!$G$6:$FJ$253,7,FALSE) -> 0% | I17: =VLOOKUP($C17,'RECAP SECT'!$G$6:$FJ$253,8,FALSE) -> 1 | J17: =VLOOKUP($C17,'RECAP SECT'!$G$6:$FJ$253,9,FALSE) -> 0.07 | K17: =VLOOKUP($C17,'RECAP SECT'!$G$6:$FJ$253,10,FALSE) -> 0.05 | L17: =VLOOKUP($C17,'RECAP SECT'!$G$6:$FJ$253,11,FALSE) -> 95% | M17: =VLOOKUP($C17,'RECAP SECT'!$G$6:$FJ$253,12,FALSE) -> 17 | N17: =VLOOKUP($C17,'RECAP SECT'!$G$6:$FJ$253,13,FALSE) -> -1.05 | O17: =VLOOKUP($C17,'RECAP SECT'!$G$6:$FJ$253,14,FALSE) -> -0.16 | P17: =VLOOKUP($C17,'RECAP SECT'!$G$6:$FJ$253,15,FALSE) -> 8% | Q17: =VLOOKUP($C17,'RECAP SECT'!$G$6:$FJ$253,16,FALSE) -> 2 | R17: =VLOOKUP($C17,'RECAP SECT'!$G$6:$FJ$253,17,FALSE) -> -2% | S17: =VLOOKUP($C17,'RECAP SECT'!$G$6:$FJ$253,18,FALSE) -> -6% | T17: =VLOOKUP($C17,'RECAP SECT'!$G$6:$FJ$253,19,FALSE) -> 103% | U17: =VLOOKUP($C17,'RECAP SECT'!$G$6:$FJ$253,20,FALSE) -> 12 | V17: =VLOOKUP($C17,'RECAP SECT'!$G$6:$FJ$253,21,FALSE) -> 54% | W17: =VLOOKUP($C17,'RECAP SECT'!$G$6:$FJ$253,22,FALSE) -> 43% | X17: =VLOOKUP($C17,'RECAP SECT'!$G$6:$FJ$253,23,FALSE) -> 7
A18: 30 | B18: MARNE-ARDENNES | C18: 2 | D18: CHARLEVILLE MEZIERES | E18: =VLOOKUP($C18,'RECAP SECT'!$G$6:$FJ$253,3,FALSE) -> 54.9 | F18: =VLOOKUP($C18,'RECAP SECT'!$G$6:$FJ$253,5,FALSE) -> -0.78 | G18: =VLOOKUP($C18,'RECAP SECT'!$G$6:$FJ$253,6,FALSE) -> -0.39 | H18: =VLOOKUP($C18,'RECAP SECT'!$G$6:$FJ$253,7,FALSE) -> 46% | I18: =VLOOKUP($C18,'RECAP SECT'!$G$6:$FJ$253,8,FALSE) -> 6 | J18: =VLOOKUP($C18,'RECAP SECT'!$G$6:$FJ$253,9,FALSE) -> -0.02 | K18: =VLOOKUP($C18,'RECAP SECT'!$G$6:$FJ$253,10,FALSE) -> -0.01 | L18: =VLOOKUP($C18,'RECAP SECT'!$G$6:$FJ$253,11,FALSE) -> 101% | M18: =VLOOKUP($C18,'RECAP SECT'!$G$6:$FJ$253,12,FALSE) -> 18 | N18: =VLOOKUP($C18,'RECAP SECT'!$G$6:$FJ$253,13,FALSE) -> -1.86 | O18: =VLOOKUP($C18,'RECAP SECT'!$G$6:$FJ$253,14,FALSE) -> -0.28 | P18: =VLOOKUP($C18,'RECAP SECT'!$G$6:$FJ$253,15,FALSE) -> 47% | Q18: =VLOOKUP($C18,'RECAP SECT'!$G$6:$FJ$253,16,FALSE) -> 5 | R18: =VLOOKUP($C18,'RECAP SECT'!$G$6:$FJ$253,17,FALSE) -> 5% | S18: =VLOOKUP($C18,'RECAP SECT'!$G$6:$FJ$253,18,FALSE) -> 14% | T18: =VLOOKUP($C18,'RECAP SECT'!$G$6:$FJ$253,19,FALSE) -> 62% | U18: =VLOOKUP($C18,'RECAP SECT'!$G$6:$FJ$253,20,FALSE) -> 7 | V18: =VLOOKUP($C18,'RECAP SECT'!$G$6:$FJ$253,21,FALSE) -> 68% | W18: =VLOOKUP($C18,'RECAP SECT'!$G$6:$FJ$253,22,FALSE) -> 57% | X18: =VLOOKUP($C18,'RECAP SECT'!$G$6:$FJ$253,23,FALSE) -> 10
A19: 30 | B19: MARNE-ARDENNES | C19: 11 | D19: REIMS | E19: =VLOOKUP($C19,'RECAP SECT'!$G$6:$FJ$253,3,FALSE) -> 78.2 | F19: =VLOOKUP($C19,'RECAP SECT'!$G$6:$FJ$253,5,FALSE) -> 0.60 | G19: =VLOOKUP($C19,'RECAP SECT'!$G$6:$FJ$253,6,FALSE) -> 0.30 | H19: =VLOOKUP($C19,'RECAP SECT'!$G$6:$FJ$253,7,FALSE) -> 8% | I19: =VLOOKUP($C19,'RECAP SECT'!$G$6:$FJ$253,8,FALSE) -> 3 | J19: =VLOOKUP($C19,'RECAP SECT'!$G$6:$FJ$253,9,FALSE) -> 1.14 | K19: =VLOOKUP($C19,'RECAP SECT'!$G$6:$FJ$253,10,FALSE) -> 0.80 | L19: =VLOOKUP($C19,'RECAP SECT'!$G$6:$FJ$253,11,FALSE) -> 18% | M19: =VLOOKUP($C19,'RECAP SECT'!$G$6:$FJ$253,12,FALSE) -> 4 | N19: =VLOOKUP($C19,'RECAP SECT'!$G$6:$FJ$253,13,FALSE) -> -2.19 | O19: =VLOOKUP($C19,'RECAP SECT'!$G$6:$FJ$253,14,FALSE) -> -0.33 | P19: =VLOOKUP($C19,'RECAP SECT'!$G$6:$FJ$253,15,FALSE) -> 62% | Q19: =VLOOKUP($C19,'RECAP SECT'!$G$6:$FJ$253,16,FALSE) -> 6 | R19: =VLOOKUP($C19,'RECAP SECT'!$G$6:$FJ$253,17,FALSE) -> -5% | S19: =VLOOKUP($C19,'RECAP SECT'!$G$6:$FJ$253,18,FALSE) -> -13% | T19: =VLOOKUP($C19,'RECAP SECT'!$G$6:$FJ$253,19,FALSE) -> 118% | U19: =VLOOKUP($C19,'RECAP SECT'!$G$6:$FJ$253,20,FALSE) -> 16 | V19: =VLOOKUP($C19,'RECAP SECT'!$G$6:$FJ$253,21,FALSE) -> 44% | W19: =VLOOKUP($C19,'RECAP SECT'!$G$6:$FJ$253,22,FALSE) -> 33% | X19: =VLOOKUP($C19,'RECAP SECT'!$G$6:$FJ$253,23,FALSE) -> 2
A20: 110 | B20: MEURTHE ET MOSELLE MEUSE | C20: 26 | D20: NANCY | E20: =VLOOKUP($C20,'RECAP SECT'!$G$6:$FJ$253,3,FALSE) -> 63.5 | F20: =VLOOKUP($C20,'RECAP SECT'!$G$6:$FJ$253,5,FALSE) -> -0.72 | G20: =VLOOKUP($C20,'RECAP SECT'!$G$6:$FJ$253,6,FALSE) -> -0.36 | H20: =VLOOKUP($C20,'RECAP SECT'!$G$6:$FJ$253,7,FALSE) -> 45% | I20: =VLOOKUP($C20,'RECAP SECT'!$G$6:$FJ$253,8,FALSE) -> 5 | J20: =VLOOKUP($C20,'RECAP SECT'!$G$6:$FJ$253,9,FALSE) -> 1.04 | K20: =VLOOKUP($C20,'RECAP SECT'!$G$6:$FJ$253,10,FALSE) -> 0.73 | L20: =VLOOKUP($C20,'RECAP SECT'!$G$6:$FJ$253,11,FALSE) -> 26% | M20: =VLOOKUP($C20,'RECAP SECT'!$G$6:$FJ$253,12,FALSE) -> 6 | N20: =VLOOKUP($C20,'RECAP SECT'!$G$6:$FJ$253,13,FALSE) -> -1.65 | O20: =VLOOKUP($C20,'RECAP SECT'!$G$6:$FJ$253,14,FALSE) -> -0.25 | P20: =VLOOKUP($C20,'RECAP SECT'!$G$6:$FJ$253,15,FALSE) -> 37% | Q20: =VLOOKUP($C20,'RECAP SECT'!$G$6:$FJ$253,16,FALSE) -> 4 | R20: =VLOOKUP($C20,'RECAP SECT'!$G$6:$FJ$253,17,FALSE) -> -5% | S20: =VLOOKUP($C20,'RECAP SECT'!$G$6:$FJ$253,18,FALSE) -> -12% | T20: =VLOOKUP($C20,'RECAP SECT'!$G$6:$FJ$253,19,FALSE) -> 116% | U20: =VLOOKUP($C20,'RECAP SECT'!$G$6:$FJ$253,20,FALSE) -> 15 | V20: =VLOOKUP($C20,'RECAP SECT'!$G$6:$FJ$253,21,FALSE) -> 51% | W20: =VLOOKUP($C20,'RECAP SECT'!$G$6:$FJ$253,22,FALSE) -> 40% | X20: =VLOOKUP($C20,'RECAP SECT'!$G$6:$FJ$253,23,FALSE) -> 4
A21: 110 | B21: MEURTHE ET MOSELLE MEUSE | C21: 27 | D21: PONT A MOUSSON | E21: =VLOOKUP($C21,'RECAP SECT'!$G$6:$FJ$253,3,FALSE) -> 72.4 | F21: =VLOOKUP($C21,'RECAP SECT'!$G$6:$FJ$253,5,FALSE) -> 0.68 | G21: =VLOOKUP($C21,'RECAP SECT'!$G$6:$FJ$253,6,FALSE) -> 0.34 | H21: =VLOOKUP($C21,'RECAP SECT'!$G$6:$FJ$253,7,FALSE) -> 5% | I21: =VLOOKUP($C21,'RECAP SECT'!$G$6:$FJ$253,8,FALSE) -> 2 | J21: =VLOOKUP($C21,'RECAP SECT'!$G$6:$FJ$253,9,FALSE) -> 1.34 | K21: =VLOOKUP($C21,'RECAP SECT'!$G$6:$FJ$253,10,FALSE) -> 0.94 | L21: =VLOOKUP($C21,'RECAP SECT'!$G$6:$FJ$253,11,FALSE) -> 4% | M21: =VLOOKUP($C21,'RECAP SECT'!$G$6:$FJ$253,12,FALSE) -> 2 | N21: =VLOOKUP($C21,'RECAP SECT'!$G$6:$FJ$253,13,FALSE) -> -0.88 | O21: =VLOOKUP($C21,'RECAP SECT'!$G$6:$FJ$253,14,FALSE) -> -0.13 | P21: =VLOOKUP($C21,'RECAP SECT'!$G$6:$FJ$253,15,FALSE) -> 0% | Q21: =VLOOKUP($C21,'RECAP SECT'!$G$6:$FJ$253,16,FALSE) -> 1 | R21: =VLOOKUP($C21,'RECAP SECT'!$G$6:$FJ$253,17,FALSE) -> 10% | S21: =VLOOKUP($C21,'RECAP SECT'!$G$6:$FJ$253,18,FALSE) -> 24% | T21: =VLOOKUP($C21,'RECAP SECT'!$G$6:$FJ$253,19,FALSE) -> 40% | U21: =VLOOKUP($C21,'RECAP SECT'!$G$6:$FJ$253,20,FALSE) -> 3 | V21: =VLOOKUP($C21,'RECAP SECT'!$G$6:$FJ$253,21,FALSE) -> 11% | W21: =VLOOKUP($C21,'RECAP SECT'!$G$6:$FJ$253,22,FALSE) -> 0% | X21: =VLOOKUP($C21,'RECAP SECT'!$G$6:$FJ$253,23,FALSE) -> 1
A22: 110 | B22: MEURTHE ET MOSELLE MEUSE | C22: 31 | D22: VERDUN | E22: =VLOOKUP($C22,'RECAP SECT'!$G$6:$FJ$253,3,FALSE) -> 51.9 | F22: =VLOOKUP($C22,'RECAP SECT'!$G$6:$FJ$253,5,FALSE) -> -1.18 | G22: =VLOOKUP($C22,'RECAP SECT'!$G$6:$FJ$253,6,FALSE) -> -0.59 | H22: =VLOOKUP($C22,'RECAP SECT'!$G$6:$FJ$253,7,FALSE) -> 58% | I22: =VLOOKUP($C22,'RECAP SECT'!$G$6:$FJ$253,8,FALSE) -> 9 | J22: =VLOOKUP($C22,'RECAP SECT'!$G$6:$FJ$253,9,FALSE) -> 0.17 | K22: =VLOOKUP($C22,'RECAP SECT'!$G$6:$FJ$253,10,FALSE) -> 0.12 | L22: =VLOOKUP($C22,'RECAP SECT'!$G$6:$FJ$253,11,FALSE) -> 88% | M22: =VLOOKUP($C22,'RECAP SECT'!$G$6:$FJ$253,12,FALSE) -> 16 | N22: =VLOOKUP($C22,'RECAP SECT'!$G$6:$FJ$253,13,FALSE) -> -2.39 | O22: =VLOOKUP($C22,'RECAP SECT'!$G$6:$FJ$253,14,FALSE) -> -0.36 | P22: =VLOOKUP($C22,'RECAP SECT'!$G$6:$FJ$253,15,FALSE) -> 72% | Q22: =VLOOKUP($C22,'RECAP SECT'!$G$6:$FJ$253,16,FALSE) -> 8 | R22: =VLOOKUP($C22,'RECAP SECT'!$G$6:$FJ$253,17,FALSE) -> 6% | S22: =VLOOKUP($C22,'RECAP SECT'!$G$6:$FJ$253,18,FALSE) -> 14% | T22: =VLOOKUP($C22,'RECAP SECT'!$G$6:$FJ$253,19,FALSE) -> 61% | U22: =VLOOKUP($C22,'RECAP SECT'!$G$6:$FJ$253,20,FALSE) -> 6 | V22: =VLOOKUP($C22,'RECAP SECT'!$G$6:$FJ$253,21,FALSE) -> 71% | W22: =VLOOKUP($C22,'RECAP SECT'!$G$6:$FJ$253,22,FALSE) -> 60% | X22: =VLOOKUP($C22,'RECAP SECT'!$G$6:$FJ$253,23,FALSE) -> 12
A23: 160 | B23: MOSELLE | C23: 45 | D23: METZ | E23: =VLOOKUP($C23,'RECAP SECT'!$G$6:$FJ$253,3,FALSE) -> 86.5 | F23: =VLOOKUP($C23,'RECAP SECT'!$G$6:$FJ$253,5,FALSE) -> -0.81 | G23: =VLOOKUP($C23,'RECAP SECT'!$G$6:$FJ$253,6,FALSE) -> -0.40 | H23: =VLOOKUP($C23,'RECAP SECT'!$G$6:$FJ$253,7,FALSE) -> 47% | I23: =VLOOKUP($C23,'RECAP SECT'!$G$6:$FJ$253,8,FALSE) -> 7 | J23: =VLOOKUP($C23,'RECAP SECT'!$G$6:$FJ$253,9,FALSE) -> 1.23 | K23: =VLOOKUP($C23,'RECAP SECT'!$G$6:$FJ$253,10,FALSE) -> 0.86 | L23: =VLOOKUP($C23,'RECAP SECT'!$G$6:$FJ$253,11,FALSE) -> 12% | M23: =VLOOKUP($C23,'RECAP SECT'!$G$6:$FJ$253,12,FALSE) -> 3 | N23: =VLOOKUP($C23,'RECAP SECT'!$G$6:$FJ$253,13,FALSE) -> -2.30 | O23: =VLOOKUP($C23,'RECAP SECT'!$G$6:$FJ$253,14,FALSE) -> -0.34 | P23: =VLOOKUP($C23,'RECAP SECT'!$G$6:$FJ$253,15,FALSE) -> 68% | Q23: =VLOOKUP($C23,'RECAP SECT'!$G$6:$FJ$253,16,FALSE) -> 7 | R23: =VLOOKUP($C23,'RECAP SECT'!$G$6:$FJ$253,17,FALSE) -> -5% | S23: =VLOOKUP($C23,'RECAP SECT'!$G$6:$FJ$253,18,FALSE) -> -12% | T23: =VLOOKUP($C23,'RECAP SECT'!$G$6:$FJ$253,19,FALSE) -> 115% | U23: =VLOOKUP($C23,'RECAP SECT'!$G$6:$FJ$253,20,FALSE) -> 14 | V23: =VLOOKUP($C23,'RECAP SECT'!$G$6:$FJ$253,21,FALSE) -> 53% | W23: =VLOOKUP($C23,'RECAP SECT'!$G$6:$FJ$253,22,FALSE) -> 42% | X23: =VLOOKUP($C23,'RECAP SECT'!$G$6:$FJ$253,23,FALSE) -> 6
A24: 160 | B24: MOSELLE | C24: 42 | D24: MOSELLE EST | E24: =VLOOKUP($C24,'RECAP SECT'!$G$6:$FJ$253,3,FALSE) -> 72.3 | F24: =VLOOKUP($C24,'RECAP SECT'!$G$6:$FJ$253,5,FALSE) -> -1.52 | G24: =VLOOKUP($C24,'RECAP SECT'!$G$6:$FJ$253,6,FALSE) -> -0.76 | H24: =VLOOKUP($C24,'RECAP SECT'!$G$6:$FJ$253,7,FALSE) -> 67% | I24: =VLOOKUP($C24,'RECAP SECT'!$G$6:$FJ$253,8,FALSE) -> 13 | J24: =VLOOKUP($C24,'RECAP SECT'!$G$6:$FJ$253,9,FALSE) -> 0.73 | K24: =VLOOKUP($C24,'RECAP SECT'!$G$6:$FJ$253,10,FALSE) -> 0.51 | L24: =VLOOKUP($C24,'RECAP SECT'!$G$6:$FJ$253,11,FALSE) -> 48% | M24: =VLOOKUP($C24,'RECAP SECT'!$G$6:$FJ$253,12,FALSE) -> 10 | N24: =VLOOKUP($C24,'RECAP SECT'!$G$6:$FJ$253,13,FALSE) -> -3.07 | O24: =VLOOKUP($C24,'RECAP SECT'!$G$6:$FJ$253,14,FALSE) -> -0.46 | P24: =VLOOKUP($C24,'RECAP SECT'!$G$6:$FJ$253,15,FALSE) -> 105% | Q24: =VLOOKUP($C24,'RECAP SECT'!$G$6:$FJ$253,16,FALSE) -> 13 | R24: =VLOOKUP($C24,'RECAP SECT'!$G$6:$FJ$253,17,FALSE) -> 1% | S24: =VLOOKUP($C24,'RECAP SECT'!$G$6:$FJ$253,18,FALSE) -> 3% | T24: =VLOOKUP($C24,'RECAP SECT'!$G$6:$FJ$253,19,FALSE) -> 84% | U24: =VLOOKUP($C24,'RECAP SECT'!$G$6:$FJ$253,20,FALSE) -> 10 | V24: =VLOOKUP($C24,'RECAP SECT'!$G$6:$FJ$253,21,FALSE) -> 71% | W24: =VLOOKUP($C24,'RECAP SECT'!$G$6:$FJ$253,22,FALSE) -> 61% | X24: =VLOOKUP($C24,'RECAP SECT'!$G$6:$FJ$253,23,FALSE) -> 13
A25: 160 | B25: MOSELLE | C25: 44 | D25: MOSELLE NORD | E25: =VLOOKUP($C25,'RECAP SECT'!$G$6:$FJ$253,3,FALSE) -> 69.0 | F25: =VLOOKUP($C25,'RECAP SECT'!$G$6:$FJ$253,5,FALSE) -> -1.98 | G25: =VLOOKUP($C25,'RECAP SECT'!$G$6:$FJ$253,6,FALSE) -> -0.99 | H25: =VLOOKUP($C25,'RECAP SECT'!$G$6:$FJ$253,7,FALSE) -> 80% | I25: =VLOOKUP($C25,'RECAP SECT'!$G$6:$FJ$253,8,FALSE) -> 14 | J25: =VLOOKUP($C25,'RECAP SECT'!$G$6:$FJ$253,9,FALSE) -> 0.61 | K25: =VLOOKUP($C25,'RECAP SECT'!$G$6:$FJ$253,10,FALSE) -> 0.43 | L25: =VLOOKUP($C25,'RECAP SECT'!$G$6:$FJ$253,11,FALSE) -> 56% | M25: =VLOOKUP($C25,'RECAP SECT'!$G$6:$FJ$253,12,FALSE) -> 12 | N25: =VLOOKUP($C25,'RECAP SECT'!$G$6:$FJ$253,13,FALSE) -> -2.93 | O25: =VLOOKUP($C25,'RECAP SECT'!$G$6:$FJ$253,14,FALSE) -> -0.44 | P25: =VLOOKUP($C25,'RECAP SECT'!$G$6:$FJ$253,15,FALSE) -> 98% | Q25: =VLOOKUP($C25,'RECAP SECT'!$G$6:$FJ$253,16,FALSE) -> 12 | R25: =VLOOKUP($C25,'RECAP SECT'!$G$6:$FJ$253,17,FALSE) -> 7% | S25: =VLOOKUP($C25,'RECAP SECT'!$G$6:$FJ$253,18,FALSE) -> 18% | T25: =VLOOKUP($C25,'RECAP SECT'!$G$6:$FJ$253,19,FALSE) -> 53% | U25: =VLOOKUP($C25,'RECAP SECT'!$G$6:$FJ$253,20,FALSE) -> 4 | V25: =VLOOKUP($C25,'RECAP SECT'!$G$6:$FJ$253,21,FALSE) -> 70% | W25: =VLOOKUP($C25,'RECAP SECT'!$G$6:$FJ$253,22,FALSE) -> 60% | X25: =VLOOKUP($C25,'RECAP SECT'!$G$6:$FJ$253,23,FALSE) -> 11
A26: 80 | B26: VOSGES | C26: 57 | D26: EPINAL | E26: =VLOOKUP($C26,'RECAP SECT'!$G$6:$FJ$253,3,FALSE) -> 59.6 | F26: =VLOOKUP($C26,'RECAP SECT'!$G$6:$FJ$253,5,FALSE) -> -1.18 | G26: =VLOOKUP($C26,'RECAP SECT'!$G$6:$FJ$253,6,FALSE) -> -0.59 | H26: =VLOOKUP($C26,'RECAP SECT'!$G$6:$FJ$253,7,FALSE) -> 57% | I26: =VLOOKUP($C26,'RECAP SECT'!$G$6:$FJ$253,8,FALSE) -> 8 | J26: =VLOOKUP($C26,'RECAP SECT'!$G$6:$FJ$253,9,FALSE) -> 1.11 | K26: =VLOOKUP($C26,'RECAP SECT'!$G$6:$FJ$253,10,FALSE) -> 0.78 | L26: =VLOOKUP($C26,'RECAP SECT'!$G$6:$FJ$253,11,FALSE) -> 21% | M26: =VLOOKUP($C26,'RECAP SECT'!$G$6:$FJ$253,12,FALSE) -> 5 | N26: =VLOOKUP($C26,'RECAP SECT'!$G$6:$FJ$253,13,FALSE) -> -2.59 | O26: =VLOOKUP($C26,'RECAP SECT'!$G$6:$FJ$253,14,FALSE) -> -0.39 | P26: =VLOOKUP($C26,'RECAP SECT'!$G$6:$FJ$253,15,FALSE) -> 82% | Q26: =VLOOKUP($C26,'RECAP SECT'!$G$6:$FJ$253,16,FALSE) -> 9 | R26: =VLOOKUP($C26,'RECAP SECT'!$G$6:$FJ$253,17,FALSE) -> 0% | S26: =VLOOKUP($C26,'RECAP SECT'!$G$6:$FJ$253,18,FALSE) -> 0% | T26: =VLOOKUP($C26,'RECAP SECT'!$G$6:$FJ$253,19,FALSE) -> 91% | U26: =VLOOKUP($C26,'RECAP SECT'!$G$6:$FJ$253,20,FALSE) -> 11 | V26: =VLOOKUP($C26,'RECAP SECT'!$G$6:$FJ$253,21,FALSE) -> 57% | W26: =VLOOKUP($C26,'RECAP SECT'!$G$6:$FJ$253,22,FALSE) -> 46% | X26: =VLOOKUP($C26,'RECAP SECT'!$G$6:$FJ$253,23,FALSE) -> 8
A27: 80 | B27: VOSGES | C27: 55 | D27: SAINT DIE | E27: =VLOOKUP($C27,'RECAP SECT'!$G$6:$FJ$253,3,FALSE) -> 48.1 | F27: =VLOOKUP($C27,'RECAP SECT'!$G$6:$FJ$253,5,FALSE) -> -2.02 | G27: =VLOOKUP($C27,'RECAP SECT'!$G$6:$FJ$253,6,FALSE) -> -1.01 | H27: =VLOOKUP($C27,'RECAP SECT'!$G$6:$FJ$253,7,FALSE) -> 81% | I27: =VLOOKUP($C27,'RECAP SECT'!$G$6:$FJ$253,8,FALSE) -> 15 | J27: =VLOOKUP($C27,'RECAP SECT'!$G$6:$FJ$253,9,FALSE) -> 0.44 | K27: =VLOOKUP($C27,'RECAP SECT'!$G$6:$FJ$253,10,FALSE) -> 0.31 | L27: =VLOOKUP($C27,'RECAP SECT'!$G$6:$FJ$253,11,FALSE) -> 69% | M27: =VLOOKUP($C27,'RECAP SECT'!$G$6:$FJ$253,12,FALSE) -> 14 | N27: =VLOOKUP($C27,'RECAP SECT'!$G$6:$FJ$253,13,FALSE) -> -3.10 | O27: =VLOOKUP($C27,'RECAP SECT'!$G$6:$FJ$253,14,FALSE) -> -0.46 | P27: =VLOOKUP($C27,'RECAP SECT'!$G$6:$FJ$253,15,FALSE) -> 106% | Q27: =VLOOKUP($C27,'RECAP SECT'!$G$6:$FJ$253,16,FALSE) -> 14 | R27: =VLOOKUP($C27,'RECAP SECT'!$G$6:$FJ$253,17,FALSE) -> 2% | S27: =VLOOKUP($C27,'RECAP SECT'!$G$6:$FJ$253,18,FALSE) -> 5% | T27: =VLOOKUP($C27,'RECAP SECT'!$G$6:$FJ$253,19,FALSE) -> 80% | U27: =VLOOKUP($C27,'RECAP SECT'!$G$6:$FJ$253,20,FALSE) -> 9 | V27: =VLOOKUP($C27,'RECAP SECT'!$G$6:$FJ$253,21,FALSE) -> 82% | W27: =VLOOKUP($C27,'RECAP SECT'!$G$6:$FJ$253,22,FALSE) -> 71% | X27: =VLOOKUP($C27,'RECAP SECT'!$G$6:$FJ$253,23,FALSE) -> 16
A28: Total CEGEE Directions Régionales | E28: =SUM(E10:E27) -> 1140

Sheet SE_ACCELER
B1: Accueil | F1: BAROMETRE BDD - TERRITOIRES
F2: ACCELERATEURS DE PNB
F3: =ACCUEIL!F7 -> 2020-05-24
F7: Ventes brutes SED finalisées | J7: Clients Equipés E documents | N7: Economie Opt'in | R7: Remises Commerciales | V7: Total Accélérateurs PNB
H8: coef | I8: ='RECAP DIRCOM'!EE4 -> 6% | L8: coef | M8: ='RECAP DIRCOM'!EI4 -> 3% | P8: coef | Q8: ='RECAP DIRCOM'!EM4 -> 3% | T8: coef | U8: ='RECAP DIRCOM'!EQ4 -> 3% | W8: coef | X8: ='RECAP DIRCOM'!ET4 -> 15%
B9: Direction | C9: eds | D9: Territoire | E9: ETP perf | F9: Nb / ETP | G9: PNB / ETP | H9: % Ecart au 1er | I9: Rang | J9: Nb / ETP | K9: PNB / ETP | L9: % Ecart au 1er | M9: Rang | N9: Nb / ETP | O9: PNB / ETP | P9: % Ecart au 1er | Q9: Rang | R9: Rem / ETP | S9: PNB / ETP | T9: % Ecart au 1er | U9: Rang | V9: Moyenne ecart au 1er | W9: % Ecart au 1er | X9: Rang CEGEE
A10: 50 | B10: AUBE HAUTE MARNE | C10: 21 | D10: CHAUMONT | E10: =VLOOKUP($C10,'RECAP SECT'!$G$6:$FJ$253,3,FALSE) -> 34.6 | F10: =VLOOKUP($C10,'RECAP SECT'!$G$6:$FJ$253,126,FALSE) -> 23.54 | G10: =VLOOKUP($C10,'RECAP SECT'!$G$6:$FJ$253,127,FALSE) -> 0.24 | H10: =VLOOKUP($C10,'RECAP SECT'!$G$6:$FJ$253,128,FALSE) -> 29% | I10: =VLOOKUP($C10,'RECAP SECT'!$G$6:$FJ$253,129,FALSE) -> 7 | J10: =VLOOKUP($C10,'RECAP SECT'!$G$6:$FJ$253,130,FALSE) -> 9.66 | K10: =VLOOKUP($C10,'RECAP SECT'!$G$6:$FJ$253,131,FALSE) -> 0.48 | L10: =VLOOKUP($C10,'RECAP SECT'!$G$6:$FJ$253,132,FALSE) -> 42% | M10: =VLOOKUP($C10,'RECAP SECT'!$G$6:$FJ$253,133,FALSE) -> 14 | N10: =VLOOKUP($C10,'RECAP SECT'!$G$6:$FJ$253,134,FALSE) -> 9.00 | O10: =VLOOKUP($C10,'RECAP SECT'!$G$6:$FJ$253,135,FALSE) -> 0.13 | P10: =VLOOKUP($C10,'RECAP SECT'!$G$6:$FJ$253,136,FALSE) -> 72% | Q10: =VLOOKUP($C10,'RECAP SECT'!$G$6:$FJ$253,137,FALSE) -> 12 | R10: =VLOOKUP($C10,'RECAP SECT'!$G$6:$FJ$253,138,FALSE) -> -28.31 | S10: =VLOOKUP($C10,'RECAP SECT'!$G$6:$FJ$253,139,FALSE) -> -0.82 | T10: =VLOOKUP($C10,'RECAP SECT'!$G$6:$FJ$253,140,FALSE) -> 9% | U10: =VLOOKUP($C10,'RECAP SECT'!$G$6:$FJ$253,141,FALSE) -> 3 | V10: =VLOOKUP($C10,'RECAP SECT'!$G$6:$FJ$253,142,FALSE) -> 36% | W10: =VLOOKUP($C10,'RECAP SECT'!$G$6:$FJ$253,143,FALSE) -> 21% | X10: =VLOOKUP($C10,'RECAP SECT'!$G$6:$FJ$253,144,FALSE) -> 6
A11: 50 | B11: AUBE HAUTE MARNE | C11: 14 | D11: TROYES | E11: =VLOOKUP($C11,'RECAP SECT'!$G$6:$FJ$253,3,FALSE) -> 65.2 | F11: =VLOOKUP($C11,'RECAP SECT'!$G$6:$FJ$253,126,FALSE) -> 17.20 | G11: =VLOOKUP($C11,'RECAP SECT'!$G$6:$FJ$253,127,FALSE) -> 0.17 | H11: =VLOOKUP($C11,'RECAP SECT'!$G$6:$FJ$253,128,FALSE) -> 48% | I11: =VLOOKUP($C11,'RECAP SECT'!$G$6:$FJ$253,129,FALSE) -> 15 | J11: =VLOOKUP($C11,'RECAP SECT'!$G$6:$FJ$253,130,FALSE) -> 12.30 | K11: =VLOOKUP($C11,'RECAP SECT'!$G$6:$FJ$253,131,FALSE) -> 0.62 | L11: =VLOOKUP($C11,'RECAP SECT'!$G$6:$FJ$253,132,FALSE) -> 26% | M11: =VLOOKUP($C11,'RECAP SECT'!$G$6:$FJ$253,133,FALSE) -> 7 | N11: =VLOOKUP($C11,'RECAP SECT'!$G$6:$FJ$253,134,FALSE) -> 16.83 | O11: =VLOOKUP($C11,'RECAP SECT'!$G$6:$FJ$253,135,FALSE) -> 0.25 | P11: =VLOOKUP($C11,'RECAP SECT'!$G$6:$FJ$253,136,FALSE) -> 48% | Q11: =VLOOKUP($C11,'RECAP SECT'!$G$6:$FJ$253,137,FALSE) -> 3 | R11: =VLOOKUP($C11,'RECAP SECT'!$G$6:$FJ$253,138,FALSE) -> -71.76 | S11: =VLOOKUP($C11,'RECAP SECT'!$G$6:$FJ$253,139,FALSE) -> -1.10 | T11: =VLOOKUP($C11,'RECAP SECT'!$G$6:$FJ$253,140,FALSE) -> 47% | U11: =VLOOKUP($C11,'RECAP SECT'!$G$6:$FJ$253,141,FALSE) -> 7 | V11: =VLOOKUP($C11,'RECAP SECT'!$G$6:$FJ$253,142,FALSE) -> 44% | W11: =VLOOKUP($C11,'RECAP SECT'!$G$6:$FJ$253,143,FALSE) -> 28% | X11: =VLOOKUP($C11,'RECAP SECT'!$G$6:$FJ$253,144,FALSE) -> 9
A12: 262 | B12: BAS-RHIN | C12: 5060 | D12: HAGUENAU | E12: =VLOOKUP($C12,'RECAP SECT'!$G$6:$FJ$253,3,FALSE) -> 75.3 | F12: =VLOOKUP($C12,'RECAP SECT'!$G$6:$FJ$253,126,FALSE) -> 20.46 | G12: =VLOOKUP($C12,'RECAP SECT'!$G$6:$FJ$253,127,FALSE) -> 0.20 | H12: =VLOOKUP($C12,'RECAP SECT'!$G$6:$FJ$253,128,FALSE) -> 38% | I12: =VLOOKUP($C12,'RECAP SECT'!$G$6:$FJ$253,129,FALSE) -> 10 | J12: =VLOOKUP($C12,'RECAP SECT'!$G$6:$FJ$253,130,FALSE) -> 9.37 | K12: =VLOOKUP($C12,'RECAP SECT'!$G$6:$FJ$253,131,FALSE) -> 0.47 | L12: =VLOOKUP($C12,'RECAP SECT'!$G$6:$FJ$253,132,FALSE) -> 44% | M12: =VLOOKUP($C12,'RECAP SECT'!$G$6:$FJ$253,133,FALSE) -> 15 | N12: =VLOOKUP($C12,'RECAP SECT'!$G$6:$FJ$253,134,FALSE) -> 16.99 | O12: =VLOOKUP($C12,'RECAP SECT'!$G$6:$FJ$253,135,FALSE) -> 0.25 | P12: =VLOOKUP($C12,'RECAP SECT'!$G$6:$FJ$253,136,FALSE) -> 48% | Q12: =VLOOKUP($C12,'RECAP SECT'!$G$6:$FJ$253,137,FALSE) -> 2 | R12: =VLOOKUP($C12,'RECAP SECT'!$G$6:$FJ$253,138,FALSE) -> -80.76 | S12: =VLOOKUP($C12,'RECAP SECT'!$G$6:$FJ$253,139,FALSE) -> -1.07 | T12: =VLOOKUP($C12,'RECAP SECT'!$G$6:$FJ$253,140,FALSE) -> 43% | U12: =VLOOKUP($C12,'RECAP SECT'!$G$6:$FJ$253,141,FALSE) -> 6 | V12: =VLOOKUP($C12,'RECAP SECT'!$G$6:$FJ$253,142,FALSE) -> 42% | W12: =VLOOKUP($C12,'RECAP SECT'!$G$6:$FJ$253,143,FALSE) -> 27% | X12: =VLOOKUP($C12,'RECAP SECT'!$G$6:$FJ$253,144,FALSE) -> 8
A13: 262 | B13: BAS-RHIN | C13: 5101 | D13: SELESTAT | E13: =VLOOKUP($C13,'RECAP SECT'!$G$6:$FJ$253,3,FALSE) -> 62.3 | F13: =VLOOKUP($C13,'RECAP SECT'!$G$6:$FJ$253,126,FALSE) -> 18.03 | G13: =VLOOKUP($C13,'RECAP SECT'!$G$6:$FJ$253,127,FALSE) -> 0.18 | H13: =VLOOKUP($C13,'RECAP SECT'!$G$6:$FJ$253,128,FALSE) -> 45% | I13: =VLOOKUP($C13,'RECAP SECT'!$G$6:$FJ$253,129,FALSE) -> 13 | J13: =VLOOKUP($C13,'RECAP SECT'!$G$6:$FJ$253,130,FALSE) -> 10.81 | K13: =VLOOKUP($C13,'RECAP SECT'!$G$6:$FJ$253,131,FALSE) -> 0.54 | L13: =VLOOKUP($C13,'RECAP SECT'!$G$6:$FJ$253,132,FALSE) -> 35% | M13: =VLOOKUP($C13,'RECAP SECT'!$G$6:$FJ$253,133,FALSE) -> 12 | N13: =VLOOKUP($C13,'RECAP SECT'!$G$6:$FJ$253,134,FALSE) -> 14.70 | O13: =VLOOKUP($C13,'RECAP SECT'!$G$6:$FJ$253,135,FALSE) -> 0.22 | P13: =VLOOKUP($C13,'RECAP SECT'!$G$6:$FJ$253,136,FALSE) -> 55% | Q13: =VLOOKUP($C13,'RECAP SECT'!$G$6:$FJ$253,137,FALSE) -> 5 | R13: =VLOOKUP($C13,'RECAP SECT'!$G$6:$FJ$253,138,FALSE) -> -74.91 | S13: =VLOOKUP($C13,'RECAP SECT'!$G$6:$FJ$253,139,FALSE) -> -1.20 | T13: =VLOOKUP($C13,'RECAP SECT'!$G$6:$FJ$253,140,FALSE) -> 61% | U13: =VLOOKUP($C13,'RECAP SECT'!$G$6:$FJ$253,141,FALSE) -> 10 | V13: =VLOOKUP($C13,'RECAP SECT'!$G$6:$FJ$253,142,FALSE) -> 48% | W13: =VLOOKUP($C13,'RECAP SECT'!$G$6:$FJ$253,143,FALSE) -> 33% | X13: =VLOOKUP($C13,'RECAP SECT'!$G$6:$FJ$253,144,FALSE) -> 11
A14: 262 | B14: BAS-RHIN | C14: 5006 | D14: STRASBOURG | E14: =VLOOKUP($C14,'RECAP SECT'!$G$6:$FJ$253,3,FALSE) -> 74.4 | F14: =VLOOKUP($C14,'RECAP SECT'!$G$6:$FJ$253,126,FALSE) -> 23.98 | G14: =VLOOKUP($C14,'RECAP SECT'!$G$6:$FJ$253,127,FALSE) -> 0.24 | H14: =VLOOKUP($C14,'RECAP SECT'!$G$6:$FJ$253,128,FALSE) -> 27% | I14: =VLOOKUP($C14,'RECAP SECT'!$G$6:$FJ$253,129,FALSE) -> 6 | J14: =VLOOKUP($C14,'RECAP SECT'!$G$6:$FJ$253,130,FALSE) -> 16.73 | K14: =VLOOKUP($C14,'RECAP SECT'!$G$6:$FJ$253,131,FALSE) -> 0.84 | L14: =VLOOKUP($C14,'RECAP SECT'!$G$6:$FJ$253,132,FALSE) -> 0% | M14: =VLOOKUP($C14,'RECAP SECT'!$G$6:$FJ$253,133,FALSE) -> 1 | N14: =VLOOKUP($C14,'RECAP SECT'!$G$6:$FJ$253,134,FALSE) -> 32.51 | O14: =VLOOKUP($C14,'RECAP SECT'!$G$6:$FJ$253,135,FALSE) -> 0.49 | P14: =VLOOKUP($C14,'RECAP SECT'!$G$6:$FJ$253,136,FALSE) -> 0% | Q14: =VLOOKUP($C14,'RECAP SECT'!$G$6:$FJ$253,137,FALSE) -> 1 | R14: =VLOOKUP($C14,'RECAP SECT'!$G$6:$FJ$253,138,FALSE) -> -101.36 | S14: =VLOOKUP($C14,'RECAP SECT'!$G$6:$FJ$253,139,FALSE) -> -1.36 | T14: =VLOOKUP($C14,'RECAP SECT'!$G$6:$FJ$253,140,FALSE) -> 82% | U14: =VLOOKUP($C14,'RECAP SECT'!$G$6:$FJ$253,141,FALSE) -> 16 | V14: =VLOOKUP($C14,'RECAP SECT'!$G$6:$FJ$253,142,FALSE) -> 27% | W14: =VLOOKUP($C14,'RECAP SECT'!$G$6:$FJ$253,143,FALSE) -> 12% | X14: =VLOOKUP($C14,'RECAP SECT'!$G$6:$FJ$253,144,FALSE) -> 2
A15: 264 | B15: HAUT-RHIN | C15: 5130 | D15: COLMAR | E15: =VLOOKUP($C15,'RECAP SECT'!$G$6:$FJ$253,3,FALSE) -> 64.7 | F15: =VLOOKUP($C15,'RECAP SECT'!$G$6:$FJ$253,126,FALSE) -> 16.41 | G15: =VLOOKUP($C15,'RECAP SECT'!$G$6:$FJ$253,127,FALSE) -> 0.16 | H15: =VLOOKUP($C15,'RECAP SECT'!$G$6:$FJ$253,128,FALSE) -> 50% | I15: =VLOOKUP($C15,'RECAP SECT'!$G$6:$FJ$253,129,FALSE) -> 16 | J15: =VLOOKUP($C15,'RECAP SECT'!$G$6:$FJ$253,130,FALSE) -> 10.04 | K15: =VLOOKUP($C15,'RECAP SECT'!$G$6:$FJ$253,131,FALSE) -> 0.50 | L15: =VLOOKUP($C15,'RECAP SECT'!$G$6:$FJ$253,132,FALSE) -> 40% | M15: =VLOOKUP($C15,'RECAP SECT'!$G$6:$FJ$253,133,FALSE) -> 13 | N15: =VLOOKUP($C15,'RECAP SECT'!$G$6:$FJ$253,134,FALSE) -> 9.69 | O15: =VLOOKUP($C15,'RECAP SECT'!$G$6:$FJ$253,135,FALSE) -> 0.15 | P15: =VLOOKUP($C15,'RECAP SECT'!$G$6:$FJ$253,136,FALSE) -> 70% | Q15: =VLOOKUP($C15,'RECAP SECT'!$G$6:$FJ$253,137,FALSE) -> 10 | R15: =VLOOKUP($C15,'RECAP SECT'!$G$6:$FJ$253,138,FALSE) -> -84.27 | S15: =VLOOKUP($C15,'RECAP SECT'!$G$6:$FJ$253,139,FALSE) -> -1.30 | T15: =VLOOKUP($C15,'RECAP SECT'!$G$6:$FJ$253,140,FALSE) -> 74% | U15: =VLOOKUP($C15,'RECAP SECT'!$G$6:$FJ$253,141,FALSE) -> 15 | V15: =VLOOKUP($C15,'RECAP SECT'!$G$6:$FJ$253,142,FALSE) -> 57% | W15: =VLOOKUP($C15,'RECAP SECT'!$G$6:$FJ$253,143,FALSE) -> 42% | X15: =VLOOKUP($C15,'RECAP SECT'!$G$6:$FJ$253,144,FALSE) -> 16
A16: 264 | B16: HAUT-RHIN | C16: 5169 | D16: MULHOUSE | E16: =VLOOKUP($C16,'RECAP SECT'!$G$6:$FJ$253,3,FALSE) -> 61.6 | F16: =VLOOKUP($C16,'RECAP SECT'!$G$6:$FJ$253,126,FALSE) -> 13.18 | G16: =VLOOKUP($C16,'RECAP SECT'!$G$6:$FJ$253,127,FALSE) -> 0.13 | H16: =VLOOKUP($C16,'RECAP SECT'!$G$6:$FJ$253,128,FALSE) -> 60% | I16: =VLOOKUP($C16,'RECAP SECT'!$G$6:$FJ$253,129,FALSE) -> 18 | J16: =VLOOKUP($C16,'RECAP SECT'!$G$6:$FJ$253,130,FALSE) -> 10.89 | K16: =VLOOKUP($C16,'RECAP SECT'!$G$6:$FJ$253,131,FALSE) -> 0.54 | L16: =VLOOKUP($C16,'RECAP SECT'!$G$6:$FJ$253,132,FALSE) -> 35% | M16: =VLOOKUP($C16,'RECAP SECT'!$G$6:$FJ$253,133,FALSE) -> 11 | N16: =VLOOKUP($C16,'RECAP SECT'!$G$6:$FJ$253,134,FALSE) -> 6.77 | O16: =VLOOKUP($C16,'RECAP SECT'!$G$6:$FJ$253,135,FALSE) -> 0.10 | P16: =VLOOKUP($C16,'RECAP SECT'!$G$6:$FJ$253,136,FALSE) -> 79% | Q16: =VLOOKUP($C16,'RECAP SECT'!$G$6:$FJ$253,137,FALSE) -> 15 | R16: =VLOOKUP($C16,'RECAP SECT'!$G$6:$FJ$253,138,FALSE) -> -77.43 | S16: =VLOOKUP($C16,'RECAP SECT'!$G$6:$FJ$253,139,FALSE) -> -1.26 | T16: =VLOOKUP($C16,'RECAP SECT'!$G$6:$FJ$253,140,FALSE) -> 68% | U16: =VLOOKUP($C16,'RECAP SECT'!$G$6:$FJ$253,141,FALSE) -> 13 | V16: =VLOOKUP($C16,'RECAP SECT'!$G$6:$FJ$253,142,FALSE) -> 60% | W16: =VLOOKUP($C16,'RECAP SECT'!$G$6:$FJ$253,143,FALSE) -> 45% | X16: =VLOOKUP($C16,'RECAP SECT'!$G$6:$FJ$253,144,FALSE) -> 17
A17: 30 | B17: MARNE-ARDENNES | C17: 6 | D17: CHALONS EN CHAMPAGNE | E17: =VLOOKUP($C17,'RECAP SECT'!$G$6:$FJ$253,3,FALSE) -> 44.9 | F17: =VLOOKUP($C17,'RECAP SECT'!$G$6:$FJ$253,126,FALSE) -> 23.05 | G17: =VLOOKUP($C17,'RECAP SECT'!$G$6:$FJ$253,127,FALSE) -> 0.23 | H17: =VLOOKUP($C17,'RECAP SECT'!$G$6:$FJ$253,128,FALSE) -> 30% | I17: =VLOOKUP($C17,'RECAP SECT'!$G$6:$FJ$253,129,FALSE) -> 8 | J17: =VLOOKUP($C17,'RECAP SECT'!$G$6:$FJ$253,130,FALSE) -> 13.17 | K17: =VLOOKUP($C17,'RECAP SECT'!$G$6:$FJ$253,131,FALSE) -> 0.66 | L17: =VLOOKUP($C17,'RECAP SECT'!$G$6:$FJ$253,132,FALSE) -> 21% | M17: =VLOOKUP($C17,'RECAP SECT'!$G$6:$FJ$253,133,FALSE) -> 6 | N17: =VLOOKUP($C17,'RECAP SECT'!$G$6:$FJ$253,134,FALSE) -> 10.35 | O17: =VLOOKUP($C17,'RECAP SECT'!$G$6:$FJ$253,135,FALSE) -> 0.16 | P17: =VLOOKUP($C17,'RECAP SECT'!$G$6:$FJ$253,136,FALSE) -> 68% | Q17: =VLOOKUP($C17,'RECAP SECT'!$G$6:$FJ$253,137,FALSE) -> 9 | R17: =VLOOKUP($C17,'RECAP SECT'!$G$6:$FJ$253,138,FALSE) -> -35.85 | S17: =VLOOKUP($C17,'RECAP SECT'!$G$6:$FJ$253,139,FALSE) -> -0.80 | T17: =VLOOKUP($C17,'RECAP SECT'!$G$6:$FJ$253,140,FALSE) -> 7% | U17: =VLOOKUP($C17,'RECAP SECT'!$G$6:$FJ$253,141,FALSE) -> 2 | V17: =VLOOKUP($C17,'RECAP SECT'!$G$6:$FJ$253,142,FALSE) -> 31% | W17: =VLOOKUP($C17,'RECAP SECT'!$G$6:$FJ$253,143,FALSE) -> 16% | X17: =VLOOKUP($C17,'RECAP SECT'!$G$6:$FJ$253,144,FALSE) -> 5
A18: 30 | B18: MARNE-ARDENNES | C18: 2 | D18: CHARLEVILLE MEZIERES | E18: =VLOOKUP($C18,'RECAP SECT'!$G$6:$FJ$253,3,FALSE) -> 54.9 | F18: =VLOOKUP($C18,'RECAP SECT'!$G$6:$FJ$253,126,FALSE) -> 31.70 | G18: =VLOOKUP($C18,'RECAP SECT'!$G$6:$FJ$253,127,FALSE) -> 0.32 | H18: =VLOOKUP($C18,'RECAP SECT'!$G$6:$FJ$253,128,FALSE) -> 4% | I18: =VLOOKUP($C18,'RECAP SECT'!$G$6:$FJ$253,129,FALSE) -> 2 | J18: =VLOOKUP($C18,'RECAP SECT'!$G$6:$FJ$253,130,FALSE) -> 15.50 | K18: =VLOOKUP($C18,'RECAP SECT'!$G$6:$FJ$253,131,FALSE) -> 0.78 | L18: =VLOOKUP($C18,'RECAP SECT'!$G$6:$FJ$253,132,FALSE) -> 7% | M18: =VLOOKUP($C18,'RECAP SECT'!$G$6:$FJ$253,133,FALSE) -> 2 | N18: =VLOOKUP($C18,'RECAP SECT'!$G$6:$FJ$253,134,FALSE) -> 12.83 | O18: =VLOOKUP($C18,'RECAP SECT'!$G$6:$FJ$253,135,FALSE) -> 0.19 | P18: =VLOOKUP($C18,'RECAP SECT'!$G$6:$FJ$253,136,FALSE) -> 61% | Q18: =VLOOKUP($C18,'RECAP SECT'!$G$6:$FJ$253,137,FALSE) -> 6 | R18: =VLOOKUP($C18,'RECAP SECT'!$G$6:$FJ$253,138,FALSE) -> -41.05 | S18: =VLOOKUP($C18,'RECAP SECT'!$G$6:$FJ$253,139,FALSE) -> -0.75 | T18: =VLOOKUP($C18,'RECAP SECT'!$G$6:$FJ$253,140,FALSE) -> 0% | U18: =VLOOKUP($C18,'RECAP SECT'!$G$6:$FJ$253,141,FALSE) -> 1 | V18: =VLOOKUP($C18,'RECAP SECT'!$G$6:$FJ$253,142,FALSE) -> 15% | W18: =VLOOKUP($C18,'RECAP SECT'!$G$6:$FJ$253,143,FALSE) -> 0% | X18: =VLOOKUP($C18,'RECAP SECT'!$G$6:$FJ$253,144,FALSE) -> 1
A19: 30 | B19: MARNE-ARDENNES | C19: 11 | D19: REIMS | E19: =VLOOKUP($C19,'RECAP SECT'!$G$6:$FJ$253,3,FALSE) -> 78.2 | F19: =VLOOKUP($C19,'RECAP SECT'!$G$6:$FJ$253,126,FALSE) -> 25.11 | G19: =VLOOKUP($C19,'RECAP SECT'!$G$6:$FJ$253,127,FALSE) -> 0.25 | H19: =VLOOKUP($C19,'RECAP SECT'!$G$6:$FJ$253,128,FALSE) -> 24% | I19: =VLOOKUP($C19,'RECAP SECT'!$G$6:$FJ$253,129,FALSE) -> 5 | J19: =VLOOKUP($C19,'RECAP SECT'!$G$6:$FJ$253,130,FALSE) -> 14.50 | K19: =VLOOKUP($C19,'RECAP SECT'!$G$6:$FJ$253,131,FALSE) -> 0.72 | L19: =VLOOKUP($C19,'RECAP SECT'!$G$6:$FJ$253,132,FALSE) -> 13% | M19: =VLOOKUP($C19,'RECAP SECT'!$G$6:$FJ$253,133,FALSE) -> 5 | N19: =VLOOKUP($C19,'RECAP SECT'!$G$6:$FJ$253,134,FALSE) -> 4.65 | O19: =VLOOKUP($C19,'RECAP SECT'!$G$6:$FJ$253,135,FALSE) -> 0.07 | P19: =VLOOKUP($C19,'RECAP SECT'!$G$6:$FJ$253,136,FALSE) -> 86% | Q19: =VLOOKUP($C19,'RECAP SECT'!$G$6:$FJ$253,137,FALSE) -> 16 | R19: =VLOOKUP($C19,'RECAP SECT'!$G$6:$FJ$253,138,FALSE) -> -114.56 | S19: =VLOOKUP($C19,'RECAP SECT'!$G$6:$FJ$253,139,FALSE) -> -1.46 | T19: =VLOOKUP($C19,'RECAP SECT'!$G$6:$FJ$253,140,FALSE) -> 96% | U19: =VLOOKUP($C19,'RECAP SECT'!$G$6:$FJ$253,141,FALSE) -> 18 | V19: =VLOOKUP($C19,'RECAP SECT'!$G$6:$FJ$253,142,FALSE) -> 49% | W19: =VLOOKUP($C19,'RECAP SECT'!$G$6:$FJ$253,143,FALSE) -> 33% | X19: =VLOOKUP($C19,'RECAP SECT'!$G$6:$FJ$253,144,FALSE) -> 12
A20: 110 | B20: MEURTHE ET MOSELLE MEUSE | C20: 26 | D20: NANCY | E20: =VLOOKUP($C20,'RECAP SECT'!$G$6:$FJ$253,3,FALSE) -> 63.5 | F20: =VLOOKUP($C20,'RECAP SECT'!$G$6:$FJ$253,126,FALSE) -> 32.98 | G20: =VLOOKUP($C20,'RECAP SECT'!$G$6:$FJ$253,127,FALSE) -> 0.33 | H20: =VLOOKUP($C20,'RECAP SECT'!$G$6:$FJ$253,128,FALSE) -> 0% | I20: =VLOOKUP($C20,'RECAP SECT'!$G$6:$FJ$253,129,FALSE) -> 1 | J20: =VLOOKUP($C20,'RECAP SECT'!$G$6:$FJ$253,130,FALSE) -> 14.74 | K20: =VLOOKUP($C20,'RECAP SECT'!$G$6:$FJ$253,131,FALSE) -> 0.74 | L20: =VLOOKUP($C20,'RECAP SECT'!$G$6:$FJ$253,132,FALSE) -> 12% | M20: =VLOOKUP($C20,'RECAP SECT'!$G$6:$FJ$253,133,FALSE) -> 4 | N20: =VLOOKUP($C20,'RECAP SECT'!$G$6:$FJ$253,134,FALSE) -> 15.15 | O20: =VLOOKUP($C20,'RECAP SECT'!$G$6:$FJ$253,135,FALSE) -> 0.23 | P20: =VLOOKUP($C20,'RECAP SECT'!$G$6:$FJ$253,136,FALSE) -> 53% | Q20: =VLOOKUP($C20,'RECAP SECT'!$G$6:$FJ$253,137,FALSE) -> 4 | R20: =VLOOKUP($C20,'RECAP SECT'!$G$6:$FJ$253,138,FALSE) -> -87.33 | S20: =VLOOKUP($C20,'RECAP SECT'!$G$6:$FJ$253,139,FALSE) -> -1.38 | T20: =VLOOKUP($C20,'RECAP SECT'!$G$6:$FJ$253,140,FALSE) -> 84% | U20: =VLOOKUP($C20,'RECAP SECT'!$G$6:$FJ$253,141,FALSE) -> 17 | V20: =VLOOKUP($C20,'RECAP SECT'!$G$6:$FJ$253,142,FALSE) -> 30% | W20: =VLOOKUP($C20,'RECAP SECT'!$G$6:$FJ$253,143,FALSE) -> 15% | X20: =VLOOKUP($C20,'RECAP SECT'!$G$6:$FJ$253,144,FALSE) -> 4
A21: 110 | B21: MEURTHE ET MOSELLE MEUSE | C21: 27 | D21: PONT A MOUSSON | E21: =VLOOKUP($C21,'RECAP SECT'!$G$6:$FJ$253,3,FALSE) -> 72.4 | F21: =VLOOKUP($C21,'RECAP SECT'!$G$6:$FJ$253,126,FALSE) -> 29.64 | G21: =VLOOKUP($C21,'RECAP SECT'!$G$6:$FJ$253,127,FALSE) -> 0.30 | H21: =VLOOKUP($C21,'RECAP SECT'!$G$6:$FJ$253,128,FALSE) -> 10% | I21: =VLOOKUP($C21,'RECAP SECT'!$G$6:$FJ$253,129,FALSE) -> 3 | J21: =VLOOKUP($C21,'RECAP SECT'!$G$6:$FJ$253,130,FALSE) -> 15.02 | K21: =VLOOKUP($C21,'RECAP SECT'!$G$6:$FJ$253,131,FALSE) -> 0.75 | L21: =VLOOKUP($C21,'RECAP SECT'!$G$6:$FJ$253,132,FALSE) -> 10% | M21: =VLOOKUP($C21,'RECAP SECT'!$G$6:$FJ$253,133,FALSE) -> 3 | N21: =VLOOKUP($C21,'RECAP SECT'!$G$6:$FJ$253,134,FALSE) -> 11.24 | O21: =VLOOKUP($C21,'RECAP SECT'!$G$6:$FJ$253,135,FALSE) -> 0.17 | P21: =VLOOKUP($C21,'RECAP SECT'!$G$6:$FJ$253,136,FALSE) -> 65% | Q21: =VLOOKUP($C21,'RECAP SECT'!$G$6:$FJ$253,137,FALSE) -> 7 | R21: =VLOOKUP($C21,'RECAP SECT'!$G$6:$FJ$253,138,FALSE) -> -81.45 | S21: =VLOOKUP($C21,'RECAP SECT'!$G$6:$FJ$253,139,FALSE) -> -1.12 | T21: =VLOOKUP($C21,'RECAP SECT'!$G$6:$FJ$253,140,FALSE) -> 50% | U21: =VLOOKUP($C21,'RECAP SECT'!$G$6:$FJ$253,141,FALSE) -> 8 | V21: =VLOOKUP($C21,'RECAP SECT'!$G$6:$FJ$253,142,FALSE) -> 29% | W21: =VLOOKUP($C21,'RECAP SECT'!$G$6:$FJ$253,143,FALSE) -> 14% | X21: =VLOOKUP($C21,'RECAP SECT'!$G$6:$FJ$253,144,FALSE) -> 3
A22: 110 | B22: MEURTHE ET MOSELLE MEUSE | C22: 31 | D22: VERDUN | E22: =VLOOKUP($C22,'RECAP SECT'!$G$6:$FJ$253,3,FALSE) -> 51.9 | F22: =VLOOKUP($C22,'RECAP SECT'!$G$6:$FJ$253,126,FALSE) -> 17.58 | G22: =VLOOKUP($C22,'RECAP SECT'!$G$6:$FJ$253,127,FALSE) -> 0.18 | H22: =VLOOKUP($C22,'RECAP SECT'!$G$6:$FJ$253,128,FALSE) -> 47% | I22: =VLOOKUP($C22,'RECAP SECT'!$G$6:$FJ$253,129,FALSE) -> 14 | J22: =VLOOKUP($C22,'RECAP SECT'!$G$6:$FJ$253,130,FALSE) -> 11.66 | K22: =VLOOKUP($C22,'RECAP SECT'!$G$6:$FJ$253,131,FALSE) -> 0.58 | L22: =VLOOKUP($C22,'RECAP SECT'!$G$6:$FJ$253,132,FALSE) -> 30% | M22: =VLOOKUP($C22,'RECAP SECT'!$G$6:$FJ$253,133,FALSE) -> 9 | N22: =VLOOKUP($C22,'RECAP SECT'!$G$6:$FJ$253,134,FALSE) -> 10.91 | O22: =VLOOKUP($C22,'RECAP SECT'!$G$6:$FJ$253,135,FALSE) -> 0.16 | P22: =VLOOKUP($C22,'RECAP SECT'!$G$6:$FJ$253,136,FALSE) -> 66% | Q22: =VLOOKUP($C22,'RECAP SECT'!$G$6:$FJ$253,137,FALSE) -> 8 | R22: =VLOOKUP($C22,'RECAP SECT'!$G$6:$FJ$253,138,FALSE) -> -60.61 | S22: =VLOOKUP($C22,'RECAP SECT'!$G$6:$FJ$253,139,FALSE) -> -1.17 | T22: =VLOOKUP($C22,'RECAP SECT'!$G$6:$FJ$253,140,FALSE) -> 56% | U22: =VLOOKUP($C22,'RECAP SECT'!$G$6:$FJ$253,141,FALSE) -> 9 | V22: =VLOOKUP($C22,'RECAP SECT'!$G$6:$FJ$253,142,FALSE) -> 49% | W22: =VLOOKUP($C22,'RECAP SECT'!$G$6:$FJ$253,143,FALSE) -> 34% | X22: =VLOOKUP($C22,'RECAP SECT'!$G$6:$FJ$253,144,FALSE) -> 13
A23: 160 | B23: MOSELLE | C23: 45 | D23: METZ | E23: =VLOOKUP($C23,'RECAP SECT'!$G$6:$FJ$253,3,FALSE) -> 86.5 | F23: =VLOOKUP($C23,'RECAP SECT'!$G$6:$FJ$253,126,FALSE) -> 25.22 | G23: =VLOOKUP($C23,'RECAP SECT'!$G$6:$FJ$253,127,FALSE) -> 0.25 | H23: =VLOOKUP($C23,'RECAP SECT'!$G$6:$FJ$253,128,FALSE) -> 24% | I23: =VLOOKUP($C23,'RECAP SECT'!$G$6:$FJ$253,129,FALSE) -> 4 | J23: =VLOOKUP($C23,'RECAP SECT'!$G$6:$FJ$253,130,FALSE) -> 11.99 | K23: =VLOOKUP($C23,'RECAP SECT'!$G$6:$FJ$253,131,FALSE) -> 0.60 | L23: =VLOOKUP($C23,'RECAP SECT'!$G$6:$FJ$253,132,FALSE) -> 28% | M23: =VLOOKUP($C23,'RECAP SECT'!$G$6:$FJ$253,133,FALSE) -> 8 | N23: =VLOOKUP($C23,'RECAP SECT'!$G$6:$FJ$253,134,FALSE) -> 3.66 | O23: =VLOOKUP($C23,'RECAP SECT'!$G$6:$FJ$253,135,FALSE) -> 0.05 | P23: =VLOOKUP($C23,'RECAP SECT'!$G$6:$FJ$253,136,FALSE) -> 89% | Q23: =VLOOKUP($C23,'RECAP SECT'!$G$6:$FJ$253,137,FALSE) -> 17 | R23: =VLOOKUP($C23,'RECAP SECT'!$G$6:$FJ$253,138,FALSE) -> -108.51 | S23: =VLOOKUP($C23,'RECAP SECT'!$G$6:$FJ$253,139,FALSE) -> -1.25 | T23: =VLOOKUP($C23,'RECAP SECT'!$G$6:$FJ$253,140,FALSE) -> 68% | U23: =VLOOKUP($C23,'RECAP SECT'!$G$6:$FJ$253,141,FALSE) -> 12 | V23: =VLOOKUP($C23,'RECAP SECT'!$G$6:$FJ$253,142,FALSE) -> 46% | W23: =VLOOKUP($C23,'RECAP SECT'!$G$6:$FJ$253,143,FALSE) -> 31% | X23: =VLOOKUP($C23,'RECAP SECT'!$G$6:$FJ$253,144,FALSE) -> 10
A24: 160 | B24: MOSELLE | C24: 42 | D24: MOSELLE EST | E24: =VLOOKUP($C24,'RECAP SECT'!$G$6:$FJ$253,3,FALSE) -> 72.3 | F24: =VLOOKUP($C24,'RECAP SECT'!$G$6:$FJ$253,126,FALSE) -> 19.76 | G24: =VLOOKUP($C24,'RECAP SECT'!$G$6:$FJ$253,127,FALSE) -> 0.20 | H24: =VLOOKUP($C24,'RECAP SECT'!$G$6:$FJ$253,128,FALSE) -> 40% | I24: =VLOOKUP($C24,'RECAP SECT'!$G$6:$FJ$253,129,FALSE) -> 12 | J24: =VLOOKUP($C24,'RECAP SECT'!$G$6:$FJ$253,130,FALSE) -> 8.92 | K24: =VLOOKUP($C24,'RECAP SECT'!$G$6:$FJ$253,131,FALSE) -> 0.45 | L24: =VLOOKUP($C24,'RECAP SECT'!$G$6:$FJ$253,132,FALSE) -> 47% | M24: =VLOOKUP($C24,'RECAP SECT'!$G$6:$FJ$253,133,FALSE) -> 16 | N24: =VLOOKUP($C24,'RECAP SECT'!$G$6:$FJ$253,134,FALSE) -> 2.99 | O24: =VLOOKUP($C24,'RECAP SECT'!$G$6:$FJ$253,135,FALSE) -> 0.04 | P24: =VLOOKUP($C24,'RECAP SECT'!$G$6:$FJ$253,136,FALSE) -> 91% | Q24: =VLOOKUP($C24,'RECAP SECT'!$G$6:$FJ$253,137,FALSE) -> 18 | R24: =VLOOKUP($C24,'RECAP SECT'!$G$6:$FJ$253,138,FALSE) -> -74.29 | S24: =VLOOKUP($C24,'RECAP SECT'!$G$6:$FJ$253,139,FALSE) -> -1.03 | T24: =VLOOKUP($C24,'RECAP SECT'!$G$6:$FJ$253,140,FALSE) -> 37% | U24: =VLOOKUP($C24,'RECAP SECT'!$G$6:$FJ$253,141,FALSE) -> 5 | V24: =VLOOKUP($C24,'RECAP SECT'!$G$6:$FJ$253,142,FALSE) -> 51% | W24: =VLOOKUP($C24,'RECAP SECT'!$G$6:$FJ$253,143,FALSE) -> 36% | X24: =VLOOKUP($C24,'RECAP SECT'!$G$6:$FJ$253,144,FALSE) -> 14
A25: 160 | B25: MOSELLE | C25: 44 | D25: MOSELLE NORD | E25: =VLOOKUP($C25,'RECAP SECT'!$G$6:$FJ$253,3,FALSE) -> 69.0 | F25: =VLOOKUP($C25,'RECAP SECT'!$G$6:$FJ$253,126,FALSE) -> 22.87 | G25: =VLOOKUP($C25,'RECAP SECT'!$G$6:$FJ$253,127,FALSE) -> 0.23 | H25: =VLOOKUP($C25,'RECAP SECT'!$G$6:$FJ$253,128,FALSE) -> 31% | I25: =VLOOKUP($C25,'RECAP SECT'!$G$6:$FJ$253,129,FALSE) -> 9 | J25: =VLOOKUP($C25,'RECAP SECT'!$G$6:$FJ$253,130,FALSE) -> 11.34 | K25: =VLOOKUP($C25,'RECAP SECT'!$G$6:$FJ$253,131,FALSE) -> 0.57 | L25: =VLOOKUP($C25,'RECAP SECT'!$G$6:$FJ$253,132,FALSE) -> 32% | M25: =VLOOKUP($C25,'RECAP SECT'!$G$6:$FJ$253,133,FALSE) -> 10 | N25: =VLOOKUP($C25,'RECAP SECT'!$G$6:$FJ$253,134,FALSE) -> 9.59 | O25: =VLOOKUP($C25,'RECAP SECT'!$G$6:$FJ$253,135,FALSE) -> 0.14 | P25: =VLOOKUP($C25,'RECAP SECT'!$G$6:$FJ$253,136,FALSE) -> 71% | Q25: =VLOOKUP($C25,'RECAP SECT'!$G$6:$FJ$253,137,FALSE) -> 11 | R25: =VLOOKUP($C25,'RECAP SECT'!$G$6:$FJ$253,138,FALSE) -> -70.78 | S25: =VLOOKUP($C25,'RECAP SECT'!$G$6:$FJ$253,139,FALSE) -> -1.03 | T25: =VLOOKUP($C25,'RECAP SECT'!$G$6:$FJ$253,140,FALSE) -> 37% | U25: =VLOOKUP($C25,'RECAP SECT'!$G$6:$FJ$253,141,FALSE) -> 4 | V25: =VLOOKUP($C25,'RECAP SECT'!$G$6:$FJ$253,142,FALSE) -> 40% | W25: =VLOOKUP($C25,'RECAP SECT'!$G$6:$FJ$253,143,FALSE) -> 25% | X25: =VLOOKUP($C25,'RECAP SECT'!$G$6:$FJ$253,144,FALSE) -> 7
A26: 80 | B26: VOSGES | C26: 57 | D26: EPINAL | E26: =VLOOKUP($C26,'RECAP SECT'!$G$6:$FJ$253,3,FALSE) -> 59.6 | F26: =VLOOKUP($C26,'RECAP SECT'!$G$6:$FJ$253,126,FALSE) -> 13.65 | G26: =VLOOKUP($C26,'RECAP SECT'!$G$6:$FJ$253,127,FALSE) -> 0.14 | H26: =VLOOKUP($C26,'RECAP SECT'!$G$6:$FJ$253,128,FALSE) -> 59% | I26: =VLOOKUP($C26,'RECAP SECT'!$G$6:$FJ$253,129,FALSE) -> 17 | J26: =VLOOKUP($C26,'RECAP SECT'!$G$6:$FJ$253,130,FALSE) -> 8.76 | K26: =VLOOKUP($C26,'RECAP SECT'!$G$6:$FJ$253,131,FALSE) -> 0.44 | L26: =VLOOKUP($C26,'RECAP SECT'!$G$6:$FJ$253,132,FALSE) -> 48% | M26: =VLOOKUP($C26,'RECAP SECT'!$G$6:$FJ$253,133,FALSE) -> 17 | N26: =VLOOKUP($C26,'RECAP SECT'!$G$6:$FJ$253,134,FALSE) -> 6.88 | O26: =VLOOKUP($C26,'RECAP SECT'!$G$6:$FJ$253,135,FALSE) -> 0.10 | P26: =VLOOKUP($C26,'RECAP SECT'!$G$6:$FJ$253,136,FALSE) -> 79% | Q26: =VLOOKUP($C26,'RECAP SECT'!$G$6:$FJ$253,137,FALSE) -> 13 | R26: =VLOOKUP($C26,'RECAP SECT'!$G$6:$FJ$253,138,FALSE) -> -73.62 | S26: =VLOOKUP($C26,'RECAP SECT'!$G$6:$FJ$253,139,FALSE) -> -1.24 | T26: =VLOOKUP($C26,'RECAP SECT'!$G$6:$FJ$253,140,FALSE) -> 65% | U26: =VLOOKUP($C26,'RECAP SECT'!$G$6:$FJ$253,141,FALSE) -> 11 | V26: =VLOOKUP($C26,'RECAP SECT'!$G$6:$FJ$253,142,FALSE) -> 62% | W26: =VLOOKUP($C26,'RECAP SECT'!$G$6:$FJ$253,143,FALSE) -> 47% | X26: =VLOOKUP($C26,'RECAP SECT'!$G$6:$FJ$253,144,FALSE) -> 18
A27: 80 | B27: VOSGES | C27: 55 | D27: SAINT DIE | E27: =VLOOKUP($C27,'RECAP SECT'!$G$6:$FJ$253,3,FALSE) -> 48.1 | F27: =VLOOKUP($C27,'RECAP SECT'!$G$6:$FJ$253,126,FALSE) -> 20.26 | G27: =VLOOKUP($C27,'RECAP SECT'!$G$6:$FJ$253,127,FALSE) -> 0.20 | H27: =VLOOKUP($C27,'RECAP SECT'!$G$6:$FJ$253,128,FALSE) -> 39% | I27: =VLOOKUP($C27,'RECAP SECT'!$G$6:$FJ$253,129,FALSE) -> 11 | J27: =VLOOKUP($C27,'RECAP SECT'!$G$6:$FJ$253,130,FALSE) -> 8.75 | K27: =VLOOKUP($C27,'RECAP SECT'!$G$6:$FJ$253,131,FALSE) -> 0.44 | L27: =VLOOKUP($C27,'RECAP SECT'!$G$6:$FJ$253,132,FALSE) -> 48% | M27: =VLOOKUP($C27,'RECAP SECT'!$G$6:$FJ$253,133,FALSE) -> 18 | N27: =VLOOKUP($C27,'RECAP SECT'!$G$6:$FJ$253,134,FALSE) -> 6.84 | O27: =VLOOKUP($C27,'RECAP SECT'!$G$6:$FJ$253,135,FALSE) -> 0.10 | P27: =VLOOKUP($C27,'RECAP SECT'!$G$6:$FJ$253,136,FALSE) -> 79% | Q27: =VLOOKUP($C27,'RECAP SECT'!$G$6:$FJ$253,137,FALSE) -> 14 | R27: =VLOOKUP($C27,'RECAP SECT'!$G$6:$FJ$253,138,FALSE) -> -60.87 | S27: =VLOOKUP($C27,'RECAP SECT'!$G$6:$FJ$253,139,FALSE) -> -1.27 | T27: =VLOOKUP($C27,'RECAP SECT'!$G$6:$FJ$253,140,FALSE) -> 69% | U27: =VLOOKUP($C27,'RECAP SECT'!$G$6:$FJ$253,141,FALSE) -> 14 | V27: =VLOOKUP($C27,'RECAP SECT'!$G$6:$FJ$253,142,FALSE) -> 55% | W27: =VLOOKUP($C27,'RECAP SECT'!$G$6:$FJ$253,143,FALSE) -> 39% | X27: =VLOOKUP($C27,'RECAP SECT'!$G$6:$FJ$253,144,FALSE) -> 15
A28: Total CEGEE Directions Régionales | E28: =SUM(E10:E27) -> 1140

Sheet SE_SATISFACTION
B1: Accueil | F1: BAROMETRE BDD - TERRITOIRES
F2: QUALITE / SATISFACTION
F3: =ACCUEIL!F7 -> 2020-05-24
F7: N P S | I7: Enquête Qualité Haute Définition | L7: Total Satisfaction Clients
G8: coef | H8: ='RECAP DIRCOM'!FC4 -> 8% | J8: coef | K8: ='RECAP DIRCOM'!FF4 -> 7% | M8: coef | N8: ='RECAP DIRCOM'!FI4 -> 15%
B9: Direction | C9: eds | D9: Territoire | E9: ETP perf | G9: % Ecart au 1er | H9: Rang | J9: % Ecart au 1er | K9: Rang | L9: Moyenne ecart au 1er | M9: % Ecart au 1er | N9: Rang CEGEE
A10: 50 | B10: AUBE HAUTE MARNE | C10: 21 | D10: CHAUMONT | E10: =VLOOKUP($C10,'RECAP SECT'!$G$6:$FJ$253,3,FALSE) -> 34.6 | F10: =VLOOKUP($C10,'RECAP SECT'!$G$6:$FJ$253,151,FALSE) -> -4 | G10: =VLOOKUP($C10,'RECAP SECT'!$G$6:$FJ$253,152,FALSE) -> 11% | H10: =VLOOKUP($C10,'RECAP SECT'!$G$6:$FJ$253,153,FALSE) -> 2 | I10: =VLOOKUP($C10,'RECAP SECT'!$G$6:$FJ$253,154,FALSE) -> 46% | J10: =VLOOKUP($C10,'RECAP SECT'!$G$6:$FJ$253,155,FALSE) -> 28% | K10: =VLOOKUP($C10,'RECAP SECT'!$G$6:$FJ$253,156,FALSE) -> 12 | L10: =VLOOKUP($C10,'RECAP SECT'!$G$6:$FJ$253,157,FALSE) -> 19% | M10: =VLOOKUP($C10,'RECAP SECT'!$G$6:$FJ$253,158,FALSE) -> 13% | N10: =VLOOKUP($C10,'RECAP SECT'!$G$6:$FJ$253,159,FALSE) -> 2
A11: 50 | B11: AUBE HAUTE MARNE | C11: 14 | D11: TROYES | E11: =VLOOKUP($C11,'RECAP SECT'!$G$6:$FJ$253,3,FALSE) -> 65.2 | F11: =VLOOKUP($C11,'RECAP SECT'!$G$6:$FJ$253,151,FALSE) -> -14 | G11: =VLOOKUP($C11,'RECAP SECT'!$G$6:$FJ$253,152,FALSE) -> 64% | H11: =VLOOKUP($C11,'RECAP SECT'!$G$6:$FJ$253,153,FALSE) -> 11 | I11: =VLOOKUP($C11,'RECAP SECT'!$G$6:$FJ$253,154,FALSE) -> 44% | J11: =VLOOKUP($C11,'RECAP SECT'!$G$6:$FJ$253,155,FALSE) -> 32% | K11: =VLOOKUP($C11,'RECAP SECT'!$G$6:$FJ$253,156,FALSE) -> 13 | L11: =VLOOKUP($C11,'RECAP SECT'!$G$6:$FJ$253,157,FALSE) -> 49% | M11: =VLOOKUP($C11,'RECAP SECT'!$G$6:$FJ$253,158,FALSE) -> 43% | N11: =VLOOKUP($C11,'RECAP SECT'!$G$6:$FJ$253,159,FALSE) -> 12
A12: 262 | B12: BAS-RHIN | C12: 5060 | D12: HAGUENAU | E12: =VLOOKUP($C12,'RECAP SECT'!$G$6:$FJ$253,3,FALSE) -> 75.3 | F12: =VLOOKUP($C12,'RECAP SECT'!$G$6:$FJ$253,151,FALSE) -> -8 | G12: =VLOOKUP($C12,'RECAP SECT'!$G$6:$FJ$253,152,FALSE) -> 32% | H12: =VLOOKUP($C12,'RECAP SECT'!$G$6:$FJ$253,153,FALSE) -> 6 | I12: =VLOOKUP($C12,'RECAP SECT'!$G$6:$FJ$253,154,FALSE) -> 48% | J12: =VLOOKUP($C12,'RECAP SECT'!$G$6:$FJ$253,155,FALSE) -> 26% | K12: =VLOOKUP($C12,'RECAP SECT'!$G$6:$FJ$253,156,FALSE) -> 10 | L12: =VLOOKUP($C12,'RECAP SECT'!$G$6:$FJ$253,157,FALSE) -> 29% | M12: =VLOOKUP($C12,'RECAP SECT'!$G$6:$FJ$253,158,FALSE) -> 23% | N12: =VLOOKUP($C12,'RECAP SECT'!$G$6:$FJ$253,159,FALSE) -> 7
A13: 262 | B13: BAS-RHIN | C13: 5101 | D13: SELESTAT | E13: =VLOOKUP($C13,'RECAP SECT'!$G$6:$FJ$253,3,FALSE) -> 62.3 | F13: =VLOOKUP($C13,'RECAP SECT'!$G$6:$FJ$253,151,FALSE) -> -25 | G13: =VLOOKUP($C13,'RECAP SECT'!$G$6:$FJ$253,152,FALSE) -> 123% | H13: =VLOOKUP($C13,'RECAP SECT'!$G$6:$FJ$253,153,FALSE) -> 16 | I13: =VLOOKUP($C13,'RECAP SECT'!$G$6:$FJ$253,154,FALSE) -> 40% | J13: =VLOOKUP($C13,'RECAP SECT'!$G$6:$FJ$253,155,FALSE) -> 38% | K13: =VLOOKUP($C13,'RECAP SECT'!$G$6:$FJ$253,156,FALSE) -> 15 | L13: =VLOOKUP($C13,'RECAP SECT'!$G$6:$FJ$253,157,FALSE) -> 84% | M13: =VLOOKUP($C13,'RECAP SECT'!$G$6:$FJ$253,158,FALSE) -> 77% | N13: =VLOOKUP($C13,'RECAP SECT'!$G$6:$FJ$253,159,FALSE) -> 16
A14: 262 | B14: BAS-RHIN | C14: 5006 | D14: STRASBOURG | E14: =VLOOKUP($C14,'RECAP SECT'!$G$6:$FJ$253,3,FALSE) -> 74.4 | F14: =VLOOKUP($C14,'RECAP SECT'!$G$6:$FJ$253,151,FALSE) -> -30 | G14: =VLOOKUP($C14,'RECAP SECT'!$G$6:$FJ$253,152,FALSE) -> 150% | H14: =VLOOKUP($C14,'RECAP SECT'!$G$6:$FJ$253,153,FALSE) -> 18 | I14: =VLOOKUP($C14,'RECAP SECT'!$G$6:$FJ$253,154,FALSE) -> 30% | J14: =VLOOKUP($C14,'RECAP SECT'!$G$6:$FJ$253,155,FALSE) -> 53% | K14: =VLOOKUP($C14,'RECAP SECT'!$G$6:$FJ$253,156,FALSE) -> 18 | L14: =VLOOKUP($C14,'RECAP SECT'!$G$6:$FJ$253,157,FALSE) -> 105% | M14: =VLOOKUP($C14,'RECAP SECT'!$G$6:$FJ$253,158,FALSE) -> 98% | N14: =VLOOKUP($C14,'RECAP SECT'!$G$6:$FJ$253,159,FALSE) -> 18
A15: 264 | B15: HAUT-RHIN | C15: 5130 | D15: COLMAR | E15: =VLOOKUP($C15,'RECAP SECT'!$G$6:$FJ$253,3,FALSE) -> 64.7 | F15: =VLOOKUP($C15,'RECAP SECT'!$G$6:$FJ$253,151,FALSE) -> -18 | G15: =VLOOKUP($C15,'RECAP SECT'!$G$6:$FJ$253,152,FALSE) -> 86% | H15: =VLOOKUP($C15,'RECAP SECT'!$G$6:$FJ$253,153,FALSE) -> 13 | I15: =VLOOKUP($C15,'RECAP SECT'!$G$6:$FJ$253,154,FALSE) -> 41% | J15: =VLOOKUP($C15,'RECAP SECT'!$G$6:$FJ$253,155,FALSE) -> 36% | K15: =VLOOKUP($C15,'RECAP SECT'!$G$6:$FJ$253,156,FALSE) -> 14 | L15: =VLOOKUP($C15,'RECAP SECT'!$G$6:$FJ$253,157,FALSE) -> 63% | M15: =VLOOKUP($C15,'RECAP SECT'!$G$6:$FJ$253,158,FALSE) -> 56% | N15: =VLOOKUP($C15,'RECAP SECT'!$G$6:$FJ$253,159,FALSE) -> 14
A16: 264 | B16: HAUT-RHIN | C16: 5169 | D16: MULHOUSE | E16: =VLOOKUP($C16,'RECAP SECT'!$G$6:$FJ$253,3,FALSE) -> 61.6 | F16: =VLOOKUP($C16,'RECAP SECT'!$G$6:$FJ$253,151,FALSE) -> -26 | G16: =VLOOKUP($C16,'RECAP SECT'!$G$6:$FJ$253,152,FALSE) -> 129% | H16: =VLOOKUP($C16,'RECAP SECT'!$G$6:$FJ$253,153,FALSE) -> 17 | I16: =VLOOKUP($C16,'RECAP SECT'!$G$6:$FJ$253,154,FALSE) -> 31% | J16: =VLOOKUP($C16,'RECAP SECT'!$G$6:$FJ$253,155,FALSE) -> 52% | K16: =VLOOKUP($C16,'RECAP SECT'!$G$6:$FJ$253,156,FALSE) -> 17 | L16: =VLOOKUP($C16,'RECAP SECT'!$G$6:$FJ$253,157,FALSE) -> 93% | M16: =VLOOKUP($C16,'RECAP SECT'!$G$6:$FJ$253,158,FALSE) -> 87% | N16: =VLOOKUP($C16,'RECAP SECT'!$G$6:$FJ$253,159,FALSE) -> 17
A17: 30 | B17: MARNE-ARDENNES | C17: 6 | D17: CHALONS EN CHAMPAGNE | E17: =VLOOKUP($C17,'RECAP SECT'!$G$6:$FJ$253,3,FALSE) -> 44.9 | F17: =VLOOKUP($C17,'RECAP SECT'!$G$6:$FJ$253,151,FALSE) -> -11 | G17: =VLOOKUP($C17,'RECAP SECT'!$G$6:$FJ$253,152,FALSE) -> 48% | H17: =VLOOKUP($C17,'RECAP SECT'!$G$6:$FJ$253,153,FALSE) -> 8 | I17: =VLOOKUP($C17,'RECAP SECT'!$G$6:$FJ$253,154,FALSE) -> 64% | J17: =VLOOKUP($C17,'RECAP SECT'!$G$6:$FJ$253,155,FALSE) -> 0% | K17: =VLOOKUP($C17,'RECAP SECT'!$G$6:$FJ$253,156,FALSE) -> 1 | L17: =VLOOKUP($C17,'RECAP SECT'!$G$6:$FJ$253,157,FALSE) -> 26% | M17: =VLOOKUP($C17,'RECAP SECT'!$G$6:$FJ$253,158,FALSE) -> 19% | N17: =VLOOKUP($C17,'RECAP SECT'!$G$6:$FJ$253,159,FALSE) -> 6
A18: 30 | B18: MARNE-ARDENNES | C18: 2 | D18: CHARLEVILLE MEZIERES | E18: =VLOOKUP($C18,'RECAP SECT'!$G$6:$FJ$253,3,FALSE) -> 54.9 | F18: =VLOOKUP($C18,'RECAP SECT'!$G$6:$FJ$253,151,FALSE) -> -12 | G18: =VLOOKUP($C18,'RECAP SECT'!$G$6:$FJ$253,152,FALSE) -> 54% | H18: =VLOOKUP($C18,'RECAP SECT'!$G$6:$FJ$253,153,FALSE) -> 9 | I18: =VLOOKUP($C18,'RECAP SECT'!$G$6:$FJ$253,154,FALSE) -> 57% | J18: =VLOOKUP($C18,'RECAP SECT'!$G$6:$FJ$253,155,FALSE) -> 12% | K18: =VLOOKUP($C18,'RECAP SECT'!$G$6:$FJ$253,156,FALSE) -> 2 | L18: =VLOOKUP($C18,'RECAP SECT'!$G$6:$FJ$253,157,FALSE) -> 34% | M18: =VLOOKUP($C18,'RECAP SECT'!$G$6:$FJ$253,158,FALSE) -> 28% | N18: =VLOOKUP($C18,'RECAP SECT'!$G$6:$FJ$253,159,FALSE) -> 8
A19: 30 | B19: MARNE-ARDENNES | C19: 11 | D19: REIMS | E19: =VLOOKUP($C19,'RECAP SECT'!$G$6:$FJ$253,3,FALSE) -> 78.2 | F19: =VLOOKUP($C19,'RECAP SECT'!$G$6:$FJ$253,151,FALSE) -> -6 | G19: =VLOOKUP($C19,'RECAP SECT'!$G$6:$FJ$253,152,FALSE) -> 21% | H19: =VLOOKUP($C19,'RECAP SECT'!$G$6:$FJ$253,153,FALSE) -> 4 | I19: =VLOOKUP($C19,'RECAP SECT'!$G$6:$FJ$253,154,FALSE) -> 54% | J19: =VLOOKUP($C19,'RECAP SECT'!$G$6:$FJ$253,155,FALSE) -> 17% | K19: =VLOOKUP($C19,'RECAP SECT'!$G$6:$FJ$253,156,FALSE) -> 5 | L19: =VLOOKUP($C19,'RECAP SECT'!$G$6:$FJ$253,157,FALSE) -> 19% | M19: =VLOOKUP($C19,'RECAP SECT'!$G$6:$FJ$253,158,FALSE) -> 13% | N19: =VLOOKUP($C19,'RECAP SECT'!$G$6:$FJ$253,159,FALSE) -> 3
A20: 110 | B20: MEURTHE ET MOSELLE MEUSE | C20: 26 | D20: NANCY | E20: =VLOOKUP($C20,'RECAP SECT'!$G$6:$FJ$253,3,FALSE) -> 63.5 | F20: =VLOOKUP($C20,'RECAP SECT'!$G$6:$FJ$253,151,FALSE) -> -5 | G20: =VLOOKUP($C20,'RECAP SECT'!$G$6:$FJ$253,152,FALSE) -> 16% | H20: =VLOOKUP($C20,'RECAP SECT'!$G$6:$FJ$253,153,FALSE) -> 3 | I20: =VLOOKUP($C20,'RECAP SECT'!$G$6:$FJ$253,154,FALSE) -> 48% | J20: =VLOOKUP($C20,'RECAP SECT'!$G$6:$FJ$253,155,FALSE) -> 26% | K20: =VLOOKUP($C20,'RECAP SECT'!$G$6:$FJ$253,156,FALSE) -> 11 | L20: =VLOOKUP($C20,'RECAP SECT'!$G$6:$FJ$253,157,FALSE) -> 21% | M20: =VLOOKUP($C20,'RECAP SECT'!$G$6:$FJ$253,158,FALSE) -> 14% | N20: =VLOOKUP($C20,'RECAP SECT'!$G$6:$FJ$253,159,FALSE) -> 4
A21: 110 | B21: MEURTHE ET MOSELLE MEUSE | C21: 27 | D21: PONT A MOUSSON | E21: =VLOOKUP($C21,'RECAP SECT'!$G$6:$FJ$253,3,FALSE) -> 72.4 | F21: =VLOOKUP($C21,'RECAP SECT'!$G$6:$FJ$253,151,FALSE) -> -19 | G21: =VLOOKUP($C21,'RECAP SECT'!$G$6:$FJ$253,152,FALSE) -> 91% | H21: =VLOOKUP($C21,'RECAP SECT'!$G$6:$FJ$253,153,FALSE) -> 14 | I21: =VLOOKUP($C21,'RECAP SECT'!$G$6:$FJ$253,154,FALSE) -> 48% | J21: =VLOOKUP($C21,'RECAP SECT'!$G$6:$FJ$253,155,FALSE) -> 25% | K21: =VLOOKUP($C21,'RECAP SECT'!$G$6:$FJ$253,156,FALSE) -> 8 | L21: =VLOOKUP($C21,'RECAP SECT'!$G$6:$FJ$253,157,FALSE) -> 60% | M21: =VLOOKUP($C21,'RECAP SECT'!$G$6:$FJ$253,158,FALSE) -> 54% | N21: =VLOOKUP($C21,'RECAP SECT'!$G$6:$FJ$253,159,FALSE) -> 13
A22: 110 | B22: MEURTHE ET MOSELLE MEUSE | C22: 31 | D22: VERDUN | E22: =VLOOKUP($C22,'RECAP SECT'!$G$6:$FJ$253,3,FALSE) -> 51.9 | F22: =VLOOKUP($C22,'RECAP SECT'!$G$6:$FJ$253,151,FALSE) -> -2 | G22: =VLOOKUP($C22,'RECAP SECT'!$G$6:$FJ$253,152,FALSE) -> 0% | H22: =VLOOKUP($C22,'RECAP SECT'!$G$6:$FJ$253,153,FALSE) -> 1 | I22: =VLOOKUP($C22,'RECAP SECT'!$G$6:$FJ$253,154,FALSE) -> 56% | J22: =VLOOKUP($C22,'RECAP SECT'!$G$6:$FJ$253,155,FALSE) -> 13% | K22: =VLOOKUP($C22,'RECAP SECT'!$G$6:$FJ$253,156,FALSE) -> 3 | L22: =VLOOKUP($C22,'RECAP SECT'!$G$6:$FJ$253,157,FALSE) -> 6% | M22: =VLOOKUP($C22,'RECAP SECT'!$G$6:$FJ$253,158,FALSE) -> 0% | N22: =VLOOKUP($C22,'RECAP SECT'!$G$6:$FJ$253,159,FALSE) -> 1
A23: 160 | B23: MOSELLE | C23: 45 | D23: METZ | E23: =VLOOKUP($C23,'RECAP SECT'!$G$6:$FJ$253,3,FALSE) -> 86.5 | F23: =VLOOKUP($C23,'RECAP SECT'!$G$6:$FJ$253,151,FALSE) -> -12 | G23: =VLOOKUP($C23,'RECAP SECT'!$G$6:$FJ$253,152,FALSE) -> 54% | H23: =VLOOKUP($C23,'RECAP SECT'!$G$6:$FJ$253,153,FALSE) -> 9 | I23: =VLOOKUP($C23,'RECAP SECT'!$G$6:$FJ$253,154,FALSE) -> 54% | J23: =VLOOKUP($C23,'RECAP SECT'!$G$6:$FJ$253,155,FALSE) -> 16% | K23: =VLOOKUP($C23,'RECAP SECT'!$G$6:$FJ$253,156,FALSE) -> 4 | L23: =VLOOKUP($C23,'RECAP SECT'!$G$6:$FJ$253,157,FALSE) -> 36% | M23: =VLOOKUP($C23,'RECAP SECT'!$G$6:$FJ$253,158,FALSE) -> 30% | N23: =VLOOKUP($C23,'RECAP SECT'!$G$6:$FJ$253,159,FALSE) -> 10
A24: 160 | B24: MOSELLE | C24: 42 | D24: MOSELLE EST | E24: =VLOOKUP($C24,'RECAP SECT'!$G$6:$FJ$253,3,FALSE) -> 72.3 | F24: =VLOOKUP($C24,'RECAP SECT'!$G$6:$FJ$253,151,FALSE) -> -10 | G24: =VLOOKUP($C24,'RECAP SECT'!$G$6:$FJ$253,152,FALSE) -> 43% | H24: =VLOOKUP($C24,'RECAP SECT'!$G$6:$FJ$253,153,FALSE) -> 7 | I24: =VLOOKUP($C24,'RECAP SECT'!$G$6:$FJ$253,154,FALSE) -> 48% | J24: =VLOOKUP($C24,'RECAP SECT'!$G$6:$FJ$253,155,FALSE) -> 26% | K24: =VLOOKUP($C24,'RECAP SECT'!$G$6:$FJ$253,156,FALSE) -> 9 | L24: =VLOOKUP($C24,'RECAP SECT'!$G$6:$FJ$253,157,FALSE) -> 35% | M24: =VLOOKUP($C24,'RECAP SECT'!$G$6:$FJ$253,158,FALSE) -> 29% | N24: =VLOOKUP($C24,'RECAP SECT'!$G$6:$FJ$253,159,FALSE) -> 9
A25: 160 | B25: MOSELLE | C25: 44 | D25: MOSELLE NORD | E25: =VLOOKUP($C25,'RECAP SECT'!$G$6:$FJ$253,3,FALSE) -> 69.0 | F25: =VLOOKUP($C25,'RECAP SECT'!$G$6:$FJ$253,151,FALSE) -> -22 | G25: =VLOOKUP($C25,'RECAP SECT'!$G$6:$FJ$253,152,FALSE) -> 107% | H25: =VLOOKUP($C25,'RECAP SECT'!$G$6:$FJ$253,153,FALSE) -> 15 | I25: =VLOOKUP($C25,'RECAP SECT'!$G$6:$FJ$253,154,FALSE) -> 37% | J25: =VLOOKUP($C25,'RECAP SECT'!$G$6:$FJ$253,155,FALSE) -> 42% | K25: =VLOOKUP($C25,'RECAP SECT'!$G$6:$FJ$253,156,FALSE) -> 16 | L25: =VLOOKUP($C25,'RECAP SECT'!$G$6:$FJ$253,157,FALSE) -> 77% | M25: =VLOOKUP($C25,'RECAP SECT'!$G$6:$FJ$253,158,FALSE) -> 71% | N25: =VLOOKUP($C25,'RECAP SECT'!$G$6:$FJ$253,159,FALSE) -> 15
A26: 80 | B26: VOSGES | C26: 57 | D26: EPINAL | E26: =VLOOKUP($C26,'RECAP SECT'!$G$6:$FJ$253,3,FALSE) -> 59.6 | F26: =VLOOKUP($C26,'RECAP SECT'!$G$6:$FJ$253,151,FALSE) -> -14 | G26: =VLOOKUP($C26,'RECAP SECT'!$G$6:$FJ$253,152,FALSE) -> 64% | H26: =VLOOKUP($C26,'RECAP SECT'!$G$6:$FJ$253,153,FALSE) -> 11 | I26: =VLOOKUP($C26,'RECAP SECT'!$G$6:$FJ$253,154,FALSE) -> 51% | J26: =VLOOKUP($C26,'RECAP SECT'!$G$6:$FJ$253,155,FALSE) -> 21% | K26: =VLOOKUP($C26,'RECAP SECT'!$G$6:$FJ$253,156,FALSE) -> 6 | L26: =VLOOKUP($C26,'RECAP SECT'!$G$6:$FJ$253,157,FALSE) -> 44% | M26: =VLOOKUP($C26,'RECAP SECT'!$G$6:$FJ$253,158,FALSE) -> 38% | N26: =VLOOKUP($C26,'RECAP SECT'!$G$6:$FJ$253,159,FALSE) -> 11
A27: 80 | B27: VOSGES | C27: 55 | D27: SAINT DIE | E27: =VLOOKUP($C27,'RECAP SECT'!$G$6:$FJ$253,3,FALSE) -> 48.1 | F27: =VLOOKUP($C27,'RECAP SECT'!$G$6:$FJ$253,151,FALSE) -> -6 | G27: =VLOOKUP($C27,'RECAP SECT'!$G$6:$FJ$253,152,FALSE) -> 21% | H27: =VLOOKUP($C27,'RECAP SECT'!$G$6:$FJ$253,153,FALSE) -> 4 | I27: =VLOOKUP($C27,'RECAP SECT'!$G$6:$FJ$253,154,FALSE) -> 49% | J27: =VLOOKUP($C27,'RECAP SECT'!$G$6:$FJ$253,155,FALSE) -> 24% | K27: =VLOOKUP($C27,'RECAP SECT'!$G$6:$FJ$253,156,FALSE) -> 7 | L27: =VLOOKUP($C27,'RECAP SECT'!$G$6:$FJ$253,157,FALSE) -> 23% | M27: =VLOOKUP($C27,'RECAP SECT'!$G$6:$FJ$253,158,FALSE) -> 16% | N27: =VLOOKUP($C27,'RECAP SECT'!$G$6:$FJ$253,159,FALSE) -> 5
A28: Total CEGEE Directions Régionales | E28: =SUM(E10:E27) -> 1140

Sheet AG_CLASS
B1: Accueil | H1: BAROMETRE BDD - AGENCES
H2: CLASSEMENTS
H3: =ACCUEIL!F7 -> 2020-05-24
H8: CLASSEMENT GENERAL | I8: CRITERE CLIENTS | J8: Evolution nette clients Bancarisés Principaux | K8: Evolution nette relations PREMIUM | L8: Evolution nette clients Jeunes équipés | M8: Evolution nette clients Pro actif équipés | N8: CRITERE BANCARISATION | O8: Ventes nettes FORFAITS | P8: Ventes nettes IZICARTES débit différé | Q8: Ventes nettes Cartes HDG débit différé | R8: Ventes nettes Forfaits Pro Cartes Pro | S8: CRITERE EPARGNE | T8: Excédent Epargne Liquide | U8: CA UC + arbitrage | V8: Excédent Assurance Vie | W8: CRITERE CREDITS | X8: Engagements crédits conso | Y8: ADE crédits conso | Z8: Engagements crédits immo | AA8: ADE crédits immo | AB8: SACCEF | AC8: Engagement Crédits MLT + Crédits Bail | AD8: CRITERE IARD PREVOYANCE | AE8: Ventes nettes IARD | AF8: Ventes nettes Prévoyance | AG8: CRITERE ACCELERATEURS PNB | AH8: Ventes brutes SED finalisées | AI8: Clients Equipés E documents | AJ8: Economie Opt'in | AK8: Remises Commerciales | AL8: CRITERE Qualité Satisfaction Clients | AM8: Objectifs NPS* | AN8: Enquête Qualité Haute Définition
B9: Direction | C9: eds | D9: Territoire | E9: eds | F9: Agence | G9: ETP perf | H9: Rang | I9: Rang | J9: Rang | K9: Rang | L9: Rang | M9: Rang | N9: Rang | O9: Rang | P9: Rang | Q9: Rang | R9: Rang | S9: Rang | T9: Rang | U9: Rang | V9: Rang | W9: Rang | X9: Rang | Y9: Rang | Z9: Rang | AA9: Rang | AB9: Rang | AC9: Rang | AD9: Rang | AE9: Rang | AF9: Rang | AG9: Rang | AH9: Rang | AI9: Rang | AJ9: Rang | AK9: Rang | AL9: Rang | AM9: Rang | AN9: Rang
A10: 110 | B10: MEURTHE ET MOSELLE MEUSE | C10: 27 | D10: PONT A MOUSSON | E10: 454651 | F10: TOUL REPUBLIQUE | G10: 10.5 | H10: 1 | I10: 16 | J10: 49 | K10: 109 | L10: 12 | M10: 89 | N10: 1 | O10: 1 | P10: 1 | Q10: 2 | R10: 17 | S10: 17 | T10: 53 | U10: 73 | V10: 12 | W10: 1 | X10: 1 | Y10: 1 | Z10: 1 | AA10: 1 | AB10: 1 | AC10: 47 | AD10: 1 | AE10: 1 | AF10: 2 | AG10: 1 | AH10: 1 | AI10: 2 | AJ10: 10 | AK10: 50 | AL10: 263 | AM10: 265 | AN10: 230
A11: 80 | B11: VOSGES | C11: 57 | D11: EPINAL | E11: 488288 | F11: EPINAL LEOPOLD BOURG | G11: 1.7 | H11: 2 | I11: 29 | J11: 69 | K11: 4 | L11: 298 | M11: 89 | N11: 7 | O11: 15 | P11: 83 | Q11: 56 | R11: 1 | S11: 3 | T11: 3 | U11: 77 | V11: 31 | W11: 2 | X11: 30 | Y11: 57 | Z11: 2 | AA11: 7 | AB11: 36 | AC11: 1 | AD11: 16 | AE11: 3 | AF11: 168 | AG11: 97 | AH11: 50 | AI11: 67 | AJ11: 197 | AK11: 271 | AL11: 4 | AM11: 4 | AN11: 67
A12: 110 | B12: MEURTHE ET MOSELLE MEUSE | C12: 26 | D12: NANCY | E12: 454481 | F12: NANCY PLACE DOMBASLE | G12: 9.8 | H12: 3 | I12: 12 | J12: 5 | K12: 192 | L12: 9 | M12: 89 | N12: 5 | O12: 2 | P12: 18 | Q12: 28 | R12: 12 | S12: 143 | T12: 36 | U12: 7 | V12: 281 | W12: 16 | X12: 255 | Y12: 227 | Z12: 9 | AA12: 9 | AB12: 3 | AC12: 27 | AD12: 9 | AE12: 6 | AF12: 23 | AG12: 3 | AH12: 2 | AI12: 16 | AJ12: 20 | AK12: 267 | AL12: 152 | AM12: 123 | AN12: 193
A13: 80 | B13: VOSGES | C13: 55 | D13: SAINT DIE | E13: 488346 | F13: GRANGES AUMONTZEY | G13: 1.7 | H13: 4 | I13: 278 | J13: 141 | K13: 291 | L13: 216 | M13: 89 | N13: 3 | O13: 21 | P13: 4 | Q13: 4 | R13: 64 | S13: 56 | T13: 300 | U13: 146 | V13: 4 | W13: 46 | X13: 6 | Y13: 6 | Z13: 247 | AA13: 101 | AB13: 167 | AC13: 223 | AD13: 5 | AE13: 11 | AF13: 9 | AG13: 12 | AH13: 5 | AI13: 136 | AJ13: 143 | AK13: 38 | AL13: 7 | AM13: 10 | AN13: 28
A14: 30 | B14: MARNE-ARDENNES | C14: 6 | D14: CHALONS EN CHAMPAGNE | E14: 551103 | F14: FAGNIERES LECLERC | G14: 2.9 | H14: 5 | I14: 13 | J14: 1 | K14: 182 | L14: 217 | M14: 55 | N14: 42 | O14: 13 | P14: 191 | Q14: 183 | R14: 15 | S14: 21 | T14: 5 | U14: 161 | V14: 165 | W14: 8 | X14: 111 | Y14: 100 | Z14: 3 | AA14: 3 | AB14: 4 | AC14: 173 | AD14: 60 | AE14: 34 | AF14: 145 | AG14: 17 | AH14: 62 | AI14: 4 | AJ14: 53 | AK14: 44 | AL14: 46 | AM14: 51 | AN14: 49
A15: 30 | B15: MARNE-ARDENNES | C15: 11 | D15: REIMS | E15: 551369 | F15: DAMERY | G15: 3.0 | H15: 6 | I15: 71 | J15: 39 | K15: 259 | L15: 39 | M15: 13 | N15: 8 | O15: 4 | P15: 51 | Q15: 60 | R15: 4 | S15: 55 | T15: 270 | U15: 217 | V15: 7 | W15: 5 | X15: 88 | Y15: 33 | Z15: 10 | AA15: 2 | AB15: 7 | AC15: 16 | AD15: 27 | AE15: 83 | AF15: 12 | AG15: 221 | AH15: 158 | AI15: 105 | AJ15: 290 | AK15: 230 | AL15: 24 | AM15: 31 | AN15: 53
A16: 160 | B16: MOSELLE | C16: 44 | D16: MOSELLE NORD | E16: 557508 | F16: NILVANGE | G16: 2.6 | H16: 7 | I16: 152 | J16: 267 | K16: 274 | L16: 3 | M16: 89 | N16: 13 | O16: 16 | P16: 7 | Q16: 19 | R16: 172 | S16: 172 | T16: 193 | U16: 130 | V16: 143 | W16: 27 | X16: 31 | Y16: 17 | Z16: 24 | AA16: 180 | AB16: 22 | AC16: 223 | AD16: 3 | AE16: 8 | AF16: 3 | AG16: 23 | AH16: 22 | AI16: 171 | AJ16: 8 | AK16: 216 | AL16: 86 | AM16: 87 | AN16: 100
A17: 110 | B17: MEURTHE ET MOSELLE MEUSE | C17: 27 | D17: PONT A MOUSSON | E17: 554531 | F17: POMPEY | G17: 2.1 | H17: 8 | I17: 18 | J17: 62 | K17: 145 | L17: 5 | M17: 89 | N17: 10 | O17: 31 | P17: 8 | Q17: 8 | R17: 38 | S17: 274 | T17: 291 | U17: 251 | V17: 201 | W17: 4 | X17: 18 | Y17: 7 | Z17: 5 | AA17: 4 | AB17: 9 | AC17: 223 | AD17: 21 | AE17: 17 | AF17: 40 | AG17: 5 | AH17: 6 | AI17: 11 | AJ17: 63 | AK17: 5 | AL17: 201 | AM17: 212 | AN17: 169
A18: 110 | B18: MEURTHE ET MOSELLE MEUSE | C18: 26 | D18: NANCY | E18: 554266 | F18: DOMBASLE SUR MEURTHE | G18: 3.6 | H18: 9 | I18: 173 | J18: 103 | K18: 154 | L18: 276 | M18: 68 | N18: 6 | O18: 76 | P18: 12 | Q18: 12 | R18: 3 | S18: 168 | T18: 69 | U18: 48 | V18: 257 | W18: 6 | X18: 22 | Y18: 11 | Z18: 7 | AA18: 13 | AB18: 5 | AC18: 70 | AD18: 43 | AE18: 35 | AF18: 94 | AG18: 21 | AH18: 7 | AI18: 44 | AJ18: 100 | AK18: 269 | AL18: 55 | AM18: 54 | AN18: 83
A19: 30 | B19: MARNE-ARDENNES | C19: 2 | D19: CHARLEVILLE MEZIERES | E19: 408822 | F19: CHARLEVILLE MEZIERES | G19: 3.8 | H19: 10 | I19: 126 | J19: 12 | K19: 261 | L19: 17 | M19: 295 | N19: 32 | O19: 20 | P19: 26 | Q19: 54 | R19: 165 | S19: 34 | T19: 265 | U19: 88 | V19: 3 | W19: 14 | X19: 98 | Y19: 152 | Z19: 8 | AA19: 10 | AB19: 10 | AC19: 81 | AD19: 18 | AE19: 19 | AF19: 27 | AG19: 9 | AH19: 10 | AI19: 31 | AJ19: 71 | AK19: 71 | AL19: 72 | AM19: 108 | AN19: 10
A20: 262 | B20: BAS-RHIN | C20: 5006 | D20: STRASBOURG | E20: 4010 | F20: STRASBOURG MEINAU | G20: 2.3 | H20: 11 | I20: 19 | J20: 212 | K20: 88 | L20: 7 | M20: 36 | N20: 4 | O20: 161 | P20: 3 | Q20: 1 | R20: 171 | S20: 57 | T20: 241 | U20: 143 | V20: 15 | W20: 164 | X20: 35 | Y20: 21 | Z20: 228 | AA20: 238 | AB20: 294 | AC20: 148 | AD20: 4 | AE20: 43 | AF20: 1 | AG20: 6 | AH20: 14 | AI20: 5 | AJ20: 7 | AK20: 196 | AL20: 269 | AM20: 264 | AN20: 240
A21: 160 | B21: MOSELLE | C21: 45 | D21: METZ | E21: 557447 | F21: METZ SAINT MAXIMIN | G21: 3.0 | H21: 12 | I21: 4 | J21: 10 | K21: 82 | L21: 16 | M21: 61 | N21: 34 | O21: 3 | P21: 114 | Q21: 188 | R21: 46 | S21: 199 | T21: 146 | U21: 219 | V21: 190 | W21: 25 | X21: 157 | Y21: 187 | Z21: 16 | AA21: 5 | AB21: 14 | AC21: 223 | AD21: 17 | AE21: 24 | AF21: 25 | AG21: 20 | AH21: 12 | AI21: 65 | AJ21: 256 | AK21: 39 | AL21: 92 | AM21: 67 | AN21: 168
A22: 30 | B22: MARNE-ARDENNES | C22: 2 | D22: CHARLEVILLE MEZIERES | E22: 408814 | F22: VRIGNE AUX BOIS | G22: 1.0 | H22: 13 | I22: 171 | J22: 21 | K22: 301 | L22: 1 | M22: 301 | N22: 21 | O22: 183 | P22: 9 | Q22: 24 | R22: 52 | S22: 30 | T22: 16 | U22: 13 | V22: 182 | W22: 26 | X22: 26 | Y22: 43 | Z22: 36 | AA22: 45 | AB22: 84 | AC22: 110 | AD22: 2 | AE22: 2 | AF22: 16 | AG22: 19 | AH22: 41 | AI22: 10 | AJ22: 32 | AK22: 93 | AL22: 146 | AM22: 191 | AN22: 76
A23: 160 | B23: MOSELLE | C23: 44 | D23: MOSELLE NORD | E23: 557660 | F23: UCKANGE JEANNE D ARC | G23: 1.9 | H23: 14 | I23: 10 | J23: 181 | K23: 6 | L23: 193 | M23: 27 | N23: 9 | O23: 19 | P23: 14 | Q23: 22 | R23: 16 | S23: 45 | T23: 133 | U23: 41 | V23: 48 | W23: 12 | X23: 15 | Y23: 40 | Z23: 20 | AA23: 41 | AB23: 12 | AC23: 82 | AD23: 23 | AE23: 55 | AF23: 18 | AG23: 27 | AH23: 13 | AI23: 91 | AJ23: 190 | AK23: 140 | AL23: 195 | AM23: 204 | AN23: 160
A24: 30 | B24: MARNE-ARDENNES | C24: 2 | D24: CHARLEVILLE MEZIERES | E24: 508833 | F24: VILLERS SEMEUSE CORA | G24: 2.9 | H24: 15 | I24: 147 | J24: 65 | K24: 181 | L24: 204 | M24: 89 | N24: 17 | O24: 5 | P24: 30 | Q24: 17 | R24: 151 | S24: 139 | T24: 114 | U24: 294 | V24: 114 | W24: 45 | X24: 138 | Y24: 102 | Z24: 14 | AA24: 60 | AB24: 33 | AC24: 223 | AD24: 6 | AE24: 14 | AF24: 7 | AG24: 8 | AH24: 4 | AI24: 23 | AJ24: 174 | AK24: 63 | AL24: 113 | AM24: 90 | AN24: 155
A25: 30 | B25: MARNE-ARDENNES | C25: 11 | D25: REIMS | E25: 551340 | F25: BETHENY | G25: 3.0 | H25: 16 | I25: 8 | J25: 78 | K25: 2 | L25: 150 | M25: 247 | N25: 131 | O25: 28 | P25: 66 | Q25: 153 | R25: 276 | S25: 8 | T25: 28 | U25: 63 | V25: 6 | W25: 19 | X25: 48 | Y25: 91 | Z25: 17 | AA25: 19 | AB25: 15 | AC25: 138 | AD25: 19 | AE25: 23 | AF25: 28 | AG25: 35 | AH25: 26 | AI25: 93 | AJ25: 132 | AK25: 92 | AL25: 100 | AM25: 145 | AN25: 21
A26: 50 | B26: AUBE HAUTE MARNE | C26: 21 | D26: CHAUMONT | E26: 410539 | F26: CHATEAUVILLAIN | G26: 1.8 | H26: 17 | I26: 54 | J26: 3 | K26: 264 | L26: 10 | M26: 281 | N26: 240 | O26: 145 | P26: 157 | Q26: 194 | R26: 283 | S26: 61 | T26: 260 | U26: 132 | V26: 18 | W26: 71 | X26: 8 | Y26: 72 | Z26: 235 | AA26: 153 | AB26: 214 | AC26: 120 | AD26: 24 | AE26: 13 | AF26: 48 | AG26: 98 | AH26: 90 | AI26: 251 | AJ26: 211 | AK26: 13 | AL26: 1 | AM26: 3 | AN26: 2
A27: 30 | B27: MARNE-ARDENNES | C27: 11 | D27: REIMS | E27: 551310 | F27: REIMS CHATILLONS | G27: 3.7 | H27: 18 | I27: 85 | J27: 26 | K27: 14 | L27: 258 | M27: 297 | N27: 15 | O27: 8 | P27: 35 | Q27: 40 | R27: 31 | S27: 92 | T27: 236 | U27: 154 | V27: 36 | W27: 32 | X27: 77 | Y27: 39 | Z27: 55 | AA27: 21 | AB27: 32 | AC27: 64 | AD27: 79 | AE27: 21 | AF27: 215 | AG27: 2 | AH27: 3 | AI27: 18 | AJ27: 15 | AK27: 163 | AL27: 137 | AM27: 97 | AN27: 217
A28: 160 | B28: MOSELLE | C28: 45 | D28: METZ | E28: 557441 | F28: METZ PLAPPEVILLE | G28: 2.3 | H28: 19 | I28: 111 | J28: 220 | K28: 5 | L28: 207 | M28: 299 | N28: 86 | O28: 113 | P28: 103 | Q28: 71 | R28: 92 | S28: 13 | T28: 14 | U28: 80 | V28: 34 | W28: 9 | X28: 7 | Y28: 9 | Z28: 34 | AA28: 39 | AB28: 26 | AC28: 21 | AD28: 102 | AE28: 171 | AF28: 58 | AG28: 156 | AH28: 31 | AI28: 92 | AJ28: 280 | AK28: 299 | AL28: 27 | AM28: 44 | AN28: 25
A29: 50 | B29: AUBE HAUTE MARNE | C29: 14 | D29: TROYES | E29: 410551 | F29: BRIENNE LE CHÂTEAU | G29: 2.8 | H29: 20 | I29: 148 | J29: 152 | K29: 180 | L29: 112 | M29: 89 | N29: 152 | O29: 133 | P29: 120 | Q29: 144 | R29: 172 | S29: 259 | T29: 305 | U29: 204 | V29: 113 | W29: 209 | X29: 40 | Y29: 47 | Z29: 282 | AA29: 266 | AB29: 284 | AC29: 140 | AD29: 7 | AE29: 54 | AF29: 4 | AG29: 114 | AH29: 198 | AI29: 202 | AJ29: 119 | AK29: 2 | AL29: 2 | AM29: 2 | AN29: 34
A30: 30 | B30: MARNE-ARDENNES | C30: 2 | D30: CHARLEVILLE MEZIERES | E30: 508819 | F30: MOUZON | G30: 2.0 | H30: 21 | I30: 42 | J30: 261 | K30: 17 | L30: 65 | M30: 89 | N30: 207 | O30: 56 | P30: 281 | Q30: 262 | R30: 159 | S30: 240 | T30: 159 | U30: 299 | V30: 226 | W30: 3 | X30: 11 | Y30: 5 | Z30: 4 | AA30: 11 | AB30: 8 | AC30: 223 | AD30: 179 | AE30: 159 | AF30: 177 | AG30: 43 | AH30: 38 | AI30: 72 | AJ30: 97 | AK30: 183 | AL30: 16 | AM30: 25 | AN30: 32
A31: 50 | B31: AUBE HAUTE MARNE | C31: 14 | D31: TROYES | E31: 410524 | F31: SAINT JULIEN LES VILLAS | G31: 5.4 | H31: 22 | I31: 98 | J31: 34 | K31: 93 | L31: 146 | M31: 257 | N31: 99 | O31: 85 | P31: 173 | Q31: 205 | R31: 25 | S31: 78 | T31: 7 | U31: 70 | V31: 280 | W31: 33 | X31: 219 | Y31: 217 | Z31: 38 | AA31: 76 | AB31: 29 | AC31: 5 | AD31: 75 | AE31: 66 | AF31: 100 | AG31: 127 | AH31: 134 | AI31: 183 | AJ31: 113 | AK31: 114 | AL31: 9 | AM31: 10 | AN31: 62
A32: 30 | B32: MARNE-ARDENNES | C32: 2 | D32: CHARLEVILLE MEZIERES | E32: 508839 | F32: GIVET | G32: 2.4 | H32: 23 | I32: 33 | J32: 226 | K32: 195 | L32: 6 | M32: 7 | N32: 52 | O32: 150 | P32: 42 | Q32: 36 | R32: 120 | S32: 151 | T32: 242 | U32: 5 | V32: 228 | W32: 59 | X32: 50 | Y32: 101 | Z32: 59 | AA32: 88 | AB32: 94 | AC32: 155 | AD32: 25 | AE32: 26 | AF32: 36 | AG32: 28 | AH32: 24 | AI32: 19 | AJ32: 96 | AK32: 188 | AL32: 124 | AM32: 145 | AN32: 99
A33: 30 | B33: MARNE-ARDENNES | C33: 11 | D33: REIMS | E33: 451370 | F33: EPERNAY VERRON | G33: 8.7 | H33: 24 | I33: 117 | J33: 51 | K33: 195 | L33: 95 | M33: 89 | N33: 41 | O33: 91 | P33: 22 | Q33: 67 | R33: 99 | S33: 235 | T33: 141 | U33: 14 | V33: 279 | W33: 86 | X33: 216 | Y33: 146 | Z33: 86 | AA33: 44 | AB33: 77 | AC33: 32 | AD33: 29 | AE33: 25 | AF33: 57 | AG33: 134 | AH33: 57 | AI33: 124 | AJ33: 279 | AK33: 241 | AL33: 20 | AM33: 20 | AN33: 71
A34: 160 | B34: MOSELLE | C34: 44 | D34: MOSELLE NORD | E34: 457449 | F34: METZERVISSE | G34: 2.2 | H34: 25 | I34: 109 | J34: 66 | K34: 34 | L34: 242 | M34: 269 | N34: 141 | O34: 78 | P34: 50 | Q34: 91 | R34: 288 | S34: 47 | T34: 164 | U34: 72 | V34: 33 | W34: 257 | X34: 102 | Y34: 137 | Z34: 283 | AA34: 275 | AB34: 277 | AC34: 216 | AD34: 33 | AE34: 20 | AF34: 97 | AG34: 40 | AH34: 106 | AI34: 24 | AJ34: 86 | AK34: 24 | AL34: 10 | AM34: 6 | AN34: 77
A35: 160 | B35: MOSELLE | C35: 44 | D35: MOSELLE NORD | E35: 557633 | F35: THIONVILLE COTE DES ROSES | G35: 1.8 | H35: 26 | I35: 94 | J35: 17 | K35: 136 | L35: 202 | M35: 89 | N35: 81 | O35: 35 | P35: 98 | Q35: 101 | R35: 172 | S35: 146 | T35: 20 | U35: 97 | V35: 277 | W35: 7 | X35: 2 | Y35: 3 | Z35: 56 | AA35: 47 | AB35: 6 | AC35: 223 | AD35: 38 | AE35: 4 | AF35: 270 | AG35: 15 | AH35: 8 | AI35: 25 | AJ35: 298 | AK35: 104 | AL35: 208 | AM35: 258 | AN35: 58
A36: 50 | B36: AUBE HAUTE MARNE | C36: 14 | D36: TROYES | E36: 510570 | F36: NOGENT SUR SEINE | G36: 3.5 | H36: 27 | I36: 90 | J36: 166 | K36: 111 | L36: 39 | M36: 89 | N36: 204 | O36: 188 | P36: 185 | Q36: 119 | R36: 230 | S36: 194 | T36: 211 | U36: 49 | V36: 193 | W36: 44 | X36: 20 | Y36: 37 | Z36: 68 | AA36: 156 | AB36: 93 | AC36: 156 | AD36: 105 | AE36: 89 | AF36: 131 | AG36: 176 | AH36: 273 | AI36: 100 | AJ36: 33 | AK36: 200 | AL36: 3 | AM36: 1 | AN36: 75
A37: 80 | B37: VOSGES | C37: 55 | D37: SAINT DIE | E37: 488616 | F37: SENONES | G37: 1.8 | H37: 28 | I37: 6 | J37: 57 | K37: 71 | L37: 11 | M37: 89 | N37: 35 | O37: 48 | P37: 71 | Q37: 137 | R37: 10 | S37: 181 | T37: 152 | U37: 29 | V37: 236 | W37: 91 | X37: 25 | Y37: 13 | Z37: 176 | AA37: 165 | AB37: 198 | AC37: 223 | AD37: 47 | AE37: 71 | AF37: 46 | AG37: 60 | AH37: 123 | AI37: 123 | AJ37: 45 | AK37: 59 | AL37: 120 | AM37: 97 | AN37: 175
A38: 30 | B38: MARNE-ARDENNES | C38: 6 | D38: CHALONS EN CHAMPAGNE | E38: 551330 | F38: MONTMIRAIL | G38: 3.3 | H38: 29 | I38: 35 | J38: 20 | K38: 172 | L38: 25 | M38: 89 | N38: 148 | O38: 67 | P38: 169 | Q38: 160 | R38: 172 | S38: 232 | T38: 71 | U38: 193 | V38: 269 | W38: 173 | X38: 258 | Y38: 231 | Z38: 130 | AA38: 49 | AB38: 88 | AC38: 222 | AD38: 71 | AE38: 183 | AF38: 29 | AG38: 33 | AH38: 51 | AI38: 87 | AJ38: 140 | AK38: 6 | AL38: 25 | AM38: 25 | AN38: 78
A39: 110 | B39: MEURTHE ET MOSELLE MEUSE | C39: 31 | D39: VERDUN | E39: 555679 | F39: VERDUN MAZEL | G39: 3.8 | H39: 30 | I39: 163 | J39: 59 | K39: 276 | L39: 66 | M39: 89 | N39: 218 | O39: 128 | P39: 187 | Q39: 161 | R39: 268 | S39: 144 | T39: 103 | U39: 60 | V39: 196 | W39: 154 | X39: 66 | Y39: 60 | Z39: 209 | AA39: 246 | AB39: 153 | AC39: 223 | AD39: 26 | AE39: 164 | AF39: 8 | AG39: 81 | AH39: 48 | AI39: 284 | AJ39: 108 | AK39: 109 | AL39: 6 | AM39: 12 | AN39: 14
A40: 30 | B40: MARNE-ARDENNES | C40: 2 | D40: CHARLEVILLE MEZIERES | E40: 508820 | F40: VOUZIERS | G40: 2.8 | H40: 31 | I40: 290 | J40: 295 | K40: 139 | L40: 293 | M40: 89 | N40: 2 | O40: 29 | P40: 2 | Q40: 3 | R40: 72 | S40: 152 | T40: 244 | U40: 200 | V40: 59 | W40: 22 | X40: 5 | Y40: 2 | Z40: 97 | AA40: 126 | AB40: 133 | AC40: 193 | AD40: 8 | AE40: 7 | AF40: 19 | AG40: 26 | AH40: 19 | AI40: 177 | AJ40: 69 | AK40: 48 | AL40: 283 | AM40: 290 | AN40: 222
A41: 262 | B41: BAS-RHIN | C41: 5006 | D41: STRASBOURG | E41: 4029 | F41: SCHILTIGHEIM KLEBER | G41: 1.6 | H41: 32 | I41: 73 | J41: 208 | K41: 238 | L41: 33 | M41: 2 | N41: 18 | O41: 213 | P41: 5 | Q41: 6 | R41: 245 | S41: 96 | T41: 74 | U41: 56 | V41: 168 | W41: 152 | X41: 73 | Y41: 226 | Z41: 195 | AA41: 141 | AB41: 182 | AC41: 147 | AD41: 28 | AE41: 267 | AF41: 6 | AG41: 37 | AH41: 32 | AI41: 28 | AJ41: 13 | AK41: 298 | AL41: 159 | AM41: 97 | AN41: 243
A42: 110 | B42: MEURTHE ET MOSELLE MEUSE | C42: 27 | D42: PONT A MOUSSON | E42: 554416 | F42: LUDRES | G42: 3.9 | H42: 33 | I42: 86 | J42: 87 | K42: 66 | L42: 172 | M42: 89 | N42: 72 | O42: 23 | P42: 138 | Q42: 181 | R42: 66 | S42: 5 | T42: 13 | U42: 16 | V42: 23 | W42: 178 | X42: 267 | Y42: 270 | Z42: 196 | AA42: 78 | AB42: 21 | AC42: 137 | AD42: 159 | AE42: 146 | AF42: 163 | AG42: 49 | AH42: 37 | AI42: 53 | AJ42: 124 | AK42: 228 | AL42: 51 | AM42: 87 | AN42: 9
A43: 30 | B43: MARNE-ARDENNES | C43: 11 | D43: REIMS | E43: 551314 | F43: FISMES | G43: 2.2 | H43: 34 | I43: 46 | J43: 7 | K43: 195 | L43: 114 | M43: 33 | N43: 114 | O43: 7 | P43: 208 | Q43: 143 | R43: 237 | S43: 297 | T43: 267 | U43: 301 | V43: 288 | W43: 13 | X43: 45 | Y43: 58 | Z43: 15 | AA43: 6 | AB43: 13 | AC43: 59 | AD43: 57 | AE43: 51 | AF43: 78 | AG43: 257 | AH43: 282 | AI43: 55 | AJ43: 301 | AK43: 118 | AL43: 30 | AM43: 37 | AN43: 52
A44: 30 | B44: MARNE-ARDENNES | C44: 2 | D44: CHARLEVILLE MEZIERES | E44: 408862 | F44: REVIN | G44: 4.0 | H44: 35 | I44: 102 | J44: 134 | K44: 162 | L44: 83 | M44: 76 | N44: 36 | O44: 41 | P44: 73 | Q44: 83 | R44: 23 | S44: 294 | T44: 284 | U44: 297 | V44: 268 | W44: 170 | X44: 168 | Y44: 109 | Z44: 144 | AA44: 129 | AB44: 178 | AC44: 123 | AD44: 51 | AE44: 53 | AF44: 61 | AG44: 38 | AH44: 43 | AI44: 127 | AJ44: 159 | AK44: 20 | AL44: 50 | AM44: 67 | AN44: 35
A45: 264 | B45: HAUT-RHIN | C45: 5130 | D45: COLMAR | E45: 4132 | F45: COLMAR MARAICHERS | G45: 2.3 | H45: 36 | I45: 32 | J45: 113 | K45: 56 | L45: 109 | M45: 39 | N45: 122 | O45: 139 | P45: 45 | Q45: 59 | R45: 274 | S45: 123 | T45: 240 | U45: 39 | V45: 91 | W45: 34 | X45: 21 | Y45: 10 | Z45: 64 | AA45: 248 | AB45: 146 | AC45: 20 | AD45: 255 | AE45: 289 | AF45: 152 | AG45: 34 | AH45: 15 | AI45: 154 | AJ45: 192 | AK45: 139 | AL45: 52 | AM45: 20 | AN45: 205
A46: 160 | B46: MOSELLE | C46: 45 | D46: METZ | E46: 557434 | F46: MARLY | G46: 3.6 | H46: 37 | I46: 9 | J46: 75 | K46: 30 | L46: 69 | M46: 69 | N46: 44 | O46: 14 | P46: 89 | Q46: 58 | R46: 170 | S46: 160 | T46: 41 | U46: 261 | V46: 244 | W46: 168 | X46: 262 | Y46: 225 | Z46: 78 | AA46: 195 | AB46: 47 | AC46: 201 | AD46: 220 | AE46: 188 | AF46: 210 | AG46: 14 | AH46: 9 | AI46: 132 | AJ46: 43 | AK46: 136 | AL46: 99 | AM46: 165 | AN46: 12
A47: 50 | B47: AUBE HAUTE MARNE | C47: 21 | D47: CHAUMONT | E47: 551157 | F47: SAINT DIZIER EUROPE | G47: 2.4 | H47: 38 | I47: 30 | J47: 164 | K47: 80 | L47: 14 | M47: 89 | N47: 69 | O47: 257 | P47: 41 | Q47: 27 | R47: 125 | S47: 15 | T47: 70 | U47: 213 | V47: 2 | W47: 98 | X47: 41 | Y47: 42 | Z47: 152 | AA47: 223 | AB47: 89 | AC47: 223 | AD47: 152 | AE47: 265 | AF47: 51 | AG47: 155 | AH47: 151 | AI47: 120 | AJ47: 224 | AK47: 120 | AL47: 63 | AM47: 44 | AN47: 154
A48: 30 | B48: MARNE-ARDENNES | C48: 6 | D48: CHALONS EN CHAMPAGNE | E48: 551354 | F48: VERTUS | G48: 2.9 | H48: 39 | I48: 31 | J48: 56 | K48: 195 | L48: 13 | M48: 58 | N48: 244 | O48: 155 | P48: 205 | Q48: 142 | R48: 290 | S48: 137 | T48: 188 | U48: 222 | V48: 78 | W48: 231 | X48: 105 | Y48: 115 | Z48: 180 | AA48: 239 | AB48: 270 | AC48: 306 | AD48: 101 | AE48: 169 | AF48: 59 | AG48: 83 | AH48: 75 | AI48: 214 | AJ48: 152 | AK48: 69 | AL48: 5 | AM48: 16 | AN48: 4
A49: 262 | B49: BAS-RHIN | C49: 5006 | D49: STRASBOURG | E49: 4019 | F49: STRASBOURG ANVERS | G49: 4.3 | H49: 40 | I49: 170 | J49: 162 | K49: 84 | L49: 261 | M49: 89 | N49: 12 | O49: 10 | P49: 48 | Q49: 15 | R49: 24 | S49: 171 | T49: 23 | U49: 15 | V49: 290 | W49: 15 | X49: 227 | Y49: 26 | Z49: 11 | AA49: 14 | AB49: 31 | AC49: 6 | AD49: 14 | AE49: 10 | AF49: 42 | AG49: 124 | AH49: 93 | AI49: 30 | AJ49: 83 | AK49: 290 | AL49: 230 | AM49: 204 | AN49: 237
A50: 50 | B50: AUBE HAUTE MARNE | C50: 21 | D50: CHAUMONT | E50: 510590 | F50: CHAUMONT REPUBLIQUE | G50: 2.5 | H50: 41 | I50: 2 | J50: 4 | K50: 12 | L50: 26 | M50: 42 | N50: 181 | O50: 61 | P50: 295 | Q50: 298 | R50: 44 | S50: 158 | T50: 173 | U50: 116 | V50: 139 | W50: 28 | X50: 9 | Y50: 12 | Z50: 90 | AA50: 167 | AB50: 76 | AC50: 171 | AD50: 298 | AE50: 303 | AF50: 249 | AG50: 175 | AH50: 274 | AI50: 51 | AJ50: 58 | AK50: 194 | AL50: 29 | AM50: 34 | AN50: 63
A51: 110 | B51: MEURTHE ET MOSELLE MEUSE | C51: 26 | D51: NANCY | E51: 454671 | F51: VANDOEUVRE LES NANCY | G51: 3.7 | H51: 42 | I51: 107 | J51: 190 | K51: 96 | L51: 78 | M51: 89 | N51: 186 | O51: 179 | P51: 107 | Q51: 227 | R51: 172 | S51: 33 | T51: 46 | U51: 99 | V51: 44 | W51: 93 | X51: 68 | Y51: 86 | Z51: 119 | AA51: 72 | AB51: 171 | AC51: 223 | AD51: 231 | AE51: 240 | AF51: 191 | AG51: 52 | AH51: 113 | AI51: 41 | AJ51: 26 | AK51: 185 | AL51: 11 | AM51: 5 | AN51: 138
A52: 80 | B52: VOSGES | C52: 55 | D52: SAINT DIE | E52: 488556 | F52: RAON L ETAPE | G52: 3.4 | H52: 43 | I52: 108 | J52: 229 | K52: 11 | L52: 222 | M52: 240 | N52: 27 | O52: 140 | P52: 64 | Q52: 46 | R52: 8 | S52: 126 | T52: 232 | U52: 185 | V52: 53 | W52: 49 | X52: 12 | Y52: 15 | Z52: 134 | AA52: 142 | AB52: 179 | AC52: 89 | AD52: 195 | AE52: 225 | AF52: 125 | AG52: 275 | AH52: 255 | AI52: 245 | AJ52: 278 | AK52: 187 | AL52: 22 | AM52: 54 | AN52: 5
A53: 110 | B53: MEURTHE ET MOSELLE MEUSE | C53: 27 | D53: PONT A MOUSSON | E53: 554496 | F53: NANCY TROIS MAISONS | G53: 2.8 | H53: 44 | I53: 65 | J53: 121 | K53: 108 | L53: 36 | M53: 89 | N53: 160 | O53: 124 | P53: 214 | Q53: 85 | R53: 221 | S53: 183 | T53: 113 | U53: 125 | V53: 202 | W53: 136 | X53: 89 | Y53: 172 | Z53: 131 | AA53: 122 | AB53: 163 | AC53: 223 | AD53: 46 | AE53: 48 | AF53: 67 | AG53: 118 | AH53: 76 | AI53: 116 | AJ53: 287 | AK53: 124 | AL53: 45 | AM53: 34 | AN53: 107
A54: 110 | B54: MEURTHE ET MOSELLE MEUSE | C54: 27 | D54: PONT A MOUSSON | E54: 454696 | F54: VILLERS GENERAL LECLERC | G54: 4.5 | H54: 45 | I54: 1 | J54: 2 | K54: 8 | L54: 62 | M54: 34 | N54: 82 | O54: 141 | P54: 180 | Q54: 155 | R54: 13 | S54: 14 | T54: 11 | U54: 108 | V54: 47 | W54: 17 | X54: 47 | Y54: 16 | Z54: 40 | AA54: 50 | AB54: 35 | AC54: 14 | AD54: 45 | AE54: 105 | AF54: 31 | AG54: 149 | AH54: 28 | AI54: 141 | AJ54: 268 | AK54: 296 | AL54: 289 | AM54: 292 | AN54: 253
A55: 110 | B55: MEURTHE ET MOSELLE MEUSE | C55: 31 | D55: VERDUN | E55: 554700 | F55: VILLERUPT | G55: 2.7 | H55: 46 | I55: 15 | J55: 153 | K55: 13 | L55: 39 | M55: 89 | N55: 43 | O55: 154 | P55: 38 | Q55: 23 | R55: 130 | S55: 127 | T55: 234 | U55: 75 | V55: 77 | W55: 176 | X55: 112 | Y55: 196 | Z55: 168 | AA55: 143 | AB55: 190 | AC55: 223 | AD55: 169 | AE55: 182 | AF55: 146 | AG55: 154 | AH55: 264 | AI55: 75 | AJ55: 34 | AK55: 175 | AL55: 58 | AM55: 74 | AN55: 46
A56: 50 | B56: AUBE HAUTE MARNE | C56: 21 | D56: CHAUMONT | E56: 410541 | F56: LANGRES | G56: 4.9 | H56: 47 | I56: 179 | J56: 80 | K56: 233 | L56: 158 | M56: 89 | N56: 111 | O56: 192 | P56: 93 | Q56: 198 | R56: 36 | S56: 105 | T56: 83 | U56: 126 | V56: 150 | W56: 147 | X56: 104 | Y56: 167 | Z56: 207 | AA56: 221 | AB56: 127 | AC56: 35 | AD56: 62 | AE56: 50 | AF56: 107 | AG56: 66 | AH56: 45 | AI56: 232 | AJ56: 149 | AK56: 83 | AL56: 37 | AM56: 25 | AN56: 112
A57: 30 | B57: MARNE-ARDENNES | C57: 11 | D57: REIMS | E57: 551309 | F57: REIMS EUROPE | G57: 3.1 | H57: 48 | I57: 140 | J57: 35 | K57: 229 | L57: 159 | M57: 89 | N57: 51 | O57: 18 | P57: 63 | Q57: 88 | R57: 172 | S57: 46 | T57: 43 | U57: 266 | V57: 72 | W57: 111 | X57: 53 | Y57: 97 | Z57: 132 | AA57: 196 | AB57: 137 | AC57: 121 | AD57: 146 | AE57: 116 | AF57: 175 | AG57: 100 | AH57: 189 | AI57: 7 | AJ57: 46 | AK57: 262 | AL57: 47 | AM57: 20 | AN57: 172
A58: 262 | B58: BAS-RHIN | C58: 5006 | D58: STRASBOURG | E58: 4043 | F58: STRASBOURG HALLES | G58: 8.6 | H58: 49 | I58: 37 | J58: 40 | K58: 103 | L58: 28 | M58: 232 | N58: 11 | O58: 36 | P58: 27 | Q58: 32 | R58: 7 | S58: 93 | T58: 68 | U58: 91 | V58: 155 | W58: 83 | X58: 196 | Y58: 141 | Z58: 114 | AA58: 155 | AB58: 112 | AC58: 9 | AD58: 35 | AE58: 79 | AF58: 33 | AG58: 75 | AH58: 183 | AI58: 29 | AJ58: 51 | AK58: 111 | AL58: 244 | AM58: 236 | AN58: 236
A59: 110 | B59: MEURTHE ET MOSELLE MEUSE | C59: 26 | D59: NANCY | E59: 554636 | F59: TOMBLAINE | G59: 2.8 | H59: 50 | I59: 134 | J59: 193 | K59: 76 | L59: 205 | M59: 89 | N59: 83 | O59: 71 | P59: 115 | Q59: 172 | R59: 43 | S59: 31 | T59: 85 | U59: 58 | V59: 28 | W59: 192 | X59: 94 | Y59: 106 | Z59: 254 | AA59: 149 | AB59: 208 | AC59: 223 | AD59: 81 | AE59: 60 | AF59: 115 | AG59: 84 | AH59: 101 | AI59: 90 | AJ59: 98 | AK59: 147 | AL59: 59 | AM59: 76 | AN59: 33
A60: 262 | B60: BAS-RHIN | C60: 5006 | D60: STRASBOURG | E60: 4033 | F60: LA WANTZENAU | G60: 1.3 | H60: 51 | I60: 250 | J60: 251 | K60: 62 | L60: 20 | M60: 306 | N60: 124 | O60: 279 | P60: 132 | Q60: 68 | R60: 61 | S60: 1 | T60: 10 | U60: 1 | V60: 294 | W60: 61 | X60: 49 | Y60: 34 | Z60: 43 | AA60: 279 | AB60: 57 | AC60: 87 | AD60: 188 | AE60: 119 | AF60: 219 | AG60: 245 | AH60: 167 | AI60: 145 | AJ60: 60 | AK60: 301 | AL60: 28 | AM60: 44 | AN60: 26
A61: 262 | B61: BAS-RHIN | C61: 5101 | D61: SELESTAT | E61: 4113 | F61: BARR | G61: 3.0 | H61: 52 | I61: 185 | J61: 120 | K61: 113 | L61: 224 | M61: 249 | N61: 59 | O61: 27 | P61: 113 | Q61: 106 | R61: 78 | S61: 153 | T61: 176 | U61: 123 | V61: 129 | W61: 68 | X61: 266 | Y61: 282 | Z61: 30 | AA61: 24 | AB61: 79 | AC61: 29 | AD61: 168 | AE61: 191 | AF61: 133 | AG61: 145 | AH61: 127 | AI61: 125 | AJ61: 103 | AK61: 235 | AL61: 15 | AM61: 12 | AN61: 102
A62: 264 | B62: HAUT-RHIN | C62: 5169 | D62: MULHOUSE | E62: 4180 | F62: RIEDISHEIM | G62: 3.4 | H62: 53 | I62: 40 | J62: 87 | K62: 64 | L62: 123 | M62: 64 | N62: 120 | O62: 74 | P62: 131 | Q62: 103 | R62: 204 | S62: 49 | T62: 51 | U62: 89 | V62: 106 | W62: 92 | X62: 134 | Y62: 173 | Z62: 84 | AA62: 90 | AB62: 103 | AC62: 60 | AD62: 202 | AE62: 117 | AF62: 256 | AG62: 73 | AH62: 114 | AI62: 174 | AJ62: 41 | AK62: 80 | AL62: 57 | AM62: 37 | AN62: 158
A63: 160 | B63: MOSELLE | C63: 42 | D63: MOSELLE EST | E63: 457163 | F63: BEHREN LES FORBACH | G63: 2.2 | H63: 54 | I63: 274 | J63: 238 | K63: 288 | L63: 192 | M63: 32 | N63: 107 | O63: 117 | P63: 77 | Q63: 64 | R63: 225 | S63: 251 | T63: 252 | U63: 280 | V63: 179 | W63: 51 | X63: 19 | Y63: 46 | Z63: 93 | AA63: 136 | AB63: 155 | AC63: 133 | AD63: 53 | AE63: 46 | AF63: 84 | AG63: 89 | AH63: 99 | AI63: 121 | AJ63: 209 | AK63: 56 | AL63: 17 | AM63: 6 | AN63: 133
A64: 262 | B64: BAS-RHIN | C64: 5006 | D64: STRASBOURG | E64: 4054 | F64: STRASBOURG MONTAGNE VERTE | G64: 2.9 | H64: 55 | I64: 3 | J64: 29 | K64: 10 | L64: 124 | M64: 56 | N64: 159 | O64: 231 | P64: 128 | Q64: 114 | R64: 155 | S64: 81 | T64: 235 | U64: 211 | V64: 32 | W64: 193 | X64: 120 | Y64: 159 | Z64: 250 | AA64: 276 | AB64: 191 | AC64: 30 | AD64: 10 | AE64: 98 | AF64: 5 | AG64: 130 | AH64: 261 | AI64: 14 | AJ64: 40 | AK64: 224 | AL64: 205 | AM64: 246 | AN64: 98
A65: 30 | B65: MARNE-ARDENNES | C65: 11 | D65: REIMS | E65: 551305 | F65: REIMS HIPPODROME | G65: 3.6 | H65: 56 | I65: 21 | J65: 16 | K65: 24 | L65: 191 | M65: 89 | N65: 226 | O65: 142 | P65: 268 | Q65: 257 | R65: 144 | S65: 68 | T65: 55 | U65: 293 | V65: 89 | W65: 42 | X65: 252 | Y65: 128 | Z65: 23 | AA65: 12 | AB65: 11 | AC65: 175 | AD65: 142 | AE65: 143 | AF65: 142 | AG65: 250 | AH65: 176 | AI65: 26 | AJ65: 289 | AK65: 291 | AL65: 43 | AM65: 16 | AN65: 162
A66: 30 | B66: MARNE-ARDENNES | C66: 2 | D66: CHARLEVILLE MEZIERES | E66: 408840 | F66: RETHEL | G66: 6.2 | H66: 57 | I66: 167 | J66: 87 | K66: 240 | L66: 126 | M66: 84 | N66: 70 | O66: 93 | P66: 43 | Q66: 63 | R66: 169 | S66: 278 | T66: 298 | U66: 145 | V66: 219 | W66: 134 | X66: 145 | Y66: 143 | Z66: 146 | AA66: 70 | AB66: 125 | AC66: 149 | AD66: 156 | AE66: 122 | AF66: 178 | AG66: 13 | AH66: 17 | AI66: 37 | AJ66: 80 | AK66: 12 | AL66: 53 | AM66: 25 | AN66: 182
A67: 30 | B67: MARNE-ARDENNES | C67: 6 | D67: CHALONS EN CHAMPAGNE | E67: 551110 | F67: CHALONS ROOSEVELT | G67: 5.5 | H67: 58 | I67: 177 | J67: 122 | K67: 174 | L67: 163 | M67: 226 | N67: 113 | O67: 81 | P67: 74 | Q67: 152 | R67: 153 | S67: 9 | T67: 2 | U67: 96 | V67: 141 | W67: 177 | X67: 226 | Y67: 210 | Z67: 162 | AA67: 91 | AB67: 116 | AC67: 69 | AD67: 111 | AE67: 111 | AF67: 108 | AG67: 159 | AH67: 182 | AI67: 161 | AJ67: 129 | AK67: 116 | AL67: 33 | AM67: 44 | AN67: 41
A68: 160 | B68: MOSELLE | C68: 45 | D68: METZ | E68: 557444 | F68: METZ SAINT JULIEN | G68: 6.0 | H68: 59 | I68: 95 | J68: 176 | K68: 52 | L68: 93 | M68: 246 | N68: 49 | O68: 58 | P68: 56 | Q68: 48 | R68: 145 | S68: 36 | T68: 132 | U68: 109 | V68: 16 | W68: 141 | X68: 215 | Y68: 254 | Z68: 63 | AA68: 103 | AB68: 124 | AC68: 187 | AD68: 82 | AE68: 59 | AF68: 119 | AG68: 223 | AH68: 131 | AI68: 231 | AJ68: 236 | AK68: 245 | AL68: 74 | AM68: 51 | AN68: 147
A69: 262 | B69: BAS-RHIN | C69: 5006 | D69: STRASBOURG | E69: 4037 | F69: MUNDOLSHEIM | G69: 4.1 | H69: 60 | I69: 34 | J69: 241 | K69: 143 | L69: 19 | M69: 6 | N69: 33 | O69: 97 | P69: 16 | Q69: 25 | R69: 150 | S69: 100 | T69: 111 | U69: 24 | V69: 162 | W69: 135 | X69: 52 | Y69: 59 | Z69: 217 | AA69: 178 | AB69: 131 | AC69: 170 | AD69: 148 | AE69: 227 | AF69: 77 | AG69: 74 | AH69: 81 | AI69: 77 | AJ69: 92 | AK69: 184 | AL69: 115 | AM69: 97 | AN69: 165
A70: 262 | B70: BAS-RHIN | C70: 5060 | D70: HAGUENAU | E70: 4071 | F70: WISSEMBOURG | G70: 8.4 | H70: 61 | I70: 110 | J70: 151 | K70: 156 | L70: 100 | M70: 53 | N70: 190 | O70: 151 | P70: 217 | Q70: 186 | R70: 147 | S70: 128 | T70: 129 | U70: 118 | V70: 134 | W70: 226 | X70: 191 | Y70: 191 | Z70: 204 | AA70: 210 | AB70: 207 | AC70: 111 | AD70: 80 | AE70: 104 | AF70: 62 | AG70: 106 | AH70: 191 | AI70: 222 | AJ70: 23 | AK70: 67 | AL70: 19 | AM70: 14 | AN70: 97
A71: 264 | B71: HAUT-RHIN | C71: 5130 | D71: COLMAR | E71: 4162 | F71: ENSISHEIM | G71: 4.5 | H71: 62 | I71: 5 | J71: 87 | K71: 27 | L71: 80 | M71: 14 | N71: 45 | O71: 55 | P71: 54 | Q71: 110 | R71: 57 | S71: 124 | T71: 139 | U71: 181 | V71: 108 | W71: 144 | X71: 250 | Y71: 133 | Z71: 73 | AA71: 139 | AB71: 54 | AC71: 196 | AD71: 50 | AE71: 133 | AF71: 26 | AG71: 55 | AH71: 69 | AI71: 78 | AJ71: 62 | AK71: 192 | AL71: 214 | AM71: 236 | AN71: 140
A72: 160 | B72: MOSELLE | C72: 42 | D72: MOSELLE EST | E72: 457165 | F72: BITCHE | G72: 3.4 | H72: 63 | I72: 162 | J72: 53 | K72: 188 | L72: 235 | M72: 89 | N72: 16 | O72: 11 | P72: 80 | Q72: 20 | R72: 27 | S72: 136 | T72: 203 | U72: 103 | V72: 92 | W72: 186 | X72: 158 | Y72: 110 | Z72: 136 | AA72: 258 | AB72: 119 | AC72: 210 | AD72: 162 | AE72: 228 | AF72: 82 | AG72: 110 | AH72: 85 | AI72: 188 | AJ72: 235 | AK72: 72 | AL72: 62 | AM72: 90 | AN72: 18
A73: 50 | B73: AUBE HAUTE MARNE | C73: 21 | D73: CHAUMONT | E73: 410560 | F73: BOURBONNE LES BAINS | G73: 1.8 | H73: 64 | I73: 150 | J73: 81 | K73: 265 | L73: 156 | M73: 26 | N73: 144 | O73: 100 | P73: 86 | Q73: 122 | R73: 242 | S73: 140 | T73: 163 | U73: 269 | V73: 87 | W73: 217 | X73: 39 | Y73: 30 | Z73: 288 | AA73: 283 | AB73: 287 | AC73: 223 | AD73: 122 | AE73: 92 | AF73: 159 | AG73: 46 | AH73: 39 | AI73: 235 | AJ73: 165 | AK73: 15 | AL73: 21 | AM73: 24 | AN73: 65
A74: 160 | B74: MOSELLE | C74: 42 | D74: MOSELLE EST | E74: 457345 | F74: GROSBLIEDERSTROFF | G74: 2.3 | H74: 65 | I74: 39 | J74: 112 | K74: 74 | L74: 34 | M74: 89 | N74: 210 | O74: 57 | P74: 188 | Q74: 174 | R74: 287 | S74: 241 | T74: 160 | U74: 246 | V74: 238 | W74: 107 | X74: 95 | Y74: 87 | Z74: 125 | AA74: 81 | AB74: 160 | AC74: 163 | AD74: 58 | AE74: 49 | AF74: 90 | AG74: 235 | AH74: 306 | AI74: 62 | AJ74: 170 | AK74: 64 | AL74: 35 | AM74: 76 | AN74: 3
A75: 30 | B75: MARNE-ARDENNES | C75: 6 | D75: CHALONS EN CHAMPAGNE | E75: 451115 | F75: MOURMELON suippes | G75: 3.0 | H75: 66 | I75: 63 | J75: 87 | K75: 195 | L75: 2 | M75: 290 | N75: 135 | O75: 63 | P75: 126 | Q75: 179 | R75: 195 | S75: 244 | T75: 154 | U75: 234 | V75: 243 | W75: 96 | X75: 82 | Y75: 20 | Z75: 121 | AA75: 85 | AB75: 174 | AC75: 198 | AD75: 11 | AE75: 9 | AF75: 32 | AG75: 16 | AH75: 29 | AI75: 63 | AJ75: 22 | AK75: 58 | AL75: 236 | AM75: 283 | AN75: 55
A76: 160 | B76: MOSELLE | C76: 42 | D76: MOSELLE EST | E76: 557305 | F76: FAULQUEMONT | G76: 3.0 | H76: 67 | I76: 234 | J76: 133 | K76: 195 | L76: 253 | M76: 89 | N76: 58 | O76: 92 | P76: 36 | Q76: 76 | R76: 140 | S76: 83 | T76: 178 | U76: 164 | V76: 45 | W76: 52 | X76: 106 | Y76: 188 | Z76: 48 | AA76: 29 | AB76: 45 | AC76: 223 | AD76: 40 | AE76: 27 | AF76: 88 | AG76: 24 | AH76: 11 | AI76: 175 | AJ76: 205 | AK76: 47 | AL76: 181 | AM76: 242 | AN76: 36
A77: 160 | B77: MOSELLE | C77: 45 | D77: METZ | E77: 457443 | F77: METZ REPUBLIQUE | G77: 4.2 | H77: 68 | I77: 68 | J77: 102 | K77: 73 | L77: 106 | M77: 89 | N77: 178 | O77: 239 | P77: 105 | Q77: 75 | R77: 250 | S77: 116 | T77: 127 | U77: 32 | V77: 172 | W77: 119 | X77: 274 | Y77: 235 | Z77: 69 | AA77: 189 | AB77: 74 | AC77: 19 | AD77: 135 | AE77: 195 | AF77: 83 | AG77: 249 | AH77: 115 | AI77: 168 | AJ77: 245 | AK77: 289 | AL77: 12 | AM77: 20 | AN77: 44
A78: 160 | B78: MOSELLE | C78: 45 | D78: METZ | E78: 457453 | F78: MONTIGNY CENTRALE | G78: 7.2 | H78: 69 | I78: 43 | J78: 43 | K78: 121 | L78: 73 | M78: 86 | N78: 133 | O78: 65 | P78: 219 | Q78: 244 | R78: 58 | S78: 254 | T78: 67 | U78: 9 | V78: 298 | W78: 65 | X78: 151 | Y78: 103 | Z78: 47 | AA78: 150 | AB78: 23 | AC78: 43 | AD78: 182 | AE78: 147 | AF78: 189 | AG78: 69 | AH78: 46 | AI78: 46 | AJ78: 106 | AK78: 265 | AL78: 71 | AM78: 97 | AN78: 20
A79: 50 | B79: AUBE HAUTE MARNE | C79: 14 | D79: TROYES | E79: 510511 | F79: TROYES BROSSOLETTE | G79: 3.2 | H79: 70 | I79: 60 | J79: 28 | K79: 169 | L79: 55 | M79: 89 | N79: 66 | O79: 37 | P79: 20 | Q79: 31 | R79: 303 | S79: 122 | T79: 209 | U79: 110 | V79: 76 | W79: 39 | X79: 44 | Y79: 112 | Z79: 32 | AA79: 77 | AB79: 46 | AC79: 223 | AD79: 254 | AE79: 301 | AF79: 96 | AG79: 58 | AH79: 129 | AI79: 189 | AJ79: 14 | AK79: 100 | AL79: 102 | AM79: 123 | AN79: 61
A80: 160 | B80: MOSELLE | C80: 44 | D80: MOSELLE NORD | E80: 557113 | F80: AUDUN LE TICHE | G80: 2.2 | H80: 71 | I80: 243 | J80: 276 | K80: 150 | L80: 231 | M80: 89 | N80: 28 | O80: 9 | P80: 49 | Q80: 11 | R80: 236 | S80: 131 | T80: 303 | U80: 136 | V80: 26 | W80: 73 | X80: 103 | Y80: 44 | Z80: 85 | AA80: 46 | AB80: 70 | AC80: 223 | AD80: 39 | AE80: 94 | AF80: 30 | AG80: 22 | AH80: 58 | AI80: 3 | AJ80: 42 | AK80: 143 | AL80: 192 | AM80: 236 | AN80: 81
A81: 30 | B81: MARNE-ARDENNES | C81: 11 | D81: REIMS | E81: 551307 | F81: REIMS SAINTE ANNE | G81: 3.3 | H81: 72 | I81: 104 | J81: 48 | K81: 148 | L81: 21 | M81: 300 | N81: 79 | O81: 51 | P81: 109 | Q81: 177 | R81: 59 | S81: 295 | T81: 286 | U81: 182 | V81: 273 | W81: 114 | X81: 81 | Y81: 179 | Z81: 142 | AA81: 114 | AB81: 99 | AC81: 141 | AD81: 13 | AE81: 22 | AF81: 21 | AG81: 87 | AH81: 112 | AI81: 35 | AJ81: 130 | AK81: 203 | AL81: 133 | AM81: 81 | AN81: 239
A82: 80 | B82: VOSGES | C82: 57 | D82: EPINAL | E82: 588716 | F82: XERTIGNY | G82: 2.9 | H82: 73 | I82: 114 | J82: 108 | K82: 78 | L82: 143 | M82: 250 | N82: 23 | O82: 66 | P82: 13 | Q82: 18 | R82: 141 | S82: 176 | T82: 181 | U82: 279 | V82: 128 | W82: 66 | X82: 87 | Y82: 75 | Z82: 41 | AA82: 106 | AB82: 86 | AC82: 223 | AD82: 118 | AE82: 99 | AF82: 144 | AG82: 231 | AH82: 293 | AI82: 220 | AJ82: 36 | AK82: 177 | AL82: 93 | AM82: 81 | AN82: 129
A83: 80 | B83: VOSGES | C83: 55 | D83: SAINT DIE | E83: 588551 | F83: RAMBERVILLERS | G83: 3.4 | H83: 74 | I83: 38 | J83: 41 | K83: 189 | L83: 54 | M83: 22 | N83: 63 | O83: 32 | P83: 162 | Q83: 51 | R83: 116 | S83: 132 | T83: 233 | U83: 187 | V83: 55 | W83: 64 | X83: 115 | Y83: 66 | Z83: 54 | AA83: 26 | AB83: 134 | AC83: 113 | AD83: 119 | AE83: 185 | AF83: 71 | AG83: 267 | AH83: 229 | AI83: 228 | AJ83: 199 | AK83: 249 | AL83: 84 | AM83: 90 | AN83: 80
A84: 160 | B84: MOSELLE | C84: 44 | D84: MOSELLE NORD | E84: 557622 | F84: SIERCK LES BAINS | G84: 2.0 | H84: 75 | I84: 66 | J84: 37 | K84: 42 | L84: 257 | M84: 89 | N84: 117 | O84: 34 | P84: 193 | Q84: 214 | R84: 108 | S84: 272 | T84: 93 | U84: 137 | V84: 286 | W84: 182 | X84: 280 | Y84: 284 | Z84: 61 | AA84: 179 | AB84: 75 | AC84: 223 | AD84: 93 | AE84: 15 | AF84: 274 | AG84: 161 | AH84: 194 | AI84: 95 | AJ84: 187 | AK84: 106 | AL84: 36 | AM84: 6 | AN84: 210
A85: 262 | B85: BAS-RHIN | C85: 5060 | D85: HAGUENAU | E85: 4031 | F85: TRUCHTERSHEIM | G85: 2.7 | H85: 76 | I85: 47 | J85: 13 | K85: 195 | L85: 74 | M85: 51 | N85: 50 | O85: 30 | P85: 79 | Q85: 73 | R85: 128 | S85: 28 | T85: 19 | U85: 94 | V85: 85 | W85: 72 | X85: 172 | Y85: 22 | Z85: 137 | AA85: 18 | AB85: 62 | AC85: 42 | AD85: 257 | AE85: 248 | AF85: 237 | AG85: 166 | AH85: 146 | AI85: 142 | AJ85: 67 | AK85: 261 | AL85: 87 | AM85: 123 | AN85: 31
A86: 80 | B86: VOSGES | C86: 55 | D86: SAINT DIE | E86: 488326 | F86: GERARDMER | G86: 5.1 | H86: 77 | I86: 240 | J86: 101 | K86: 177 | L86: 266 | M86: 263 | N86: 126 | O86: 94 | P86: 108 | Q86: 107 | R86: 207 | S86: 10 | T86: 24 | U86: 50 | V86: 11 | W86: 153 | X86: 132 | Y86: 71 | Z86: 156 | AA86: 168 | AB86: 169 | AC86: 98 | AD86: 100 | AE86: 68 | AF86: 156 | AG86: 193 | AH86: 65 | AI86: 255 | AJ86: 194 | AK86: 279 | AL86: 26 | AM86: 44 | AN86: 24
A87: 30 | B87: MARNE-ARDENNES | C87: 6 | D87: CHALONS EN CHAMPAGNE | E87: 451120 | F87: SARRY | G87: 2.5 | H87: 78 | I87: 24 | J87: 87 | K87: 126 | L87: 4 | M87: 89 | N87: 158 | O87: 87 | P87: 159 | Q87: 180 | R87: 197 | S87: 59 | T87: 207 | U87: 45 | V87: 41 | W87: 263 | X87: 239 | Y87: 181 | Z87: 248 | AA87: 186 | AB87: 247 | AC87: 223 | AD87: 181 | AE87: 80 | AF87: 271 | AG87: 96 | AH87: 254 | AI87: 219 | AJ87: 21 | AK87: 4 | AL87: 49 | AM87: 81 | AN87: 11
A88: 80 | B88: VOSGES | C88: 55 | D88: SAINT DIE | E88: 588186 | F88: BRUYERES | G88: 2.4 | H88: 79 | I88: 276 | J88: 249 | K88: 195 | L88: 285 | M88: 89 | N88: 68 | O88: 82 | P88: 46 | Q88: 42 | R88: 226 | S88: 67 | T88: 89 | U88: 37 | V88: 123 | W88: 18 | X88: 17 | Y88: 4 | Z88: 21 | AA88: 38 | AB88: 113 | AC88: 223 | AD88: 52 | AE88: 199 | AF88: 17 | AG88: 232 | AH88: 121 | AI88: 61 | AJ88: 206 | AK88: 302 | AL88: 82 | AM88: 67 | AN88: 139
A89: 160 | B89: MOSELLE | C89: 42 | D89: MOSELLE EST | E89: 557250 | F89: CREUTZWALD | G89: 2.8 | H89: 80 | I89: 213 | J89: 303 | K89: 110 | L89: 86 | M89: 89 | N89: 95 | O89: 40 | P89: 167 | Q89: 203 | R89: 49 | S89: 44 | T89: 65 | U89: 156 | V89: 57 | W89: 54 | X89: 58 | Y89: 27 | Z89: 94 | AA89: 71 | AB89: 58 | AC89: 150 | AD89: 31 | AE89: 18 | AF89: 87 | AG89: 95 | AH89: 95 | AI89: 170 | AJ89: 95 | AK89: 133 | AL89: 142 | AM89: 165 | AN89: 114
A90: 30 | B90: MARNE-ARDENNES | C90: 11 | D90: REIMS | E90: 451336 | F90: TINQUEUX | G90: 4.8 | H90: 81 | I90: 159 | J90: 87 | K90: 283 | L90: 96 | M90: 19 | N90: 173 | O90: 178 | P90: 243 | Q90: 267 | R90: 34 | S90: 2 | T90: 1 | U90: 135 | V90: 68 | W90: 29 | X90: 217 | Y90: 175 | Z90: 62 | AA90: 35 | AB90: 50 | AC90: 3 | AD90: 206 | AE90: 151 | AF90: 218 | AG90: 80 | AH90: 55 | AI90: 98 | AJ90: 181 | AK90: 206 | AL90: 131 | AM90: 123 | AN90: 152
A91: 110 | B91: MEURTHE ET MOSELLE MEUSE | C91: 27 | D91: PONT A MOUSSON | E91: 554516 | F91: PAGNY SUR MOSELLE | G91: 2.5 | H91: 82 | I91: 61 | J91: 14 | K91: 25 | L91: 299 | M91: 89 | N91: 215 | O91: 181 | P91: 202 | Q91: 200 | R91: 203 | S91: 37 | T91: 38 | U91: 281 | V91: 42 | W91: 99 | X91: 126 | Y91: 81 | Z91: 77 | AA91: 108 | AB91: 144 | AC91: 159 | AD91: 69 | AE91: 61 | AF91: 89 | AG91: 171 | AH91: 141 | AI91: 162 | AJ91: 123 | AK91: 244 | AL91: 91 | AM91: 108 | AN91: 68
A92: 30 | B92: MARNE-ARDENNES | C92: 2 | D92: CHARLEVILLE MEZIERES | E92: 508802 | F92: CHARLEVILLE NEVERS | G92: 3.8 | H92: 83 | I92: 91 | J92: 18 | K92: 158 | L92: 102 | M92: 236 | N92: 97 | O92: 60 | P92: 102 | Q92: 138 | R92: 117 | S92: 175 | T92: 184 | U92: 231 | V92: 133 | W92: 95 | X92: 90 | Y92: 132 | Z92: 112 | AA92: 98 | AB92: 130 | AC92: 102 | AD92: 36 | AE92: 64 | AF92: 39 | AG92: 101 | AH92: 83 | AI92: 178 | AJ92: 156 | AK92: 110 | AL92: 161 | AM92: 174 | AN92: 137
A93: 160 | B93: MOSELLE | C93: 42 | D93: MOSELLE EST | E93: 557503 | F93: NEUNKIRCH | G93: 3.0 | H93: 84 | I93: 116 | J93: 179 | K93: 92 | L93: 118 | M93: 89 | N93: 80 | O93: 95 | P93: 91 | Q93: 124 | R93: 63 | S93: 191 | T93: 115 | U93: 240 | V93: 192 | W93: 128 | X93: 193 | Y93: 256 | Z93: 60 | AA93: 37 | AB93: 240 | AC93: 191 | AD93: 131 | AE93: 103 | AF93: 157 | AG93: 234 | AH93: 232 | AI93: 298 | AJ93: 161 | AK93: 57 | AL93: 48 | AM93: 54 | AN93: 51
A94: 110 | B94: MEURTHE ET MOSELLE MEUSE | C94: 27 | D94: PONT A MOUSSON | E94: 454466 | F94: NANCY PLATEAU DE HAYE | G94: 1.9 | H94: 85 | I94: 23 | J94: 9 | K94: 79 | L94: 84 | M94: 89 | N94: 237 | O94: 269 | P94: 225 | Q94: 189 | R94: 149 | S94: 202 | T94: 299 | U94: 287 | V94: 52 | W94: 21 | X94: 14 | Y94: 14 | Z94: 80 | AA94: 16 | AB94: 59 | AC94: 223 | AD94: 192 | AE94: 238 | AF94: 111 | AG94: 121 | AH94: 79 | AI94: 34 | AJ94: 191 | AK94: 276 | AL94: 111 | AM94: 113 | AN94: 96
A95: 110 | B95: MEURTHE ET MOSELLE MEUSE | C95: 31 | D95: VERDUN | E95: 455566 | F95: REVIGNY SUR ORNAIN | G95: 3.0 | H95: 86 | I95: 239 | J95: 187 | K95: 183 | L95: 212 | M95: 248 | N95: 93 | O95: 166 | P95: 61 | Q95: 45 | R95: 164 | S95: 154 | T95: 119 | U95: 254 | V95: 137 | W95: 139 | X95: 13 | Y95: 41 | Z95: 277 | AA95: 270 | AB95: 261 | AC95: 223 | AD95: 126 | AE95: 266 | AF95: 34 | AG95: 107 | AH95: 100 | AI95: 194 | AJ95: 267 | AK95: 22 | AL95: 38 | AM95: 25 | AN95: 116
A96: 262 | B96: BAS-RHIN | C96: 5006 | D96: STRASBOURG | E96: 4047 | F96: STRASBOURG CRONENBOURG | G96: 5.9 | H96: 87 | I96: 88 | J96: 38 | K96: 193 | L96: 57 | M96: 89 | N96: 20 | O96: 42 | P96: 11 | Q96: 21 | R96: 134 | S96: 195 | T96: 223 | U96: 224 | V96: 130 | W96: 169 | X96: 296 | Y96: 278 | Z96: 100 | AA96: 43 | AB96: 49 | AC96: 212 | AD96: 245 | AE96: 215 | AF96: 242 | AG96: 31 | AH96: 30 | AI96: 94 | AJ96: 29 | AK96: 173 | AL96: 135 | AM96: 186 | AN96: 70
A97: 30 | B97: MARNE-ARDENNES | C97: 11 | D97: REIMS | E97: 551365 | F97: DORMANS | G97: 2.3 | H97: 88 | I97: 79 | J97: 23 | K97: 54 | L97: 111 | M97: 298 | N97: 293 | O97: 84 | P97: 269 | Q97: 286 | R97: 305 | S97: 65 | T97: 57 | U97: 175 | V97: 105 | W97: 102 | X97: 283 | Y97: 245 | Z97: 31 | AA97: 66 | AB97: 66 | AC97: 79 | AD97: 218 | AE97: 212 | AF97: 180 | AG97: 70 | AH97: 64 | AI97: 134 | AJ97: 145 | AK97: 113 | AL97: 23 | AM97: 14 | AN97: 120
A98: 110 | B98: MEURTHE ET MOSELLE MEUSE | C98: 31 | D98: VERDUN | E98: 455151 | F98: BAR LE DUC | G98: 8.9 | H98: 89 | I98: 196 | J98: 87 | K98: 251 | L98: 147 | M98: 89 | N98: 54 | O98: 137 | P98: 44 | Q98: 53 | R98: 83 | S98: 118 | T98: 168 | U98: 69 | V98: 119 | W98: 108 | X98: 61 | Y98: 88 | Z98: 129 | AA98: 176 | AB98: 111 | AC98: 182 | AD98: 78 | AE98: 148 | AF98: 45 | AG98: 160 | AH98: 186 | AI98: 148 | AJ98: 94 | AK98: 157 | AL98: 85 | AM98: 60 | AN98: 179
A99: 160 | B99: MOSELLE | C99: 45 | D99: METZ | E99: 557105 | F99: ARS SUR MOSELLE | G99: 4.3 | H99: 90 | I99: 298 | J99: 142 | K99: 300 | L99: 264 | M99: 89 | N99: 67 | O99: 26 | P99: 190 | Q99: 80 | R99: 86 | S99: 166 | T99: 140 | U99: 34 | V99: 214 | W99: 11 | X99: 3 | Y99: 18 | Z99: 29 | AA99: 64 | AB99: 44 | AC99: 139 | AD99: 73 | AE99: 62 | AF99: 101 | AG99: 32 | AH99: 33 | AI99: 52 | AJ99: 142 | AK99: 70 | AL99: 150 | AM99: 212 | AN99: 42
A100: 110 | B100: MEURTHE ET MOSELLE MEUSE | C100: 31 | D100: VERDUN | E100: 455678 | F100: VERDUN CENTRALE | G100: 7.4 | H100: 91 | I100: 199 | J100: 87 | K100: 271 | L100: 77 | M100: 221 | N100: 143 | O100: 212 | P100: 165 | Q100: 182 | R100: 45 | S100: 90 | T100: 62 | U100: 84 | V100: 169 | W100: 37 | X100: 135 | Y100: 76 | Z100: 27 | AA100: 56 | AB100: 40 | AC100: 31 | AD100: 129 | AE100: 75 | AF100: 198 | AG100: 196 | AH100: 196 | AI100: 155 | AJ100: 87 | AK100: 240 | AL100: 67 | AM100: 90 | AN100: 22
A101: 160 | B101: MOSELLE | C101: 42 | D101: MOSELLE EST | E101: 557458 | F101: MORHANGE | G101: 2.6 | H101: 92 | I101: 296 | J101: 111 | K101: 299 | L101: 185 | M101: 261 | N101: 31 | O101: 50 | P101: 10 | Q101: 26 | R101: 231 | S101: 74 | T101: 293 | U101: 214 | V101: 10 | W101: 123 | X101: 178 | Y101: 185 | Z101: 89 | AA101: 53 | AB101: 126 | AC101: 223 | AD101: 59 | AE101: 47 | AF101: 104 | AG101: 62 | AH101: 21 | AI101: 296 | AJ101: 273 | AK101: 31 | AL101: 94 | AM101: 113 | AN101: 60
A102: 160 | B102: MOSELLE | C102: 44 | D102: MOSELLE NORD | E102: 557307 | F102: FONTOY | G102: 3.0 | H102: 93 | I102: 178 | J102: 32 | K102: 241 | L102: 141 | M102: 245 | N102: 62 | O102: 105 | P102: 92 | Q102: 96 | R102: 42 | S102: 79 | T102: 172 | U102: 152 | V102: 46 | W102: 103 | X102: 36 | Y102: 96 | Z102: 116 | AA102: 148 | AB102: 228 | AC102: 223 | AD102: 171 | AE102: 125 | AF102: 201 | AG102: 61 | AH102: 120 | AI102: 197 | AJ102: 91 | AK102: 3 | AL102: 105 | AM102: 137 | AN102: 47
A103: 30 | B103: MARNE-ARDENNES | C103: 2 | D103: CHARLEVILLE MEZIERES | E103: 408801 | F103: CHARLEVILLE JEAN JAURES | G103: 8.8 | H103: 94 | I103: 133 | J103: 124 | K103: 140 | L103: 198 | M103: 81 | N103: 71 | O103: 24 | P103: 118 | Q103: 154 | R103: 85 | S103: 155 | T103: 92 | U103: 46 | V103: 229 | W103: 23 | X103: 119 | Y103: 70 | Z103: 12 | AA103: 20 | AB103: 18 | AC103: 77 | AD103: 252 | AE103: 202 | AF103: 268 | AG103: 51 | AH103: 61 | AI103: 84 | AJ103: 134 | AK103: 81 | AL103: 126 | AM103: 137 | AN103: 117
A104: 262 | B104: BAS-RHIN | C104: 5101 | D104: SELESTAT | E104: 4120 | F104: WASSELONNE | G104: 2.7 | H104: 95 | I104: 58 | J104: 137 | K104: 23 | L104: 196 | M104: 89 | N104: 185 | O104: 122 | P104: 253 | Q104: 233 | R104: 96 | S104: 27 | T104: 52 | U104: 275 | V104: 17 | W104: 156 | X104: 146 | Y104: 163 | Z104: 138 | AA104: 132 | AB104: 138 | AC104: 223 | AD104: 170 | AE104: 208 | AF104: 118 | AG104: 123 | AH104: 162 | AI104: 139 | AJ104: 61 | AK104: 142 | AL104: 88 | AM104: 113 | AN104: 48
A105: 110 | B105: MEURTHE ET MOSELLE MEUSE | C105: 27 | D105: PONT A MOUSSON | E105: 454355 | F105: JARNY | G105: 3.7 | H105: 96 | I105: 69 | J105: 296 | K105: 16 | L105: 39 | M105: 89 | N105: 250 | O105: 262 | P105: 228 | Q105: 240 | R105: 172 | S105: 102 | T105: 122 | U105: 247 | V105: 73 | W105: 166 | X105: 177 | Y105: 156 | Z105: 135 | AA105: 97 | AB105: 158 | AC105: 177 | AD105: 203 | AE105: 96 | AF105: 277 | AG105: 131 | AH105: 132 | AI105: 85 | AJ105: 84 | AK105: 250 | AL105: 32 | AM105: 44 | AN105: 38
A106: 80 | B106: VOSGES | C106: 57 | D106: EPINAL | E106: 488561 | F106: REMIREMONT | G106: 6.5 | H106: 97 | I106: 26 | J106: 192 | K106: 43 | L106: 107 | M106: 9 | N106: 118 | O106: 121 | P106: 143 | Q106: 170 | R106: 67 | S106: 43 | T106: 86 | U106: 54 | V106: 71 | W106: 191 | X106: 242 | Y106: 237 | Z106: 153 | AA106: 170 | AB106: 107 | AC106: 45 | AD106: 140 | AE106: 165 | AF106: 121 | AG106: 111 | AH106: 155 | AI106: 173 | AJ106: 25 | AK106: 195 | AL106: 132 | AM106: 137 | AN106: 128
A107: 30 | B107: MARNE-ARDENNES | C107: 2 | D107: CHARLEVILLE MEZIERES | E107: 408806 | F107: SEDAN LA HALLE | G107: 8.5 | H107: 98 | I107: 166 | J107: 143 | K107: 231 | L107: 104 | M107: 87 | N107: 125 | O107: 171 | P107: 141 | Q107: 173 | R107: 53 | S107: 25 | T107: 175 | U107: 66 | V107: 5 | W107: 207 | X107: 259 | Y107: 280 | Z107: 147 | AA107: 116 | AB107: 129 | AC107: 101 | AD107: 66 | AE107: 69 | AF107: 74 | AG107: 56 | AH107: 109 | AI107: 82 | AJ107: 73 | AK107: 51 | AL107: 129 | AM107: 137 | AN107: 124
